Workbook

Sheet Legend
B2: 1. VS Configuration tab
B3: a. Click Configure Button or area with data below to open popup window to select appropriate for You actuator configuration.
B4: b. VariStroke Part Number - automatically generated based on Your choices from configuration.
B33: 2. Varistroke Sizing Tool
B34: a. Click Configure Button or area with data to open popup window to select appropriate for You actuator configuration and application input values.
B35: b. VariStroke Part Number predefined on VS Configuration tab with performance data for configured application inputs.

Sheet VS Configuration
B2: VariStroke Model Number Configurator
B5: Use the sizing tool and the chart below to dermine which VariStroke is desired
B7: The chart below shows part number structure for the VariStroke product line. Use VariStroke Sizing Tool on the next tab to determine the first 9 characters. The last 5 characters are determined by customer/application requirements.
B12: DROP DOWN LIST
B13: VariStroke Model Number : | E13: V45TG-1005-MUE1
B14: Custom Set Part Number Generator: (Automatically placed in Custom Set Tool) | E14: V45xG-1005-xUE
B15: Valve Size | C15: Action | D15: Bore | E15: Stroke | F15: Spring Force (Min-Max) | G15: Fail Safe Direction
B16: 45 | C16: Single Acting | D16: 4 inch | E16: 2 inch | F16: No Spring | G16: Extend
B17: Configuration | C17: Cylinder End | D17: Compliance | F17: Dump Valve | G17: Trip&Throttle Valve
B18: Integrated | C18: Male Thread | D18: Zone 1&2 / Div 1&2 | F18: No DV Ports | G18: No T&T

Sheet VariStroke Sizing Tool
A1: Woodward VariStroke Sizing Tool
B3: USER INPUTS
B4: Selection List | C4: Input
B5: Unit of measurement / Design variant | C5: Value
A6: Minimum Supply Pressure | B6: BAR | C6: 0
A7: Maximum Drain Pressure | B7: BAR | C7: 0
A8: Maximum Inertia Load (Installed Mass) | B8: KG | C8: 0
A9: Maximum Application Spring Force | B9: KGF | C9: 0
A10: Maximum Application Load Force | B10: KGF | C10: 0
A11: Application Stroke Length | B11: MM | C11: 0
A12: Fluid Specific Gravity | B12: N/A | C12: 0.87
A13: VariStroke Type | B13: SINGLE ACTING
A14: Actuator Fail-Safe Direction | B14: EXTEND
A15: Actuator Spring | B15: NO SPRING
A16: Dump Valve | B16: NO
A17: Trip&Throttle Valve | B17: NO
A19: VariStroke models listed below will work at the user's input operating conditions.
A20: SERVO/ACTUATOR DATA | E20: ESTIMATED OPERATING VALUES | AK20: SPRING DATA
A21: ='VS Configuration'!E13 -> V45TG-1005-MUE1 | B21: 101.6 | C21: 50.8 | D21: - | E21: - | F21: - | G21: 0 | H21: - | I21: 0 | J21: 0 | K21: 25.4 | L21: - | M21: - | N21: 4 | O21: 2 | P21: 1.75 | Q21: 0.33 | R21: 0.35 | S21: 0.448 | T21: 0.157632553 | U21: 6 | V21: 0.9457953179 | W21: 12.56637061 | X21: 10.16108874 | Y21: - | Z21: 0 | AA21: 0 | AB21: 0 | AC21: 5.77 | AD21: - | AE21: 10.26717469 | AF21: 1 | AG21: 5.133587344 | AH21: NO | AI21: 25.13274123 | AJ21: 0 | AK21: 0 | AL21: 0 | AM21: SINGLE ACTING | AN21: EXTEND | AO21: NO SPRING | AP21: 0 | AQ21: 0 | AR21: 0 | AS21: 0 | AT21: 0 | AU21: 0 | AV21: - | AW21: - | AX21: - | AY21: - | AZ21: 0 | BA21: - | BB21: - | BC21: - | BD21: - | BE21: - | BF21: - | BG21: 0 | BH21: 0.035 | BI21: 0.025 | BJ21: -
A22: ↑VariStroke Reference↑ Model Number ↓VariSroke Model Number↓ | B22: Cylinder Bore (MM) | C22: Actuator Stroke Length (MM) | D22: External Hard Stop Distance (MM) | E22: Extending Slew Velocity (MM/S)* | F22: Extending Slew Time for Application Stroke Length (S) | G22: Retracting Slew Velocity (MM/S)* | H22: Retracting Slew Time for Application Stroke Length (S) | I22: Stall Force (KGF, Extend) | J22: Stall Force (KGF, Retract) | K22: Minimum Stroke at Entered Supply (MM) | L22: Extending Slew Velocity with Dump Valve (MM/S)* | M22: Retracting Slew Velocity with Dump Valve (MM/S)* | N22: Cylinder Bore (INCH) | O22: Actuator Stroke Length (INCH) | P22: Cylinder Rod Diameter (INCH) | Q22: Tested Servo Valve Rod Cd | R22: Tested Servo Valve Piston Cd | S22: Valve Port Diameter (INCH) | T22: Valve Port Area (INCH^2) | U22: Number of Valve Ports | V22: Total Flow Area (INCH^2) | W22: Piston Area (A.1) (INCH^2) | X22: Rod End Area (A.2) (INCH^2) | Y22: Extending Slew Velocity (INCH/S) | Z22: Retracting Slew Velocity (INCH/S) | AA22: Stall Force (LBF, Extend) | AB22: Stall Force (LBF, Retract) | AC22: Varistroke Stability Constant | AD22: VariStroke Performance Index | AE22: Varistroke Performance Index AT MAX PRESSURE AND MIN STROKE (Goal < 1) | AF22: De-Stroking Limit @ Input Load & Pressure (in) | AG22: Varistroke Performance Index AT PRODUCTION TEST STAND CONDITIONS (Goal < 1) | AH22: Production Test Stand Capable | AI22: Cylinder Volume (MM^3) | AJ22: Max Transient Flow (GPM) | AK22: Min Spring Load ±10% (KGF) | AL22: Max Spring Load ±10% (KGF) | AM22: VSI Type | AN22: Failsafe Direction | AO22: Spring Assist | AP22: FE Extend Vel (INCH/S) | AQ22: FE Retract Vel (INCH/S) | AR22: FR Extend Vel (INCH/S) | AS22: FR Retract Vel (INCH/S) | AT22: DA Extend Vel (INCH/S) | AU22: DA Retract Vel (INCH/S) | AV22: FE Extend Vel DV (INCH/S) | AW22: FR Retract Vel DV (INCH/S) | AX22: DA Extend Vel DV (INCH/S) | AY22: DA Retract Vel DV (INCH/S) | AZ22: Friction Force (LBF) | BA22: Servo Cd with Orifice Plate | BB22: Orifice Plate Cd | BC22: Extending Slew Velocity 4inch Bore with orifice plate (INCH/S) | BD22: Retracting Slew Velocity 4 inch Bore with orifice plate (INCH/S) | BE22: Orifice Diameter (INCH) | BF22: Stroke Length before DV activation - extend (MM) | BG22: Stroke Length before DV activation - retract (MM) | BH22: DV Activation time (S) | BI22: Servo activation time (S) | BJ22: DV Cross Section Area (INCH^2)

Sheet Accumulator Sizing Guidelines
B2: Comments: 1. The recommendation rules listed below are critical for double acting cylinders because the movement in fail safe direction is mostly caused by oil flow. The proper size of accumulators is required to achieve a full closing time performance. 2. The accumulator size can be decreased for single acting cylinders if lower performance in opening direction is acceptable. Review the cylinder opening requirements (max step size, opening time etc.) and contact with Woodward if necessary.

Sheet Flow Curves
B7: Units | C7: Valve Configuration
B8: Liters / Min (lpm) | C8: 3-Way | H8: Orifice Plate Diameter | I8: Density of Fluid ((lbf * s^2)/in^4): | J8: Pressure Drop Factor | K8: V45 - Effective diameter (3 ports) | L8: Cd1 Servo V45 | M8: Cd2 Orifice Plate | N8: <Select Units> | O8: Gallons / Min (gpm) | P8: Liters / Min (lpm)
H9: 0.625 | I9: =9.35*10^-5*0.87 -> 8.1345e-05 | J9: =IF($C$8=$O$9,0.5,IF($C$8=$P$9,1,0)) -> 1 | K9: =SQRT(3)*H12 -> 0.7846190158 | L9: 0.53 | M9: 0.9 | N9: <Select Configuration> | O9: 4-Way | P9: 3-Way
B11: Pressure Drop on the servo valve (psid) | C11: =IF($B$8=$P$8, "Double Acting VS-I (lpm)","Double Acting VS-I (gpm)") -> Double Acting VS-I (lpm) | D11: =IF($B$8=$P$8, "Double Acting VS-I with Orifice Plate (101.6 mm cylinder bore models) (lpm)", "Double Acting VS-I with Orifice Plate (4 inch cylinder bore models) (gpm)") -> Double Acting VS-I with Orifice Plate (101.6 mm cylinder bore models) (lpm) | E11: =IF($B$8=$P$8, "V65 (lpm)","V65 (gpm)") -> V65 (lpm) | F11: =IF($B$8=$P$8, "Double Acting VS-II (lpm)","Double Acting VS-II (gpm)") -> Double Acting VS-II (lpm) | G11: Tested Cd | H11: VSI - Large Port Dia | I11: VSII -Small Port Dia | J11: VSII - Large Port Dia | K11: VS1 - Large (gpm) | L11: VSII -Small (gpm) | M11: VSII - Large (gpm) | N11: VS1 - Large (lpm) | O11: VSII -Small (lpm) | P11: VSII - Large (lpm) | Q11: VS1-V45 (with orifice) (gpm) | R11: V45 Formula Test (gpm)
B12: 1 | C12: =IF($B$8=$P$8,N12,K12) -> 33.50254821 | D12: =IF($B$8=$P$8,Q12*3.785,Q12) -> 28.92991819 | E12: =IF($B$8=$P$8,O12,L12) -> 69.19001328 | F12: =IF($B$8=$P$8,P12,M12) -> 133.7145279 | G12: 0.45 | H12: 0.453 | I12: 0.651 | J12: 0.905 | K12: =60*(3*(0.7845*H12^2)*$G12*SQRT(2*$J$9*$B12/$I$9))/231 -> 8.851399792 | L12: =60*(3*(0.7845*I12^2)*$G12*SQRT(2*$J$9*$B12/$I$9))/231 -> 18.28005635 | M12: =60*(3*(0.7845*J12^2)*$G12*SQRT(2*$J$9*$B12/$I$9))/231 -> 35.32748425 | N12: =K12*3.785 -> 33.50254821 | O12: =L12*3.785 -> 69.19001328 | P12: =M12*3.785 -> 133.7145279 | Q12: =SQRT(($J$9*B12*29.81^2)/(($I$9/(9.35*10^-5))*((1/($L$9*$K$9^2))^2+(1/($M$9*$H$9^2))^2))) -> 7.643307316 | R12: =SQRT(($J$9*B12*29.81^2)/(($I$9/(9.35*10^-5))*((1/(G12*$K$9^2))^2))) -> 8.853857385
B13: =B12+1 -> 2 | C13: 47.37975806 | D13: =IF($B$8=$P$8,Q13*3.785,Q13) -> 40.91308266 | E13: 97.84945516 | F13: 189.1008988 | G13: 0.45 | H13: 0.453 | I13: 0.651 | J13: 0.905 | K13: =60*(3*(0.7845*H13^2)*$G13*SQRT(2*$J$9*$B13/$I$9))/231 -> 12.51776963 | L13: 25.85190361 | M13: 49.96060735 | N13: =K13*3.785 -> 47.37975806 | O13: =L13*3.785 -> 97.84945516 | P13: =M13*3.785 -> 189.1008988 | Q13: =SQRT(($J$9*B13*29.81^2)/(($I$9/(9.35*10^-5))*((1/($L$9*$K$9^2))^2+(1/($M$9*$H$9^2))^2))) -> 10.80926887 | R13: =SQRT(($J$9*B13*29.81^2)/(($I$9/(9.35*10^-5))*((1/(G13*$K$9^2))^2))) -> 12.52124519
B14: =B13+1 -> 3 | C14: 58.02811569 | D14: 50.10808816 | E14: 119.8406184 | F14: 231.600356 | G14: 0.45 | H14: 0.453 | I14: 0.651 | J14: 0.905 | K14: 15.33107416 | L14: 31.66198636 | M14: 61.18899762 | N14: 58.02811569 | O14: 119.8406184 | P14: 231.600356 | Q14: 13.23859661 | R14: =SQRT(($J$9*B14*29.81^2)/(($I$9/(9.35*10^-5))*((1/(G14*$K$9^2))^2))) -> 15.33533083
B15: 4 | C15: 67.00509643 | D15: 57.85983638 | E15: 138.3800266 | F15: 267.4290557 | G15: 0.45 | H15: 0.453 | I15: 0.651 | J15: 0.905 | K15: 17.70279958 | L15: 36.5601127 | M15: 70.65496849 | N15: 67.00509643 | O15: 138.3800266 | P15: 267.4290557 | Q15: 15.28661463 | R15: 17.70771477
B16: 5 | C16: 74.91397522 | D16: 64.68926366 | E16: 154.7135731 | F16: 298.9947739 | G16: 0.45 | H16: 0.453 | I16: 0.651 | J16: 0.905 | K16: 19.79233163 | L16: 40.87544863 | M16: 78.99465625 | N16: 74.91397522 | O16: 154.7135731 | P16: 298.9947739 | Q16: 17.09095473 | R16: 19.79782698
B17: 6 | C17: 82.06414821 | D17: 70.86353787 | E17: 169.4802278 | F17: 327.5323645 | G17: 0.45 | H17: 0.453 | I17: 0.651 | J17: 0.905 | K17: 21.681413 | L17: 44.77681052 | M17: 86.5343103 | N17: 82.06414821 | O17: 169.4802278 | P17: 327.5323645 | Q17: 18.72220287 | R17: 21.68743285
B18: 7 | C18: 88.63941086 | D18: 76.54136898 | E18: 183.0595684 | F18: 353.7753874 | G18: 0.45 | H18: 0.453 | I18: 0.651 | J18: 0.905 | K18: 23.41860261 | L18: 48.36448305 | M18: 93.46773776 | N18: 88.63941086 | O18: 183.0595684 | P18: 353.7753874 | Q18: 20.22229035 | R18: 23.42510479
B19: 8 | C19: 94.75951612 | D19: 81.82616533 | E19: 195.6989103 | F19: 378.2017976 | G19: 0.45 | H19: 0.453 | I19: 0.651 | J19: 0.905 | K19: 25.03553926 | L19: 51.70380722 | M19: 99.92121469 | N19: 94.75951612 | O19: 195.6989103 | P19: 378.2017976 | Q19: 21.61853773 | R19: 25.04249039
B20: 9 | C20: 100.5076446 | D20: 86.78975457 | E20: 207.5700398 | F20: 401.1435836 | G20: 0.45 | H20: 0.453 | I20: 0.651 | J20: 0.905 | K20: 26.55419938 | L20: 54.84016905 | M20: 105.9824527 | N20: 100.5076446 | O20: 207.5700398 | P20: 401.1435836 | Q20: 22.92992195 | R20: 26.56157216
B21: 10 | C21: 105.9443598 | D21: 91.484434 | E21: 218.7980333 | F21: 422.8424643 | G21: 0.45 | H21: 0.453 | I21: 0.651 | J21: 0.905 | K21: 27.99058382 | L21: 57.80661382 | M21: 111.7153142 | N21: 105.9443598 | O21: 218.7980333 | P21: 422.8424643 | Q21: 24.17025997 | R21: 27.99835542
B22: 11 | C22: 111.1153819 | D22: 95.94968385 | E22: 229.4773133 | F22: 443.480918 | G22: 0.45 | H22: 0.453 | I22: 0.651 | J22: 0.905 | K22: 29.35677198 | L22: 60.62808806 | M22: 117.16801 | N22: 111.1153819 | O22: 229.4773133 | P22: 443.480918 | Q22: 25.34998252 | R22: 29.36492289
B23: 12 | C23: 116.0562314 | D23: 100.2161763 | E23: 239.6812368 | F23: 463.200712 | G23: 0.45 | H23: 0.453 | I23: 0.651 | J23: 0.905 | K23: 30.66214832 | L23: 63.32397272 | M23: 122.3779952 | N23: 116.0562314 | O23: 239.6812368 | P23: 463.200712 | Q23: 26.47719322 | R23: 30.67066167
B24: 13 | C24: 120.7951554 | D24: 104.3083034 | E24: 249.4681406 | F24: 482.1145865 | G24: 0.45 | H24: 0.453 | I24: 0.651 | J24: 0.905 | K24: 31.91417581 | L24: 65.90968049 | M24: 127.3750559 | N24: 120.7951554 | O24: 249.4681406 | P24: 482.1145865 | Q24: 27.55833644 | R24: 31.92303679
B25: 14 | C25: 125.355057 | D25: 108.2458421 | E25: 258.8853243 | F25: 500.3139509 | G25: 0.45 | H25: 0.453 | I25: 0.651 | J25: 0.905 | K25: 33.11890542 | L25: 68.39770787 | M25: 132.1833424 | N25: 125.355057 | O25: 258.8853243 | P25: 500.3139509 | Q25: 28.59863728 | R25: 33.12810089
B26: 15 | C26: 129.7548113 | D26: 112.0450914 | E26: 267.9717692 | F26: 517.8741396 | G26: 0.45 | H26: 0.453 | I26: 0.651 | J26: 0.905 | K26: 34.28132399 | L26: 70.79835381 | M26: 136.8227582 | N26: 129.7548113 | O26: 267.9717692 | P26: 517.8741396 | Q26: 29.60240194 | R26: 34.2908422
B27: 16 | C27: 134.0101929 | D27: 115.7196728 | E27: 276.7600531 | F27: 534.8581115 | G27: 0.45 | H27: 0.453 | I27: 0.651 | J27: 0.905 | K27: 35.40559917 | L27: 73.1202254 | M27: 141.309937 | N27: 134.0101929 | O27: 276.7600531 | P27: 534.8581115 | Q27: 30.57322926 | R27: 35.41542954
B28: 17 | C28: 138.134545 | D28: 119.2811084 | E28: 285.277733 | F28: 551.3191221 | G28: 0.45 | H28: 0.453 | I28: 0.651 | J28: 0.905 | K28: 36.49525628 | L28: 75.37060317 | M28: 145.658949 | N28: 138.134545 | O28: 285.277733 | P28: 551.3191221 | Q28: 31.51416339 | R28: 36.50538919
B29: 18 | C29: 142.1392742 | D29: 122.739248 | E29: 293.5483655 | F29: 567.3026964 | G29: 0.45 | H29: 0.453 | I29: 0.651 | J29: 0.905 | K29: 37.5533089 | L29: 77.55571083 | M29: 149.881822 | N29: 142.1392742 | O29: 293.5483655 | P29: 567.3026964 | Q29: 32.4278066 | R29: 37.56373558
B30: 19 | C30: 146.034222 | D30: 126.1025898 | E30: 301.5922758 | F30: 582.8481143 | G30: 0.45 | H30: 0.453 | I30: 0.651 | J30: 0.905 | K30: 38.5823572 | L30: 79.68091831 | M30: 153.9889338 | N30: 146.034222 | O30: 301.5922758 | P30: 582.8481143 | Q30: 33.31640418 | R30: 38.5930696
B31: 20 | C31: 149.8279504 | D31: 129.3785273 | E31: 309.4271461 | F31: 597.9895478 | G31: 0.45 | H31: 0.453 | I31: 0.651 | J31: 0.905 | K31: 39.58466326 | L31: 81.75089726 | M31: 157.9893125 | N31: 149.8279504 | O31: 309.4271461 | P31: 597.9895478 | Q31: 34.18190946 | R31: 39.59565395
B32: 21 | C32: 153.5279632 | D32: 132.57354 | E32: 317.0684732 | F32: 612.7569455 | G32: 0.45 | H32: 0.453 | I32: 0.651 | J32: 0.905 | K32: 40.56220955 | L32: 83.76974193 | M32: 161.8908707 | N32: 153.5279632 | O32: 317.0684732 | P32: 612.7569455 | Q32: 35.02603433 | R32: 40.57347166
B33: 22 | C33: 157.1408801 | D33: 135.6933442 | E33: 324.5299287 | F33: 627.1767289 | G33: 0.45 | H33: 0.453 | I33: 0.651 | J33: 0.905 | K33: 41.51674508 | L33: 85.74106439 | M33: 165.7005889 | N33: 157.1408801 | O33: 324.5299287 | P33: 627.1767289 | Q33: 35.85028909 | R33: 41.52827222
B34: 23 | C34: 160.6725768 | D34: 138.7430136 | E34: 331.8236468 | F34: 641.2723479 | G34: 0.45 | H34: 0.453 | I34: 0.651 | J34: 0.905 | K34: 42.44982215 | L34: 87.66807049 | M34: 169.4246626 | N34: 160.6725768 | O34: 331.8236468 | P34: 641.2723479 | Q34: 36.65601417 | R34: 42.46160835
B35: 24 | C35: 164.1282964 | D35: 141.7270757 | E35: 338.9604557 | F35: 655.064729 | G35: 0.45 | H35: 0.453 | I35: 0.651 | J35: 0.905 | K35: 43.362826 | L35: 89.55362105 | M35: 173.0686206 | N35: 164.1282964 | O35: 338.9604557 | P35: 655.064729 | Q35: 37.44440574 | R35: 43.3748657
B36: 25 | C36: 167.5127411 | D36: 144.649591 | E36: 345.9500664 | F36: 668.5726394 | G36: 0.45 | H36: 0.453 | I36: 0.651 | J36: 0.905 | K36: 44.25699896 | L36: 91.40028175 | M36: 176.6374212 | N36: 167.5127411 | O36: 345.9500664 | P36: 668.5726394 | Q36: 38.21653658 | R36: 44.26928693
B37: 26 | C37: 170.8301471 | D37: 147.5142174 | E37: 352.8012279 | F37: 681.8129869 | G37: 0.45 | H37: 0.453 | I37: 0.651 | J37: 0.905 | K37: 45.13346026 | L37: 93.21036403 | M37: 180.1355315 | N37: 170.8301471 | O37: 352.8012279 | P37: 681.8129869 | Q37: 38.97337315 | R37: 45.14599158
B38: 27 | C38: 174.0843471 | D38: 150.3242645 | E38: 359.5218551 | F38: 694.801068 | G38: 0.45 | H38: 0.453 | I38: 0.651 | J38: 0.905 | K38: 45.99322247 | L38: 94.98595909 | M38: 183.5669929 | N38: 174.0843471 | O38: 359.5218551 | P38: 694.801068 | Q38: 39.71578983 | R38: 46.0059925
B39: 28 | C39: 177.2788217 | D39: 153.082738 | E39: 366.1191367 | F39: 707.5507749 | G39: 0.45 | H39: 0.453 | I39: 0.651 | J39: 0.905 | K39: 46.83720521 | L39: 96.7289661 | M39: 186.9354755 | N39: 177.2788217 | O39: 366.1191367 | P39: 707.5507749 | Q39: 40.4445807 | R39: 46.85020957
B40: 29 | C40: 180.4167436 | D40: 155.7923773 | E40: 372.5996245 | F40: 720.0747697 | G40: 0.45 | H40: 0.453 | I40: 0.651 | J40: 0.905 | K40: 47.66624665 | L40: 98.44111612 | M40: 190.2443249 | N40: 180.4167436 | O40: 372.5996245 | P40: 720.0747697 | Q40: 41.16046957 | R40: 47.6794812
B41: 30 | C41: 183.5010139 | D41: 158.4556878 | E41: 378.9693103 | F41: 732.3846318 | G41: 0.45 | H41: 0.453 | I41: 0.651 | J41: 0.905 | K41: 48.48111332 | L41: 100.1239921 | M41: 193.4966002 | N41: 183.5010139 | O41: 378.9693103 | P41: 732.3846318 | Q41: 41.86411831 | R41: 48.49457411
B42: 31 | C42: 186.534294 | D42: 161.0749675 | E42: 385.2336902 | F42: 744.4909831 | G42: 0.45 | H42: 0.453 | I42: 0.651 | J42: 0.905 | K42: 49.28250832 | L42: 101.7790463 | M42: 196.6951078 | N42: 186.534294 | O42: 385.2336902 | P42: 744.4909831 | Q42: 42.55613409 | R42: 49.29619162
B43: 32 | C43: 189.5190322 | D43: 163.6523307 | E43: 391.3978207 | F43: 756.4035952 | G43: 0.45 | H43: 0.453 | I43: 0.651 | J43: 0.905 | K43: 50.07107853 | L43: 103.4076144 | M43: 199.8424294 | N43: 189.5190322 | O43: 391.3978207 | P43: 756.4035952 | Q43: 43.23707547 | R43: 50.08498077
B44: 33 | C44: 192.457487 | D44: 166.1897274 | E44: 397.4663658 | F44: 768.1314821 | G44: 0.45 | H44: 0.453 | I44: 0.651 | J44: 0.905 | K44: 50.84742062 | L44: 105.0109289 | M44: 202.9409464 | N44: 192.457487 | O44: 397.4663658 | P44: 768.1314821 | Q44: 43.9074577 | R44: 50.86153841
B45: 34 | C45: 195.351747 | D45: 168.6889613 | E45: 403.443639 | F45: 779.6829797 | G45: 0.45 | H45: 0.453 | I45: 0.651 | J45: 0.905 | K45: 51.61208639 | L45: 106.5901292 | M45: 205.9928612 | N45: 195.351747 | O45: 403.443639 | P45: 779.6829797 | Q45: 44.56775728 | R45: 51.6264165
B46: 35 | C46: 198.2037482 | D46: 171.1517041 | E46: 409.3336388 | F46: 791.0658151 | G46: 0.45 | H46: 0.453 | I46: 0.651 | J46: 0.905 | K46: 52.36558736 | L46: 108.1462718 | M46: 209.0002153 | N46: 198.2037482 | O46: 409.3336388 | P46: 791.0658151 | Q46: 45.21841589 | R46: 52.38012668
B47: 36 | C47: 201.0152893 | D47: 173.5795091 | E47: 415.1400797 | F47: 802.2871672 | G47: 0.45 | H47: 0.453 | I47: 0.651 | J47: 0.905 | K47: 53.10839875 | L47: 109.6803381 | M47: 211.9649055 | N47: 201.0152893 | O47: 415.1400797 | P47: 802.2871672 | Q47: 45.85984389 | R47: 53.12314431
B48: 37 | C48: 203.7880449 | D48: 175.9738224 | E48: 420.8664203 | F48: 813.3537199 | G48: 0.45 | H48: 0.453 | I48: 0.651 | J48: 0.905 | K48: 53.840963 | L48: 111.1932418 | M48: 214.8886975 | N48: 203.7880449 | O48: 420.8664203 | P48: 813.3537199 | Q48: 46.49242335 | R48: 53.85591195
B49: 38 | C49: 206.5235773 | D49: 178.3359928 | E49: 426.5158867 | F49: 824.271708 | G49: 0.45 | H49: 0.453 | I49: 0.651 | J49: 0.905 | K49: 54.56369283 | L49: 112.6858353 | M49: 217.7732386 | N49: 206.5235773 | O49: 426.5158867 | P49: 824.271708 | Q49: 47.11651065 | R49: 54.57884245
B50: 39 | C50: 209.2233465 | D50: 180.6672812 | E50: 432.0914945 | F50: 835.0469589 | G50: 0.45 | H50: 0.453 | I50: 0.651 | J50: 0.905 | K50: 55.27697399 | L50: 114.1589153 | M50: 220.6200684 | N50: 209.2233465 | O50: 432.0914945 | P50: 835.0469589 | Q50: 47.73243889 | R50: 55.29232165
B51: 40 | C51: 211.8887195 | D51: 182.968868 | E51: 437.5960666 | F51: 845.6849287 | G51: 0.45 | H51: 0.453 | I51: 0.651 | J51: 0.905 | K51: 55.98116765 | L51: 115.6132276 | M51: 223.4306284 | N51: 211.8887195 | O51: 437.5960666 | P51: 845.6849287 | Q51: 48.34051995 | R51: 55.99671083
B52: 41 | C52: 214.5209785 | D52: 185.2418604 | E52: 443.032251 | F52: 856.1907343 | G52: 0.45 | H52: 0.453 | I52: 0.651 | J52: 0.905 | K52: 56.67661254 | L52: 117.0494719 | M52: 226.2062706 | N52: 214.5209785 | O52: 443.032251 | P52: 856.1907343 | Q52: 48.94104633 | R52: 56.69234882
B53: 42 | C53: 217.1213277 | D53: 187.4872982 | E53: 448.402535 | F53: 866.5691828 | G53: 0.45 | H53: 0.453 | I53: 0.651 | J53: 0.905 | K53: 57.36362687 | L53: 118.4683052 | M53: 228.9482649 | N53: 217.1213277 | O53: 448.402535 | P53: 866.5691828 | Q53: 49.53429279 | R53: 57.3795539
B54: 43 | C54: 219.6909003 | D54: 189.70616 | E54: 453.7092586 | F54: 876.8247963 | G54: 0.45 | H54: 0.453 | I54: 0.651 | J54: 0.905 | K54: 58.04250999 | L54: 119.8703457 | M54: 231.6578062 | N54: 219.6909003 | O54: 453.7092586 | P54: 876.8247963 | Q54: 50.12051785 | R54: 58.05862551
B55: 44 | C55: 222.2307639 | D55: 191.8993677 | E55: 458.9546266 | F55: 886.961836 | G55: 0.45 | H55: 0.453 | I55: 0.651 | J55: 0.905 | K55: 58.71354396 | L55: 121.2561761 | M55: 234.3360201 | N55: 222.2307639 | O55: 458.9546266 | P55: 886.961836 | Q55: 50.69996505 | R55: 58.72984579
B56: 45 | C56: 224.7419257 | D56: 194.067791 | E56: 464.1407192 | F56: 896.9843217 | G56: 0.45 | H56: 0.453 | I56: 0.651 | J56: 0.905 | K56: 59.37699489 | L56: 122.6263459 | M56: 236.9839688 | N56: 224.7419257 | O56: 464.1407192 | P56: 896.9843217 | Q56: 51.27286419 | R56: 59.39348093
B57: 46 | C57: 227.2253373 | D57: 196.2122516 | E57: 469.2695016 | F57: 906.8960516 | G57: 0.45 | H57: 0.453 | I57: 0.651 | J57: 0.905 | K57: 60.0331142 | L57: 123.9813743 | M57: 239.6026556 | N57: 227.2253373 | O57: 469.2695016 | P57: 906.8960516 | Q57: 51.83943238 | R57: 60.04978241
B58: 47 | C58: 229.6818988 | D58: 198.3335267 | E58: 474.3428329 | F58: 916.7006182 | G58: 0.45 | H58: 0.453 | I58: 0.651 | J58: 0.905 | K58: 60.68213971 | L58: 125.3217524 | M58: 242.1930299 | N58: 229.6818988 | O58: 474.3428329 | P58: 916.7006182 | Q58: 52.39987496 | R58: 60.69898812
B59: 48 | C59: 232.1124628 | D59: 200.4323527 | E59: 479.3624735 | F59: 926.401424 | G59: 0.45 | H59: 0.453 | I59: 0.651 | J59: 0.905 | K59: 61.32429663 | L59: 126.6479454 | M59: 244.7559905 | N59: 232.1124628 | O59: 479.3624735 | P59: 926.401424 | Q59: 52.95438644 | R59: 61.34132334
B60: 49 | C60: 234.5178375 | D60: 202.5094273 | E60: 484.330093 | F60: 936.0016951 | G60: 0.45 | H60: 0.453 | I60: 0.651 | J60: 0.905 | K60: 61.95979855 | L60: 127.9603944 | M60: 247.2923897 | N60: 234.5178375 | O60: 484.330093 | P60: 936.0016951 | Q60: 53.50315121 | R60: 61.9770017
B61: 50 | C61: 236.8987903 | D61: 204.5654133 | E61: 489.2472758 | F61: 945.504494 | G61: 0.45 | H61: 0.453 | I61: 0.651 | J61: 0.905 | K61: 62.58884816 | L61: 129.259518 | M61: 249.8030367 | N61: 236.8987903 | O61: 489.2472758 | P61: 945.504494 | Q61: 54.04634434 | R61: 62.60622597
B62: 51 | C62: 239.2560502 | D62: 206.6009402 | E62: 494.1155278 | F62: 954.9127307 | G62: 0.45 | H62: 0.453 | I62: 0.651 | J62: 0.905 | K62: 63.21163811 | L62: 130.5457141 | M62: 252.2887003 | N62: 239.2560502 | O62: 494.1155278 | P62: 954.9127307 | Q62: 54.58413215 | R62: 63.22918883
B63: 52 | C63: 241.5903109 | D63: 208.6166069 | E63: 498.9362813 | F63: 964.2291731 | G63: 0.45 | H63: 0.453 | I63: 0.651 | J63: 0.905 | K63: 63.82835162 | L63: 131.819361 | M63: 254.7501118 | N63: 241.5903109 | O63: 498.9362813 | P63: 964.2291731 | Q63: 55.11667288 | R63: 63.84607358
B64: 53 | C64: 243.9022326 | D64: 210.6129835 | E64: 503.7108999 | F64: 973.4564567 | G64: 0.45 | H64: 0.453 | I64: 0.651 | J64: 0.905 | K64: 64.43916316 | L64: 133.080819 | M64: 257.1879674 | N64: 243.9022326 | O64: 503.7108999 | P64: 973.4564567 | Q64: 55.64411718 | R64: 64.45705471
B65: 54 | C65: 246.1924446 | D65: 212.5906136 | E65: 508.4406835 | F65: 982.5970935 | G65: 0.45 | H65: 0.453 | I65: 0.651 | J65: 0.905 | K65: 65.044239 | L65: 134.3304316 | M65: 259.6029309 | N65: 246.1924446 | O65: 508.4406835 | P65: 982.5970935 | Q65: 56.16660861 | R65: 65.06229855
B66: 55 | C66: 248.4615474 | D66: 214.5500155 | E66: 513.1268718 | F66: 991.6534793 | G66: 0.45 | H66: 0.453 | I66: 0.651 | J66: 0.905 | K66: 65.64373775 | L66: 135.5685262 | M66: 261.9956352 | N66: 248.4615474 | O66: 513.1268718 | P66: 991.6534793 | Q66: 56.68428415 | R66: 65.66196375
B67: 56 | C67: 250.710114 | D67: 216.4916842 | E67: 517.7706486 | F67: 1000.627902 | G67: 0.45 | H67: 0.453 | I67: 0.651 | J67: 0.905 | K67: 66.23781083 | L67: 136.7954157 | M67: 264.3666848 | N67: 250.710114 | O67: 517.7706486 | P67: 1000.627902 | Q67: 57.19727455 | R67: 66.25620177 | AD67: Load Level [%] | AF67: Supply Pressure 80 (psig) | AI67: Supply Pressure 254 (psig) | AL67: Supply Pressure 500 (psig)
B68: 57 | C68: 252.9386922 | D68: 218.4160926 | E68: 522.3731448 | F68: 1009.522547 | G68: 0.45 | H68: 0.453 | I68: 0.651 | J68: 0.905 | K68: 66.82660295 | L68: 138.0113989 | M68: 266.7166571 | N68: 252.9386922 | O68: 522.3731448 | P68: 1009.522547 | Q68: 57.70570477 | R68: 66.84515737 | AD68: 20 | AF68: =IF($B$8=$P$8,260,IF($B$8=$O$8,260*0.264172052358148,"")) -> 260 | AI68: =IF($B$8=$P$8,480,IF($B$8=$O$8,480*0.264172052358148,"")) -> 480 | AL68: =IF($B$8=$P$8,720,IF($B$8=$O$8,720*0.264172052358148,"")) -> 720
B69: 58 | C69: 255.1478057 | D69: 220.3236929 | E69: 526.9354423 | F69: 1018.339505 | G69: 0.45 | H69: 0.453 | I69: 0.651 | J69: 0.905 | K69: 67.41025249 | L69: 139.2167615 | M69: 269.0461044 | N69: 255.1478057 | O69: 526.9354423 | P69: 1018.339505 | Q69: 58.2096943 | R69: 67.42896896 | AD69: 50 | AF69: =IF($B$8=$P$8,192,IF($B$8=$O$8,192*0.264172052358148,"")) -> 192 | AI69: =IF($B$8=$P$8,375,IF($B$8=$O$8,375*0.264172052358148,"")) -> 375 | AL69: =IF($B$8=$P$8,523,IF($B$8=$O$8,523*0.264172052358148,"")) -> 523
B70: 59 | C70: 257.3379558 | D70: 222.2149181 | E70: 531.4585763 | F70: 1027.080777 | G70: 0.45 | H70: 0.453 | I70: 0.651 | J70: 0.905 | K70: 67.98889188 | L70: 140.4117771 | M70: 271.3555554 | N70: 257.3379558 | O70: 531.4585763 | P70: 1027.080777 | Q70: 58.70935749 | R70: 68.00776901 | AD70: 80 | AF70: =IF($B$8=$P$8,112,IF($B$8=$O$8,112*0.264172052358148,"")) -> 112 | AI70: =IF($B$8=$P$8,250,IF($B$8=$O$8,250*0.264172052358148,"")) -> 250 | AL70: =IF($B$8=$P$8,340,IF($B$8=$O$8,340*0.264172052358148,"")) -> 340
B71: 60 | C71: 259.5096226 | D71: 224.0901827 | E71: 535.9435383 | F71: 1035.748279 | G71: 0.45 | H71: 0.453 | I71: 0.651 | J71: 0.905 | K71: 68.56264797 | L71: 141.5967076 | M71: 273.6455163 | N71: 259.5096226 | O71: 535.9435383 | P71: 1035.748279 | Q71: 59.20480389 | R71: 68.58168441
B72: 61 | C72: 261.6632663 | D72: 225.9498842 | E72: 540.3912788 | F72: 1044.343848 | G72: 0.45 | H72: 0.453 | I72: 0.651 | J72: 0.905 | K72: 69.13164236 | L72: 142.7718042 | M72: 275.9164724 | N72: 261.6632663 | O72: 540.3912788 | P72: 1044.343848 | Q72: 59.69613849 | R72: 69.15083677
B73: 62 | C73: 263.7993284 | D73: 227.7944036 | E73: 544.8027094 | F73: 1052.869245 | G73: 0.45 | H73: 0.453 | I73: 0.651 | J73: 0.905 | K73: 69.69599166 | L73: 143.9373076 | M73: 278.1688891 | N73: 263.7993284 | O73: 544.8027094 | P73: 1052.869245 | Q73: 60.18346199 | R73: 69.71534277
B74: 63 | C74: 265.9182326 | D74: 229.6241069 | E74: 549.1787051 | F74: 1061.326162 | G74: 0.45 | H74: 0.453 | I74: 0.651 | J74: 0.905 | K74: 70.25580782 | L74: 145.0934492 | M74: 280.4032133 | N74: 265.9182326 | O74: 549.1787051 | P74: 1061.326162 | Q74: 60.66687105 | R74: 70.27531436
B75: 64 | C75: 268.0203857 | D75: 231.4393455 | E75: 553.5201063 | F75: 1069.716223 | G75: 0.45 | H75: 0.453 | I75: 0.651 | J75: 0.905 | K75: 70.81119834 | L75: 146.2404508 | M75: 282.619874 | N75: 268.0203857 | O75: 553.5201063 | P75: 1069.716223 | Q75: 61.14645853 | R75: 70.83085908
B76: 65 | C76: =IF($B$8=$P$8,N76,K76) -> 270.1061789 | D76: 233.2404571 | E76: =IF($B$8=$P$8,O76,L76) -> 557.8277207 | F76: =IF($B$8=$P$8,P76,M76) -> 1078.040988 | G76: 0.45 | H76: 0.453 | I76: 0.651 | J76: 0.905 | K76: =60*(3*(0.7845*H76^2)*$G76*SQRT(2*$J$9*$B76/$I$9))/231 -> 71.36226656 | L76: =60*(3*(0.7845*I76^2)*$G76*SQRT(2*$J$9*$B76/$I$9))/231 -> 147.3785259 | M76: =60*(3*(0.7845*J76^2)*$G76*SQRT(2*$J$9*$B76/$I$9))/231 -> 284.8192836 | N76: 270.1061789 | O76: 557.8277207 | P76: 1078.040988 | Q76: 61.62231363 | R76: 71.38208031
B77: 66 | C77: 272.1759883 | D77: =IF($B$8=$P$8,Q77*3.785,Q77) -> 235.0277664 | E77: 562.1023251 | F77: 1086.30196 | G77: 0.45 | H77: 0.453 | I77: 0.651 | J77: 0.905 | K77: 71.90911185 | L77: 148.5078798 | M77: 287.0018388 | N77: =K77*3.785 -> 272.1759883 | O77: =L77*3.785 -> 562.1023251 | P77: =M77*3.785 -> 1086.30196 | Q77: =SQRT(($J$9*B77*29.81^2)/(($I$9/(9.35*10^-5))*((1/($L$9*$K$9^2))^2+(1/($M$9*$H$9^2))^2))) -> 62.09452217 | R77: =SQRT(($J$9*B77*29.81^2)/(($I$9/(9.35*10^-5))*((1/(G77*$K$9^2))^2))) -> 71.92907743
B78: =B77+1 -> 67 | C78: 274.2301759 | D78: 236.801586 | E78: 566.344667 | F78: 1094.500581 | G78: 0.45 | H78: 0.453 | I78: 0.651 | J78: 0.905 | K78: 72.45182982 | L78: 149.6287099 | M78: 289.1679211 | N78: 274.2301759 | O78: 566.344667 | P78: 1094.500581 | Q78: 62.56316672 | R78: 72.47194609
B79: 68 | C79: 276.26909 | D79: 238.5622169 | E79: 570.555466 | F79: 1102.638244 | G79: 0.45 | H79: 0.453 | I79: 0.651 | J79: 0.905 | K79: 72.99051256 | L79: 150.7412063 | M79: 291.3178981 | N79: 276.26909 | O79: 570.555466 | P79: 1102.638244 | Q79: 63.02832678 | R79: 73.01077839
B80: 69 | C80: 278.2930665 | D80: 240.3099488 | E80: 574.7354154 | F80: 1110.716288 | G80: 0.45 | H80: 0.453 | I80: 0.651 | J80: 0.905 | K80: 73.52524873 | L80: 151.8455523 | M80: 293.4521237 | N80: 278.2930665 | O80: 574.7354154 | P80: 1110.716288 | Q80: 63.49007894 | R80: 73.54566304
B81: 70 | C81: 280.3024288 | D81: 242.0450612 | E81: 578.8851835 | F81: 1118.736004 | G81: 0.45 | H81: 0.453 | I81: 0.651 | J81: 0.905 | K81: 74.05612385 | L81: 152.9419243 | M81: 295.5709391 | N81: 280.3024288 | O81: 578.8851835 | P81: 1118.736004 | Q81: 63.94849702 | R81: 74.07668555
B82: 71 | C82: 282.297489 | D82: 243.7678236 | E82: 583.0054147 | F82: 1126.698639 | G82: 0.45 | H82: 0.453 | I82: 0.651 | J82: 0.905 | K82: 74.58322035 | L82: 154.0304927 | M82: 297.6746734 | N82: 282.297489 | O82: 583.0054147 | P82: 1126.698639 | Q82: 64.4036522 | R82: 74.6039284
B83: 72 | C83: 284.2785483 | D83: 245.478496 | E83: 587.096731 | F83: 1134.605393 | G83: 0.45 | H83: 0.453 | I83: 0.651 | J83: 0.905 | K83: 75.10661779 | L83: 155.1114217 | M83: 299.7636441 | N83: 284.2785483 | O83: 587.096731 | P83: 1134.605393 | Q83: 64.8556132 | R83: 75.12747116
B84: 73 | C84: 286.2458974 | D84: 247.1773294 | E84: 591.1597326 | F84: 1142.457427 | G84: 0.45 | H84: 0.453 | I84: 0.651 | J84: 0.905 | K84: 75.62639298 | L84: 156.1848699 | M84: 301.8381577 | N84: 286.2458974 | O84: 591.1597326 | P84: 1142.457427 | Q84: 65.30444633 | R84: 75.64739066
B85: 74 | C85: 288.199817 | D85: 248.8645662 | E85: 595.1949995 | F85: 1150.255862 | G85: 0.45 | H85: 0.453 | I85: 0.651 | J85: 0.905 | K85: 76.14262008 | L85: 157.2509906 | M85: 303.8985104 | N85: 288.199817 | O85: 595.1949995 | P85: 1150.255862 | Q85: 65.75021565 | R85: 76.1637611
B86: 75 | C86: 290.1405784 | D86: 250.5404408 | E86: 599.2030919 | F86: 1158.00178 | G86: 0.45 | H86: 0.453 | I86: 0.651 | J86: 0.905 | K86: 76.65537079 | L86: 158.3099318 | M86: 305.9449881 | N86: 290.1405784 | O86: 599.2030919 | P86: 1158.00178 | Q86: 66.19298304 | R86: 76.67665417
B87: 76 | C87: 292.068444 | D87: 252.2051797 | E87: 603.1845516 | F87: 1165.696229 | G87: 0.45 | H87: 0.453 | I87: 0.651 | J87: 0.905 | K87: 77.16471441 | L87: 159.3618366 | M87: 307.9778675 | N87: 292.068444 | O87: 603.1845516 | P87: 1165.696229 | Q87: 66.63280837 | R87: 77.18613921
B88: 77 | C88: 293.9836675 | D88: 253.8590018 | E88: 607.1399025 | F88: 1173.34022 | G88: 0.45 | H88: 0.453 | I88: 0.651 | J88: 0.905 | K88: 77.67071796 | L88: 160.4068435 | M88: 309.9974162 | N88: 293.9836675 | O88: 607.1399025 | P88: 1173.34022 | Q88: 67.0697495 | R88: 77.69228325
B89: 78 | C89: 295.8864942 | D89: 255.5021193 | E89: 611.0696516 | F89: 1180.934735 | G89: 0.45 | H89: 0.453 | I89: 0.651 | J89: 0.905 | K89: 78.1734463 | L89: 161.4450863 | M89: 312.0038929 | N89: 295.8864942 | O89: 611.0696516 | P89: 1180.934735 | Q89: 67.50386244 | R89: 78.19515117
B90: 79 | C90: 297.777162 | D90: 257.1347374 | E90: 614.9742898 | F90: 1188.48072 | G90: 0.45 | H90: 0.453 | I90: 0.651 | J90: 0.905 | K90: 78.67296222 | L90: 162.4766948 | M90: 313.9975483 | N90: 297.777162 | O90: 614.9742898 | P90: 1188.48072 | Q90: 67.93520141 | R90: 78.69480578
B91: 80 | C91: 299.6559009 | D91: 258.7570546 | E91: 618.8542922 | F91: 1195.979096 | G91: 0.45 | H91: 0.453 | I91: 0.651 | J91: 0.905 | K91: 79.16932653 | L91: 163.5017945 | M91: 315.978625 | N91: 299.6559009 | O91: 618.8542922 | P91: 1195.979096 | Q91: 68.36381892 | R91: 79.19130791
B92: 81 | C92: 301.5229339 | D92: 260.3692637 | E92: 622.7101195 | F92: 1203.430751 | G92: 0.45 | H92: 0.453 | I92: 0.651 | J92: 0.905 | K92: 79.66259813 | L92: 164.5205071 | M92: 317.9473582 | N92: 301.5229339 | O92: 622.7101195 | P92: 1203.430751 | Q92: 68.78976584 | R92: 79.68471647
B93: 82 | C93: 303.3784772 | D93: 261.9715512 | E93: 626.542218 | F93: 1210.836548 | G93: 0.45 | H93: 0.453 | I93: 0.651 | J93: 0.905 | K93: 80.15283413 | L93: 165.5329506 | M93: 319.9039758 | N93: 303.3784772 | O93: 626.542218 | P93: 1210.836548 | Q93: 69.21309147 | R93: 80.17508858
B94: 83 | C94: 305.2227402 | D94: 263.5640981 | E94: 630.3510203 | F94: 1218.197325 | G94: 0.45 | H94: 0.453 | I94: 0.651 | J94: 0.905 | K94: 80.64008989 | L94: 166.5392392 | M94: 321.8486987 | N94: 305.2227402 | O94: 630.3510203 | P94: 1218.197325 | Q94: 69.63384363 | R94: 80.66247963
B95: 84 | C95: 307.0559263 | D95: 265.1470799 | E95: 634.1369464 | F95: 1225.513891 | G95: 0.45 | H95: 0.453 | I95: 0.651 | J95: 0.905 | K95: 81.12441911 | L95: 167.5394839 | M95: 323.7817413 | N95: 307.0559263 | O95: 634.1369464 | P95: 1225.513891 | Q95: 70.05206867 | R95: 81.14694332
B96: 85 | C96: 308.8782327 | D96: 266.7206669 | E96: 637.9004034 | F96: 1232.787034 | G96: 0.45 | H96: 0.453 | I96: 0.651 | J96: 0.905 | K96: 81.60587389 | L96: 168.5337922 | M96: 325.7033116 | N96: 308.8782327 | O96: 637.9004034 | P96: 1232.787034 | Q96: 70.4678116 | R96: 81.62853178
B97: 86 | C97: 310.6898508 | D97: 268.2850244 | E97: 641.6417869 | F97: 1240.017519 | G97: 0.45 | H97: 0.453 | I97: 0.651 | J97: 0.905 | K97: 82.08450482 | L97: 169.5222687 | M97: 327.6136113 | N97: 310.6898508 | O97: 641.6417869 | P97: 1240.017519 | Q97: 70.88111609 | R97: 82.10729561
B98: 87 | C98: 312.4909664 | D98: 269.8403129 | E98: 645.3614806 | F98: 1247.206086 | G98: 0.45 | H98: 0.453 | I98: 0.651 | J98: 0.905 | K98: 82.56036101 | L98: 170.5050147 | M98: 329.5128366 | N98: 312.4909664 | O98: 645.3614806 | P98: 1247.206086 | Q98: 71.29202455 | R98: 82.58328392
B99: 88 | C99: 314.2817603 | D99: 271.3866884 | E99: 649.0598574 | F99: 1254.353458 | G99: 0.45 | H99: 0.453 | I99: 0.651 | J99: 0.905 | K99: 83.03349016 | L99: 171.4821288 | M99: 331.4011777 | N99: 314.2817603 | O99: 649.0598574 | P99: 1254.353458 | Q99: 71.70057818 | R99: 83.05654443
B100: 89 | C100: 316.0624077 | D100: 272.9243024 | E100: 652.7372798 | F100: 1261.460333 | G100: 0.45 | H100: 0.453 | I100: 0.651 | J100: 0.905 | K100: 83.50393863 | L100: 172.4537067 | M100: 333.2788198 | N100: 316.0624077 | O100: 652.7372798 | P100: 1261.460333 | Q100: 72.106817 | R100: 83.52712352
B101: 90 | C101: 317.8330793 | D101: 274.453302 | E101: 656.3940999 | F101: 1268.527393 | G101: 0.45 | H101: 0.453 | I101: 0.651 | J101: 0.905 | K101: 83.97175147 | L101: 173.4198415 | M101: 335.1459427 | N101: 317.8330793 | O101: 656.3940999 | P101: 1268.527393 | Q101: 72.51077992 | R101: 83.99506625
B102: 91 | C102: 319.5939409 | D102: 275.9738306 | E102: 660.0306602 | F102: 1275.555299 | G102: 0.45 | H102: 0.453 | I102: 0.651 | J102: 0.905 | K102: 84.43697249 | L102: 174.3806236 | M102: 337.0027211 | N102: 319.5939409 | O102: 660.0306602 | P102: 1275.555299 | Q102: 72.91250477 | R102: 84.46041644
B103: 92 | C103: 321.3451537 | D103: 277.4860272 | E103: 663.6472936 | F103: 1282.544696 | G103: 0.45 | H103: 0.453 | I103: 0.651 | J103: 0.905 | K103: 84.8996443 | L103: 175.336141 | M103: 338.8493252 | N103: 321.3451537 | O103: 663.6472936 | P103: 1282.544696 | Q103: 73.31202833 | R103: 84.9232167
B104: 93 | C104: 323.0868746 | D104: 278.9900276 | E104: 667.2443242 | F104: 1289.496208 | G104: 0.45 | H104: 0.453 | I104: 0.651 | J104: 0.905 | K104: 85.35980834 | L104: 176.2864793 | M104: 340.6859203 | N104: 323.0868746 | O104: 667.2443242 | P104: 1289.496208 | Q104: 73.70938641 | R104: 85.38350851
B105: 94 | C105: 324.8192563 | D105: 280.4859634 | E105: 670.8220674 | F105: 1296.410447 | G105: 0.45 | H105: 0.453 | I105: 0.651 | J105: 0.905 | K105: 85.81750497 | L105: 177.2317219 | M105: 342.5126676 | N105: 324.8192563 | O105: 670.8220674 | P105: 1296.410447 | Q105: 74.10461384 | R105: 85.84133221
B106: 95 | C106: 326.5424475 | D106: 281.973963 | E106: 674.3808302 | F106: 1303.288004 | G106: 0.45 | H106: 0.453 | I106: 0.651 | J106: 0.905 | K106: 86.27277344 | L106: 178.1719498 | M106: 344.3297237 | N106: 326.5424475 | O106: 674.3808302 | P106: 1303.288004 | Q106: 74.49774452 | R106: 86.29672709
B107: 96 | C107: 328.2565928 | D107: 283.4541515 | E107: 677.9209113 | F107: 1310.129458 | G107: 0.45 | H107: 0.453 | I107: 0.651 | J107: 0.905 | K107: 86.725652 | L107: 179.1072421 | M107: 346.1372412 | N107: 328.2565928 | O107: 677.9209113 | P107: 1310.129458 | Q107: 74.88881148 | R107: 86.7497314
B108: 97 | C108: 329.9618334 | D108: 284.9266505 | E108: 681.4426021 | F108: 1316.935371 | G108: 0.45 | H108: 0.453 | I108: 0.651 | J108: 0.905 | K108: 87.1761779 | L108: 180.0376756 | M108: 347.9353688 | N108: 329.9618334 | O108: 681.4426021 | P108: 1316.935371 | Q108: 75.27784689 | R108: 87.20038239
B109: 98 | C109: 331.6583064 | D109: 286.3915786 | E109: 684.9461861 | F109: 1323.706292 | G109: 0.45 | H109: 0.453 | I109: 0.651 | J109: 0.905 | K109: 87.62438743 | L109: 180.9633253 | M109: 349.7242514 | N109: 331.6583064 | O109: 684.9461861 | P109: 1323.706292 | Q109: 75.66488207 | R109: 87.64871636
B110: 99 | C110: 333.3461458 | D110: 287.8490516 | E110: 688.4319399 | F110: 1330.442754 | G110: 0.45 | H110: 0.453 | I110: 0.651 | J110: 0.905 | K110: 88.07031594 | L110: 181.8842642 | M110: 351.5040301 | N110: 333.3461458 | O110: 688.4319399 | P110: 1330.442754 | Q110: 76.04994757 | R110: 88.09476868
B111: 100 | C111: 335.0254821 | D111: 289.2991819 | E111: 691.9001328 | F111: 1337.145279 | G111: 0.45 | H111: 0.453 | I111: 0.651 | J111: 0.905 | K111: 88.51399792 | L111: 182.8005635 | M111: 353.2748425 | N111: 335.0254821 | O111: 691.9001328 | P111: 1337.145279 | Q111: 76.43307316 | R111: 88.53857385
B112: 101 | C112: 336.6964425 | D112: 290.7420795 | E112: 695.3510277 | F112: 1343.814374 | G112: 0.45 | H112: 0.453 | I112: 0.651 | J112: 0.905 | K112: 88.95546698 | L112: 183.7122927 | M112: 355.0368227 | N112: 336.6964425 | O112: 695.3510277 | P112: 1343.814374 | Q112: 76.81428786 | R112: 88.98016549
B113: 102 | C113: 338.3591511 | D113: 292.1778516 | E113: 698.7848808 | F113: 1350.450535 | G113: 0.45 | H113: 0.453 | I113: 0.651 | J113: 0.905 | K113: 89.39475591 | L113: 184.6195194 | M113: 356.7901016 | N113: 338.3591511 | O113: 698.7848808 | P113: 1350.450535 | Q113: 77.19361998 | R113: 89.41957639
B114: 103 | C114: 340.013729 | D114: 293.6066027 | E114: 702.2019422 | F114: 1357.054244 | G114: 0.45 | H114: 0.453 | I114: 0.651 | J114: 0.905 | K114: 89.83189669 | L114: 185.5223097 | M114: 358.5348069 | N114: 340.013729 | O114: 702.2019422 | P114: 1357.054244 | Q114: 77.57109715 | R114: 89.85683854
B115: 104 | C115: 341.6602942 | D115: 295.0284348 | E115: 705.6024557 | F115: 1363.625974 | G115: 0.45 | H115: 0.453 | I115: 0.651 | J115: 0.905 | K115: 90.26692053 | L115: 186.4207281 | M115: 360.2710631 | N115: 341.6602942 | O115: 705.6024557 | P115: 1363.625974 | Q115: 77.9467463 | R115: 90.29198316
B116: 105 | C116: 343.2989621 | D116: 296.4434474 | E116: 708.9866596 | F116: 1370.166184 | G116: 0.45 | H116: 0.453 | I116: 0.651 | J116: 0.905 | K116: 90.69985788 | L116: 187.3148374 | M116: 361.9989918 | N116: 343.2989621 | O116: 708.9866596 | P116: 1370.166184 | Q116: 78.32059375 | R116: 90.72504072
B117: 106 | C117: 344.9298452 | D117: 297.8517377 | E117: 712.3547862 | F117: 1376.675323 | G117: 0.45 | H117: 0.453 | I117: 0.651 | J117: 0.905 | K117: 91.13073849 | L117: 188.2046991 | M117: 363.7187116 | N117: 344.9298452 | O117: 712.3547862 | P117: 1376.675323 | Q117: 78.69266518 | R117: 91.15604096
B118: 107 | C118: 346.5530534 | D118: 299.2534007 | E118: 715.7070625 | F118: 1383.153831 | G118: 0.45 | H118: 0.453 | I118: 0.651 | J118: 0.905 | K118: 91.55959139 | L118: 189.0903732 | M118: 365.4303385 | N118: 346.5530534 | O118: 715.7070625 | P118: 1383.153831 | Q118: 79.06298565 | R118: 91.58501293
B119: 108 | C119: 348.1686941 | D119: 300.648529 | E119: 719.0437103 | F119: 1389.602136 | G119: 0.45 | H119: 0.453 | I119: 0.651 | J119: 0.905 | K119: 91.98644495 | L119: 189.9719182 | M119: 367.1339857 | N119: 348.1686941 | O119: 719.0437103 | P119: 1389.602136 | Q119: 79.43157965 | R119: 92.01198501
B120: 109 | C120: 349.7768722 | D120: 302.0372132 | E120: 722.364946 | F120: 1396.020656 | G120: 0.45 | H120: 0.453 | I120: 0.651 | J120: 0.905 | K120: 92.41132686 | L120: 190.8493913 | M120: 368.8297637 | N120: 349.7768722 | O120: 722.364946 | P120: 1396.020656 | Q120: 79.79847112 | R120: 92.43698489
B121: 110 | C121: 351.37769 | D121: 303.4195417 | E121: 725.6709813 | F121: 1402.4098 | G121: 0.45 | H121: 0.453 | I121: 0.651 | J121: 0.905 | K121: 92.83426421 | L121: 191.7228484 | M121: 370.5177806 | N121: 351.37769 | O121: 725.6709813 | P121: 1402.4098 | Q121: 80.16368342 | R121: 92.86003966
B122: 111 | C122: 352.9712478 | D122: 304.7956011 | E122: 728.9620231 | F122: 1408.769967 | G122: 0.45 | H122: 0.453 | I122: 0.651 | J122: 0.905 | K122: 93.25528344 | L122: 192.5923443 | M122: 372.198142 | N122: 352.9712478 | O122: 728.9620231 | P122: 1408.769967 | Q122: 80.52723941 | R122: 93.28117579
B123: 112 | C123: 354.5576434 | D123: 306.1654759 | E123: 732.2382734 | F123: 1415.10155 | G123: 0.45 | H123: 0.453 | I123: 0.651 | J123: 0.905 | K123: 93.67441042 | L123: 193.4579322 | M123: 373.8709511 | N123: 354.5576434 | O123: 732.2382734 | P123: 1415.10155 | Q123: 80.88916141 | R123: 93.70041914
B124: 113 | C124: 356.1369726 | D124: 307.5292487 | E124: 735.49993 | F124: 1421.404929 | G124: 0.45 | H124: 0.453 | I124: 0.651 | J124: 0.905 | K124: 94.09167044 | L124: 194.3196645 | M124: 375.5363087 | N124: 356.1369726 | O124: 735.49993 | P124: 1421.404929 | Q124: 81.24947126 | R124: 94.11779501
B125: 114 | C125: 357.7093289 | D125: 308.8870003 | E125: 738.7471861 | F125: 1427.680478 | G125: 0.45 | H125: 0.453 | I125: 0.651 | J125: 0.905 | K125: 94.50708822 | L125: 195.1775921 | M125: 377.1943138 | N125: 357.7093289 | O125: 738.7471861 | P125: 1427.680478 | Q125: 81.60819031 | R125: 94.53332814
B126: 115 | C126: 359.2748039 | D126: 310.2388099 | E126: 741.9802308 | F126: 1433.928562 | G126: 0.45 | H126: 0.453 | I126: 0.651 | J126: 0.905 | K126: 94.92068796 | L126: 196.0317651 | M126: 378.8450626 | N126: 359.2748039 | O126: 741.9802308 | P126: 1433.928562 | Q126: 81.96533946 | R126: 94.94704271
B127: 116 | C127: 360.8334872 | D127: 311.5847546 | E127: 745.1992491 | F127: 1440.149539 | G127: 0.45 | H127: 0.453 | I127: 0.651 | J127: 0.905 | K127: 95.33249331 | L127: 196.8822322 | M127: 380.4886498 | N127: 360.8334872 | O127: 745.1992491 | P127: 1440.149539 | Q127: 82.32093913 | R127: 95.3589624
B128: 117 | C128: 362.3854663 | D128: 312.9249103 | E128: 748.4044219 | F128: 1446.34376 | G128: 0.45 | H128: 0.453 | I128: 0.651 | J128: 0.905 | K128: 95.74252743 | L128: 197.7290415 | M128: 382.1251677 | N128: 362.3854663 | O128: 748.4044219 | P128: 1446.34376 | Q128: 82.67500932 | R128: 95.76911037
B129: 118 | C129: 363.9308271 | D129: 314.2593509 | E129: 751.5959265 | F129: 1452.511565 | G129: 0.45 | H129: 0.453 | I129: 0.651 | J129: 0.905 | K129: 96.15081298 | L129: 198.5722395 | M129: 383.7547067 | N129: 363.9308271 | O129: 751.5959265 | P129: 1452.511565 | Q129: 83.0275696 | R129: 96.17750928
B130: 119 | C130: 365.4696536 | D130: 315.588149 | E130: 754.7739361 | F130: 1458.65329 | G130: 0.45 | H130: 0.453 | I130: 0.651 | J130: 0.905 | K130: 96.55737214 | L130: 199.4118722 | M130: 385.3773554 | N130: 365.4696536 | O130: 754.7739361 | P130: 1458.65329 | Q130: 83.37863911 | R130: 96.58418132
B131: 120 | C131: 367.0020278 | D131: 316.9113756 | E131: 757.9386206 | F131: 1464.769264 | G131: 0.45 | H131: 0.453 | I131: 0.651 | J131: 0.905 | K131: 96.96222663 | L131: 200.2479843 | M131: 386.9932004 | N131: 367.0020278 | O131: 757.9386206 | P131: 1464.769264 | Q131: 83.72823662 | R131: 96.98914822
B132: 121 | C132: 368.5280303 | D132: 318.2291001 | E132: 761.0901461 | F132: 1470.859807 | G132: 0.45 | H132: 0.453 | I132: 0.651 | J132: 0.905 | K132: 97.36539771 | L132: 201.0806198 | M132: 388.6023267 | N132: 368.5280303 | O132: 761.0901461 | P132: 1470.859807 | Q132: 84.07638047 | R132: 97.39243124
B133: 122 | C133: 370.04774 | D133: 319.5413906 | E133: 764.2286755 | F133: 1476.925234 | G133: 0.45 | H133: 0.453 | I133: 0.651 | J133: 0.905 | K133: 97.76690621 | L133: 201.9098218 | M133: 390.2048173 | N133: 370.04774 | O133: 764.2286755 | P133: 1476.925234 | Q133: 84.42308867 | R133: 97.79405122
B134: 123 | C134: 371.561234 | D134: 320.8483138 | E134: 767.3543682 | F134: 1482.965853 | G134: 0.45 | H134: 0.453 | I134: 0.651 | J134: 0.905 | K134: 98.16677253 | L134: 202.7356323 | M134: 391.8007537 | N134: 371.561234 | O134: 767.3543682 | P134: 1482.965853 | Q134: 84.76837882 | R134: 98.19402855
B135: 124 | C135: 373.068588 | D135: 322.149935 | E135: 770.4673804 | F135: 1488.981966 | G135: 0.45 | H135: 0.453 | I135: 0.651 | J135: 0.905 | K135: 98.56501665 | L135: 203.5580926 | M135: 393.3902156 | N135: 373.068588 | O135: 770.4673804 | P135: 1488.981966 | Q135: 85.11226817 | R135: 98.59238325
B136: 125 | C136: 374.5698761 | D136: 323.4463183 | E136: 773.5678653 | F136: 1494.97387 | G136: 0.45 | H136: 0.453 | I136: 0.651 | J136: 0.905 | K136: 98.96165816 | L136: 204.3772431 | M136: 394.9732813 | N136: 374.5698761 | O136: 773.5678653 | P136: 1494.97387 | Q136: 85.45477365 | R136: 98.98913488
B137: 126 | C137: 376.065171 | D137: 324.7375263 | E137: 776.6559729 | F137: 1500.941853 | G137: 0.45 | H137: 0.453 | I137: 0.651 | J137: 0.905 | K137: 99.35671625 | L137: 205.1931236 | M137: 396.5500272 | N137: 376.065171 | O137: 776.6559729 | P137: 1500.941853 | Q137: 85.79591183 | R137: 99.38430266
B138: 127 | C138: 377.5545438 | D138: 326.0236205 | E138: 779.7318501 | F138: 1506.8862 | G138: 0.45 | H138: 0.453 | I138: 0.651 | J138: 0.905 | K138: 99.75020973 | L138: 206.0057728 | M138: 398.1205285 | N138: 377.5545438 | O138: 779.7318501 | P138: 1506.8862 | Q138: 86.13569895 | R138: 99.7779054
B139: 128 | C139: 379.0380645 | D139: 327.3046613 | E139: 782.7956413 | F139: 1512.80719 | G139: 0.45 | H139: 0.453 | I139: 0.651 | J139: 0.905 | K139: 100.1421571 | L139: 206.8152289 | M139: 399.6848588 | N139: 379.0380645 | O139: 782.7956413 | P139: 1512.80719 | Q139: 86.47415094 | R139: 100.1699615
B140: 129 | C140: =IF($B$8=$P$8,N140,K140) -> 380.5158013 | D140: 328.5807077 | E140: =IF($B$8=$P$8,O140,L140) -> 785.8474877 | F140: =IF($B$8=$P$8,P140,M140) -> 1518.705097 | G140: 0.45 | H140: 0.453 | I140: 0.651 | J140: 0.905 | K140: =60*(3*(0.7845*H140^2)*$G140*SQRT(2*$J$9*$B140/$I$9))/231 -> 100.5325763 | L140: =60*(3*(0.7845*I140^2)*$G140*SQRT(2*$J$9*$B140/$I$9))/231 -> 207.6215291 | M140: =60*(3*(0.7845*J140^2)*$G140*SQRT(2*$J$9*$B140/$I$9))/231 -> 401.2430903 | N140: 380.5158013 | O140: 785.8474877 | P140: 1518.705097 | Q140: 86.81128341 | R140: 100.5604892
B141: 130 | C141: 381.9878215 | D141: =IF($B$8=$P$8,Q141*3.785,Q141) -> 329.8518177 | E141: 788.8875281 | F141: 1524.580187 | G141: 0.45 | H141: 0.453 | I141: 0.651 | J141: 0.905 | K141: 100.9214852 | L141: 208.4247102 | M141: 402.7952937 | N141: =K141*3.785 -> 381.9878215 | O141: =L141*3.785 -> 788.8875281 | P141: =M141*3.785 -> 1524.580187 | Q141: =SQRT(($J$9*B141*29.81^2)/(($I$9/(9.35*10^-5))*((1/($L$9*$K$9^2))^2+(1/($M$9*$H$9^2))^2))) -> 87.14711168 | R141: =SQRT(($J$9*B141*29.81^2)/(($I$9/(9.35*10^-5))*((1/(G141*$K$9^2))^2))) -> 100.9495061
B142: =B141+1 -> 131 | C142: 383.4541909 | D142: 331.1180481 | E142: 791.9158982 | F142: 1530.432723 | G142: 0.45 | H142: 0.453 | I142: 0.651 | J142: 0.905 | K142: 101.3089012 | L142: 209.224808 | M142: 404.3415385 | N142: 383.4541909 | O142: 791.9158982 | P142: 1530.432723 | Q142: 87.48165077 | R142: 101.3370296
B143: 132 | C143: 384.9149741 | D143: 332.3794548 | E143: 794.9327316 | F143: 1536.262964 | G143: 0.45 | H143: 0.453 | I143: 0.651 | J143: 0.905 | K143: 101.6948412 | L143: 210.0218578 | M143: 405.8818928 | N143: 384.9149741 | O143: 794.9327316 | P143: 1536.262964 | Q143: 87.8149154 | R143: 101.7230768
B144: 133 | C144: 386.3702344 | D144: 333.6360924 | E144: 797.9381591 | F144: 1542.071163 | G144: 0.45 | H144: 0.453 | I144: 0.651 | J144: 0.905 | K144: 102.0793222 | L144: 210.8158941 | M144: 407.4164234 | N144: 386.3702344 | O144: 797.9381591 | P144: 1542.071163 | Q144: 88.14692005 | R144: 102.1076645
B145: 134 | C145: 387.8200339 | D145: 334.8880146 | E145: 800.932309 | F145: 1547.857566 | G145: 0.45 | H145: 0.453 | I145: 0.651 | J145: 0.905 | K145: 102.4623604 | L145: 211.6069509 | M145: 408.9451958 | N145: 387.8200339 | O145: 800.932309 | P145: 1547.857566 | Q145: 88.47767889 | R145: 102.4908091
B146: 135 | C146: 389.2644339 | D146: 336.1352741 | E146: 803.9153075 | F146: 1553.622419 | G146: 0.45 | H146: 0.453 | I146: 0.651 | J146: 0.905 | K146: 102.843972 | L146: 212.3950614 | M146: 410.4682745 | N146: 389.2644339 | O146: 803.9153075 | P146: 1553.622419 | Q146: 88.80720583 | R146: 102.8725266
B147: 136 | C147: 390.703494 | D147: 337.3779226 | E147: 806.8872781 | F147: 1559.365959 | G147: 0.45 | H147: 0.453 | I147: 0.651 | J147: 0.905 | K147: 103.2241728 | L147: 213.1802584 | M147: 411.9857224 | N147: 390.703494 | O147: 806.8872781 | P147: 1559.365959 | Q147: 89.13551455 | R147: 103.252833
B148: 137 | C148: 392.1372731 | D148: 338.6160109 | E148: 809.8483423 | F148: 1565.088422 | G148: 0.45 | H148: 0.453 | I148: 0.651 | J148: 0.905 | K148: 103.6029784 | L148: 213.9625739 | M148: 413.4976017 | N148: 392.1372731 | O148: 809.8483423 | P148: 1565.088422 | Q148: 89.46261846 | R148: 103.6317437
B149: 138 | C149: 393.5658289 | D149: 339.8495888 | E149: 812.7986192 | F149: 1570.790039 | G149: 0.45 | H149: 0.453 | I149: 0.651 | J149: 0.905 | K149: 103.9804039 | L149: 214.7420394 | M149: 415.0039732 | N149: 393.5658289 | O149: 812.7986192 | P149: 1570.790039 | Q149: 89.78853071 | R149: 104.0092741
B150: 139 | C150: 394.9892181 | D150: 341.0787052 | E150: 815.738226 | F150: 1576.471034 | G150: 0.45 | H150: 0.453 | I150: 0.651 | J150: 0.905 | K150: 104.3564645 | L150: 215.5186859 | M150: 416.5048966 | N150: 394.9892181 | O150: 815.738226 | P150: 1576.471034 | Q150: 90.11326425 | R150: 104.3854391
B151: 140 | C151: 396.4074963 | D151: 342.3034083 | E151: 818.6672775 | F151: 1582.13163 | G151: 0.45 | H151: 0.453 | I151: 0.651 | J151: 0.905 | K151: 104.7311747 | L151: 216.2925436 | M151: 418.0004307 | N151: 396.4074963 | O151: 818.6672775 | P151: 1582.13163 | Q151: 90.43683177 | R151: 104.7602534
B152: 141 | C152: 397.8207183 | D152: 343.5237451 | E152: 821.5858867 | F152: 1587.772046 | G152: 0.45 | H152: 0.453 | I152: 0.651 | J152: 0.905 | K152: 105.1045491 | L152: 217.0636425 | M152: 419.490633 | N152: 397.8207183 | O152: 821.5858867 | P152: 1587.772046 | Q152: 90.75924574 | R152: 105.1337314
B153: 142 | C153: 399.2289376 | D153: 344.7397622 | E153: 824.4941644 | F153: 1593.392496 | G153: 0.45 | H153: 0.453 | I153: 0.651 | J153: 0.905 | K153: 105.4766017 | L153: 217.8320117 | M153: 420.9755603 | N153: 399.2289376 | O153: 824.4941644 | P153: 1593.392496 | Q153: 91.08051841 | R153: 105.5058873
B154: 143 | C154: 400.6322071 | D154: 345.951505 | E154: 827.3922196 | F154: 1598.993189 | G154: 0.45 | H154: 0.453 | I154: 0.651 | J154: 0.905 | K154: 105.8473467 | L154: 218.5976802 | M154: 422.455268 | N154: 400.6322071 | O154: 827.3922196 | P154: 1598.993189 | Q154: 91.40066182 | R154: 105.8767352
B155: 144 | C155: 402.0305786 | D155: 347.1590183 | E155: 830.2801594 | F155: 1604.574334 | G155: 0.45 | H155: 0.453 | I155: 0.651 | J155: 0.905 | K155: 106.2167975 | L155: 219.3606762 | M155: 423.929811 | N155: 402.0305786 | O155: 830.2801594 | P155: 1604.574334 | Q155: 91.71968779 | R155: 106.2462886
B156: 145 | C156: 403.4241029 | D156: 348.362346 | E156: 833.1580888 | F156: 1610.136134 | G156: 0.45 | H156: 0.453 | I156: 0.651 | J156: 0.905 | K156: 106.5849678 | L156: 220.1210274 | M156: 425.3992428 | N156: 403.4241029 | O156: 833.1580888 | P156: 1610.136134 | Q156: 92.03760794 | R156: 106.6145611
B157: 146 | C157: 404.8128303 | D157: 349.5615315 | E157: 836.0261114 | F157: 1615.678788 | G157: 0.45 | H157: 0.453 | I157: 0.651 | J157: 0.905 | K157: 106.9518706 | L157: 220.8787613 | M157: 426.8636163 | N157: 404.8128303 | O157: 836.0261114 | P157: 1615.678788 | Q157: 92.35443369 | R157: 106.9815658
B158: 147 | C158: 406.1968098 | D158: 350.7566171 | E158: 838.8843287 | F158: 1621.202492 | G158: 0.45 | H158: 0.453 | I158: 0.651 | J158: 0.905 | K158: 107.3175191 | L158: 221.6339045 | M158: 428.3229833 | N158: 406.1968098 | O158: 838.8843287 | P158: 1621.202492 | Q158: 92.67017626 | R158: 107.3473158
B159: 148 | C159: 407.5760899 | D159: 351.9476447 | E159: 841.7328405 | F159: 1626.70744 | G159: 0.45 | H159: 0.453 | I159: 0.651 | J159: 0.905 | K159: 107.681926 | L159: 222.3864836 | M159: 429.7773949 | N159: 407.5760899 | O159: 841.7328405 | P159: 1626.70744 | Q159: 92.9848467 | R159: 107.7118239
B160: 149 | C160: 408.950718 | D160: 353.1346553 | E160: 844.5717452 | F160: 1632.193821 | G160: 0.45 | H160: 0.453 | I160: 0.651 | J160: 0.905 | K160: 108.0451038 | L160: 223.1365245 | M160: 431.2269012 | N160: 408.950718 | O160: 844.5717452 | P160: 1632.193821 | Q160: 93.29845584 | R160: 108.0751026
B161: 150 | C161: 410.320741 | D161: 354.3176893 | E161: 847.4011392 | F161: 1637.661822 | G161: 0.45 | H161: 0.453 | I161: 0.651 | J161: 0.905 | K161: 108.407065 | L161: 223.8840526 | M161: 432.6715515 | N161: 410.320741 | O161: 847.4011392 | P161: 1637.661822 | Q161: 93.61101435 | R161: 108.4371642
B162: 151 | C162: 411.6862048 | D162: 355.4967864 | E162: 850.2211175 | F162: 1643.111627 | G162: 0.45 | H162: 0.453 | I162: 0.651 | J162: 0.905 | K162: 108.7678216 | L162: 224.6290931 | M162: 434.1113943 | N162: 411.6862048 | O162: 850.2211175 | P162: 1643.111627 | Q162: 93.92253273 | R162: 108.798021
B163: 152 | C163: 413.0471547 | D163: 356.6719856 | E163: 853.0317735 | F163: 1648.543416 | G163: 0.45 | H163: 0.453 | I163: 0.651 | J163: 0.905 | K163: 109.1273857 | L163: 225.3716707 | M163: 435.5464772 | N163: 413.0471547 | O163: 853.0317735 | P163: 1648.543416 | Q163: 94.23302129 | R163: 109.1576849
B164: 153 | C164: 414.403635 | D164: 357.8433253 | E164: 855.833199 | F164: 1653.957366 | G164: 0.45 | H164: 0.453 | I164: 0.651 | J164: 0.905 | K164: 109.4857688 | L164: 226.1118095 | M164: 436.9768471 | N164: 414.403635 | O164: 855.833199 | P164: 1653.957366 | Q164: 94.54249018 | R164: 109.5161676
B165: 154 | C165: 415.7556896 | D165: 359.0108433 | E165: 858.6254844 | F165: 1659.353653 | G165: 0.45 | H165: 0.453 | I165: 0.651 | J165: 0.905 | K165: 109.8429827 | L165: 226.8495335 | M165: 438.4025502 | N165: 415.7556896 | O165: 858.6254844 | P165: 1659.353653 | Q165: 94.85094936 | R165: 109.8734807
B166: 155 | C166: 417.1033615 | D166: 360.1745768 | E166: 861.4087185 | F166: 1664.732447 | G166: 0.45 | H166: 0.453 | I166: 0.651 | J166: 0.905 | K166: 110.1990387 | L166: 227.5848662 | M166: 439.8236319 | N166: 417.1033615 | O166: 861.4087185 | P166: 1664.732447 | Q166: 95.15840868 | R166: 110.2296355
B167: 156 | C167: 418.4466931 | D167: 361.3345624 | E167: 864.1829889 | F167: 1670.093918 | G167: 0.45 | H167: 0.453 | I167: 0.651 | J167: 0.905 | K167: 110.553948 | L167: 228.3178306 | M167: 441.2401368 | N167: 418.4466931 | O167: 864.1829889 | P167: 1670.093918 | Q167: 95.46487778 | R167: 110.5846433
B168: 157 | C168: 419.7857259 | D168: 362.4908359 | E168: 866.9483815 | F168: 1675.438232 | G168: 0.45 | H168: 0.453 | I168: 0.651 | J168: 0.905 | K168: 110.9077215 | L168: 229.0484495 | M168: 442.6521089 | N168: 419.7857259 | O168: 866.9483815 | P168: 1675.438232 | Q168: 95.77036617 | R168: 110.9385151
B169: 158 | C169: 421.1205011 | D169: 363.6434329 | E169: 869.7049811 | F169: 1680.765553 | G169: 0.45 | H169: 0.453 | I169: 0.651 | J169: 0.905 | K169: 111.2603702 | L169: 229.7767453 | M169: 444.0595913 | N169: 421.1205011 | O169: 869.7049811 | P169: 1680.765553 | Q169: 96.0748832 | R169: 111.2912616
B170: 159 | C170: 422.4510589 | D170: 364.7923882 | E170: 872.452871 | F170: 1686.076042 | G170: 0.45 | H170: 0.453 | I170: 0.651 | J170: 0.905 | K170: 111.6119046 | L170: 230.50274 | M170: 445.4626267 | N170: 422.4510589 | O170: 872.452871 | P170: 1686.076042 | Q170: 96.37843809 | R170: 111.6428937
B171: 160 | C171: 423.7774391 | D171: 365.937736 | E171: 875.1921332 | F171: 1691.369857 | G171: 0.45 | H171: 0.453 | I171: 0.651 | J171: 0.905 | K171: 111.9623353 | L171: 231.2264553 | M171: 446.8612569 | N171: 423.7774391 | O171: 875.1921332 | P171: 1691.369857 | Q171: 96.6810399 | R171: 111.9934217
B172: 161 | C172: 425.0996808 | D172: 367.0795102 | E172: 877.9228485 | F172: 1696.647155 | G172: 0.45 | H172: 0.453 | I172: 0.651 | J172: 0.905 | K172: 112.3116726 | L172: 231.9479124 | M172: 448.2555232 | N172: 425.0996808 | O172: 877.9228485 | P172: 1696.647155 | Q172: 96.98269754 | R172: 112.342856
B173: 162 | C173: 426.4178225 | D173: 368.217744 | E173: 880.6450965 | F173: 1701.908089 | G173: 0.45 | H173: 0.453 | I173: 0.651 | J173: 0.905 | K173: 112.6599267 | L173: 232.6671325 | M173: 449.6454661 | N173: 426.4178225 | O173: 880.6450965 | P173: 1701.908089 | Q173: 97.28341981 | R173: 112.6912067
B174: 163 | C174: 427.7319021 | D174: 369.3524701 | E174: 883.3589553 | F174: 1707.152811 | G174: 0.45 | H174: 0.453 | I174: 0.651 | J174: 0.905 | K174: 113.0071076 | L174: 233.3841361 | M174: 451.0311257 | N174: 427.7319021 | O174: 883.3589553 | P174: 1707.152811 | Q174: 97.58321534 | R174: 113.038484
B175: 164 | C175: 429.041957 | D175: 370.4837207 | E175: 886.0645021 | F175: 1712.381469 | G175: 0.45 | H175: 0.453 | I175: 0.651 | J175: 0.905 | K175: 113.3532251 | L175: 234.0989437 | M175: 452.4125413 | N175: 429.041957 | O175: 886.0645021 | P175: 1712.381469 | Q175: 97.88209266 | R175: 113.3846976
B176: 165 | C176: 430.3480238 | D176: 371.6115276 | E176: 888.7618127 | F176: 1717.59421 | G176: 0.45 | H176: 0.453 | I176: 0.651 | J176: 0.905 | K176: 113.698289 | L176: 234.8115754 | M176: 453.7897516 | N176: 430.3480238 | O176: 888.7618127 | P176: 1717.59421 | Q176: 98.18006014 | R176: 113.7298573
B177: 166 | C177: 431.6501388 | D177: 372.7359221 | E177: 891.450962 | F177: 1722.791178 | G177: 0.45 | H177: 0.453 | I177: 0.651 | J177: 0.905 | K177: 114.0423088 | L177: 235.5220507 | M177: 455.1627948 | N177: 431.6501388 | O177: 891.450962 | P177: 1722.791178 | Q177: 98.47712605 | R177: 114.0739727
B178: 167 | C178: 432.9483376 | D178: 373.8569349 | E178: 894.1320236 | F178: 1727.972517 | G178: 0.45 | H178: 0.453 | I178: 0.651 | J178: 0.905 | K178: 114.385294 | L178: 236.2303893 | M178: 456.5317086 | N178: 432.9483376 | O178: 894.1320236 | P178: 1727.972517 | Q178: 98.77329853 | R178: 114.4170531
B179: 168 | C179: 434.2426554 | D179: 374.9745964 | E179: 896.80507 | F179: 1733.138366 | G179: 0.45 | H179: 0.453 | I179: 0.651 | J179: 0.905 | K179: 114.7272537 | L179: 236.9366103 | M179: 457.8965299 | N179: 434.2426554 | O179: 896.80507 | P179: 1733.138366 | Q179: 99.06858558 | R179: 114.7591078
B180: 169 | C180: 435.5331268 | D180: 376.0889365 | E180: 899.4701727 | F180: 1738.288862 | G180: 0.45 | H180: 0.453 | I180: 0.651 | J180: 0.905 | K180: 115.0681973 | L180: 237.6407325 | M180: 459.2572952 | N180: 435.5331268 | O180: 899.4701727 | P180: 1738.288862 | Q180: 99.3629951 | R180: 115.100146
B181: 170 | C181: 436.8197858 | D181: 377.1999845 | E181: 902.127402 | F181: 1743.424143 | G181: 0.45 | H181: 0.453 | I181: 0.651 | J181: 0.905 | K181: 115.4081336 | L181: 238.3427746 | M181: 460.6140405 | N181: 436.8197858 | O181: 902.127402 | P181: 1743.424143 | Q181: 99.65653487 | R181: 115.4401767
B182: 171 | C182: 438.102666 | D182: 378.3077695 | E182: 904.7768274 | F182: 1748.544343 | G182: 0.45 | H182: 0.453 | I182: 0.651 | J182: 0.905 | K182: 115.7470716 | L182: 239.0427549 | M182: 461.9668013 | N182: 438.102666 | O182: 904.7768274 | P182: 1748.544343 | Q182: 99.94921255 | R182: 115.7792088
B183: 172 | C183: 439.3818006 | D183: 379.4123201 | E183: 907.4185172 | F183: 1753.649593 | G183: 0.45 | H183: 0.453 | I183: 0.651 | J183: 0.905 | K183: 116.08502 | L183: 239.7406915 | M183: 463.3156123 | N183: 439.3818006 | O183: 907.4185172 | P183: 1753.649593 | Q183: 100.2410357 | R183: 116.117251
B184: 173 | C184: 440.6572222 | D184: 380.5136644 | E184: 910.0525387 | F184: 1758.740023 | G184: 0.45 | H184: 0.453 | I184: 0.651 | J184: 0.905 | K184: 116.4219874 | L184: 240.436602 | M184: 464.6605081 | N184: 440.6572222 | O184: 910.0525387 | P184: 1758.740023 | Q184: 100.5320117 | R184: 116.454312
B185: 174 | C185: 441.9289628 | D185: 381.6118302 | E185: 912.6789584 | F185: 1763.815762 | G185: 0.45 | H185: 0.453 | I185: 0.651 | J185: 0.905 | K185: 116.7579823 | L185: 241.1305042 | M185: 466.0015224 | N185: 441.9289628 | O185: 912.6789584 | P185: 1763.815762 | Q185: 100.822148 | R185: 116.7904001
B186: 175 | C186: 443.1970543 | D186: 382.7068449 | E186: 915.2978418 | F186: 1768.876937 | G186: 0.45 | H186: 0.453 | I186: 0.651 | J186: 0.905 | K186: 117.093013 | L186: 241.8224153 | M186: 467.3386888 | N186: 443.1970543 | O186: 915.2978418 | P186: 1768.876937 | Q186: 101.1114518 | R186: 117.1255239
B187: 176 | C187: 444.4615278 | D187: 383.7987354 | E187: 917.9092532 | F187: 1773.923672 | G187: 0.45 | H187: 0.453 | I187: 0.651 | J187: 0.905 | K187: 117.4270879 | L187: 242.5123522 | M187: 468.6720401 | N187: 444.4615278 | O187: 917.9092532 | P187: 1773.923672 | Q187: 101.3999301 | R187: 117.4596916
B188: 177 | C188: 445.7224141 | D188: 384.8875283 | E188: 920.5132563 | F188: 1778.95609 | G188: 0.45 | H188: 0.453 | I188: 0.651 | J188: 0.905 | K188: 117.7602151 | L188: 243.2003319 | M188: 470.0016089 | N188: 445.7224141 | O188: 920.5132563 | P188: 1778.95609 | Q188: 101.68759 | R188: 117.7929112
B189: 178 | C189: 446.9797436 | D189: 385.9732499 | E189: 923.1099138 | F189: 1783.974311 | G189: 0.45 | H189: 0.453 | I189: 0.651 | J189: 0.905 | K189: 118.0924025 | L189: 243.8863709 | M189: 471.3274271 | N189: 446.9797436 | O189: 923.1099138 | P189: 1783.974311 | Q189: 101.9744385 | R189: 118.1251909
B190: 179 | C190: 448.2335461 | D190: 387.0559259 | E190: 925.6992875 | F190: 1788.978457 | G190: 0.45 | H190: 0.453 | I190: 0.651 | J190: 0.905 | K190: 118.4236582 | L190: 244.5704855 | M190: 472.6495262 | N190: 448.2335461 | O190: 925.6992875 | P190: 1788.978457 | Q190: 102.2604824 | R190: 118.4565385
B191: 180 | C191: 449.4838513 | D191: 388.1355819 | E191: 928.2814384 | F191: 1793.968643 | G191: 0.45 | H191: 0.453 | I191: 0.651 | J191: 0.905 | K191: 118.7539898 | L191: 245.2526918 | M191: 473.9679375 | N191: 449.4838513 | O191: 928.2814384 | P191: 1793.968643 | Q191: 102.5457284 | R191: 118.7869619
B192: 181 | C192: 450.7306883 | D192: 389.212243 | E192: 930.8564265 | F192: 1798.944988 | G192: 0.45 | H192: 0.453 | I192: 0.651 | J192: 0.905 | K192: 119.0834051 | L192: 245.9330057 | M192: 475.2826916 | N192: 450.7306883 | O192: 930.8564265 | P192: 1798.944988 | Q192: 102.8301831 | R192: 119.1164686
B193: 182 | C193: 451.9740856 | D193: 390.285934 | E193: 933.4243112 | F193: 1803.907604 | G193: 0.45 | H193: 0.453 | I193: 0.651 | J193: 0.905 | K193: 119.4119117 | L193: 246.6114428 | M193: 476.5938187 | N193: 451.9740856 | O193: 933.4243112 | P193: 1803.907604 | Q193: 103.1138531 | R193: 119.4450664
B194: 183 | C194: 453.2140718 | D194: 391.3566793 | E194: 935.9851509 | F194: 1808.856605 | G194: 0.45 | H194: 0.453 | I194: 0.651 | J194: 0.905 | K194: 119.739517 | L194: 247.2880187 | M194: 477.9013488 | N194: 453.2140718 | O194: 935.9851509 | P194: 1808.856605 | Q194: 103.3967449 | R194: 119.7727627
B195: 184 | C195: 454.4506745 | D195: 392.4245031 | E195: 938.5390032 | F195: 1813.792103 | G195: 0.45 | H195: 0.453 | I195: 0.651 | J195: 0.905 | K195: 120.0662284 | L195: 247.9627485 | M195: 479.2053113 | N195: 454.4506745 | O195: 938.5390032 | P195: 1813.792103 | Q195: 103.6788648 | R195: 120.0995648
B196: 185 | C196: 455.6839215 | D196: 393.4894291 | E196: 941.0859251 | F196: 1818.714207 | G196: 0.45 | H196: 0.453 | I196: 0.651 | J196: 0.905 | K196: 120.3920532 | L196: 248.6356473 | M196: 480.5057351 | N196: 455.6839215 | O196: 941.0859251 | P196: 1818.714207 | Q196: 103.960219 | R196: 120.4254801
B197: 186 | C197: 456.9138398 | D197: 394.5514808 | E197: 943.6259727 | F197: 1823.623027 | G197: 0.45 | H197: 0.453 | I197: 0.651 | J197: 0.905 | K197: 120.7169986 | L197: 249.3067299 | M197: 481.8026491 | N197: 456.9138398 | O197: 943.6259727 | P197: 1823.623027 | Q197: 104.2408139 | R197: 120.7505157
B198: 187 | C198: 458.1404564 | D198: 395.6106813 | E198: 946.1592014 | F198: 1828.518668 | G198: 0.45 | H198: 0.453 | I198: 0.651 | J198: 0.905 | K198: 121.0410717 | L198: 249.9760109 | M198: 483.0960813 | N198: 458.1404564 | O198: 946.1592014 | P198: 1828.518668 | Q198: 104.5206556 | R198: 121.0746788
B199: 188 | C199: 459.3637976 | D199: 396.6670535 | E199: 948.6856657 | F199: 1833.401236 | G199: 0.45 | H199: 0.453 | I199: 0.651 | J199: 0.905 | K199: 121.3642794 | L199: 250.6435048 | M199: 484.3860598 | N199: 459.3637976 | O199: 948.6856657 | P199: 1833.401236 | Q199: 104.7997499 | R199: 121.3979762
B200: 189 | C200: 460.5838895 | D200: 397.7206199 | E200: 951.2054196 | F200: 1838.270837 | G200: 0.45 | H200: 0.453 | I200: 0.651 | J200: 0.905 | K200: 121.6866287 | L200: 251.3092258 | M200: 485.672612 | N200: 460.5838895 | O200: 951.2054196 | P200: 1838.270837 | Q200: 105.078103 | R200: 121.720415
B201: 190 | C201: 461.8007579 | D201: 398.7714027 | E201: 953.7185162 | F201: 1843.127571 | G201: 0.45 | H201: 0.453 | I201: 0.651 | J201: 0.905 | K201: 122.0081263 | L201: 251.9731879 | M201: 486.9557651 | N201: 461.8007579 | O201: 953.7185162 | P201: 1843.127571 | Q201: 105.3557207 | R201: 122.0420018
B202: 191 | C202: 463.0144282 | D202: 399.819424 | E202: 956.2250081 | F202: 1847.971542 | G202: 0.45 | H202: 0.453 | I202: 0.651 | J202: 0.905 | K202: 122.3287789 | L202: 252.635405 | M202: 488.235546 | N202: 463.0144282 | O202: 956.2250081 | P202: 1847.971542 | Q202: 105.6326087 | R202: 122.3627435
B203: 192 | C203: 464.2249255 | D203: 400.8647053 | E203: 958.724947 | F203: 1852.802848 | G203: 0.45 | H203: 0.453 | I203: 0.651 | J203: 0.905 | K203: 122.6485933 | L203: 253.2958909 | M203: 489.511981 | N203: 464.2249255 | O203: 958.724947 | P203: 1852.802848 | Q203: 105.9087729 | R203: 122.6826467
B204: 193 | C204: =IF($B$8=$P$8,N204,K204) -> 465.4322746 | D204: 401.9072681 | E204: =IF($B$8=$P$8,O204,L204) -> 961.2183841 | F204: =IF($B$8=$P$8,P204,M204) -> 1857.621589 | G204: 0.45 | H204: 0.453 | I204: 0.651 | J204: 0.905 | K204: =60*(3*(0.7845*H204^2)*$G204*SQRT(2*$J$9*$B204/$I$9))/231 -> 122.9675758 | L204: =60*(3*(0.7845*I204^2)*$G204*SQRT(2*$J$9*$B204/$I$9))/231 -> 253.954659 | M204: =60*(3*(0.7845*J204^2)*$G204*SQRT(2*$J$9*$B204/$I$9))/231 -> 490.7850962 | N204: 465.4322746 | O204: 961.2183841 | P204: 1857.621589 | Q204: 106.1842188 | R204: 123.0017178
B205: 194 | C205: 466.6364998 | D205: =IF($B$8=$P$8,Q205*3.785,Q205) -> 402.9471334 | E205: 963.7053699 | F205: 1862.427863 | G205: 0.45 | H205: 0.453 | I205: 0.651 | J205: 0.905 | K205: 123.2857331 | L205: 254.6117226 | M205: 492.0549174 | N205: =K205*3.785 -> 466.6364998 | O205: =L205*3.785 -> 963.7053699 | P205: =M205*3.785 -> 1862.427863 | Q205: =SQRT(($J$9*B205*29.81^2)/(($I$9/(9.35*10^-5))*((1/($L$9*$K$9^2))^2+(1/($M$9*$H$9^2))^2))) -> 106.458952 | R205: =SQRT(($J$9*B205*29.81^2)/(($I$9/(9.35*10^-5))*((1/(G205*$K$9^2))^2))) -> 123.3199634
B206: =B205+1 -> 195 | C206: 467.8376253 | D206: 403.9843221 | E206: 966.1859541 | F206: 1867.221765 | G206: 0.45 | H206: 0.453 | I206: 0.651 | J206: 0.905 | K206: 123.6030714 | L206: 255.2670949 | M206: 493.3214702 | N206: 467.8376253 | O206: 966.1859541 | P206: 1867.221765 | Q206: 106.7329781 | R206: 123.6373898
B207: 196 | C207: 469.035675 | D207: 405.0188547 | E207: 968.6601859 | F207: 1872.00339 | G207: 0.45 | H207: 0.453 | I207: 0.651 | J207: 0.905 | K207: 123.9195971 | L207: 255.9207889 | M207: 494.5847795 | N207: 469.035675 | O207: 968.6601859 | P207: 1872.00339 | Q207: 107.0063024 | R207: 123.9540034
... 304 more rows

Sheet Recommendation Rules
MH5: BAR | MI5: PSI | MJ5: MPa | ML5: UnitsD | MM5: Bore | MP5: UnitsP | MQ5: BAR | MR5: PSI | MS5: Mpa
MH6: 34.5 | MI6: =MH6*14.5037743897283 -> 500.3802164 | MJ6: =MH6/10 -> 3.45 | ML6: MM | MM6: =IF($V$14=$B$15,"",IF($HN$14=$ML$8,MN6,IF($HN$14=$ML$7,MN6*2.54,IF($HN$14=$ML$6,MN6*25.4,"")))) -> 101.6 | MN6: 4 | MO6: =MN6*2.54 -> 10.16 | MP6: BAR
MH7: 34.4 | MI7: =MH7*14.5037743897283 -> 498.929839 | MJ7: =MH7/10 -> 3.44 | ML7: CM | MM7: =IF($V$14=$B$15,"",IF($HN$14=$ML$8,MN7,IF($HN$14=$ML$7,MN7*2.54,IF($HN$14=$ML$6,MN7*25.4,"")))) -> 127 | MN7: 5 | MO7: =MN7*2.54 -> 12.7 | MP7: PSI
O8: Supply Pressure | MH8: 34.3 | MI8: 497.4794616 | MJ8: 3.43 | ML8: INCH | MM8: =IF($V$14=$B$15,"",IF($HN$14=$ML$8,MN8,IF($HN$14=$ML$7,MN8*2.54,IF($HN$14=$ML$6,MN8*25.4,"")))) -> 152.4 | MN8: 6 | MO8: 15.24 | MP8: MPa | MQ8: CM | MR8: 1 | MS8: 1.1 | MT8: 1.2 | MU8: 1.3 | MV8: 1.4 | MW8: 1.5 | MX8: 1.6 | MY8: 1.7 | MZ8: 1.8 | NA8: 1.9 | NB8: 2 | NC8: 2.1 | ND8: 2.2 | NE8: 2.3 | NF8: 2.4 | NG8: 2.5 | NH8: 2.6 | NI8: 2.7 | NJ8: 2.8 | NK8: 2.9 | NL8: 3 | NM8: 3.1 | NN8: 3.2 | NO8: 3.3 | NP8: 3.4 | NQ8: 3.5 | NR8: 3.6 | NS8: 3.7 | NT8: 3.8 | NU8: 3.9 | NV8: 4 | NW8: 4.1 | NX8: 4.2 | NY8: 4.3 | NZ8: 4.4 | OA8: 4.5 | OB8: 4.6 | OC8: 4.7 | OD8: 4.8 | OE8: 4.9 | OF8: 5 | OG8: 5.1 | OH8: 5.2 | OI8: 5.3 | OJ8: 5.4 | OK8: 5.5 | OL8: 5.6 | OM8: 5.7 | ON8: 5.8 | OO8: 5.9 | OP8: 6 | OQ8: 6.1 | OR8: 6.2 | OS8: 6.3 | OT8: 6.4 | OU8: 6.5 | OV8: 6.6 | OW8: 6.7 | OX8: 6.8 | OY8: 6.9 | OZ8: 7 | PA8: 7.1 | PB8: 7.2 | PC8: 7.3 | PD8: 7.4 | PE8: 7.5 | PF8: 7.6 | PG8: 7.7 | PH8: 7.8 | PI8: 7.9 | PJ8: 8 | PK8: 8.1 | PL8: 8.2 | PM8: 8.3 | PN8: 8.4 | PO8: 8.5 | PP8: 8.6 | PQ8: 8.7 | PR8: 8.8 | PS8: 8.9 | PT8: 9 | PU8: 9.1 | PV8: 9.2 | PW8: 9.3 | PX8: 9.4 | PY8: 9.5 | PZ8: 9.6 | QA8: 9.7 | QB8: 9.8 | QC8: 9.9 | QD8: 10 | QE8: 10.1 | QF8: 10.2 | QG8: 10.3 | QH8: 10.4 | QI8: 10.5 | QJ8: 10.6 | QK8: 10.7 | QL8: 10.8 | QM8: 10.9 | QN8: 11 | QO8: 11.1 | QP8: 11.2 | QQ8: 11.3 | QR8: 11.4 | QS8: 11.5 | QT8: 11.6 | QU8: 11.7 | QV8: 11.8 | QW8: 11.9 | QX8: 12 | QY8: 12.1 | QZ8: 12.2 | RA8: 12.3 | RB8: 12.4 | RC8: 12.5 | RD8: 12.6 | RE8: 12.7 | RF8: 12.8 | RG8: 12.9 | RH8: 13 | RI8: 13.1 | RJ8: 13.2 | RK8: 13.3 | RL8: 13.4 | RM8: 13.5 | RN8: 13.6 | RO8: 13.7 | RP8: 13.8 | RQ8: 13.9 | RR8: 14 | RS8: 14.1 | RT8: 14.2 | RU8: 14.3 | RV8: 14.4 | RW8: 14.5 | RX8: 14.6 | RY8: 14.7 | RZ8: 14.8 | SA8: 14.9 | SB8: 15 | SC8: 15.1 | SD8: 15.2 | SE8: 15.3 | SF8: 15.4 | SG8: 15.5 | SH8: 15.6 | SI8: 15.7 | SJ8: 15.8 | SK8: 15.9 | SL8: 16 | SM8: 16.1 | SN8: 16.2 | SO8: 16.3 | SP8: 16.4 | SQ8: 16.5 | SR8: 16.6 | SS8: 16.7 | ST8: 16.8 | SU8: 16.9 | SV8: 17 | SW8: 17.1 | SX8: 17.2 | SY8: 17.3 | SZ8: 17.4 | TA8: 17.5 | TB8: 17.6 | TC8: 17.7 | TD8: 17.8 | TE8: 17.9 | TF8: 18 | TG8: 18.1 | TH8: 18.2 | TI8: 18.3 | TJ8: 18.4 | TK8: 18.5 | TL8: 18.6 | TM8: 18.7 | TN8: 18.8 | TO8: 18.9 | TP8: 19 | TQ8: 19.1 | TR8: 19.2 | TS8: 19.3 | TT8: 19.4 | TU8: 19.5 | TV8: 19.6 | TW8: 19.7 | TX8: 19.8 | TY8: 19.9 | TZ8: 20 | UA8: 20.1 | UB8: 20.2 | UC8: 20.3 | UD8: 20.4 | UE8: 20.5 | UF8: 20.6 | UG8: 20.7 | UH8: 20.8 | UI8: 20.9 | UJ8: 21 | UK8: 21.1 | UL8: 21.2 | UM8: 21.3 | UN8: 21.4 | UO8: 21.5 | UP8: 21.6 | UQ8: 21.7 | UR8: 21.8 | US8: 21.9 | UT8: 22 | UU8: 22.1 | UV8: 22.2 | UW8: 22.3 | UX8: 22.4 | UY8: 22.5 | UZ8: 22.6 | VA8: 22.7 | VB8: 22.8 | VC8: 22.9 | VD8: 23 | VE8: 23.1 | VF8: 23.2 | VG8: 23.3 | VH8: 23.4 | VI8: 23.5 | VJ8: 23.6 | VK8: 23.7 | VL8: 23.8 | VM8: 23.9 | VN8: 24 | VO8: 24.1 | VP8: 24.2 | VQ8: 24.3 | VR8: 24.4 | VS8: 24.5 | VT8: 24.6 | VU8: 24.7 | VV8: 24.8 | VW8: 24.9 | VX8: 25 | VY8: 25.1 | VZ8: 25.2 | WA8: 25.3 | WB8: 25.4 | WC8: 25.5 | WD8: 25.6 | WE8: 25.7 | WF8: 25.8 | WG8: 25.9 | WH8: 26 | WI8: 26.1 | WJ8: 26.2 | WK8: 26.3 | WL8: 26.4 | WM8: 26.5 | WN8: 26.6 | WO8: 26.7 | WP8: 26.8 | WQ8: 26.9 | WR8: 27 | WS8: 27.1 | WT8: 27.2 | WU8: 27.3 | WV8: 27.4 | WW8: 27.5 | WX8: 27.6 | WY8: 27.7 | WZ8: 27.8 | XA8: 27.9 | XB8: 28 | XC8: 28.1 | XD8: 28.2 | XE8: 28.3 | XF8: 28.4 | XG8: 28.5 | XH8: 28.6 | XI8: 28.7 | XJ8: 28.8 | XK8: 28.9 | XL8: 29 | XM8: 29.1 | XN8: 29.2 | XO8: 29.3 | XP8: 29.4 | XQ8: 29.5 | XR8: 29.6 | XS8: 29.7 | XT8: 29.8 | XU8: 29.9 | XV8: 30 | XW8: 30.1 | XX8: 30.2 | XY8: 30.3 | XZ8: 30.4 | YA8: 30.5 | YB8: 30.6 | YC8: 30.7 | YD8: 30.8 | YE8: 30.9 | YF8: 31 | YG8: 31.1 | YH8: 31.2 | YI8: 31.3 | YJ8: 31.4 | YK8: 31.5 | YL8: 31.6 | YM8: 31.7 | YN8: 31.8 | YO8: 31.9 | YP8: 32
MH9: 34.2 | MI9: 496.0290841 | MJ9: 3.42 | MM9: =IF($V$14=$B$15,"",IF($HN$14=$ML$8,MN9,IF($HN$14=$ML$7,MN9*2.54,IF($HN$14=$ML$6,MN9*25.4,"")))) -> 203.2 | MN9: 8 | MO9: 20.32 | MQ9: MM | MR9: =MR8*10 -> 10 | MS9: 11 | MT9: 12 | MU9: 13 | MV9: 14 | MW9: 15 | MX9: 16 | MY9: 17 | MZ9: 18 | NA9: 19 | NB9: 20 | NC9: 21 | ND9: 22 | NE9: 23 | NF9: 24 | NG9: 25 | NH9: 26 | NI9: 27 | NJ9: 28 | NK9: 29 | NL9: 30 | NM9: 31 | NN9: 32 | NO9: 33 | NP9: 34 | NQ9: 35 | NR9: 36 | NS9: 37 | NT9: 38 | NU9: 39 | NV9: 40 | NW9: 41 | NX9: 42 | NY9: 43 | NZ9: 44 | OA9: 45 | OB9: 46 | OC9: 47 | OD9: 48 | OE9: 49 | OF9: 50 | OG9: 51 | OH9: 52 | OI9: 53 | OJ9: 54 | OK9: 55 | OL9: 56 | OM9: 57 | ON9: 58 | OO9: 59 | OP9: 60 | OQ9: 61 | OR9: 62 | OS9: 63 | OT9: 64 | OU9: 65 | OV9: 66 | OW9: 67 | OX9: 68 | OY9: 69 | OZ9: 70 | PA9: 71 | PB9: 72 | PC9: 73 | PD9: =PD8*10 -> 74 | PE9: 75 | PF9: 76 | PG9: 77 | PH9: 78 | PI9: 79 | PJ9: 80 | PK9: 81 | PL9: 82 | PM9: 83 | PN9: 84 | PO9: 85 | PP9: 86 | PQ9: 87 | PR9: 88 | PS9: 89 | PT9: 90 | PU9: 91 | PV9: 92 | PW9: 93 | PX9: 94 | PY9: 95 | PZ9: 96 | QA9: 97 | QB9: 98 | QC9: 99 | QD9: 100 | QE9: 101 | QF9: 102 | QG9: 103 | QH9: 104 | QI9: 105 | QJ9: 106 | QK9: 107 | QL9: 108 | QM9: 109 | QN9: 110 | QO9: 111 | QP9: 112 | QQ9: 113 | QR9: 114 | QS9: 115 | QT9: 116 | QU9: 117 | QV9: 118 | QW9: 119 | QX9: 120 | QY9: 121 | QZ9: 122 | RA9: 123 | RB9: 124 | RC9: 125 | RD9: 126 | RE9: 127 | RF9: 128 | RG9: 129 | RH9: 130 | RI9: 131 | RJ9: 132 | RK9: 133 | RL9: 134 | RM9: 135 | RN9: 136 | RO9: 137 | RP9: =RP8*10 -> 138 | RQ9: 139 | RR9: 140 | RS9: 141 | RT9: 142 | RU9: 143 | RV9: 144 | RW9: 145 | RX9: 146 | RY9: 147 | RZ9: 148 | SA9: 149 | SB9: 150 | SC9: 151 | SD9: 152 | SE9: 153 | SF9: 154 | SG9: 155 | SH9: 156 | SI9: 157 | SJ9: 158 | SK9: 159 | SL9: 160 | SM9: 161 | SN9: 162 | SO9: 163 | SP9: 164 | SQ9: 165 | SR9: 166 | SS9: 167 | ST9: 168 | SU9: 169 | SV9: 170 | SW9: 171 | SX9: 172 | SY9: 173 | SZ9: 174 | TA9: 175 | TB9: 176 | TC9: 177 | TD9: 178 | TE9: 179 | TF9: 180 | TG9: 181 | TH9: 182 | TI9: 183 | TJ9: 184 | TK9: 185 | TL9: 186 | TM9: 187 | TN9: 188 | TO9: 189 | TP9: 190 | TQ9: 191 | TR9: 192 | TS9: 193 | TT9: 194 | TU9: 195 | TV9: 196 | TW9: 197 | TX9: 198 | TY9: 199 | TZ9: 200 | UA9: 201 | UB9: =UB8*10 -> 202 | UC9: 203 | UD9: 204 | UE9: 205 | UF9: 206 | UG9: 207 | UH9: 208 | UI9: 209 | UJ9: 210 | UK9: 211 | UL9: 212 | UM9: 213 | UN9: 214 | UO9: 215 | UP9: 216 | UQ9: 217 | UR9: 218 | US9: 219 | UT9: 220 | UU9: 221 | UV9: 222 | UW9: 223 | UX9: 224 | UY9: 225 | UZ9: 226 | VA9: 227 | VB9: 228 | VC9: 229 | VD9: 230 | VE9: 231 | VF9: 232 | VG9: 233 | VH9: 234 | VI9: 235 | VJ9: 236 | VK9: 237 | VL9: 238 | VM9: 239 | VN9: 240 | VO9: 241 | VP9: 242 | VQ9: 243 | VR9: 244 | VS9: 245 | VT9: 246 | VU9: 247 | VV9: 248 | VW9: 249 | VX9: 250 | VY9: 251 | VZ9: 252 | WA9: 253 | WB9: 254 | WC9: 255 | WD9: 256 | WE9: 257 | WF9: 258 | WG9: 259 | WH9: 260 | WI9: 261 | WJ9: 262 | WK9: 263 | WL9: 264 | WM9: 265 | WN9: =WN8*10 -> 266 | WO9: 267 | WP9: 268 | WQ9: 269 | WR9: 270 | WS9: 271 | WT9: 272 | WU9: 273 | WV9: 274 | WW9: 275 | WX9: 276 | WY9: 277 | WZ9: 278 | XA9: 279 | XB9: 280 | XC9: 281 | XD9: 282 | XE9: 283 | XF9: 284 | XG9: 285 | XH9: 286 | XI9: 287 | XJ9: 288 | XK9: 289 | XL9: 290 | XM9: 291 | XN9: 292 | XO9: 293 | XP9: 294 | XQ9: 295 | XR9: 296 | XS9: 297 | XT9: 298 | XU9: 299 | XV9: 300 | XW9: 301 | XX9: 302 | XY9: 303 | XZ9: 304 | YA9: 305 | YB9: 306 | YC9: 307 | YD9: 308 | YE9: 309 | YF9: 310 | YG9: 311 | YH9: 312 | YI9: 313 | YJ9: 314 | YK9: 315 | YL9: 316 | YM9: 317 | YN9: 318 | YO9: 319 | YP9: 320
B10: Table. VariStroke Constant | MG10: VLOOKUP | MH10: 34.1 | MI10: 494.5787067 | MJ10: 3.41 | MM10: =IF($HN$14=$ML$8,MN10,IF($HN$14=$ML$7,MN10*2.54,IF($HN$14=$ML$6,MN10*25.4,""))) -> 254 | MN10: 10 | MO10: 25.4 | MQ10: INCH | MR10: =MR8/2.54 -> 0.3937007874 | MS10: 0.4330708661 | MT10: 0.4724409449 | MU10: 0.5118110236 | MV10: 0.5511811024 | MW10: 0.5905511811 | MX10: 0.6299212598 | MY10: 0.6692913386 | MZ10: 0.7086614173 | NA10: 0.7480314961 | NB10: 0.7874015748 | NC10: 0.8267716535 | ND10: 0.8661417323 | NE10: 0.905511811 | NF10: 0.9448818898 | NG10: 0.9842519685 | NH10: 1.023622047 | NI10: 1.062992126 | NJ10: 1.102362205 | NK10: 1.141732283 | NL10: 1.181102362 | NM10: 1.220472441 | NN10: 1.25984252 | NO10: 1.299212598 | NP10: 1.338582677 | NQ10: 1.377952756 | NR10: 1.417322835 | NS10: 1.456692913 | NT10: 1.496062992 | NU10: 1.535433071 | NV10: 1.57480315 | NW10: 1.614173228 | NX10: 1.653543307 | NY10: 1.692913386 | NZ10: 1.732283465 | OA10: 1.771653543 | OB10: 1.811023622 | OC10: 1.850393701 | OD10: 1.88976378 | OE10: 1.929133858 | OF10: 1.968503937 | OG10: 2.007874016 | OH10: 2.047244094 | OI10: 2.086614173 | OJ10: 2.125984252 | OK10: 2.165354331 | OL10: 2.204724409 | OM10: 2.244094488 | ON10: 2.283464567 | OO10: 2.322834646 | OP10: 2.362204724 | OQ10: 2.401574803 | OR10: 2.440944882 | OS10: 2.480314961 | OT10: 2.519685039 | OU10: 2.559055118 | OV10: 2.598425197 | OW10: 2.637795276 | OX10: 2.677165354 | OY10: 2.716535433 | OZ10: 2.755905512 | PA10: 2.795275591 | PB10: 2.834645669 | PC10: 2.874015748 | PD10: =PD8/2.54 -> 2.913385827 | PE10: 2.952755906 | PF10: 2.992125984 | PG10: 3.031496063 | PH10: 3.070866142 | PI10: 3.11023622 | PJ10: 3.149606299 | PK10: 3.188976378 | PL10: 3.228346457 | PM10: 3.267716535 | PN10: 3.307086614 | PO10: 3.346456693 | PP10: 3.385826772 | PQ10: 3.42519685 | PR10: 3.464566929 | PS10: 3.503937008 | PT10: 3.543307087 | PU10: 3.582677165 | PV10: 3.622047244 | PW10: 3.661417323 | PX10: 3.700787402 | PY10: 3.74015748 | PZ10: 3.779527559 | QA10: 3.818897638 | QB10: 3.858267717 | QC10: 3.897637795 | QD10: 3.937007874 | QE10: 3.976377953 | QF10: 4.015748031 | QG10: 4.05511811 | QH10: 4.094488189 | QI10: 4.133858268 | QJ10: 4.173228346 | QK10: 4.212598425 | QL10: 4.251968504 | QM10: 4.291338583 | QN10: 4.330708661 | QO10: 4.37007874 | QP10: 4.409448819 | QQ10: 4.448818898 | QR10: 4.488188976 | QS10: 4.527559055 | QT10: 4.566929134 | QU10: 4.606299213 | QV10: 4.645669291 | QW10: 4.68503937 | QX10: 4.724409449 | QY10: 4.763779528 | QZ10: 4.803149606 | RA10: 4.842519685 | RB10: 4.881889764 | RC10: 4.921259843 | RD10: 4.960629921 | RE10: 5 | RF10: 5.039370079 | RG10: 5.078740157 | RH10: 5.118110236 | RI10: 5.157480315 | RJ10: 5.196850394 | RK10: 5.236220472 | RL10: 5.275590551 | RM10: 5.31496063 | RN10: 5.354330709 | RO10: 5.393700787 | RP10: =RP8/2.54 -> 5.433070866 | RQ10: 5.472440945 | RR10: 5.511811024 | RS10: 5.551181102 | RT10: 5.590551181 | RU10: 5.62992126 | RV10: 5.669291339 | RW10: 5.708661417 | RX10: 5.748031496 | RY10: 5.787401575 | RZ10: 5.826771654 | SA10: 5.866141732 | SB10: 5.905511811 | SC10: 5.94488189 | SD10: 5.984251969 | SE10: 6.023622047 | SF10: 6.062992126 | SG10: 6.102362205 | SH10: 6.141732283 | SI10: 6.181102362 | SJ10: 6.220472441 | SK10: 6.25984252 | SL10: 6.299212598 | SM10: 6.338582677 | SN10: 6.377952756 | SO10: 6.417322835 | SP10: 6.456692913 | SQ10: 6.496062992 | SR10: 6.535433071 | SS10: 6.57480315 | ST10: 6.614173228 | SU10: 6.653543307 | SV10: 6.692913386 | SW10: 6.732283465 | SX10: 6.771653543 | SY10: 6.811023622 | SZ10: 6.850393701 | TA10: 6.88976378 | TB10: 6.929133858 | TC10: 6.968503937 | TD10: 7.007874016 | TE10: 7.047244094 | TF10: 7.086614173 | TG10: 7.125984252 | TH10: 7.165354331 | TI10: 7.204724409 | TJ10: 7.244094488 | TK10: 7.283464567 | TL10: 7.322834646 | TM10: 7.362204724 | TN10: 7.401574803 | TO10: 7.440944882 | TP10: 7.480314961 | TQ10: 7.519685039 | TR10: 7.559055118 | TS10: 7.598425197 | TT10: 7.637795276 | TU10: 7.677165354 | TV10: 7.716535433 | TW10: 7.755905512 | TX10: 7.795275591 | TY10: 7.834645669 | TZ10: 7.874015748 | UA10: 7.913385827 | UB10: =UB8/2.54 -> 7.952755906 | UC10: 7.992125984 | UD10: 8.031496063 | UE10: 8.070866142 | UF10: 8.11023622 | UG10: 8.149606299 | UH10: 8.188976378 | UI10: 8.228346457 | UJ10: 8.267716535 | UK10: 8.307086614 | UL10: 8.346456693 | UM10: 8.385826772 | UN10: 8.42519685 | UO10: 8.464566929 | UP10: 8.503937008 | UQ10: 8.543307087 | UR10: 8.582677165 | US10: 8.622047244 | UT10: 8.661417323 | UU10: 8.700787402 | UV10: 8.74015748 | UW10: 8.779527559 | UX10: 8.818897638 | UY10: 8.858267717 | UZ10: 8.897637795 | VA10: 8.937007874 | VB10: 8.976377953 | VC10: 9.015748031 | VD10: 9.05511811 | VE10: 9.094488189 | VF10: 9.133858268 | VG10: 9.173228346 | VH10: 9.212598425 | VI10: 9.251968504 | VJ10: 9.291338583 | VK10: 9.330708661 | VL10: 9.37007874 | VM10: 9.409448819 | VN10: 9.448818898 | VO10: 9.488188976 | VP10: 9.527559055 | VQ10: 9.566929134 | VR10: 9.606299213 | VS10: 9.645669291 | VT10: 9.68503937 | VU10: 9.724409449 | VV10: 9.763779528 | VW10: 9.803149606 | VX10: 9.842519685 | VY10: 9.881889764 | VZ10: 9.921259843 | WA10: 9.960629921 | WB10: 10 | WC10: 10.03937008 | WD10: 10.07874016 | WE10: 10.11811024 | WF10: 10.15748031 | WG10: 10.19685039 | WH10: 10.23622047 | WI10: 10.27559055 | WJ10: 10.31496063 | WK10: 10.35433071 | WL10: 10.39370079 | WM10: 10.43307087 | WN10: =WN8/2.54 -> 10.47244094 | WO10: 10.51181102 | WP10: 10.5511811 | WQ10: 10.59055118 | WR10: 10.62992126 | WS10: 10.66929134 | WT10: 10.70866142 | WU10: 10.7480315 | WV10: 10.78740157 | WW10: 10.82677165 | WX10: 10.86614173 | WY10: 10.90551181 | WZ10: 10.94488189 | XA10: 10.98425197 | XB10: 11.02362205 | XC10: 11.06299213 | XD10: 11.1023622 | XE10: 11.14173228 | XF10: 11.18110236 | XG10: 11.22047244 | XH10: 11.25984252 | XI10: 11.2992126 | XJ10: 11.33858268 | XK10: 11.37795276 | XL10: 11.41732283 | XM10: 11.45669291 | XN10: 11.49606299 | XO10: 11.53543307 | XP10: 11.57480315 | XQ10: 11.61417323 | XR10: 11.65354331 | XS10: 11.69291339 | XT10: 11.73228346 | XU10: 11.77165354 | XV10: 11.81102362 | XW10: 11.8503937 | XX10: 11.88976378 | XY10: 11.92913386 | XZ10: 11.96850394 | YA10: 12.00787402 | YB10: 12.04724409 | YC10: 12.08661417 | YD10: 12.12598425 | YE10: 12.16535433 | YF10: 12.20472441 | YG10: 12.24409449 | YH10: 12.28346457 | YI10: 12.32283465 | YJ10: 12.36220472 | YK10: 12.4015748 | YL10: 12.44094488 | YM10: 12.48031496 | YN10: 12.51968504 | YO10: 12.55905512 | YP10: 12.5984252
B11: Servo Valve Size | F11: VariStroke Constant | MG11: =ROUND($DR$16*IF($HN$16=$MP$6,1,IF($HN$16=$MP$7,0.06894757,10)),1) -> 10 | MH11: 34 | MI11: 493.1283293 | MJ11: 3.4 | MM11: =IF(OR($V$14=$B$12,$V$14=$B$13),"",IF($HN$14=$ML$8,MN11,IF($HN$14=$ML$7,MN11*2.54,IF($HN$14=$ML$6,MN11*25.4,"")))) ->  | MN11: 12 | MO11: 30.48
B12: VariStroke-I Double Acting | F12: =FIXED(2.88*SQRT(14.50377)/0.393701^3,0,TRUE) -> 180 | MG12: HLOOKUP | MH12: 33.9 | MI12: 491.6779518 | MJ12: 3.39
B13: VariStroke-I Single Acting | F13: =FIXED(5.77*SQRT(14.50377)/0.393701^3,0,TRUE) -> 360 | V13: Servo Valve Type | DR13: Bore Diameter | HN13: Units | MG13: =ROUND(V16*IF($HN$14=$ML$8,2.54,IF($HN$14=$ML$7,1,0.1)),1) -> 25.4 | MH13: 33.8 | MI13: 490.2275744 | MJ13: 3.38
B14: VariStroke-II Double Acting | F14: =FIXED(40*SQRT(14.50377)/0.393701^3,0,TRUE) -> 2496 | V14: VariStroke-I Double Acting | DR14: 101.6 | HN14: MM | MH14: 33.7 | MI14: 488.7771969 | MJ14: 3.37 | NH14: INCH
P15: Bore: | Q15: =10*2.54 -> 25.4 | V15: Stroke | DR15: Supply-Drain Pressure Difference | HN15: Units | MG15: =IF(IFERROR(HLOOKUP($MG$13,$Q$18:$LY$18,1,FALSE),TRUE)=TRUE,TRUE,FALSE) -> FALSE | MH15: 33.6 | MI15: 487.3268195 | MJ15: 3.36
Q16: Stroke | V16: 254 | DR16: 10 | HN16: BAR | MH16: 33.5 | MI16: 485.8764421 | MJ16: 3.35
K18: =IF($HN$16=$MP$6,MH6,IF($HN$16=$MP$7,MI6,MJ6)) -> 34.5 | Q18: 0 | R18: =ROUND(Q18+0.1,1) -> 0.1 | S18: =ROUND(R18+0.1,1) -> 0.2 | T18: 0.3 | U18: 0.4 | V18: 0.5 | W18: 0.6 | X18: 0.7 | Y18: 0.8 | Z18: 0.9 | AA18: 1 | AB18: 1.1 | AC18: 1.2 | AD18: 1.3 | AE18: 1.4 | AF18: 1.5 | AG18: 1.6 | AH18: 1.7 | AI18: 1.8 | AJ18: 1.9 | AK18: 2 | AL18: 2.1 | AM18: 2.2 | AN18: 2.3 | AO18: 2.4 | AP18: 2.5 | AQ18: 2.6 | AR18: 2.7 | AS18: 2.8 | AT18: 2.9 | AU18: 3 | AV18: 3.1 | AW18: 3.2 | AX18: 3.3 | AY18: 3.4 | AZ18: 3.5 | BA18: 3.6 | BB18: 3.7 | BC18: 3.8 | BD18: 3.9 | BE18: 4 | BF18: 4.1 | BG18: 4.2 | BH18: 4.3 | BI18: 4.4 | BJ18: 4.5 | BK18: 4.6 | BL18: 4.7 | BM18: 4.8 | BN18: 4.9 | BO18: 5 | BP18: 5.1 | BQ18: 5.2 | BR18: 5.3 | BS18: 5.4 | BT18: 5.5 | BU18: 5.6 | BV18: 5.7 | BW18: 5.8 | BX18: 5.9 | BY18: 6 | BZ18: 6.1 | CA18: 6.2 | CB18: 6.3 | CC18: 6.4 | CD18: 6.5 | CE18: =ROUND(CD18+0.1,1) -> 6.6 | CF18: 6.7 | CG18: 6.8 | CH18: 6.9 | CI18: 7 | CJ18: 7.1 | CK18: 7.2 | CL18: 7.3 | CM18: 7.4 | CN18: 7.5 | CO18: 7.6 | CP18: 7.7 | CQ18: 7.8 | CR18: 7.9 | CS18: 8 | CT18: 8.1 | CU18: 8.2 | CV18: 8.3 | CW18: 8.4 | CX18: 8.5 | CY18: 8.6 | CZ18: 8.7 | DA18: 8.8 | DB18: 8.9 | DC18: 9 | DD18: 9.1 | DE18: 9.2 | DF18: 9.3 | DG18: 9.4 | DH18: 9.5 | DI18: 9.6 | DJ18: 9.7 | DK18: 9.8 | DL18: 9.9 | DM18: 10 | DN18: 10.1 | DO18: 10.2 | DP18: 10.3 | DQ18: 10.4 | DR18: 10.5 | DS18: 10.6 | DT18: 10.7 | DU18: 10.8 | DV18: 10.9 | DW18: 11 | DX18: 11.1 | DY18: 11.2 | DZ18: 11.3 | EA18: 11.4 | EB18: 11.5 | EC18: 11.6 | ED18: 11.7 | EE18: 11.8 | EF18: 11.9 | EG18: 12 | EH18: 12.1 | EI18: 12.2 | EJ18: 12.3 | EK18: 12.4 | EL18: 12.5 | EM18: 12.6 | EN18: 12.7 | EO18: 12.8 | EP18: 12.9 | EQ18: =ROUND(EP18+0.1,1) -> 13 | ER18: 13.1 | ES18: 13.2 | ET18: 13.3 | EU18: 13.4 | EV18: 13.5 | EW18: 13.6 | EX18: 13.7 | EY18: 13.8 | EZ18: 13.9 | FA18: 14 | FB18: 14.1 | FC18: 14.2 | FD18: 14.3 | FE18: 14.4 | FF18: 14.5 | FG18: 14.6 | FH18: 14.7 | FI18: 14.8 | FJ18: 14.9 | FK18: 15 | FL18: 15.1 | FM18: 15.2 | FN18: 15.3 | FO18: 15.4 | FP18: 15.5 | FQ18: 15.6 | FR18: 15.7 | FS18: 15.8 | FT18: 15.9 | FU18: 16 | FV18: 16.1 | FW18: 16.2 | FX18: 16.3 | FY18: 16.4 | FZ18: 16.5 | GA18: 16.6 | GB18: 16.7 | GC18: 16.8 | GD18: 16.9 | GE18: 17 | GF18: 17.1 | GG18: 17.2 | GH18: 17.3 | GI18: 17.4 | GJ18: 17.5 | GK18: 17.6 | GL18: 17.7 | GM18: 17.8 | GN18: 17.9 | GO18: 18 | GP18: 18.1 | GQ18: 18.2 | GR18: 18.3 | GS18: 18.4 | GT18: 18.5 | GU18: 18.6 | GV18: 18.7 | GW18: 18.8 | GX18: 18.9 | GY18: 19 | GZ18: 19.1 | HA18: 19.2 | HB18: 19.3 | HC18: =ROUND(HB18+0.1,1) -> 19.4 | HD18: 19.5 | HE18: 19.6 | HF18: 19.7 | HG18: 19.8 | HH18: 19.9 | HI18: 20 | HJ18: 20.1 | HK18: 20.2 | HL18: 20.3 | HM18: 20.4 | HN18: 20.5 | HO18: 20.6 | HP18: 20.7 | HQ18: 20.8 | HR18: 20.9 | HS18: 21 | HT18: 21.1 | HU18: 21.2 | HV18: 21.3 | HW18: 21.4 | HX18: 21.5 | HY18: 21.6 | HZ18: 21.7 | IA18: 21.8 | IB18: 21.9 | IC18: 22 | ID18: 22.1 | IE18: 22.2 | IF18: 22.3 | IG18: 22.4 | IH18: 22.5 | II18: 22.6 | IJ18: 22.7 | IK18: 22.8 | IL18: 22.9 | IM18: 23 | IN18: 23.1 | IO18: 23.2 | IP18: 23.3 | IQ18: 23.4 | IR18: 23.5 | IS18: 23.6 | IT18: 23.7 | IU18: 23.8 | IV18: 23.9 | IW18: 24 | IX18: 24.1 | IY18: 24.2 | IZ18: 24.3 | JA18: 24.4 | JB18: 24.5 | JC18: 24.6 | JD18: 24.7 | JE18: 24.8 | JF18: 24.9 | JG18: 25 | JH18: 25.1 | JI18: 25.2 | JJ18: 25.3 | JK18: 25.4 | JL18: 25.5 | JM18: 25.6 | JN18: 25.7 | JO18: =ROUND(JN18+0.1,1) -> 25.8 | JP18: 25.9 | JQ18: 26 | JR18: 26.1 | JS18: 26.2 | JT18: 26.3 | JU18: 26.4 | JV18: 26.5 | JW18: 26.6 | JX18: 26.7 | JY18: 26.8 | JZ18: 26.9 | KA18: 27 | KB18: 27.1 | KC18: 27.2 | KD18: 27.3 | KE18: 27.4 | KF18: 27.5 | KG18: 27.6 | KH18: 27.7 | KI18: 27.8 | KJ18: 27.9 | KK18: 28 | KL18: 28.1 | KM18: 28.2 | KN18: 28.3 | KO18: 28.4 | KP18: 28.5 | KQ18: 28.6 | KR18: 28.7 | KS18: 28.8 | KT18: 28.9 | KU18: 29 | KV18: 29.1 | KW18: 29.2 | KX18: 29.3 | KY18: 29.4 | KZ18: 29.5 | LA18: 29.6 | LB18: 29.7 | LC18: 29.8 | LD18: 29.9 | LE18: 30 | LF18: 30.1 | LG18: 30.2 | LH18: 30.3 | LI18: 30.4 | LJ18: 30.5 | LK18: 30.6 | LL18: 30.7 | LM18: 30.8 | LN18: 30.9 | LO18: 31 | LP18: 31.1 | LQ18: 31.2 | LR18: 31.3 | LS18: 31.4 | LT18: 31.5 | LU18: 31.6 | LV18: 31.7 | LW18: 31.8 | LX18: 31.9 | LY18: 32 | MH18: 33.4 | MI18: 484.4260646 | MJ18: 3.34
P19: =ROUND(P20+0.1,1) -> 34.5 | Q19: =IFERROR(IF(P19<1,0,ROUND(VLOOKUP($V$14,$B$12:$I$15,5,FALSE)*SQRT($P19)/(PI()*VLOOKUP($DR$14,$MM$6:$MO$11,3,FALSE)^2/4*Q$18),2)),666) -> 666 | R19: 130.41 | S19: 65.2 | T19: 43.47 | U19: 32.6 | V19: 26.08 | W19: 21.73 | X19: 18.63 | Y19: 16.3 | Z19: 14.49 | AA19: 13.04 | AB19: 11.86 | AC19: 10.87 | AD19: 10.03 | AE19: 9.31 | AF19: 8.69 | AG19: 8.15 | AH19: 7.67 | AI19: 7.24 | AJ19: 6.86 | AK19: 6.52 | AL19: 6.21 | AM19: 5.93 | AN19: 5.67 | AO19: 5.43 | AP19: 5.22 | AQ19: 5.02 | AR19: 4.83 | AS19: 4.66 | AT19: 4.5 | AU19: 4.35 | AV19: 4.21 | AW19: 4.08 | AX19: 3.95 | AY19: 3.84 | AZ19: 3.73 | BA19: 3.62 | BB19: 3.52 | BC19: 3.43 | BD19: 3.34 | BE19: 3.26 | BF19: 3.18 | BG19: 3.1 | BH19: 3.03 | BI19: 2.96 | BJ19: 2.9 | BK19: 2.83 | BL19: 2.77 | BM19: 2.72 | BN19: 2.66 | BO19: 2.61 | BP19: 2.56 | BQ19: 2.51 | BR19: 2.46 | BS19: 2.41 | BT19: 2.37 | BU19: 2.33 | BV19: 2.29 | BW19: 2.25 | BX19: 2.21 | BY19: 2.17 | BZ19: 2.14 | CA19: 2.1 | CB19: 2.07 | CC19: =IFERROR(IF(CB19<1,0,ROUND(VLOOKUP($V$14,$B$12:$I$15,5,FALSE)*SQRT($P19)/(PI()*VLOOKUP($DR$14,$MM$6:$MO$11,3,FALSE)^2/4*CC$18),2)),666) -> 2.04 | CD19: 2.01 | CE19: 1.98 | CF19: 1.95 | CG19: 1.92 | CH19: 1.89 | CI19: 1.86 | CJ19: 1.84 | CK19: 1.81 | CL19: 1.79 | CM19: 1.76 | CN19: 1.74 | CO19: 1.72 | CP19: 1.69 | CQ19: 1.67 | CR19: 1.65 | CS19: 1.63 | CT19: 1.61 | CU19: 1.59 | CV19: 1.57 | CW19: 1.55 | CX19: 1.53 | CY19: 1.52 | CZ19: 1.5 | DA19: 1.48 | DB19: 1.47 | DC19: 1.45 | DD19: 1.43 | DE19: 1.42 | DF19: 1.4 | DG19: 1.39 | DH19: 1.37 | DI19: 1.36 | DJ19: 1.34 | DK19: 1.33 | DL19: 1.32 | DM19: 1.3 | DN19: 1.29 | DO19: 1.28 | DP19: 1.27 | DQ19: 1.25 | DR19: 1.24 | DS19: 1.23 | DT19: 1.22 | DU19: 1.21 | DV19: 1.2 | DW19: 1.19 | DX19: 1.17 | DY19: 1.16 | DZ19: 1.15 | EA19: 1.14 | EB19: 1.13 | EC19: 1.12 | ED19: 1.11 | EE19: 1.11 | EF19: 1.1 | EG19: 1.09 | EH19: 1.08 | EI19: 1.07 | EJ19: 1.06 | EK19: 1.05 | EL19: 1.04 | EM19: 1.03 | EN19: 1.03 | EO19: =IFERROR(IF(EN19<1,0,ROUND(VLOOKUP($V$14,$B$12:$I$15,5,FALSE)*SQRT($P19)/(PI()*VLOOKUP($DR$14,$MM$6:$MO$11,3,FALSE)^2/4*EO$18),2)),666) -> 1.02 | EP19: 1.01 | EQ19: 1 | ER19: 1 | ES19: 0.99 | ET19: 0 | EU19: 0 | EV19: 0 | EW19: 0 | EX19: 0 | EY19: 0 | EZ19: 0 | FA19: 0 | FB19: 0 | FC19: 0 | FD19: 0 | FE19: 0 | FF19: 0 | FG19: 0 | FH19: 0 | FI19: 0 | FJ19: 0 | FK19: 0 | FL19: 0 | FM19: 0 | FN19: 0 | FO19: 0 | FP19: 0 | FQ19: 0 | FR19: 0 | FS19: 0 | FT19: 0 | FU19: 0 | FV19: 0 | FW19: 0 | FX19: 0 | FY19: 0 | FZ19: 0 | GA19: 0 | GB19: 0 | GC19: 0 | GD19: 0 | GE19: 0 | GF19: 0 | GG19: 0 | GH19: 0 | GI19: 0 | GJ19: 0 | GK19: 0 | GL19: 0 | GM19: 0 | GN19: 0 | GO19: 0 | GP19: 0 | GQ19: 0 | GR19: 0 | GS19: 0 | GT19: 0 | GU19: 0 | GV19: 0 | GW19: 0 | GX19: 0 | GY19: 0 | GZ19: 0 | HA19: =IFERROR(IF(GZ19<1,0,ROUND(VLOOKUP($V$14,$B$12:$I$15,5,FALSE)*SQRT($P19)/(PI()*VLOOKUP($DR$14,$MM$6:$MO$11,3,FALSE)^2/4*HA$18),2)),666) -> 0 | HB19: 0 | HC19: 0 | HD19: 0 | HE19: 0 | HF19: 0 | HG19: 0 | HH19: 0 | HI19: 0 | HJ19: 0 | HK19: 0 | HL19: 0 | HM19: 0 | HN19: 0 | HO19: 0 | HP19: 0 | HQ19: 0 | HR19: 0 | HS19: 0 | HT19: 0 | HU19: 0 | HV19: 0 | HW19: 0 | HX19: 0 | HY19: 0 | HZ19: 0 | IA19: 0 | IB19: 0 | IC19: 0 | ID19: 0 | IE19: 0 | IF19: 0 | IG19: 0 | IH19: 0 | II19: 0 | IJ19: 0 | IK19: 0 | IL19: 0 | IM19: 0 | IN19: 0 | IO19: 0 | IP19: 0 | IQ19: 0 | IR19: 0 | IS19: 0 | IT19: 0 | IU19: 0 | IV19: 0 | IW19: 0 | IX19: 0 | IY19: 0 | IZ19: 0 | JA19: 0 | JB19: 0 | JC19: 0 | JD19: 0 | JE19: 0 | JF19: 0 | JG19: 0 | JH19: 0 | JI19: 0 | JJ19: 0 | JK19: 0 | JL19: 0 | JM19: =IFERROR(IF(JL19<1,0,ROUND(VLOOKUP($V$14,$B$12:$I$15,5,FALSE)*SQRT($P19)/(PI()*VLOOKUP($DR$14,$MM$6:$MO$11,3,FALSE)^2/4*JM$18),2)),666) -> 0 | JN19: 0 | JO19: 0 | JP19: 0 | JQ19: 0 | JR19: 0 | JS19: 0 | JT19: 0 | JU19: 0 | JV19: 0 | JW19: 0 | JX19: 0 | JY19: 0 | JZ19: 0 | KA19: 0 | KB19: 0 | KC19: 0 | KD19: 0 | KE19: 0 | KF19: 0 | KG19: 0 | KH19: 0 | KI19: 0 | KJ19: 0 | KK19: 0 | KL19: 0 | KM19: 0 | KN19: 0 | KO19: 0 | KP19: 0 | KQ19: 0 | KR19: 0 | KS19: 0 | KT19: 0 | KU19: 0 | KV19: 0 | KW19: 0 | KX19: 0 | KY19: 0 | KZ19: 0 | LA19: 0 | LB19: 0 | LC19: 0 | LD19: 0 | LE19: 0 | LF19: 0 | LG19: 0 | LH19: 0 | LI19: 0 | LJ19: 0 | LK19: 0 | LL19: 0 | LM19: 0 | LN19: 0 | LO19: 0 | LP19: 0 | LQ19: 0 | LR19: 0 | LS19: 0 | LT19: 0 | LU19: 0 | LV19: 0 | LW19: 0 | LX19: 0 | LY19: 0 | MH19: 33.3 | MI19: 482.9756872 | MJ19: 3.33
P20: 34.4 | Q20: =IFERROR(IF(P20<1,0,ROUND(VLOOKUP($V$14,$B$12:$I$15,5,FALSE)*SQRT($P20)/(PI()*VLOOKUP($DR$14,$MM$6:$MO$11,3,FALSE)^2/4*Q$18),2)),666) -> 666 | R20: 130.22 | S20: 65.11 | T20: 43.41 | U20: 32.55 | V20: 26.04 | W20: 21.7 | X20: 18.6 | Y20: 16.28 | Z20: 14.47 | AA20: 13.02 | AB20: 11.84 | AC20: 10.85 | AD20: 10.02 | AE20: 9.3 | AF20: 8.68 | AG20: 8.14 | AH20: 7.66 | AI20: 7.23 | AJ20: 6.85 | AK20: 6.51 | AL20: 6.2 | AM20: 5.92 | AN20: 5.66 | AO20: 5.43 | AP20: 5.21 | AQ20: 5.01 | AR20: 4.82 | AS20: 4.65 | AT20: 4.49 | AU20: 4.34 | AV20: 4.2 | AW20: 4.07 | AX20: 3.95 | AY20: 3.83 | AZ20: 3.72 | BA20: 3.62 | BB20: 3.52 | BC20: 3.43 | BD20: 3.34 | BE20: 3.26 | BF20: 3.18 | BG20: 3.1 | BH20: 3.03 | BI20: 2.96 | BJ20: 2.89 | BK20: 2.83 | BL20: 2.77 | BM20: 2.71 | BN20: 2.66 | BO20: 2.6 | BP20: 2.55 | BQ20: 2.5 | BR20: 2.46 | BS20: 2.41 | BT20: 2.37 | BU20: 2.33 | BV20: 2.28 | BW20: 2.25 | BX20: 2.21 | BY20: 2.17 | BZ20: 2.13 | CA20: 2.1 | CB20: 2.07 | CC20: =IFERROR(IF(CB20<1,0,ROUND(VLOOKUP($V$14,$B$12:$I$15,5,FALSE)*SQRT($P20)/(PI()*VLOOKUP($DR$14,$MM$6:$MO$11,3,FALSE)^2/4*CC$18),2)),666) -> 2.03 | CD20: 2 | CE20: 1.97 | CF20: 1.94 | CG20: 1.91 | CH20: 1.89 | CI20: 1.86 | CJ20: 1.83 | CK20: 1.81 | CL20: 1.78 | CM20: 1.76 | CN20: 1.74 | CO20: 1.71 | CP20: 1.69 | CQ20: 1.67 | CR20: 1.65 | CS20: 1.63 | CT20: 1.61 | CU20: 1.59 | CV20: 1.57 | CW20: 1.55 | CX20: 1.53 | CY20: 1.51 | CZ20: 1.5 | DA20: 1.48 | DB20: 1.46 | DC20: 1.45 | DD20: 1.43 | DE20: 1.42 | DF20: 1.4 | DG20: 1.39 | DH20: 1.37 | DI20: 1.36 | DJ20: 1.34 | DK20: 1.33 | DL20: 1.32 | DM20: 1.3 | DN20: 1.29 | DO20: 1.28 | DP20: 1.26 | DQ20: 1.25 | DR20: 1.24 | DS20: 1.23 | DT20: 1.22 | DU20: 1.21 | DV20: 1.19 | DW20: 1.18 | DX20: 1.17 | DY20: 1.16 | DZ20: 1.15 | EA20: 1.14 | EB20: 1.13 | EC20: 1.12 | ED20: 1.11 | EE20: 1.1 | EF20: 1.09 | EG20: 1.09 | EH20: 1.08 | EI20: 1.07 | EJ20: 1.06 | EK20: 1.05 | EL20: 1.04 | EM20: 1.03 | EN20: 1.03 | EO20: =IFERROR(IF(EN20<1,0,ROUND(VLOOKUP($V$14,$B$12:$I$15,5,FALSE)*SQRT($P20)/(PI()*VLOOKUP($DR$14,$MM$6:$MO$11,3,FALSE)^2/4*EO$18),2)),666) -> 1.02 | EP20: 1.01 | EQ20: 1 | ER20: 0.99 | ES20: 0 | ET20: 0 | EU20: 0 | EV20: 0 | EW20: 0 | EX20: 0 | EY20: 0 | EZ20: 0 | FA20: 0 | FB20: 0 | FC20: 0 | FD20: 0 | FE20: 0 | FF20: 0 | FG20: 0 | FH20: 0 | FI20: 0 | FJ20: 0 | FK20: 0 | FL20: 0 | FM20: 0 | FN20: 0 | FO20: 0 | FP20: 0 | FQ20: 0 | FR20: 0 | FS20: 0 | FT20: 0 | FU20: 0 | FV20: 0 | FW20: 0 | FX20: 0 | FY20: 0 | FZ20: 0 | GA20: 0 | GB20: 0 | GC20: 0 | GD20: 0 | GE20: 0 | GF20: 0 | GG20: 0 | GH20: 0 | GI20: 0 | GJ20: 0 | GK20: 0 | GL20: 0 | GM20: 0 | GN20: 0 | GO20: 0 | GP20: 0 | GQ20: 0 | GR20: 0 | GS20: 0 | GT20: 0 | GU20: 0 | GV20: 0 | GW20: 0 | GX20: 0 | GY20: 0 | GZ20: 0 | HA20: =IFERROR(IF(GZ20<1,0,ROUND(VLOOKUP($V$14,$B$12:$I$15,5,FALSE)*SQRT($P20)/(PI()*VLOOKUP($DR$14,$MM$6:$MO$11,3,FALSE)^2/4*HA$18),2)),666) -> 0 | HB20: 0 | HC20: 0 | HD20: 0 | HE20: 0 | HF20: 0 | HG20: 0 | HH20: 0 | HI20: 0 | HJ20: 0 | HK20: 0 | HL20: 0 | HM20: 0 | HN20: 0 | HO20: 0 | HP20: 0 | HQ20: 0 | HR20: 0 | HS20: 0 | HT20: 0 | HU20: 0 | HV20: 0 | HW20: 0 | HX20: 0 | HY20: 0 | HZ20: 0 | IA20: 0 | IB20: 0 | IC20: 0 | ID20: 0 | IE20: 0 | IF20: 0 | IG20: 0 | IH20: 0 | II20: 0 | IJ20: 0 | IK20: 0 | IL20: 0 | IM20: 0 | IN20: 0 | IO20: 0 | IP20: 0 | IQ20: 0 | IR20: 0 | IS20: 0 | IT20: 0 | IU20: 0 | IV20: 0 | IW20: 0 | IX20: 0 | IY20: 0 | IZ20: 0 | JA20: 0 | JB20: 0 | JC20: 0 | JD20: 0 | JE20: 0 | JF20: 0 | JG20: 0 | JH20: 0 | JI20: 0 | JJ20: 0 | JK20: 0 | JL20: 0 | JM20: =IFERROR(IF(JL20<1,0,ROUND(VLOOKUP($V$14,$B$12:$I$15,5,FALSE)*SQRT($P20)/(PI()*VLOOKUP($DR$14,$MM$6:$MO$11,3,FALSE)^2/4*JM$18),2)),666) -> 0 | JN20: 0 | JO20: 0 | JP20: 0 | JQ20: 0 | JR20: 0 | JS20: 0 | JT20: 0 | JU20: 0 | JV20: 0 | JW20: 0 | JX20: 0 | JY20: 0 | JZ20: 0 | KA20: 0 | KB20: 0 | KC20: 0 | KD20: 0 | KE20: 0 | KF20: 0 | KG20: 0 | KH20: 0 | KI20: 0 | KJ20: 0 | KK20: 0 | KL20: 0 | KM20: 0 | KN20: 0 | KO20: 0 | KP20: 0 | KQ20: 0 | KR20: 0 | KS20: 0 | KT20: 0 | KU20: 0 | KV20: 0 | KW20: 0 | KX20: 0 | KY20: 0 | KZ20: 0 | LA20: 0 | LB20: 0 | LC20: 0 | LD20: 0 | LE20: 0 | LF20: 0 | LG20: 0 | LH20: 0 | LI20: 0 | LJ20: 0 | LK20: 0 | LL20: 0 | LM20: 0 | LN20: 0 | LO20: 0 | LP20: 0 | LQ20: 0 | LR20: 0 | LS20: 0 | LT20: 0 | LU20: 0 | LV20: 0 | LW20: 0 | LX20: 0 | LY20: 0 | MH20: 33.2 | MI20: 481.5253097 | MJ20: 3.32
P21: 34.3 | Q21: =IFERROR(IF(P21<1,0,ROUND(VLOOKUP($V$14,$B$12:$I$15,5,FALSE)*SQRT($P21)/(PI()*VLOOKUP($DR$14,$MM$6:$MO$11,3,FALSE)^2/4*Q$18),2)),666) -> 666 | R21: 130.03 | S21: 65.01 | T21: 43.34 | U21: 32.51 | V21: 26.01 | W21: 21.67 | X21: 18.58 | Y21: 16.25 | Z21: 14.45 | AA21: 13 | AB21: 11.82 | AC21: 10.84 | AD21: 10 | AE21: 9.29 | AF21: 8.67 | AG21: 8.13 | AH21: 7.65 | AI21: 7.22 | AJ21: 6.84 | AK21: 6.5 | AL21: 6.19 | AM21: 5.91 | AN21: 5.65 | AO21: 5.42 | AP21: 5.2 | AQ21: 5 | AR21: 4.82 | AS21: 4.64 | AT21: 4.48 | AU21: 4.33 | AV21: 4.19 | AW21: 4.06 | AX21: 3.94 | AY21: 3.82 | AZ21: 3.72 | BA21: 3.61 | BB21: 3.51 | BC21: 3.42 | BD21: 3.33 | BE21: 3.25 | BF21: 3.17 | BG21: 3.1 | BH21: 3.02 | BI21: 2.96 | BJ21: 2.89 | BK21: 2.83 | BL21: 2.77 | BM21: 2.71 | BN21: 2.65 | BO21: 2.6 | BP21: 2.55 | BQ21: 2.5 | BR21: 2.45 | BS21: 2.41 | BT21: 2.36 | BU21: 2.32 | BV21: 2.28 | BW21: 2.24 | BX21: 2.2 | BY21: 2.17 | BZ21: 2.13 | CA21: 2.1 | CB21: 2.06 | CC21: =IFERROR(IF(CB21<1,0,ROUND(VLOOKUP($V$14,$B$12:$I$15,5,FALSE)*SQRT($P21)/(PI()*VLOOKUP($DR$14,$MM$6:$MO$11,3,FALSE)^2/4*CC$18),2)),666) -> 2.03 | CD21: 2 | CE21: 1.97 | CF21: 1.94 | CG21: 1.91 | CH21: 1.88 | CI21: 1.86 | CJ21: 1.83 | CK21: 1.81 | CL21: 1.78 | CM21: 1.76 | CN21: 1.73 | CO21: 1.71 | CP21: 1.69 | CQ21: 1.67 | CR21: 1.65 | CS21: 1.63 | CT21: 1.61 | CU21: 1.59 | CV21: 1.57 | CW21: 1.55 | CX21: 1.53 | CY21: 1.51 | CZ21: 1.49 | DA21: 1.48 | DB21: 1.46 | DC21: 1.44 | DD21: 1.43 | DE21: 1.41 | DF21: 1.4 | DG21: 1.38 | DH21: 1.37 | DI21: 1.35 | DJ21: 1.34 | DK21: 1.33 | DL21: 1.31 | DM21: 1.3 | DN21: 1.29 | DO21: 1.27 | DP21: 1.26 | DQ21: 1.25 | DR21: 1.24 | DS21: 1.23 | DT21: 1.22 | DU21: 1.2 | DV21: 1.19 | DW21: 1.18 | DX21: 1.17 | DY21: 1.16 | DZ21: 1.15 | EA21: 1.14 | EB21: 1.13 | EC21: 1.12 | ED21: 1.11 | EE21: 1.1 | EF21: 1.09 | EG21: 1.08 | EH21: 1.07 | EI21: 1.07 | EJ21: 1.06 | EK21: 1.05 | EL21: 1.04 | EM21: 1.03 | EN21: 1.02 | EO21: =IFERROR(IF(EN21<1,0,ROUND(VLOOKUP($V$14,$B$12:$I$15,5,FALSE)*SQRT($P21)/(PI()*VLOOKUP($DR$14,$MM$6:$MO$11,3,FALSE)^2/4*EO$18),2)),666) -> 1.02 | EP21: 1.01 | EQ21: 1 | ER21: 0.99 | ES21: 0 | ET21: 0 | EU21: 0 | EV21: 0 | EW21: 0 | EX21: 0 | EY21: 0 | EZ21: 0 | FA21: 0 | FB21: 0 | FC21: 0 | FD21: 0 | FE21: 0 | FF21: 0 | FG21: 0 | FH21: 0 | FI21: 0 | FJ21: 0 | FK21: 0 | FL21: 0 | FM21: 0 | FN21: 0 | FO21: 0 | FP21: 0 | FQ21: 0 | FR21: 0 | FS21: 0 | FT21: 0 | FU21: 0 | FV21: 0 | FW21: 0 | FX21: 0 | FY21: 0 | FZ21: 0 | GA21: 0 | GB21: 0 | GC21: 0 | GD21: 0 | GE21: 0 | GF21: 0 | GG21: 0 | GH21: 0 | GI21: 0 | GJ21: 0 | GK21: 0 | GL21: 0 | GM21: 0 | GN21: 0 | GO21: 0 | GP21: 0 | GQ21: 0 | GR21: 0 | GS21: 0 | GT21: 0 | GU21: 0 | GV21: 0 | GW21: 0 | GX21: 0 | GY21: 0 | GZ21: 0 | HA21: =IFERROR(IF(GZ21<1,0,ROUND(VLOOKUP($V$14,$B$12:$I$15,5,FALSE)*SQRT($P21)/(PI()*VLOOKUP($DR$14,$MM$6:$MO$11,3,FALSE)^2/4*HA$18),2)),666) -> 0 | HB21: 0 | HC21: 0 | HD21: 0 | HE21: 0 | HF21: 0 | HG21: 0 | HH21: 0 | HI21: 0 | HJ21: 0 | HK21: 0 | HL21: 0 | HM21: 0 | HN21: 0 | HO21: 0 | HP21: 0 | HQ21: 0 | HR21: 0 | HS21: 0 | HT21: 0 | HU21: 0 | HV21: 0 | HW21: 0 | HX21: 0 | HY21: 0 | HZ21: 0 | IA21: 0 | IB21: 0 | IC21: 0 | ID21: 0 | IE21: 0 | IF21: 0 | IG21: 0 | IH21: 0 | II21: 0 | IJ21: 0 | IK21: 0 | IL21: 0 | IM21: 0 | IN21: 0 | IO21: 0 | IP21: 0 | IQ21: 0 | IR21: 0 | IS21: 0 | IT21: 0 | IU21: 0 | IV21: 0 | IW21: 0 | IX21: 0 | IY21: 0 | IZ21: 0 | JA21: 0 | JB21: 0 | JC21: 0 | JD21: 0 | JE21: 0 | JF21: 0 | JG21: 0 | JH21: 0 | JI21: 0 | JJ21: 0 | JK21: 0 | JL21: 0 | JM21: =IFERROR(IF(JL21<1,0,ROUND(VLOOKUP($V$14,$B$12:$I$15,5,FALSE)*SQRT($P21)/(PI()*VLOOKUP($DR$14,$MM$6:$MO$11,3,FALSE)^2/4*JM$18),2)),666) -> 0 | JN21: 0 | JO21: 0 | JP21: 0 | JQ21: 0 | JR21: 0 | JS21: 0 | JT21: 0 | JU21: 0 | JV21: 0 | JW21: 0 | JX21: 0 | JY21: 0 | JZ21: 0 | KA21: 0 | KB21: 0 | KC21: 0 | KD21: 0 | KE21: 0 | KF21: 0 | KG21: 0 | KH21: 0 | KI21: 0 | KJ21: 0 | KK21: 0 | KL21: 0 | KM21: 0 | KN21: 0 | KO21: 0 | KP21: 0 | KQ21: 0 | KR21: 0 | KS21: 0 | KT21: 0 | KU21: 0 | KV21: 0 | KW21: 0 | KX21: 0 | KY21: 0 | KZ21: 0 | LA21: 0 | LB21: 0 | LC21: 0 | LD21: 0 | LE21: 0 | LF21: 0 | LG21: 0 | LH21: 0 | LI21: 0 | LJ21: 0 | LK21: 0 | LL21: 0 | LM21: 0 | LN21: 0 | LO21: 0 | LP21: 0 | LQ21: 0 | LR21: 0 | LS21: 0 | LT21: 0 | LU21: 0 | LV21: 0 | LW21: 0 | LX21: 0 | LY21: 0 | MH21: 33.1 | MI21: 480.0749323 | MJ21: 3.31
P22: 34.2 | Q22: =IFERROR(IF(P22<1,0,ROUND(VLOOKUP($V$14,$B$12:$I$15,5,FALSE)*SQRT($P22)/(PI()*VLOOKUP($DR$14,$MM$6:$MO$11,3,FALSE)^2/4*Q$18),2)),666) -> 666 | R22: 129.84 | S22: 64.92 | T22: 43.28 | U22: 32.46 | V22: 25.97 | W22: 21.64 | X22: 18.55 | Y22: 16.23 | Z22: 14.43 | AA22: 12.98 | AB22: 11.8 | AC22: 10.82 | AD22: 9.99 | AE22: 9.27 | AF22: 8.66 | AG22: 8.11 | AH22: 7.64 | AI22: 7.21 | AJ22: 6.83 | AK22: 6.49 | AL22: 6.18 | AM22: 5.9 | AN22: 5.65 | AO22: 5.41 | AP22: 5.19 | AQ22: 4.99 | AR22: 4.81 | AS22: 4.64 | AT22: 4.48 | AU22: 4.33 | AV22: 4.19 | AW22: 4.06 | AX22: 3.93 | AY22: 3.82 | AZ22: 3.71 | BA22: 3.61 | BB22: 3.51 | BC22: 3.42 | BD22: 3.33 | BE22: 3.25 | BF22: 3.17 | BG22: 3.09 | BH22: 3.02 | BI22: 2.95 | BJ22: 2.89 | BK22: 2.82 | BL22: 2.76 | BM22: 2.7 | BN22: 2.65 | BO22: 2.6 | BP22: 2.55 | BQ22: 2.5 | BR22: 2.45 | BS22: 2.4 | BT22: 2.36 | BU22: 2.32 | BV22: 2.28 | BW22: 2.24 | BX22: 2.2 | BY22: 2.16 | BZ22: 2.13 | CA22: 2.09 | CB22: 2.06 | CC22: =IFERROR(IF(CB22<1,0,ROUND(VLOOKUP($V$14,$B$12:$I$15,5,FALSE)*SQRT($P22)/(PI()*VLOOKUP($DR$14,$MM$6:$MO$11,3,FALSE)^2/4*CC$18),2)),666) -> 2.03 | CD22: 2 | CE22: 1.97 | CF22: 1.94 | CG22: 1.91 | CH22: 1.88 | CI22: 1.85 | CJ22: 1.83 | CK22: 1.8 | CL22: 1.78 | CM22: 1.75 | CN22: 1.73 | CO22: 1.71 | CP22: 1.69 | CQ22: 1.66 | CR22: 1.64 | CS22: 1.62 | CT22: 1.6 | CU22: 1.58 | CV22: 1.56 | CW22: 1.55 | CX22: 1.53 | CY22: 1.51 | CZ22: 1.49 | DA22: 1.48 | DB22: 1.46 | DC22: 1.44 | DD22: 1.43 | DE22: 1.41 | DF22: 1.4 | DG22: 1.38 | DH22: 1.37 | DI22: 1.35 | DJ22: 1.34 | DK22: 1.32 | DL22: 1.31 | DM22: 1.3 | DN22: 1.29 | DO22: 1.27 | DP22: 1.26 | DQ22: 1.25 | DR22: 1.24 | DS22: 1.22 | DT22: 1.21 | DU22: 1.2 | DV22: 1.19 | DW22: 1.18 | DX22: 1.17 | DY22: 1.16 | DZ22: 1.15 | EA22: 1.14 | EB22: 1.13 | EC22: 1.12 | ED22: 1.11 | EE22: 1.1 | EF22: 1.09 | EG22: 1.08 | EH22: 1.07 | EI22: 1.06 | EJ22: 1.06 | EK22: 1.05 | EL22: 1.04 | EM22: 1.03 | EN22: 1.02 | EO22: =IFERROR(IF(EN22<1,0,ROUND(VLOOKUP($V$14,$B$12:$I$15,5,FALSE)*SQRT($P22)/(PI()*VLOOKUP($DR$14,$MM$6:$MO$11,3,FALSE)^2/4*EO$18),2)),666) -> 1.01 | EP22: 1.01 | EQ22: 1 | ER22: 0.99 | ES22: 0 | ET22: 0 | EU22: 0 | EV22: 0 | EW22: 0 | EX22: 0 | EY22: 0 | EZ22: 0 | FA22: 0 | FB22: 0 | FC22: 0 | FD22: 0 | FE22: 0 | FF22: 0 | FG22: 0 | FH22: 0 | FI22: 0 | FJ22: 0 | FK22: 0 | FL22: 0 | FM22: 0 | FN22: 0 | FO22: 0 | FP22: 0 | FQ22: 0 | FR22: 0 | FS22: 0 | FT22: 0 | FU22: 0 | FV22: 0 | FW22: 0 | FX22: 0 | FY22: 0 | FZ22: 0 | GA22: 0 | GB22: 0 | GC22: 0 | GD22: 0 | GE22: 0 | GF22: 0 | GG22: 0 | GH22: 0 | GI22: 0 | GJ22: 0 | GK22: 0 | GL22: 0 | GM22: 0 | GN22: 0 | GO22: 0 | GP22: 0 | GQ22: 0 | GR22: 0 | GS22: 0 | GT22: 0 | GU22: 0 | GV22: 0 | GW22: 0 | GX22: 0 | GY22: 0 | GZ22: 0 | HA22: =IFERROR(IF(GZ22<1,0,ROUND(VLOOKUP($V$14,$B$12:$I$15,5,FALSE)*SQRT($P22)/(PI()*VLOOKUP($DR$14,$MM$6:$MO$11,3,FALSE)^2/4*HA$18),2)),666) -> 0 | HB22: 0 | HC22: 0 | HD22: 0 | HE22: 0 | HF22: 0 | HG22: 0 | HH22: 0 | HI22: 0 | HJ22: 0 | HK22: 0 | HL22: 0 | HM22: 0 | HN22: 0 | HO22: 0 | HP22: 0 | HQ22: 0 | HR22: 0 | HS22: 0 | HT22: 0 | HU22: 0 | HV22: 0 | HW22: 0 | HX22: 0 | HY22: 0 | HZ22: 0 | IA22: 0 | IB22: 0 | IC22: 0 | ID22: 0 | IE22: 0 | IF22: 0 | IG22: 0 | IH22: 0 | II22: 0 | IJ22: 0 | IK22: 0 | IL22: 0 | IM22: 0 | IN22: 0 | IO22: 0 | IP22: 0 | IQ22: 0 | IR22: 0 | IS22: 0 | IT22: 0 | IU22: 0 | IV22: 0 | IW22: 0 | IX22: 0 | IY22: 0 | IZ22: 0 | JA22: 0 | JB22: 0 | JC22: 0 | JD22: 0 | JE22: 0 | JF22: 0 | JG22: 0 | JH22: 0 | JI22: 0 | JJ22: 0 | JK22: 0 | JL22: 0 | JM22: =IFERROR(IF(JL22<1,0,ROUND(VLOOKUP($V$14,$B$12:$I$15,5,FALSE)*SQRT($P22)/(PI()*VLOOKUP($DR$14,$MM$6:$MO$11,3,FALSE)^2/4*JM$18),2)),666) -> 0 | JN22: 0 | JO22: 0 | JP22: 0 | JQ22: 0 | JR22: 0 | JS22: 0 | JT22: 0 | JU22: 0 | JV22: 0 | JW22: 0 | JX22: 0 | JY22: 0 | JZ22: 0 | KA22: 0 | KB22: 0 | KC22: 0 | KD22: 0 | KE22: 0 | KF22: 0 | KG22: 0 | KH22: 0 | KI22: 0 | KJ22: 0 | KK22: 0 | KL22: 0 | KM22: 0 | KN22: 0 | KO22: 0 | KP22: 0 | KQ22: 0 | KR22: 0 | KS22: 0 | KT22: 0 | KU22: 0 | KV22: 0 | KW22: 0 | KX22: 0 | KY22: 0 | KZ22: 0 | LA22: 0 | LB22: 0 | LC22: 0 | LD22: 0 | LE22: 0 | LF22: 0 | LG22: 0 | LH22: 0 | LI22: 0 | LJ22: 0 | LK22: 0 | LL22: 0 | LM22: 0 | LN22: 0 | LO22: 0 | LP22: 0 | LQ22: 0 | LR22: 0 | LS22: 0 | LT22: 0 | LU22: 0 | LV22: 0 | LW22: 0 | LX22: 0 | LY22: 0 | MH22: 33 | MI22: 478.6245549 | MJ22: 3.3
P23: 34.1 | Q23: =IFERROR(IF(P23<1,0,ROUND(VLOOKUP($V$14,$B$12:$I$15,5,FALSE)*SQRT($P23)/(PI()*VLOOKUP($DR$14,$MM$6:$MO$11,3,FALSE)^2/4*Q$18),2)),666) -> 666 | R23: 129.65 | S23: 64.82 | T23: 43.22 | U23: 32.41 | V23: 25.93 | W23: 21.61 | X23: 18.52 | Y23: 16.21 | Z23: 14.41 | AA23: 12.96 | AB23: 11.79 | AC23: 10.8 | AD23: 9.97 | AE23: 9.26 | AF23: 8.64 | AG23: 8.1 | AH23: 7.63 | AI23: 7.2 | AJ23: 6.82 | AK23: 6.48 | AL23: 6.17 | AM23: 5.89 | AN23: 5.64 | AO23: 5.4 | AP23: 5.19 | AQ23: 4.99 | AR23: 4.8 | AS23: 4.63 | AT23: 4.47 | AU23: 4.32 | AV23: 4.18 | AW23: 4.05 | AX23: 3.93 | AY23: 3.81 | AZ23: 3.7 | BA23: 3.6 | BB23: 3.5 | BC23: 3.41 | BD23: 3.32 | BE23: 3.24 | BF23: 3.16 | BG23: 3.09 | BH23: 3.02 | BI23: 2.95 | BJ23: 2.88 | BK23: 2.82 | BL23: 2.76 | BM23: 2.7 | BN23: 2.65 | BO23: 2.59 | BP23: 2.54 | BQ23: 2.49 | BR23: 2.45 | BS23: 2.4 | BT23: 2.36 | BU23: 2.32 | BV23: 2.27 | BW23: 2.24 | BX23: 2.2 | BY23: 2.16 | BZ23: 2.13 | CA23: 2.09 | CB23: 2.06 | CC23: =IFERROR(IF(CB23<1,0,ROUND(VLOOKUP($V$14,$B$12:$I$15,5,FALSE)*SQRT($P23)/(PI()*VLOOKUP($DR$14,$MM$6:$MO$11,3,FALSE)^2/4*CC$18),2)),666) -> 2.03 | CD23: 1.99 | CE23: 1.96 | CF23: 1.94 | CG23: 1.91 | CH23: 1.88 | CI23: 1.85 | CJ23: 1.83 | CK23: 1.8 | CL23: 1.78 | CM23: 1.75 | CN23: 1.73 | CO23: 1.71 | CP23: 1.68 | CQ23: 1.66 | CR23: 1.64 | CS23: 1.62 | CT23: 1.6 | CU23: 1.58 | CV23: 1.56 | CW23: 1.54 | CX23: 1.53 | CY23: 1.51 | CZ23: 1.49 | DA23: 1.47 | DB23: 1.46 | DC23: 1.44 | DD23: 1.42 | DE23: 1.41 | DF23: 1.39 | DG23: 1.38 | DH23: 1.36 | DI23: 1.35 | DJ23: 1.34 | DK23: 1.32 | DL23: 1.31 | DM23: 1.3 | DN23: 1.28 | DO23: 1.27 | DP23: 1.26 | DQ23: 1.25 | DR23: 1.23 | DS23: 1.22 | DT23: 1.21 | DU23: 1.2 | DV23: 1.19 | DW23: 1.18 | DX23: 1.17 | DY23: 1.16 | DZ23: 1.15 | EA23: 1.14 | EB23: 1.13 | EC23: 1.12 | ED23: 1.11 | EE23: 1.1 | EF23: 1.09 | EG23: 1.08 | EH23: 1.07 | EI23: 1.06 | EJ23: 1.05 | EK23: 1.05 | EL23: 1.04 | EM23: 1.03 | EN23: 1.02 | EO23: =IFERROR(IF(EN23<1,0,ROUND(VLOOKUP($V$14,$B$12:$I$15,5,FALSE)*SQRT($P23)/(PI()*VLOOKUP($DR$14,$MM$6:$MO$11,3,FALSE)^2/4*EO$18),2)),666) -> 1.01 | EP23: 1.01 | EQ23: 1 | ER23: 0.99 | ES23: 0 | ET23: 0 | EU23: 0 | EV23: 0 | EW23: 0 | EX23: 0 | EY23: 0 | EZ23: 0 | FA23: 0 | FB23: 0 | FC23: 0 | FD23: 0 | FE23: 0 | FF23: 0 | FG23: 0 | FH23: 0 | FI23: 0 | FJ23: 0 | FK23: 0 | FL23: 0 | FM23: 0 | FN23: 0 | FO23: 0 | FP23: 0 | FQ23: 0 | FR23: 0 | FS23: 0 | FT23: 0 | FU23: 0 | FV23: 0 | FW23: 0 | FX23: 0 | FY23: 0 | FZ23: 0 | GA23: 0 | GB23: 0 | GC23: 0 | GD23: 0 | GE23: 0 | GF23: 0 | GG23: 0 | GH23: 0 | GI23: 0 | GJ23: 0 | GK23: 0 | GL23: 0 | GM23: 0 | GN23: 0 | GO23: 0 | GP23: 0 | GQ23: 0 | GR23: 0 | GS23: 0 | GT23: 0 | GU23: 0 | GV23: 0 | GW23: 0 | GX23: 0 | GY23: 0 | GZ23: 0 | HA23: =IFERROR(IF(GZ23<1,0,ROUND(VLOOKUP($V$14,$B$12:$I$15,5,FALSE)*SQRT($P23)/(PI()*VLOOKUP($DR$14,$MM$6:$MO$11,3,FALSE)^2/4*HA$18),2)),666) -> 0 | HB23: 0 | HC23: 0 | HD23: 0 | HE23: 0 | HF23: 0 | HG23: 0 | HH23: 0 | HI23: 0 | HJ23: 0 | HK23: 0 | HL23: 0 | HM23: 0 | HN23: 0 | HO23: 0 | HP23: 0 | HQ23: 0 | HR23: 0 | HS23: 0 | HT23: 0 | HU23: 0 | HV23: 0 | HW23: 0 | HX23: 0 | HY23: 0 | HZ23: 0 | IA23: 0 | IB23: 0 | IC23: 0 | ID23: 0 | IE23: 0 | IF23: 0 | IG23: 0 | IH23: 0 | II23: 0 | IJ23: 0 | IK23: 0 | IL23: 0 | IM23: 0 | IN23: 0 | IO23: 0 | IP23: 0 | IQ23: 0 | IR23: 0 | IS23: 0 | IT23: 0 | IU23: 0 | IV23: 0 | IW23: 0 | IX23: 0 | IY23: 0 | IZ23: 0 | JA23: 0 | JB23: 0 | JC23: 0 | JD23: 0 | JE23: 0 | JF23: 0 | JG23: 0 | JH23: 0 | JI23: 0 | JJ23: 0 | JK23: 0 | JL23: 0 | JM23: =IFERROR(IF(JL23<1,0,ROUND(VLOOKUP($V$14,$B$12:$I$15,5,FALSE)*SQRT($P23)/(PI()*VLOOKUP($DR$14,$MM$6:$MO$11,3,FALSE)^2/4*JM$18),2)),666) -> 0 | JN23: 0 | JO23: 0 | JP23: 0 | JQ23: 0 | JR23: 0 | JS23: 0 | JT23: 0 | JU23: 0 | JV23: 0 | JW23: 0 | JX23: 0 | JY23: 0 | JZ23: 0 | KA23: 0 | KB23: 0 | KC23: 0 | KD23: 0 | KE23: 0 | KF23: 0 | KG23: 0 | KH23: 0 | KI23: 0 | KJ23: 0 | KK23: 0 | KL23: 0 | KM23: 0 | KN23: 0 | KO23: 0 | KP23: 0 | KQ23: 0 | KR23: 0 | KS23: 0 | KT23: 0 | KU23: 0 | KV23: 0 | KW23: 0 | KX23: 0 | KY23: 0 | KZ23: 0 | LA23: 0 | LB23: 0 | LC23: 0 | LD23: 0 | LE23: 0 | LF23: 0 | LG23: 0 | LH23: 0 | LI23: 0 | LJ23: 0 | LK23: 0 | LL23: 0 | LM23: 0 | LN23: 0 | LO23: 0 | LP23: 0 | LQ23: 0 | LR23: 0 | LS23: 0 | LT23: 0 | LU23: 0 | LV23: 0 | LW23: 0 | LX23: 0 | LY23: 0 | MH23: 32.9 | MI23: 477.1741774 | MJ23: 3.29
K24: =IF($HN$16=$MP$6,MH16,IF($HN$16=$MP$7,MI16,MJ16)) -> 33.5 | P24: 34 | Q24: =IFERROR(IF(P24<1,0,ROUND(VLOOKUP($V$14,$B$12:$I$15,5,FALSE)*SQRT($P24)/(PI()*VLOOKUP($DR$14,$MM$6:$MO$11,3,FALSE)^2/4*Q$18),2)),666) -> 666 | R24: 129.46 | S24: 64.73 | T24: 43.15 | U24: 32.36 | V24: 25.89 | W24: 21.58 | X24: 18.49 | Y24: 16.18 | Z24: 14.38 | AA24: 12.95 | AB24: 11.77 | AC24: 10.79 | AD24: 9.96 | AE24: 9.25 | AF24: 8.63 | AG24: 8.09 | AH24: 7.62 | AI24: 7.19 | AJ24: 6.81 | AK24: 6.47 | AL24: 6.16 | AM24: 5.88 | AN24: 5.63 | AO24: 5.39 | AP24: 5.18 | AQ24: 4.98 | AR24: 4.79 | AS24: 4.62 | AT24: 4.46 | AU24: 4.32 | AV24: 4.18 | AW24: 4.05 | AX24: 3.92 | AY24: 3.81 | AZ24: 3.7 | BA24: 3.6 | BB24: 3.5 | BC24: 3.41 | BD24: 3.32 | BE24: 3.24 | BF24: 3.16 | BG24: 3.08 | BH24: 3.01 | BI24: 2.94 | BJ24: 2.88 | BK24: 2.81 | BL24: 2.75 | BM24: 2.7 | BN24: 2.64 | BO24: 2.59 | BP24: 2.54 | BQ24: 2.49 | BR24: 2.44 | BS24: 2.4 | BT24: 2.35 | BU24: 2.31 | BV24: 2.27 | BW24: 2.23 | BX24: 2.19 | BY24: 2.16 | BZ24: 2.12 | CA24: 2.09 | CB24: 2.05 | CC24: =IFERROR(IF(CB24<1,0,ROUND(VLOOKUP($V$14,$B$12:$I$15,5,FALSE)*SQRT($P24)/(PI()*VLOOKUP($DR$14,$MM$6:$MO$11,3,FALSE)^2/4*CC$18),2)),666) -> 2.02 | CD24: 1.99 | CE24: 1.96 | CF24: 1.93 | CG24: 1.9 | CH24: 1.88 | CI24: 1.85 | CJ24: 1.82 | CK24: 1.8 | CL24: 1.77 | CM24: 1.75 | CN24: 1.73 | CO24: 1.7 | CP24: 1.68 | CQ24: 1.66 | CR24: 1.64 | CS24: 1.62 | CT24: 1.6 | CU24: 1.58 | CV24: 1.56 | CW24: 1.54 | CX24: 1.52 | CY24: 1.51 | CZ24: 1.49 | DA24: 1.47 | DB24: 1.45 | DC24: 1.44 | DD24: 1.42 | DE24: 1.41 | DF24: 1.39 | DG24: 1.38 | DH24: 1.36 | DI24: 1.35 | DJ24: 1.33 | DK24: 1.32 | DL24: 1.31 | DM24: 1.29 | DN24: 1.28 | DO24: 1.27 | DP24: 1.26 | DQ24: 1.24 | DR24: 1.23 | DS24: 1.22 | DT24: 1.21 | DU24: 1.2 | DV24: 1.19 | DW24: 1.18 | DX24: 1.17 | DY24: 1.16 | DZ24: 1.15 | EA24: 1.14 | EB24: 1.13 | EC24: 1.12 | ED24: 1.11 | EE24: 1.1 | EF24: 1.09 | EG24: 1.08 | EH24: 1.07 | EI24: 1.06 | EJ24: 1.05 | EK24: 1.04 | EL24: 1.04 | EM24: 1.03 | EN24: 1.02 | EO24: =IFERROR(IF(EN24<1,0,ROUND(VLOOKUP($V$14,$B$12:$I$15,5,FALSE)*SQRT($P24)/(PI()*VLOOKUP($DR$14,$MM$6:$MO$11,3,FALSE)^2/4*EO$18),2)),666) -> 1.01 | EP24: 1 | EQ24: 1 | ER24: 0.99 | ES24: 0 | ET24: 0 | EU24: 0 | EV24: 0 | EW24: 0 | EX24: 0 | EY24: 0 | EZ24: 0 | FA24: 0 | FB24: 0 | FC24: 0 | FD24: 0 | FE24: 0 | FF24: 0 | FG24: 0 | FH24: 0 | FI24: 0 | FJ24: 0 | FK24: 0 | FL24: 0 | FM24: 0 | FN24: 0 | FO24: 0 | FP24: 0 | FQ24: 0 | FR24: 0 | FS24: 0 | FT24: 0 | FU24: 0 | FV24: 0 | FW24: 0 | FX24: 0 | FY24: 0 | FZ24: 0 | GA24: 0 | GB24: 0 | GC24: 0 | GD24: 0 | GE24: 0 | GF24: 0 | GG24: 0 | GH24: 0 | GI24: 0 | GJ24: 0 | GK24: 0 | GL24: 0 | GM24: 0 | GN24: 0 | GO24: 0 | GP24: 0 | GQ24: 0 | GR24: 0 | GS24: 0 | GT24: 0 | GU24: 0 | GV24: 0 | GW24: 0 | GX24: 0 | GY24: 0 | GZ24: 0 | HA24: =IFERROR(IF(GZ24<1,0,ROUND(VLOOKUP($V$14,$B$12:$I$15,5,FALSE)*SQRT($P24)/(PI()*VLOOKUP($DR$14,$MM$6:$MO$11,3,FALSE)^2/4*HA$18),2)),666) -> 0 | HB24: 0 | HC24: 0 | HD24: 0 | HE24: 0 | HF24: 0 | HG24: 0 | HH24: 0 | HI24: 0 | HJ24: 0 | HK24: 0 | HL24: 0 | HM24: 0 | HN24: 0 | HO24: 0 | HP24: 0 | HQ24: 0 | HR24: 0 | HS24: 0 | HT24: 0 | HU24: 0 | HV24: 0 | HW24: 0 | HX24: 0 | HY24: 0 | HZ24: 0 | IA24: 0 | IB24: 0 | IC24: 0 | ID24: 0 | IE24: 0 | IF24: 0 | IG24: 0 | IH24: 0 | II24: 0 | IJ24: 0 | IK24: 0 | IL24: 0 | IM24: 0 | IN24: 0 | IO24: 0 | IP24: 0 | IQ24: 0 | IR24: 0 | IS24: 0 | IT24: 0 | IU24: 0 | IV24: 0 | IW24: 0 | IX24: 0 | IY24: 0 | IZ24: 0 | JA24: 0 | JB24: 0 | JC24: 0 | JD24: 0 | JE24: 0 | JF24: 0 | JG24: 0 | JH24: 0 | JI24: 0 | JJ24: 0 | JK24: 0 | JL24: 0 | JM24: =IFERROR(IF(JL24<1,0,ROUND(VLOOKUP($V$14,$B$12:$I$15,5,FALSE)*SQRT($P24)/(PI()*VLOOKUP($DR$14,$MM$6:$MO$11,3,FALSE)^2/4*JM$18),2)),666) -> 0 | JN24: 0 | JO24: 0 | JP24: 0 | JQ24: 0 | JR24: 0 | JS24: 0 | JT24: 0 | JU24: 0 | JV24: 0 | JW24: 0 | JX24: 0 | JY24: 0 | JZ24: 0 | KA24: 0 | KB24: 0 | KC24: 0 | KD24: 0 | KE24: 0 | KF24: 0 | KG24: 0 | KH24: 0 | KI24: 0 | KJ24: 0 | KK24: 0 | KL24: 0 | KM24: 0 | KN24: 0 | KO24: 0 | KP24: 0 | KQ24: 0 | KR24: 0 | KS24: 0 | KT24: 0 | KU24: 0 | KV24: 0 | KW24: 0 | KX24: 0 | KY24: 0 | KZ24: 0 | LA24: 0 | LB24: 0 | LC24: 0 | LD24: 0 | LE24: 0 | LF24: 0 | LG24: 0 | LH24: 0 | LI24: 0 | LJ24: 0 | LK24: 0 | LL24: 0 | LM24: 0 | LN24: 0 | LO24: 0 | LP24: 0 | LQ24: 0 | LR24: 0 | LS24: 0 | LT24: 0 | LU24: 0 | LV24: 0 | LW24: 0 | LX24: 0 | LY24: 0 | MH24: 32.8 | MI24: 475.7238 | MJ24: 3.28
P25: 33.9 | Q25: =IFERROR(IF(P25<1,0,ROUND(VLOOKUP($V$14,$B$12:$I$15,5,FALSE)*SQRT($P25)/(PI()*VLOOKUP($DR$14,$MM$6:$MO$11,3,FALSE)^2/4*Q$18),2)),666) -> 666 | R25: 129.27 | S25: 64.63 | T25: 43.09 | U25: 32.32 | V25: 25.85 | W25: 21.54 | X25: 18.47 | Y25: 16.16 | Z25: 14.36 | AA25: 12.93 | AB25: 11.75 | AC25: 10.77 | AD25: 9.94 | AE25: 9.23 | AF25: 8.62 | AG25: 8.08 | AH25: 7.6 | AI25: 7.18 | AJ25: 6.8 | AK25: 6.46 | AL25: 6.16 | AM25: 5.88 | AN25: 5.62 | AO25: 5.39 | AP25: 5.17 | AQ25: 4.97 | AR25: 4.79 | AS25: 4.62 | AT25: 4.46 | AU25: 4.31 | AV25: 4.17 | AW25: 4.04 | AX25: 3.92 | AY25: 3.8 | AZ25: 3.69 | BA25: 3.59 | BB25: 3.49 | BC25: 3.4 | BD25: 3.31 | BE25: 3.23 | BF25: 3.15 | BG25: 3.08 | BH25: 3.01 | BI25: 2.94 | BJ25: 2.87 | BK25: 2.81 | BL25: 2.75 | BM25: 2.69 | BN25: 2.64 | BO25: 2.59 | BP25: 2.53 | BQ25: 2.49 | BR25: 2.44 | BS25: 2.39 | BT25: 2.35 | BU25: 2.31 | BV25: 2.27 | BW25: 2.23 | BX25: 2.19 | BY25: 2.15 | BZ25: 2.12 | CA25: 2.08 | CB25: 2.05 | CC25: =IFERROR(IF(CB25<1,0,ROUND(VLOOKUP($V$14,$B$12:$I$15,5,FALSE)*SQRT($P25)/(PI()*VLOOKUP($DR$14,$MM$6:$MO$11,3,FALSE)^2/4*CC$18),2)),666) -> 2.02 | CD25: 1.99 | CE25: 1.96 | CF25: 1.93 | CG25: 1.9 | CH25: 1.87 | CI25: 1.85 | CJ25: 1.82 | CK25: 1.8 | CL25: 1.77 | CM25: 1.75 | CN25: 1.72 | CO25: 1.7 | CP25: 1.68 | CQ25: 1.66 | CR25: 1.64 | CS25: 1.62 | CT25: 1.6 | CU25: 1.58 | CV25: 1.56 | CW25: 1.54 | CX25: 1.52 | CY25: 1.5 | CZ25: 1.49 | DA25: 1.47 | DB25: 1.45 | DC25: 1.44 | DD25: 1.42 | DE25: 1.41 | DF25: 1.39 | DG25: 1.38 | DH25: 1.36 | DI25: 1.35 | DJ25: 1.33 | DK25: 1.32 | DL25: 1.31 | DM25: 1.29 | DN25: 1.28 | DO25: 1.27 | DP25: 1.26 | DQ25: 1.24 | DR25: 1.23 | DS25: 1.22 | DT25: 1.21 | DU25: 1.2 | DV25: 1.19 | DW25: 1.18 | DX25: 1.16 | DY25: 1.15 | DZ25: 1.14 | EA25: 1.13 | EB25: 1.12 | EC25: 1.11 | ED25: 1.1 | EE25: 1.1 | EF25: 1.09 | EG25: 1.08 | EH25: 1.07 | EI25: 1.06 | EJ25: 1.05 | EK25: 1.04 | EL25: 1.03 | EM25: 1.03 | EN25: 1.02 | EO25: =IFERROR(IF(EN25<1,0,ROUND(VLOOKUP($V$14,$B$12:$I$15,5,FALSE)*SQRT($P25)/(PI()*VLOOKUP($DR$14,$MM$6:$MO$11,3,FALSE)^2/4*EO$18),2)),666) -> 1.01 | EP25: 1 | EQ25: 0.99 | ER25: 0 | ES25: 0 | ET25: 0 | EU25: 0 | EV25: 0 | EW25: 0 | EX25: 0 | EY25: 0 | EZ25: 0 | FA25: 0 | FB25: 0 | FC25: 0 | FD25: 0 | FE25: 0 | FF25: 0 | FG25: 0 | FH25: 0 | FI25: 0 | FJ25: 0 | FK25: 0 | FL25: 0 | FM25: 0 | FN25: 0 | FO25: 0 | FP25: 0 | FQ25: 0 | FR25: 0 | FS25: 0 | FT25: 0 | FU25: 0 | FV25: 0 | FW25: 0 | FX25: 0 | FY25: 0 | FZ25: 0 | GA25: 0 | GB25: 0 | GC25: 0 | GD25: 0 | GE25: 0 | GF25: 0 | GG25: 0 | GH25: 0 | GI25: 0 | GJ25: 0 | GK25: 0 | GL25: 0 | GM25: 0 | GN25: 0 | GO25: 0 | GP25: 0 | GQ25: 0 | GR25: 0 | GS25: 0 | GT25: 0 | GU25: 0 | GV25: 0 | GW25: 0 | GX25: 0 | GY25: 0 | GZ25: 0 | HA25: =IFERROR(IF(GZ25<1,0,ROUND(VLOOKUP($V$14,$B$12:$I$15,5,FALSE)*SQRT($P25)/(PI()*VLOOKUP($DR$14,$MM$6:$MO$11,3,FALSE)^2/4*HA$18),2)),666) -> 0 | HB25: 0 | HC25: 0 | HD25: 0 | HE25: 0 | HF25: 0 | HG25: 0 | HH25: 0 | HI25: 0 | HJ25: 0 | HK25: 0 | HL25: 0 | HM25: 0 | HN25: 0 | HO25: 0 | HP25: 0 | HQ25: 0 | HR25: 0 | HS25: 0 | HT25: 0 | HU25: 0 | HV25: 0 | HW25: 0 | HX25: 0 | HY25: 0 | HZ25: 0 | IA25: 0 | IB25: 0 | IC25: 0 | ID25: 0 | IE25: 0 | IF25: 0 | IG25: 0 | IH25: 0 | II25: 0 | IJ25: 0 | IK25: 0 | IL25: 0 | IM25: 0 | IN25: 0 | IO25: 0 | IP25: 0 | IQ25: 0 | IR25: 0 | IS25: 0 | IT25: 0 | IU25: 0 | IV25: 0 | IW25: 0 | IX25: 0 | IY25: 0 | IZ25: 0 | JA25: 0 | JB25: 0 | JC25: 0 | JD25: 0 | JE25: 0 | JF25: 0 | JG25: 0 | JH25: 0 | JI25: 0 | JJ25: 0 | JK25: 0 | JL25: 0 | JM25: =IFERROR(IF(JL25<1,0,ROUND(VLOOKUP($V$14,$B$12:$I$15,5,FALSE)*SQRT($P25)/(PI()*VLOOKUP($DR$14,$MM$6:$MO$11,3,FALSE)^2/4*JM$18),2)),666) -> 0 | JN25: 0 | JO25: 0 | JP25: 0 | JQ25: 0 | JR25: 0 | JS25: 0 | JT25: 0 | JU25: 0 | JV25: 0 | JW25: 0 | JX25: 0 | JY25: 0 | JZ25: 0 | KA25: 0 | KB25: 0 | KC25: 0 | KD25: 0 | KE25: 0 | KF25: 0 | KG25: 0 | KH25: 0 | KI25: 0 | KJ25: 0 | KK25: 0 | KL25: 0 | KM25: 0 | KN25: 0 | KO25: 0 | KP25: 0 | KQ25: 0 | KR25: 0 | KS25: 0 | KT25: 0 | KU25: 0 | KV25: 0 | KW25: 0 | KX25: 0 | KY25: 0 | KZ25: 0 | LA25: 0 | LB25: 0 | LC25: 0 | LD25: 0 | LE25: 0 | LF25: 0 | LG25: 0 | LH25: 0 | LI25: 0 | LJ25: 0 | LK25: 0 | LL25: 0 | LM25: 0 | LN25: 0 | LO25: 0 | LP25: 0 | LQ25: 0 | LR25: 0 | LS25: 0 | LT25: 0 | LU25: 0 | LV25: 0 | LW25: 0 | LX25: 0 | LY25: 0 | MH25: 32.7 | MI25: 474.2734225 | MJ25: 3.27
P26: 33.8 | Q26: =IFERROR(IF(P26<1,0,ROUND(VLOOKUP($V$14,$B$12:$I$15,5,FALSE)*SQRT($P26)/(PI()*VLOOKUP($DR$14,$MM$6:$MO$11,3,FALSE)^2/4*Q$18),2)),666) -> 666 | R26: 129.08 | S26: 64.54 | T26: 43.03 | U26: 32.27 | V26: 25.82 | W26: 21.51 | X26: 18.44 | Y26: 16.13 | Z26: 14.34 | AA26: 12.91 | AB26: 11.73 | AC26: 10.76 | AD26: 9.93 | AE26: 9.22 | AF26: 8.61 | AG26: 8.07 | AH26: 7.59 | AI26: 7.17 | AJ26: 6.79 | AK26: 6.45 | AL26: 6.15 | AM26: 5.87 | AN26: 5.61 | AO26: 5.38 | AP26: 5.16 | AQ26: 4.96 | AR26: 4.78 | AS26: 4.61 | AT26: 4.45 | AU26: 4.3 | AV26: 4.16 | AW26: 4.03 | AX26: 3.91 | AY26: 3.8 | AZ26: 3.69 | BA26: 3.59 | BB26: 3.49 | BC26: 3.4 | BD26: 3.31 | BE26: 3.23 | BF26: 3.15 | BG26: 3.07 | BH26: 3 | BI26: 2.93 | BJ26: 2.87 | BK26: 2.81 | BL26: 2.75 | BM26: 2.69 | BN26: 2.63 | BO26: 2.58 | BP26: 2.53 | BQ26: 2.48 | BR26: 2.44 | BS26: 2.39 | BT26: 2.35 | BU26: 2.3 | BV26: 2.26 | BW26: 2.23 | BX26: 2.19 | BY26: 2.15 | BZ26: 2.12 | CA26: 2.08 | CB26: 2.05 | CC26: =IFERROR(IF(CB26<1,0,ROUND(VLOOKUP($V$14,$B$12:$I$15,5,FALSE)*SQRT($P26)/(PI()*VLOOKUP($DR$14,$MM$6:$MO$11,3,FALSE)^2/4*CC$18),2)),666) -> 2.02 | CD26: 1.99 | CE26: 1.96 | CF26: 1.93 | CG26: 1.9 | CH26: 1.87 | CI26: 1.84 | CJ26: 1.82 | CK26: 1.79 | CL26: 1.77 | CM26: 1.74 | CN26: 1.72 | CO26: 1.7 | CP26: 1.68 | CQ26: 1.65 | CR26: 1.63 | CS26: 1.61 | CT26: 1.59 | CU26: 1.57 | CV26: 1.56 | CW26: 1.54 | CX26: 1.52 | CY26: 1.5 | CZ26: 1.48 | DA26: 1.47 | DB26: 1.45 | DC26: 1.43 | DD26: 1.42 | DE26: 1.4 | DF26: 1.39 | DG26: 1.37 | DH26: 1.36 | DI26: 1.34 | DJ26: 1.33 | DK26: 1.32 | DL26: 1.3 | DM26: 1.29 | DN26: 1.28 | DO26: 1.27 | DP26: 1.25 | DQ26: 1.24 | DR26: 1.23 | DS26: 1.22 | DT26: 1.21 | DU26: 1.2 | DV26: 1.18 | DW26: 1.17 | DX26: 1.16 | DY26: 1.15 | DZ26: 1.14 | EA26: 1.13 | EB26: 1.12 | EC26: 1.11 | ED26: 1.1 | EE26: 1.09 | EF26: 1.08 | EG26: 1.08 | EH26: 1.07 | EI26: 1.06 | EJ26: 1.05 | EK26: 1.04 | EL26: 1.03 | EM26: 1.02 | EN26: 1.02 | EO26: =IFERROR(IF(EN26<1,0,ROUND(VLOOKUP($V$14,$B$12:$I$15,5,FALSE)*SQRT($P26)/(PI()*VLOOKUP($DR$14,$MM$6:$MO$11,3,FALSE)^2/4*EO$18),2)),666) -> 1.01 | EP26: 1 | EQ26: 0.99 | ER26: 0 | ES26: 0 | ET26: 0 | EU26: 0 | EV26: 0 | EW26: 0 | EX26: 0 | EY26: 0 | EZ26: 0 | FA26: 0 | FB26: 0 | FC26: 0 | FD26: 0 | FE26: 0 | FF26: 0 | FG26: 0 | FH26: 0 | FI26: 0 | FJ26: 0 | FK26: 0 | FL26: 0 | FM26: 0 | FN26: 0 | FO26: 0 | FP26: 0 | FQ26: 0 | FR26: 0 | FS26: 0 | FT26: 0 | FU26: 0 | FV26: 0 | FW26: 0 | FX26: 0 | FY26: 0 | FZ26: 0 | GA26: 0 | GB26: 0 | GC26: 0 | GD26: 0 | GE26: 0 | GF26: 0 | GG26: 0 | GH26: 0 | GI26: 0 | GJ26: 0 | GK26: 0 | GL26: 0 | GM26: 0 | GN26: 0 | GO26: 0 | GP26: 0 | GQ26: 0 | GR26: 0 | GS26: 0 | GT26: 0 | GU26: 0 | GV26: 0 | GW26: 0 | GX26: 0 | GY26: 0 | GZ26: 0 | HA26: =IFERROR(IF(GZ26<1,0,ROUND(VLOOKUP($V$14,$B$12:$I$15,5,FALSE)*SQRT($P26)/(PI()*VLOOKUP($DR$14,$MM$6:$MO$11,3,FALSE)^2/4*HA$18),2)),666) -> 0 | HB26: 0 | HC26: 0 | HD26: 0 | HE26: 0 | HF26: 0 | HG26: 0 | HH26: 0 | HI26: 0 | HJ26: 0 | HK26: 0 | HL26: 0 | HM26: 0 | HN26: 0 | HO26: 0 | HP26: 0 | HQ26: 0 | HR26: 0 | HS26: 0 | HT26: 0 | HU26: 0 | HV26: 0 | HW26: 0 | HX26: 0 | HY26: 0 | HZ26: 0 | IA26: 0 | IB26: 0 | IC26: 0 | ID26: 0 | IE26: 0 | IF26: 0 | IG26: 0 | IH26: 0 | II26: 0 | IJ26: 0 | IK26: 0 | IL26: 0 | IM26: 0 | IN26: 0 | IO26: 0 | IP26: 0 | IQ26: 0 | IR26: 0 | IS26: 0 | IT26: 0 | IU26: 0 | IV26: 0 | IW26: 0 | IX26: 0 | IY26: 0 | IZ26: 0 | JA26: 0 | JB26: 0 | JC26: 0 | JD26: 0 | JE26: 0 | JF26: 0 | JG26: 0 | JH26: 0 | JI26: 0 | JJ26: 0 | JK26: 0 | JL26: 0 | JM26: =IFERROR(IF(JL26<1,0,ROUND(VLOOKUP($V$14,$B$12:$I$15,5,FALSE)*SQRT($P26)/(PI()*VLOOKUP($DR$14,$MM$6:$MO$11,3,FALSE)^2/4*JM$18),2)),666) -> 0 | JN26: 0 | JO26: 0 | JP26: 0 | JQ26: 0 | JR26: 0 | JS26: 0 | JT26: 0 | JU26: 0 | JV26: 0 | JW26: 0 | JX26: 0 | JY26: 0 | JZ26: 0 | KA26: 0 | KB26: 0 | KC26: 0 | KD26: 0 | KE26: 0 | KF26: 0 | KG26: 0 | KH26: 0 | KI26: 0 | KJ26: 0 | KK26: 0 | KL26: 0 | KM26: 0 | KN26: 0 | KO26: 0 | KP26: 0 | KQ26: 0 | KR26: 0 | KS26: 0 | KT26: 0 | KU26: 0 | KV26: 0 | KW26: 0 | KX26: 0 | KY26: 0 | KZ26: 0 | LA26: 0 | LB26: 0 | LC26: 0 | LD26: 0 | LE26: 0 | LF26: 0 | LG26: 0 | LH26: 0 | LI26: 0 | LJ26: 0 | LK26: 0 | LL26: 0 | LM26: 0 | LN26: 0 | LO26: 0 | LP26: 0 | LQ26: 0 | LR26: 0 | LS26: 0 | LT26: 0 | LU26: 0 | LV26: 0 | LW26: 0 | LX26: 0 | LY26: 0 | MH26: 32.6 | MI26: 472.8230451 | MJ26: 3.26
P27: 33.7 | Q27: =IFERROR(IF(P27<1,0,ROUND(VLOOKUP($V$14,$B$12:$I$15,5,FALSE)*SQRT($P27)/(PI()*VLOOKUP($DR$14,$MM$6:$MO$11,3,FALSE)^2/4*Q$18),2)),666) -> 666 | R27: 128.89 | S27: 64.44 | T27: 42.96 | U27: 32.22 | V27: 25.78 | W27: 21.48 | X27: 18.41 | Y27: 16.11 | Z27: 14.32 | AA27: 12.89 | AB27: 11.72 | AC27: 10.74 | AD27: 9.91 | AE27: 9.21 | AF27: 8.59 | AG27: 8.06 | AH27: 7.58 | AI27: 7.16 | AJ27: 6.78 | AK27: 6.44 | AL27: 6.14 | AM27: 5.86 | AN27: 5.6 | AO27: 5.37 | AP27: 5.16 | AQ27: 4.96 | AR27: 4.77 | AS27: 4.6 | AT27: 4.44 | AU27: 4.3 | AV27: 4.16 | AW27: 4.03 | AX27: 3.91 | AY27: 3.79 | AZ27: 3.68 | BA27: 3.58 | BB27: 3.48 | BC27: 3.39 | BD27: 3.3 | BE27: 3.22 | BF27: 3.14 | BG27: 3.07 | BH27: 3 | BI27: 2.93 | BJ27: 2.86 | BK27: 2.8 | BL27: 2.74 | BM27: 2.69 | BN27: 2.63 | BO27: 2.58 | BP27: 2.53 | BQ27: 2.48 | BR27: 2.43 | BS27: 2.39 | BT27: 2.34 | BU27: 2.3 | BV27: 2.26 | BW27: 2.22 | BX27: 2.18 | BY27: 2.15 | BZ27: 2.11 | CA27: 2.08 | CB27: 2.05 | CC27: =IFERROR(IF(CB27<1,0,ROUND(VLOOKUP($V$14,$B$12:$I$15,5,FALSE)*SQRT($P27)/(PI()*VLOOKUP($DR$14,$MM$6:$MO$11,3,FALSE)^2/4*CC$18),2)),666) -> 2.01 | CD27: 1.98 | CE27: 1.95 | CF27: 1.92 | CG27: 1.9 | CH27: 1.87 | CI27: 1.84 | CJ27: 1.82 | CK27: 1.79 | CL27: 1.77 | CM27: 1.74 | CN27: 1.72 | CO27: 1.7 | CP27: 1.67 | CQ27: 1.65 | CR27: 1.63 | CS27: 1.61 | CT27: 1.59 | CU27: 1.57 | CV27: 1.55 | CW27: 1.53 | CX27: 1.52 | CY27: 1.5 | CZ27: 1.48 | DA27: 1.46 | DB27: 1.45 | DC27: 1.43 | DD27: 1.42 | DE27: 1.4 | DF27: 1.39 | DG27: 1.37 | DH27: 1.36 | DI27: 1.34 | DJ27: 1.33 | DK27: 1.32 | DL27: 1.3 | DM27: 1.29 | DN27: 1.28 | DO27: 1.26 | DP27: 1.25 | DQ27: 1.24 | DR27: 1.23 | DS27: 1.22 | DT27: 1.2 | DU27: 1.19 | DV27: 1.18 | DW27: 1.17 | DX27: 1.16 | DY27: 1.15 | DZ27: 1.14 | EA27: 1.13 | EB27: 1.12 | EC27: 1.11 | ED27: 1.1 | EE27: 1.09 | EF27: 1.08 | EG27: 1.07 | EH27: 1.07 | EI27: 1.06 | EJ27: 1.05 | EK27: 1.04 | EL27: 1.03 | EM27: 1.02 | EN27: 1.01 | EO27: =IFERROR(IF(EN27<1,0,ROUND(VLOOKUP($V$14,$B$12:$I$15,5,FALSE)*SQRT($P27)/(PI()*VLOOKUP($DR$14,$MM$6:$MO$11,3,FALSE)^2/4*EO$18),2)),666) -> 1.01 | EP27: 1 | EQ27: 0.99 | ER27: 0 | ES27: 0 | ET27: 0 | EU27: 0 | EV27: 0 | EW27: 0 | EX27: 0 | EY27: 0 | EZ27: 0 | FA27: 0 | FB27: 0 | FC27: 0 | FD27: 0 | FE27: 0 | FF27: 0 | FG27: 0 | FH27: 0 | FI27: 0 | FJ27: 0 | FK27: 0 | FL27: 0 | FM27: 0 | FN27: 0 | FO27: 0 | FP27: 0 | FQ27: 0 | FR27: 0 | FS27: 0 | FT27: 0 | FU27: 0 | FV27: 0 | FW27: 0 | FX27: 0 | FY27: 0 | FZ27: 0 | GA27: 0 | GB27: 0 | GC27: 0 | GD27: 0 | GE27: 0 | GF27: 0 | GG27: 0 | GH27: 0 | GI27: 0 | GJ27: 0 | GK27: 0 | GL27: 0 | GM27: 0 | GN27: 0 | GO27: 0 | GP27: 0 | GQ27: 0 | GR27: 0 | GS27: 0 | GT27: 0 | GU27: 0 | GV27: 0 | GW27: 0 | GX27: 0 | GY27: 0 | GZ27: 0 | HA27: =IFERROR(IF(GZ27<1,0,ROUND(VLOOKUP($V$14,$B$12:$I$15,5,FALSE)*SQRT($P27)/(PI()*VLOOKUP($DR$14,$MM$6:$MO$11,3,FALSE)^2/4*HA$18),2)),666) -> 0 | HB27: 0 | HC27: 0 | HD27: 0 | HE27: 0 | HF27: 0 | HG27: 0 | HH27: 0 | HI27: 0 | HJ27: 0 | HK27: 0 | HL27: 0 | HM27: 0 | HN27: 0 | HO27: 0 | HP27: 0 | HQ27: 0 | HR27: 0 | HS27: 0 | HT27: 0 | HU27: 0 | HV27: 0 | HW27: 0 | HX27: 0 | HY27: 0 | HZ27: 0 | IA27: 0 | IB27: 0 | IC27: 0 | ID27: 0 | IE27: 0 | IF27: 0 | IG27: 0 | IH27: 0 | II27: 0 | IJ27: 0 | IK27: 0 | IL27: 0 | IM27: 0 | IN27: 0 | IO27: 0 | IP27: 0 | IQ27: 0 | IR27: 0 | IS27: 0 | IT27: 0 | IU27: 0 | IV27: 0 | IW27: 0 | IX27: 0 | IY27: 0 | IZ27: 0 | JA27: 0 | JB27: 0 | JC27: 0 | JD27: 0 | JE27: 0 | JF27: 0 | JG27: 0 | JH27: 0 | JI27: 0 | JJ27: 0 | JK27: 0 | JL27: 0 | JM27: =IFERROR(IF(JL27<1,0,ROUND(VLOOKUP($V$14,$B$12:$I$15,5,FALSE)*SQRT($P27)/(PI()*VLOOKUP($DR$14,$MM$6:$MO$11,3,FALSE)^2/4*JM$18),2)),666) -> 0 | JN27: 0 | JO27: 0 | JP27: 0 | JQ27: 0 | JR27: 0 | JS27: 0 | JT27: 0 | JU27: 0 | JV27: 0 | JW27: 0 | JX27: 0 | JY27: 0 | JZ27: 0 | KA27: 0 | KB27: 0 | KC27: 0 | KD27: 0 | KE27: 0 | KF27: 0 | KG27: 0 | KH27: 0 | KI27: 0 | KJ27: 0 | KK27: 0 | KL27: 0 | KM27: 0 | KN27: 0 | KO27: 0 | KP27: 0 | KQ27: 0 | KR27: 0 | KS27: 0 | KT27: 0 | KU27: 0 | KV27: 0 | KW27: 0 | KX27: 0 | KY27: 0 | KZ27: 0 | LA27: 0 | LB27: 0 | LC27: 0 | LD27: 0 | LE27: 0 | LF27: 0 | LG27: 0 | LH27: 0 | LI27: 0 | LJ27: 0 | LK27: 0 | LL27: 0 | LM27: 0 | LN27: 0 | LO27: 0 | LP27: 0 | LQ27: 0 | LR27: 0 | LS27: 0 | LT27: 0 | LU27: 0 | LV27: 0 | LW27: 0 | LX27: 0 | LY27: 0 | MH27: 32.5 | MI27: 471.3726677 | MJ27: 3.25
P28: 33.6 | Q28: =IFERROR(IF(P28<1,0,ROUND(VLOOKUP($V$14,$B$12:$I$15,5,FALSE)*SQRT($P28)/(PI()*VLOOKUP($DR$14,$MM$6:$MO$11,3,FALSE)^2/4*Q$18),2)),666) -> 666 | R28: 128.7 | S28: 64.35 | T28: 42.9 | U28: 32.17 | V28: 25.74 | W28: 21.45 | X28: 18.39 | Y28: 16.09 | Z28: 14.3 | AA28: 12.87 | AB28: 11.7 | AC28: 10.72 | AD28: 9.9 | AE28: 9.19 | AF28: 8.58 | AG28: 8.04 | AH28: 7.57 | AI28: 7.15 | AJ28: 6.77 | AK28: 6.43 | AL28: 6.13 | AM28: 5.85 | AN28: 5.6 | AO28: 5.36 | AP28: 5.15 | AQ28: 4.95 | AR28: 4.77 | AS28: 4.6 | AT28: 4.44 | AU28: 4.29 | AV28: 4.15 | AW28: 4.02 | AX28: 3.9 | AY28: 3.79 | AZ28: 3.68 | BA28: 3.57 | BB28: 3.48 | BC28: 3.39 | BD28: 3.3 | BE28: 3.22 | BF28: 3.14 | BG28: 3.06 | BH28: 2.99 | BI28: 2.92 | BJ28: 2.86 | BK28: 2.8 | BL28: 2.74 | BM28: 2.68 | BN28: 2.63 | BO28: 2.57 | BP28: 2.52 | BQ28: 2.47 | BR28: 2.43 | BS28: 2.38 | BT28: 2.34 | BU28: 2.3 | BV28: 2.26 | BW28: 2.22 | BX28: 2.18 | BY28: 2.14 | BZ28: 2.11 | CA28: 2.08 | CB28: 2.04 | CC28: =IFERROR(IF(CB28<1,0,ROUND(VLOOKUP($V$14,$B$12:$I$15,5,FALSE)*SQRT($P28)/(PI()*VLOOKUP($DR$14,$MM$6:$MO$11,3,FALSE)^2/4*CC$18),2)),666) -> 2.01 | CD28: 1.98 | CE28: 1.95 | CF28: 1.92 | CG28: 1.89 | CH28: 1.87 | CI28: 1.84 | CJ28: 1.81 | CK28: 1.79 | CL28: 1.76 | CM28: 1.74 | CN28: 1.72 | CO28: 1.69 | CP28: 1.67 | CQ28: 1.65 | CR28: 1.63 | CS28: 1.61 | CT28: 1.59 | CU28: 1.57 | CV28: 1.55 | CW28: 1.53 | CX28: 1.51 | CY28: 1.5 | CZ28: 1.48 | DA28: 1.46 | DB28: 1.45 | DC28: 1.43 | DD28: 1.41 | DE28: 1.4 | DF28: 1.38 | DG28: 1.37 | DH28: 1.35 | DI28: 1.34 | DJ28: 1.33 | DK28: 1.31 | DL28: 1.3 | DM28: 1.29 | DN28: 1.27 | DO28: 1.26 | DP28: 1.25 | DQ28: 1.24 | DR28: 1.23 | DS28: 1.21 | DT28: 1.2 | DU28: 1.19 | DV28: 1.18 | DW28: 1.17 | DX28: 1.16 | DY28: 1.15 | DZ28: 1.14 | EA28: 1.13 | EB28: 1.12 | EC28: 1.11 | ED28: 1.1 | EE28: 1.09 | EF28: 1.08 | EG28: 1.07 | EH28: 1.06 | EI28: 1.05 | EJ28: 1.05 | EK28: 1.04 | EL28: 1.03 | EM28: 1.02 | EN28: 1.01 | EO28: =IFERROR(IF(EN28<1,0,ROUND(VLOOKUP($V$14,$B$12:$I$15,5,FALSE)*SQRT($P28)/(PI()*VLOOKUP($DR$14,$MM$6:$MO$11,3,FALSE)^2/4*EO$18),2)),666) -> 1.01 | EP28: 1 | EQ28: 0.99 | ER28: 0 | ES28: 0 | ET28: 0 | EU28: 0 | EV28: 0 | EW28: 0 | EX28: 0 | EY28: 0 | EZ28: 0 | FA28: 0 | FB28: 0 | FC28: 0 | FD28: 0 | FE28: 0 | FF28: 0 | FG28: 0 | FH28: 0 | FI28: 0 | FJ28: 0 | FK28: 0 | FL28: 0 | FM28: 0 | FN28: 0 | FO28: 0 | FP28: 0 | FQ28: 0 | FR28: 0 | FS28: 0 | FT28: 0 | FU28: 0 | FV28: 0 | FW28: 0 | FX28: 0 | FY28: 0 | FZ28: 0 | GA28: 0 | GB28: 0 | GC28: 0 | GD28: 0 | GE28: 0 | GF28: 0 | GG28: 0 | GH28: 0 | GI28: 0 | GJ28: 0 | GK28: 0 | GL28: 0 | GM28: 0 | GN28: 0 | GO28: 0 | GP28: 0 | GQ28: 0 | GR28: 0 | GS28: 0 | GT28: 0 | GU28: 0 | GV28: 0 | GW28: 0 | GX28: 0 | GY28: 0 | GZ28: 0 | HA28: =IFERROR(IF(GZ28<1,0,ROUND(VLOOKUP($V$14,$B$12:$I$15,5,FALSE)*SQRT($P28)/(PI()*VLOOKUP($DR$14,$MM$6:$MO$11,3,FALSE)^2/4*HA$18),2)),666) -> 0 | HB28: 0 | HC28: 0 | HD28: 0 | HE28: 0 | HF28: 0 | HG28: 0 | HH28: 0 | HI28: 0 | HJ28: 0 | HK28: 0 | HL28: 0 | HM28: 0 | HN28: 0 | HO28: 0 | HP28: 0 | HQ28: 0 | HR28: 0 | HS28: 0 | HT28: 0 | HU28: 0 | HV28: 0 | HW28: 0 | HX28: 0 | HY28: 0 | HZ28: 0 | IA28: 0 | IB28: 0 | IC28: 0 | ID28: 0 | IE28: 0 | IF28: 0 | IG28: 0 | IH28: 0 | II28: 0 | IJ28: 0 | IK28: 0 | IL28: 0 | IM28: 0 | IN28: 0 | IO28: 0 | IP28: 0 | IQ28: 0 | IR28: 0 | IS28: 0 | IT28: 0 | IU28: 0 | IV28: 0 | IW28: 0 | IX28: 0 | IY28: 0 | IZ28: 0 | JA28: 0 | JB28: 0 | JC28: 0 | JD28: 0 | JE28: 0 | JF28: 0 | JG28: 0 | JH28: 0 | JI28: 0 | JJ28: 0 | JK28: 0 | JL28: 0 | JM28: =IFERROR(IF(JL28<1,0,ROUND(VLOOKUP($V$14,$B$12:$I$15,5,FALSE)*SQRT($P28)/(PI()*VLOOKUP($DR$14,$MM$6:$MO$11,3,FALSE)^2/4*JM$18),2)),666) -> 0 | JN28: 0 | JO28: 0 | JP28: 0 | JQ28: 0 | JR28: 0 | JS28: 0 | JT28: 0 | JU28: 0 | JV28: 0 | JW28: 0 | JX28: 0 | JY28: 0 | JZ28: 0 | KA28: 0 | KB28: 0 | KC28: 0 | KD28: 0 | KE28: 0 | KF28: 0 | KG28: 0 | KH28: 0 | KI28: 0 | KJ28: 0 | KK28: 0 | KL28: 0 | KM28: 0 | KN28: 0 | KO28: 0 | KP28: 0 | KQ28: 0 | KR28: 0 | KS28: 0 | KT28: 0 | KU28: 0 | KV28: 0 | KW28: 0 | KX28: 0 | KY28: 0 | KZ28: 0 | LA28: 0 | LB28: 0 | LC28: 0 | LD28: 0 | LE28: 0 | LF28: 0 | LG28: 0 | LH28: 0 | LI28: 0 | LJ28: 0 | LK28: 0 | LL28: 0 | LM28: 0 | LN28: 0 | LO28: 0 | LP28: 0 | LQ28: 0 | LR28: 0 | LS28: 0 | LT28: 0 | LU28: 0 | LV28: 0 | LW28: 0 | LX28: 0 | LY28: 0 | MH28: 32.4 | MI28: 469.9222902 | MJ28: 3.24
P29: 33.5 | Q29: =IFERROR(IF(P29<1,0,ROUND(VLOOKUP($V$14,$B$12:$I$15,5,FALSE)*SQRT($P29)/(PI()*VLOOKUP($DR$14,$MM$6:$MO$11,3,FALSE)^2/4*Q$18),2)),666) -> 666 | R29: 128.5 | S29: 64.25 | T29: 42.83 | U29: 32.13 | V29: 25.7 | W29: 21.42 | X29: 18.36 | Y29: 16.06 | Z29: 14.28 | AA29: 12.85 | AB29: 11.68 | AC29: 10.71 | AD29: 9.88 | AE29: 9.18 | AF29: 8.57 | AG29: 8.03 | AH29: 7.56 | AI29: 7.14 | AJ29: 6.76 | AK29: 6.43 | AL29: 6.12 | AM29: 5.84 | AN29: 5.59 | AO29: 5.35 | AP29: 5.14 | AQ29: 4.94 | AR29: 4.76 | AS29: 4.59 | AT29: 4.43 | AU29: 4.28 | AV29: 4.15 | AW29: 4.02 | AX29: 3.89 | AY29: 3.78 | AZ29: 3.67 | BA29: 3.57 | BB29: 3.47 | BC29: 3.38 | BD29: 3.29 | BE29: 3.21 | BF29: 3.13 | BG29: 3.06 | BH29: 2.99 | BI29: 2.92 | BJ29: 2.86 | BK29: 2.79 | BL29: 2.73 | BM29: 2.68 | BN29: 2.62 | BO29: 2.57 | BP29: 2.52 | BQ29: 2.47 | BR29: 2.42 | BS29: 2.38 | BT29: 2.34 | BU29: 2.29 | BV29: 2.25 | BW29: 2.22 | BX29: 2.18 | BY29: 2.14 | BZ29: 2.11 | CA29: 2.07 | CB29: 2.04 | CC29: =IFERROR(IF(CB29<1,0,ROUND(VLOOKUP($V$14,$B$12:$I$15,5,FALSE)*SQRT($P29)/(PI()*VLOOKUP($DR$14,$MM$6:$MO$11,3,FALSE)^2/4*CC$18),2)),666) -> 2.01 | CD29: 1.98 | CE29: 1.95 | CF29: 1.92 | CG29: 1.89 | CH29: 1.86 | CI29: 1.84 | CJ29: 1.81 | CK29: 1.78 | CL29: 1.76 | CM29: 1.74 | CN29: 1.71 | CO29: 1.69 | CP29: 1.67 | CQ29: 1.65 | CR29: 1.63 | CS29: 1.61 | CT29: 1.59 | CU29: 1.57 | CV29: 1.55 | CW29: 1.53 | CX29: 1.51 | CY29: 1.49 | CZ29: 1.48 | DA29: 1.46 | DB29: 1.44 | DC29: 1.43 | DD29: 1.41 | DE29: 1.4 | DF29: 1.38 | DG29: 1.37 | DH29: 1.35 | DI29: 1.34 | DJ29: 1.32 | DK29: 1.31 | DL29: 1.3 | DM29: 1.29 | DN29: 1.27 | DO29: 1.26 | DP29: 1.25 | DQ29: 1.24 | DR29: 1.22 | DS29: 1.21 | DT29: 1.2 | DU29: 1.19 | DV29: 1.18 | DW29: 1.17 | DX29: 1.16 | DY29: 1.15 | DZ29: 1.14 | EA29: 1.13 | EB29: 1.12 | EC29: 1.11 | ED29: 1.1 | EE29: 1.09 | EF29: 1.08 | EG29: 1.07 | EH29: 1.06 | EI29: 1.05 | EJ29: 1.04 | EK29: 1.04 | EL29: 1.03 | EM29: 1.02 | EN29: 1.01 | EO29: =IFERROR(IF(EN29<1,0,ROUND(VLOOKUP($V$14,$B$12:$I$15,5,FALSE)*SQRT($P29)/(PI()*VLOOKUP($DR$14,$MM$6:$MO$11,3,FALSE)^2/4*EO$18),2)),666) -> 1 | EP29: 1 | EQ29: 0.99 | ER29: 0 | ES29: 0 | ET29: 0 | EU29: 0 | EV29: 0 | EW29: 0 | EX29: 0 | EY29: 0 | EZ29: 0 | FA29: 0 | FB29: 0 | FC29: 0 | FD29: 0 | FE29: 0 | FF29: 0 | FG29: 0 | FH29: 0 | FI29: 0 | FJ29: 0 | FK29: 0 | FL29: 0 | FM29: 0 | FN29: 0 | FO29: 0 | FP29: 0 | FQ29: 0 | FR29: 0 | FS29: 0 | FT29: 0 | FU29: 0 | FV29: 0 | FW29: 0 | FX29: 0 | FY29: 0 | FZ29: 0 | GA29: 0 | GB29: 0 | GC29: 0 | GD29: 0 | GE29: 0 | GF29: 0 | GG29: 0 | GH29: 0 | GI29: 0 | GJ29: 0 | GK29: 0 | GL29: 0 | GM29: 0 | GN29: 0 | GO29: 0 | GP29: 0 | GQ29: 0 | GR29: 0 | GS29: 0 | GT29: 0 | GU29: 0 | GV29: 0 | GW29: 0 | GX29: 0 | GY29: 0 | GZ29: 0 | HA29: =IFERROR(IF(GZ29<1,0,ROUND(VLOOKUP($V$14,$B$12:$I$15,5,FALSE)*SQRT($P29)/(PI()*VLOOKUP($DR$14,$MM$6:$MO$11,3,FALSE)^2/4*HA$18),2)),666) -> 0 | HB29: 0 | HC29: 0 | HD29: 0 | HE29: 0 | HF29: 0 | HG29: 0 | HH29: 0 | HI29: 0 | HJ29: 0 | HK29: 0 | HL29: 0 | HM29: 0 | HN29: 0 | HO29: 0 | HP29: 0 | HQ29: 0 | HR29: 0 | HS29: 0 | HT29: 0 | HU29: 0 | HV29: 0 | HW29: 0 | HX29: 0 | HY29: 0 | HZ29: 0 | IA29: 0 | IB29: 0 | IC29: 0 | ID29: 0 | IE29: 0 | IF29: 0 | IG29: 0 | IH29: 0 | II29: 0 | IJ29: 0 | IK29: 0 | IL29: 0 | IM29: 0 | IN29: 0 | IO29: 0 | IP29: 0 | IQ29: 0 | IR29: 0 | IS29: 0 | IT29: 0 | IU29: 0 | IV29: 0 | IW29: 0 | IX29: 0 | IY29: 0 | IZ29: 0 | JA29: 0 | JB29: 0 | JC29: 0 | JD29: 0 | JE29: 0 | JF29: 0 | JG29: 0 | JH29: 0 | JI29: 0 | JJ29: 0 | JK29: 0 | JL29: 0 | JM29: =IFERROR(IF(JL29<1,0,ROUND(VLOOKUP($V$14,$B$12:$I$15,5,FALSE)*SQRT($P29)/(PI()*VLOOKUP($DR$14,$MM$6:$MO$11,3,FALSE)^2/4*JM$18),2)),666) -> 0 | JN29: 0 | JO29: 0 | JP29: 0 | JQ29: 0 | JR29: 0 | JS29: 0 | JT29: 0 | JU29: 0 | JV29: 0 | JW29: 0 | JX29: 0 | JY29: 0 | JZ29: 0 | KA29: 0 | KB29: 0 | KC29: 0 | KD29: 0 | KE29: 0 | KF29: 0 | KG29: 0 | KH29: 0 | KI29: 0 | KJ29: 0 | KK29: 0 | KL29: 0 | KM29: 0 | KN29: 0 | KO29: 0 | KP29: 0 | KQ29: 0 | KR29: 0 | KS29: 0 | KT29: 0 | KU29: 0 | KV29: 0 | KW29: 0 | KX29: 0 | KY29: 0 | KZ29: 0 | LA29: 0 | LB29: 0 | LC29: 0 | LD29: 0 | LE29: 0 | LF29: 0 | LG29: 0 | LH29: 0 | LI29: 0 | LJ29: 0 | LK29: 0 | LL29: 0 | LM29: 0 | LN29: 0 | LO29: 0 | LP29: 0 | LQ29: 0 | LR29: 0 | LS29: 0 | LT29: 0 | LU29: 0 | LV29: 0 | LW29: 0 | LX29: 0 | LY29: 0 | MH29: 32.3 | MI29: 468.4719128 | MJ29: 3.23
P30: 33.4 | Q30: =IFERROR(IF(P30<1,0,ROUND(VLOOKUP($V$14,$B$12:$I$15,5,FALSE)*SQRT($P30)/(PI()*VLOOKUP($DR$14,$MM$6:$MO$11,3,FALSE)^2/4*Q$18),2)),666) -> 666 | R30: 128.31 | S30: 64.16 | T30: 42.77 | U30: 32.08 | V30: 25.66 | W30: 21.39 | X30: 18.33 | Y30: 16.04 | Z30: 14.26 | AA30: 12.83 | AB30: 11.66 | AC30: 10.69 | AD30: 9.87 | AE30: 9.17 | AF30: 8.55 | AG30: 8.02 | AH30: 7.55 | AI30: 7.13 | AJ30: 6.75 | AK30: 6.42 | AL30: 6.11 | AM30: 5.83 | AN30: 5.58 | AO30: 5.35 | AP30: 5.13 | AQ30: 4.94 | AR30: 4.75 | AS30: 4.58 | AT30: 4.42 | AU30: 4.28 | AV30: 4.14 | AW30: 4.01 | AX30: 3.89 | AY30: 3.77 | AZ30: 3.67 | BA30: 3.56 | BB30: 3.47 | BC30: 3.38 | BD30: 3.29 | BE30: 3.21 | BF30: 3.13 | BG30: 3.06 | BH30: 2.98 | BI30: 2.92 | BJ30: 2.85 | BK30: 2.79 | BL30: 2.73 | BM30: 2.67 | BN30: 2.62 | BO30: 2.57 | BP30: 2.52 | BQ30: 2.47 | BR30: 2.42 | BS30: 2.38 | BT30: 2.33 | BU30: 2.29 | BV30: 2.25 | BW30: 2.21 | BX30: 2.17 | BY30: 2.14 | BZ30: 2.1 | CA30: 2.07 | CB30: 2.04 | CC30: =IFERROR(IF(CB30<1,0,ROUND(VLOOKUP($V$14,$B$12:$I$15,5,FALSE)*SQRT($P30)/(PI()*VLOOKUP($DR$14,$MM$6:$MO$11,3,FALSE)^2/4*CC$18),2)),666) -> 2 | CD30: 1.97 | CE30: 1.94 | CF30: 1.92 | CG30: 1.89 | CH30: 1.86 | CI30: 1.83 | CJ30: 1.81 | CK30: 1.78 | CL30: 1.76 | CM30: 1.73 | CN30: 1.71 | CO30: 1.69 | CP30: 1.67 | CQ30: 1.65 | CR30: 1.62 | CS30: 1.6 | CT30: 1.58 | CU30: 1.56 | CV30: 1.55 | CW30: 1.53 | CX30: 1.51 | CY30: 1.49 | CZ30: 1.47 | DA30: 1.46 | DB30: 1.44 | DC30: 1.43 | DD30: 1.41 | DE30: 1.39 | DF30: 1.38 | DG30: 1.37 | DH30: 1.35 | DI30: 1.34 | DJ30: 1.32 | DK30: 1.31 | DL30: 1.3 | DM30: 1.28 | DN30: 1.27 | DO30: 1.26 | DP30: 1.25 | DQ30: 1.23 | DR30: 1.22 | DS30: 1.21 | DT30: 1.2 | DU30: 1.19 | DV30: 1.18 | DW30: 1.17 | DX30: 1.16 | DY30: 1.15 | DZ30: 1.14 | EA30: 1.13 | EB30: 1.12 | EC30: 1.11 | ED30: 1.1 | EE30: 1.09 | EF30: 1.08 | EG30: 1.07 | EH30: 1.06 | EI30: 1.05 | EJ30: 1.04 | EK30: 1.03 | EL30: 1.03 | EM30: 1.02 | EN30: 1.01 | EO30: =IFERROR(IF(EN30<1,0,ROUND(VLOOKUP($V$14,$B$12:$I$15,5,FALSE)*SQRT($P30)/(PI()*VLOOKUP($DR$14,$MM$6:$MO$11,3,FALSE)^2/4*EO$18),2)),666) -> 1 | EP30: 0.99 | EQ30: 0 | ER30: 0 | ES30: 0 | ET30: 0 | EU30: 0 | EV30: 0 | EW30: 0 | EX30: 0 | EY30: 0 | EZ30: 0 | FA30: 0 | FB30: 0 | FC30: 0 | FD30: 0 | FE30: 0 | FF30: 0 | FG30: 0 | FH30: 0 | FI30: 0 | FJ30: 0 | FK30: 0 | FL30: 0 | FM30: 0 | FN30: 0 | FO30: 0 | FP30: 0 | FQ30: 0 | FR30: 0 | FS30: 0 | FT30: 0 | FU30: 0 | FV30: 0 | FW30: 0 | FX30: 0 | FY30: 0 | FZ30: 0 | GA30: 0 | GB30: 0 | GC30: 0 | GD30: 0 | GE30: 0 | GF30: 0 | GG30: 0 | GH30: 0 | GI30: 0 | GJ30: 0 | GK30: 0 | GL30: 0 | GM30: 0 | GN30: 0 | GO30: 0 | GP30: 0 | GQ30: 0 | GR30: 0 | GS30: 0 | GT30: 0 | GU30: 0 | GV30: 0 | GW30: 0 | GX30: 0 | GY30: 0 | GZ30: 0 | HA30: =IFERROR(IF(GZ30<1,0,ROUND(VLOOKUP($V$14,$B$12:$I$15,5,FALSE)*SQRT($P30)/(PI()*VLOOKUP($DR$14,$MM$6:$MO$11,3,FALSE)^2/4*HA$18),2)),666) -> 0 | HB30: 0 | HC30: 0 | HD30: 0 | HE30: 0 | HF30: 0 | HG30: 0 | HH30: 0 | HI30: 0 | HJ30: 0 | HK30: 0 | HL30: 0 | HM30: 0 | HN30: 0 | HO30: 0 | HP30: 0 | HQ30: 0 | HR30: 0 | HS30: 0 | HT30: 0 | HU30: 0 | HV30: 0 | HW30: 0 | HX30: 0 | HY30: 0 | HZ30: 0 | IA30: 0 | IB30: 0 | IC30: 0 | ID30: 0 | IE30: 0 | IF30: 0 | IG30: 0 | IH30: 0 | II30: 0 | IJ30: 0 | IK30: 0 | IL30: 0 | IM30: 0 | IN30: 0 | IO30: 0 | IP30: 0 | IQ30: 0 | IR30: 0 | IS30: 0 | IT30: 0 | IU30: 0 | IV30: 0 | IW30: 0 | IX30: 0 | IY30: 0 | IZ30: 0 | JA30: 0 | JB30: 0 | JC30: 0 | JD30: 0 | JE30: 0 | JF30: 0 | JG30: 0 | JH30: 0 | JI30: 0 | JJ30: 0 | JK30: 0 | JL30: 0 | JM30: =IFERROR(IF(JL30<1,0,ROUND(VLOOKUP($V$14,$B$12:$I$15,5,FALSE)*SQRT($P30)/(PI()*VLOOKUP($DR$14,$MM$6:$MO$11,3,FALSE)^2/4*JM$18),2)),666) -> 0 | JN30: 0 | JO30: 0 | JP30: 0 | JQ30: 0 | JR30: 0 | JS30: 0 | JT30: 0 | JU30: 0 | JV30: 0 | JW30: 0 | JX30: 0 | JY30: 0 | JZ30: 0 | KA30: 0 | KB30: 0 | KC30: 0 | KD30: 0 | KE30: 0 | KF30: 0 | KG30: 0 | KH30: 0 | KI30: 0 | KJ30: 0 | KK30: 0 | KL30: 0 | KM30: 0 | KN30: 0 | KO30: 0 | KP30: 0 | KQ30: 0 | KR30: 0 | KS30: 0 | KT30: 0 | KU30: 0 | KV30: 0 | KW30: 0 | KX30: 0 | KY30: 0 | KZ30: 0 | LA30: 0 | LB30: 0 | LC30: 0 | LD30: 0 | LE30: 0 | LF30: 0 | LG30: 0 | LH30: 0 | LI30: 0 | LJ30: 0 | LK30: 0 | LL30: 0 | LM30: 0 | LN30: 0 | LO30: 0 | LP30: 0 | LQ30: 0 | LR30: 0 | LS30: 0 | LT30: 0 | LU30: 0 | LV30: 0 | LW30: 0 | LX30: 0 | LY30: 0 | MH30: 32.2 | MI30: 467.0215353 | MJ30: 3.22
P31: 33.3 | Q31: =IFERROR(IF(P31<1,0,ROUND(VLOOKUP($V$14,$B$12:$I$15,5,FALSE)*SQRT($P31)/(PI()*VLOOKUP($DR$14,$MM$6:$MO$11,3,FALSE)^2/4*Q$18),2)),666) -> 666 | R31: 128.12 | S31: 64.06 | T31: 42.71 | U31: 32.03 | V31: 25.62 | W31: 21.35 | X31: 18.3 | Y31: 16.02 | Z31: 14.24 | AA31: 12.81 | AB31: 11.65 | AC31: 10.68 | AD31: 9.86 | AE31: 9.15 | AF31: 8.54 | AG31: 8.01 | AH31: 7.54 | AI31: 7.12 | AJ31: 6.74 | AK31: 6.41 | AL31: 6.1 | AM31: 5.82 | AN31: 5.57 | AO31: 5.34 | AP31: 5.12 | AQ31: 4.93 | AR31: 4.75 | AS31: 4.58 | AT31: 4.42 | AU31: 4.27 | AV31: 4.13 | AW31: 4 | AX31: 3.88 | AY31: 3.77 | AZ31: 3.66 | BA31: 3.56 | BB31: 3.46 | BC31: 3.37 | BD31: 3.29 | BE31: 3.2 | BF31: 3.12 | BG31: 3.05 | BH31: 2.98 | BI31: 2.91 | BJ31: 2.85 | BK31: 2.79 | BL31: 2.73 | BM31: 2.67 | BN31: 2.61 | BO31: 2.56 | BP31: 2.51 | BQ31: 2.46 | BR31: 2.42 | BS31: 2.37 | BT31: 2.33 | BU31: 2.29 | BV31: 2.25 | BW31: 2.21 | BX31: 2.17 | BY31: 2.14 | BZ31: 2.1 | CA31: 2.07 | CB31: 2.03 | CC31: =IFERROR(IF(CB31<1,0,ROUND(VLOOKUP($V$14,$B$12:$I$15,5,FALSE)*SQRT($P31)/(PI()*VLOOKUP($DR$14,$MM$6:$MO$11,3,FALSE)^2/4*CC$18),2)),666) -> 2 | CD31: 1.97 | CE31: 1.94 | CF31: 1.91 | CG31: 1.88 | CH31: 1.86 | CI31: 1.83 | CJ31: 1.8 | CK31: 1.78 | CL31: 1.76 | CM31: 1.73 | CN31: 1.71 | CO31: 1.69 | CP31: 1.66 | CQ31: 1.64 | CR31: 1.62 | CS31: 1.6 | CT31: 1.58 | CU31: 1.56 | CV31: 1.54 | CW31: 1.53 | CX31: 1.51 | CY31: 1.49 | CZ31: 1.47 | DA31: 1.46 | DB31: 1.44 | DC31: 1.42 | DD31: 1.41 | DE31: 1.39 | DF31: 1.38 | DG31: 1.36 | DH31: 1.35 | DI31: 1.33 | DJ31: 1.32 | DK31: 1.31 | DL31: 1.29 | DM31: 1.28 | DN31: 1.27 | DO31: 1.26 | DP31: 1.24 | DQ31: 1.23 | DR31: 1.22 | DS31: 1.21 | DT31: 1.2 | DU31: 1.19 | DV31: 1.18 | DW31: 1.16 | DX31: 1.15 | DY31: 1.14 | DZ31: 1.13 | EA31: 1.12 | EB31: 1.11 | EC31: 1.1 | ED31: 1.1 | EE31: 1.09 | EF31: 1.08 | EG31: 1.07 | EH31: 1.06 | EI31: 1.05 | EJ31: 1.04 | EK31: 1.03 | EL31: 1.02 | EM31: 1.02 | EN31: 1.01 | EO31: =IFERROR(IF(EN31<1,0,ROUND(VLOOKUP($V$14,$B$12:$I$15,5,FALSE)*SQRT($P31)/(PI()*VLOOKUP($DR$14,$MM$6:$MO$11,3,FALSE)^2/4*EO$18),2)),666) -> 1 | EP31: 0.99 | EQ31: 0 | ER31: 0 | ES31: 0 | ET31: 0 | EU31: 0 | EV31: 0 | EW31: 0 | EX31: 0 | EY31: 0 | EZ31: 0 | FA31: 0 | FB31: 0 | FC31: 0 | FD31: 0 | FE31: 0 | FF31: 0 | FG31: 0 | FH31: 0 | FI31: 0 | FJ31: 0 | FK31: 0 | FL31: 0 | FM31: 0 | FN31: 0 | FO31: 0 | FP31: 0 | FQ31: 0 | FR31: 0 | FS31: 0 | FT31: 0 | FU31: 0 | FV31: 0 | FW31: 0 | FX31: 0 | FY31: 0 | FZ31: 0 | GA31: 0 | GB31: 0 | GC31: 0 | GD31: 0 | GE31: 0 | GF31: 0 | GG31: 0 | GH31: 0 | GI31: 0 | GJ31: 0 | GK31: 0 | GL31: 0 | GM31: 0 | GN31: 0 | GO31: 0 | GP31: 0 | GQ31: 0 | GR31: 0 | GS31: 0 | GT31: 0 | GU31: 0 | GV31: 0 | GW31: 0 | GX31: 0 | GY31: 0 | GZ31: 0 | HA31: =IFERROR(IF(GZ31<1,0,ROUND(VLOOKUP($V$14,$B$12:$I$15,5,FALSE)*SQRT($P31)/(PI()*VLOOKUP($DR$14,$MM$6:$MO$11,3,FALSE)^2/4*HA$18),2)),666) -> 0 | HB31: 0 | HC31: 0 | HD31: 0 | HE31: 0 | HF31: 0 | HG31: 0 | HH31: 0 | HI31: 0 | HJ31: 0 | HK31: 0 | HL31: 0 | HM31: 0 | HN31: 0 | HO31: 0 | HP31: 0 | HQ31: 0 | HR31: 0 | HS31: 0 | HT31: 0 | HU31: 0 | HV31: 0 | HW31: 0 | HX31: 0 | HY31: 0 | HZ31: 0 | IA31: 0 | IB31: 0 | IC31: 0 | ID31: 0 | IE31: 0 | IF31: 0 | IG31: 0 | IH31: 0 | II31: 0 | IJ31: 0 | IK31: 0 | IL31: 0 | IM31: 0 | IN31: 0 | IO31: 0 | IP31: 0 | IQ31: 0 | IR31: 0 | IS31: 0 | IT31: 0 | IU31: 0 | IV31: 0 | IW31: 0 | IX31: 0 | IY31: 0 | IZ31: 0 | JA31: 0 | JB31: 0 | JC31: 0 | JD31: 0 | JE31: 0 | JF31: 0 | JG31: 0 | JH31: 0 | JI31: 0 | JJ31: 0 | JK31: 0 | JL31: 0 | JM31: =IFERROR(IF(JL31<1,0,ROUND(VLOOKUP($V$14,$B$12:$I$15,5,FALSE)*SQRT($P31)/(PI()*VLOOKUP($DR$14,$MM$6:$MO$11,3,FALSE)^2/4*JM$18),2)),666) -> 0 | JN31: 0 | JO31: 0 | JP31: 0 | JQ31: 0 | JR31: 0 | JS31: 0 | JT31: 0 | JU31: 0 | JV31: 0 | JW31: 0 | JX31: 0 | JY31: 0 | JZ31: 0 | KA31: 0 | KB31: 0 | KC31: 0 | KD31: 0 | KE31: 0 | KF31: 0 | KG31: 0 | KH31: 0 | KI31: 0 | KJ31: 0 | KK31: 0 | KL31: 0 | KM31: 0 | KN31: 0 | KO31: 0 | KP31: 0 | KQ31: 0 | KR31: 0 | KS31: 0 | KT31: 0 | KU31: 0 | KV31: 0 | KW31: 0 | KX31: 0 | KY31: 0 | KZ31: 0 | LA31: 0 | LB31: 0 | LC31: 0 | LD31: 0 | LE31: 0 | LF31: 0 | LG31: 0 | LH31: 0 | LI31: 0 | LJ31: 0 | LK31: 0 | LL31: 0 | LM31: 0 | LN31: 0 | LO31: 0 | LP31: 0 | LQ31: 0 | LR31: 0 | LS31: 0 | LT31: 0 | LU31: 0 | LV31: 0 | LW31: 0 | LX31: 0 | LY31: 0 | MH31: 32.1 | MI31: 465.5711579 | MJ31: 3.21
P32: 33.2 | Q32: =IFERROR(IF(P32<1,0,ROUND(VLOOKUP($V$14,$B$12:$I$15,5,FALSE)*SQRT($P32)/(PI()*VLOOKUP($DR$14,$MM$6:$MO$11,3,FALSE)^2/4*Q$18),2)),666) -> 666 | R32: 127.93 | S32: 63.96 | T32: 42.64 | U32: 31.98 | V32: 25.59 | W32: 21.32 | X32: 18.28 | Y32: 15.99 | Z32: 14.21 | AA32: 12.79 | AB32: 11.63 | AC32: 10.66 | AD32: 9.84 | AE32: 9.14 | AF32: 8.53 | AG32: 8 | AH32: 7.53 | AI32: 7.11 | AJ32: 6.73 | AK32: 6.4 | AL32: 6.09 | AM32: 5.81 | AN32: 5.56 | AO32: 5.33 | AP32: 5.12 | AQ32: 4.92 | AR32: 4.74 | AS32: 4.57 | AT32: 4.41 | AU32: 4.26 | AV32: 4.13 | AW32: 4 | AX32: 3.88 | AY32: 3.76 | AZ32: 3.66 | BA32: 3.55 | BB32: 3.46 | BC32: 3.37 | BD32: 3.28 | BE32: 3.2 | BF32: 3.12 | BG32: 3.05 | BH32: 2.98 | BI32: 2.91 | BJ32: 2.84 | BK32: 2.78 | BL32: 2.72 | BM32: 2.67 | BN32: 2.61 | BO32: 2.56 | BP32: 2.51 | BQ32: 2.46 | BR32: 2.41 | BS32: 2.37 | BT32: 2.33 | BU32: 2.28 | BV32: 2.24 | BW32: 2.21 | BX32: 2.17 | BY32: 2.13 | BZ32: 2.1 | CA32: 2.06 | CB32: 2.03 | CC32: =IFERROR(IF(CB32<1,0,ROUND(VLOOKUP($V$14,$B$12:$I$15,5,FALSE)*SQRT($P32)/(PI()*VLOOKUP($DR$14,$MM$6:$MO$11,3,FALSE)^2/4*CC$18),2)),666) -> 2 | CD32: 1.97 | CE32: 1.94 | CF32: 1.91 | CG32: 1.88 | CH32: 1.85 | CI32: 1.83 | CJ32: 1.8 | CK32: 1.78 | CL32: 1.75 | CM32: 1.73 | CN32: 1.71 | CO32: 1.68 | CP32: 1.66 | CQ32: 1.64 | CR32: 1.62 | CS32: 1.6 | CT32: 1.58 | CU32: 1.56 | CV32: 1.54 | CW32: 1.52 | CX32: 1.51 | CY32: 1.49 | CZ32: 1.47 | DA32: 1.45 | DB32: 1.44 | DC32: 1.42 | DD32: 1.41 | DE32: 1.39 | DF32: 1.38 | DG32: 1.36 | DH32: 1.35 | DI32: 1.33 | DJ32: 1.32 | DK32: 1.31 | DL32: 1.29 | DM32: 1.28 | DN32: 1.27 | DO32: 1.25 | DP32: 1.24 | DQ32: 1.23 | DR32: 1.22 | DS32: 1.21 | DT32: 1.2 | DU32: 1.18 | DV32: 1.17 | DW32: 1.16 | DX32: 1.15 | DY32: 1.14 | DZ32: 1.13 | EA32: 1.12 | EB32: 1.11 | EC32: 1.1 | ED32: 1.09 | EE32: 1.08 | EF32: 1.08 | EG32: 1.07 | EH32: 1.06 | EI32: 1.05 | EJ32: 1.04 | EK32: 1.03 | EL32: 1.02 | EM32: 1.02 | EN32: 1.01 | EO32: =IFERROR(IF(EN32<1,0,ROUND(VLOOKUP($V$14,$B$12:$I$15,5,FALSE)*SQRT($P32)/(PI()*VLOOKUP($DR$14,$MM$6:$MO$11,3,FALSE)^2/4*EO$18),2)),666) -> 1 | EP32: 0.99 | EQ32: 0 | ER32: 0 | ES32: 0 | ET32: 0 | EU32: 0 | EV32: 0 | EW32: 0 | EX32: 0 | EY32: 0 | EZ32: 0 | FA32: 0 | FB32: 0 | FC32: 0 | FD32: 0 | FE32: 0 | FF32: 0 | FG32: 0 | FH32: 0 | FI32: 0 | FJ32: 0 | FK32: 0 | FL32: 0 | FM32: 0 | FN32: 0 | FO32: 0 | FP32: 0 | FQ32: 0 | FR32: 0 | FS32: 0 | FT32: 0 | FU32: 0 | FV32: 0 | FW32: 0 | FX32: 0 | FY32: 0 | FZ32: 0 | GA32: 0 | GB32: 0 | GC32: 0 | GD32: 0 | GE32: 0 | GF32: 0 | GG32: 0 | GH32: 0 | GI32: 0 | GJ32: 0 | GK32: 0 | GL32: 0 | GM32: 0 | GN32: 0 | GO32: 0 | GP32: 0 | GQ32: 0 | GR32: 0 | GS32: 0 | GT32: 0 | GU32: 0 | GV32: 0 | GW32: 0 | GX32: 0 | GY32: 0 | GZ32: 0 | HA32: =IFERROR(IF(GZ32<1,0,ROUND(VLOOKUP($V$14,$B$12:$I$15,5,FALSE)*SQRT($P32)/(PI()*VLOOKUP($DR$14,$MM$6:$MO$11,3,FALSE)^2/4*HA$18),2)),666) -> 0 | HB32: 0 | HC32: 0 | HD32: 0 | HE32: 0 | HF32: 0 | HG32: 0 | HH32: 0 | HI32: 0 | HJ32: 0 | HK32: 0 | HL32: 0 | HM32: 0 | HN32: 0 | HO32: 0 | HP32: 0 | HQ32: 0 | HR32: 0 | HS32: 0 | HT32: 0 | HU32: 0 | HV32: 0 | HW32: 0 | HX32: 0 | HY32: 0 | HZ32: 0 | IA32: 0 | IB32: 0 | IC32: 0 | ID32: 0 | IE32: 0 | IF32: 0 | IG32: 0 | IH32: 0 | II32: 0 | IJ32: 0 | IK32: 0 | IL32: 0 | IM32: 0 | IN32: 0 | IO32: 0 | IP32: 0 | IQ32: 0 | IR32: 0 | IS32: 0 | IT32: 0 | IU32: 0 | IV32: 0 | IW32: 0 | IX32: 0 | IY32: 0 | IZ32: 0 | JA32: 0 | JB32: 0 | JC32: 0 | JD32: 0 | JE32: 0 | JF32: 0 | JG32: 0 | JH32: 0 | JI32: 0 | JJ32: 0 | JK32: 0 | JL32: 0 | JM32: =IFERROR(IF(JL32<1,0,ROUND(VLOOKUP($V$14,$B$12:$I$15,5,FALSE)*SQRT($P32)/(PI()*VLOOKUP($DR$14,$MM$6:$MO$11,3,FALSE)^2/4*JM$18),2)),666) -> 0 | JN32: 0 | JO32: 0 | JP32: 0 | JQ32: 0 | JR32: 0 | JS32: 0 | JT32: 0 | JU32: 0 | JV32: 0 | JW32: 0 | JX32: 0 | JY32: 0 | JZ32: 0 | KA32: 0 | KB32: 0 | KC32: 0 | KD32: 0 | KE32: 0 | KF32: 0 | KG32: 0 | KH32: 0 | KI32: 0 | KJ32: 0 | KK32: 0 | KL32: 0 | KM32: 0 | KN32: 0 | KO32: 0 | KP32: 0 | KQ32: 0 | KR32: 0 | KS32: 0 | KT32: 0 | KU32: 0 | KV32: 0 | KW32: 0 | KX32: 0 | KY32: 0 | KZ32: 0 | LA32: 0 | LB32: 0 | LC32: 0 | LD32: 0 | LE32: 0 | LF32: 0 | LG32: 0 | LH32: 0 | LI32: 0 | LJ32: 0 | LK32: 0 | LL32: 0 | LM32: 0 | LN32: 0 | LO32: 0 | LP32: 0 | LQ32: 0 | LR32: 0 | LS32: 0 | LT32: 0 | LU32: 0 | LV32: 0 | LW32: 0 | LX32: 0 | LY32: 0 | MH32: 32 | MI32: 464.1207805 | MJ32: 3.2
P33: 33.1 | Q33: =IFERROR(IF(P33<1,0,ROUND(VLOOKUP($V$14,$B$12:$I$15,5,FALSE)*SQRT($P33)/(PI()*VLOOKUP($DR$14,$MM$6:$MO$11,3,FALSE)^2/4*Q$18),2)),666) -> 666 | R33: 127.73 | S33: 63.87 | T33: 42.58 | U33: 31.93 | V33: 25.55 | W33: 21.29 | X33: 18.25 | Y33: 15.97 | Z33: 14.19 | AA33: 12.77 | AB33: 11.61 | AC33: 10.64 | AD33: 9.83 | AE33: 9.12 | AF33: 8.52 | AG33: 7.98 | AH33: 7.51 | AI33: 7.1 | AJ33: 6.72 | AK33: 6.39 | AL33: 6.08 | AM33: 5.81 | AN33: 5.55 | AO33: 5.32 | AP33: 5.11 | AQ33: 4.91 | AR33: 4.73 | AS33: 4.56 | AT33: 4.4 | AU33: 4.26 | AV33: 4.12 | AW33: 3.99 | AX33: 3.87 | AY33: 3.76 | AZ33: 3.65 | BA33: 3.55 | BB33: 3.45 | BC33: 3.36 | BD33: 3.28 | BE33: 3.19 | BF33: 3.12 | BG33: 3.04 | BH33: 2.97 | BI33: 2.9 | BJ33: 2.84 | BK33: 2.78 | BL33: 2.72 | BM33: 2.66 | BN33: 2.61 | BO33: 2.55 | BP33: 2.5 | BQ33: 2.46 | BR33: 2.41 | BS33: 2.37 | BT33: 2.32 | BU33: 2.28 | BV33: 2.24 | BW33: 2.2 | BX33: 2.16 | BY33: 2.13 | BZ33: 2.09 | CA33: 2.06 | CB33: 2.03 | CC33: =IFERROR(IF(CB33<1,0,ROUND(VLOOKUP($V$14,$B$12:$I$15,5,FALSE)*SQRT($P33)/(PI()*VLOOKUP($DR$14,$MM$6:$MO$11,3,FALSE)^2/4*CC$18),2)),666) -> 2 | CD33: 1.97 | CE33: 1.94 | CF33: 1.91 | CG33: 1.88 | CH33: 1.85 | CI33: 1.82 | CJ33: 1.8 | CK33: 1.77 | CL33: 1.75 | CM33: 1.73 | CN33: 1.7 | CO33: 1.68 | CP33: 1.66 | CQ33: 1.64 | CR33: 1.62 | CS33: 1.6 | CT33: 1.58 | CU33: 1.56 | CV33: 1.54 | CW33: 1.52 | CX33: 1.5 | CY33: 1.49 | CZ33: 1.47 | DA33: 1.45 | DB33: 1.44 | DC33: 1.42 | DD33: 1.4 | DE33: 1.39 | DF33: 1.37 | DG33: 1.36 | DH33: 1.34 | DI33: 1.33 | DJ33: 1.32 | DK33: 1.3 | DL33: 1.29 | DM33: 1.28 | DN33: 1.26 | DO33: 1.25 | DP33: 1.24 | DQ33: 1.23 | DR33: 1.22 | DS33: 1.21 | DT33: 1.19 | DU33: 1.18 | DV33: 1.17 | DW33: 1.16 | DX33: 1.15 | DY33: 1.14 | DZ33: 1.13 | EA33: 1.12 | EB33: 1.11 | EC33: 1.1 | ED33: 1.09 | EE33: 1.08 | EF33: 1.07 | EG33: 1.06 | EH33: 1.06 | EI33: 1.05 | EJ33: 1.04 | EK33: 1.03 | EL33: 1.02 | EM33: 1.01 | EN33: 1.01 | EO33: =IFERROR(IF(EN33<1,0,ROUND(VLOOKUP($V$14,$B$12:$I$15,5,FALSE)*SQRT($P33)/(PI()*VLOOKUP($DR$14,$MM$6:$MO$11,3,FALSE)^2/4*EO$18),2)),666) -> 1 | EP33: 0.99 | EQ33: 0 | ER33: 0 | ES33: 0 | ET33: 0 | EU33: 0 | EV33: 0 | EW33: 0 | EX33: 0 | EY33: 0 | EZ33: 0 | FA33: 0 | FB33: 0 | FC33: 0 | FD33: 0 | FE33: 0 | FF33: 0 | FG33: 0 | FH33: 0 | FI33: 0 | FJ33: 0 | FK33: 0 | FL33: 0 | FM33: 0 | FN33: 0 | FO33: 0 | FP33: 0 | FQ33: 0 | FR33: 0 | FS33: 0 | FT33: 0 | FU33: 0 | FV33: 0 | FW33: 0 | FX33: 0 | FY33: 0 | FZ33: 0 | GA33: 0 | GB33: 0 | GC33: 0 | GD33: 0 | GE33: 0 | GF33: 0 | GG33: 0 | GH33: 0 | GI33: 0 | GJ33: 0 | GK33: 0 | GL33: 0 | GM33: 0 | GN33: 0 | GO33: 0 | GP33: 0 | GQ33: 0 | GR33: 0 | GS33: 0 | GT33: 0 | GU33: 0 | GV33: 0 | GW33: 0 | GX33: 0 | GY33: 0 | GZ33: 0 | HA33: =IFERROR(IF(GZ33<1,0,ROUND(VLOOKUP($V$14,$B$12:$I$15,5,FALSE)*SQRT($P33)/(PI()*VLOOKUP($DR$14,$MM$6:$MO$11,3,FALSE)^2/4*HA$18),2)),666) -> 0 | HB33: 0 | HC33: 0 | HD33: 0 | HE33: 0 | HF33: 0 | HG33: 0 | HH33: 0 | HI33: 0 | HJ33: 0 | HK33: 0 | HL33: 0 | HM33: 0 | HN33: 0 | HO33: 0 | HP33: 0 | HQ33: 0 | HR33: 0 | HS33: 0 | HT33: 0 | HU33: 0 | HV33: 0 | HW33: 0 | HX33: 0 | HY33: 0 | HZ33: 0 | IA33: 0 | IB33: 0 | IC33: 0 | ID33: 0 | IE33: 0 | IF33: 0 | IG33: 0 | IH33: 0 | II33: 0 | IJ33: 0 | IK33: 0 | IL33: 0 | IM33: 0 | IN33: 0 | IO33: 0 | IP33: 0 | IQ33: 0 | IR33: 0 | IS33: 0 | IT33: 0 | IU33: 0 | IV33: 0 | IW33: 0 | IX33: 0 | IY33: 0 | IZ33: 0 | JA33: 0 | JB33: 0 | JC33: 0 | JD33: 0 | JE33: 0 | JF33: 0 | JG33: 0 | JH33: 0 | JI33: 0 | JJ33: 0 | JK33: 0 | JL33: 0 | JM33: =IFERROR(IF(JL33<1,0,ROUND(VLOOKUP($V$14,$B$12:$I$15,5,FALSE)*SQRT($P33)/(PI()*VLOOKUP($DR$14,$MM$6:$MO$11,3,FALSE)^2/4*JM$18),2)),666) -> 0 | JN33: 0 | JO33: 0 | JP33: 0 | JQ33: 0 | JR33: 0 | JS33: 0 | JT33: 0 | JU33: 0 | JV33: 0 | JW33: 0 | JX33: 0 | JY33: 0 | JZ33: 0 | KA33: 0 | KB33: 0 | KC33: 0 | KD33: 0 | KE33: 0 | KF33: 0 | KG33: 0 | KH33: 0 | KI33: 0 | KJ33: 0 | KK33: 0 | KL33: 0 | KM33: 0 | KN33: 0 | KO33: 0 | KP33: 0 | KQ33: 0 | KR33: 0 | KS33: 0 | KT33: 0 | KU33: 0 | KV33: 0 | KW33: 0 | KX33: 0 | KY33: 0 | KZ33: 0 | LA33: 0 | LB33: 0 | LC33: 0 | LD33: 0 | LE33: 0 | LF33: 0 | LG33: 0 | LH33: 0 | LI33: 0 | LJ33: 0 | LK33: 0 | LL33: 0 | LM33: 0 | LN33: 0 | LO33: 0 | LP33: 0 | LQ33: 0 | LR33: 0 | LS33: 0 | LT33: 0 | LU33: 0 | LV33: 0 | LW33: 0 | LX33: 0 | LY33: 0 | MH33: 31.9 | MI33: 462.670403 | MJ33: 3.19
K34: =IF($HN$16=$MP$6,MH27,IF($HN$16=$MP$7,MI27,MJ27)) -> 32.5 | P34: 33 | Q34: =IFERROR(IF(P34<1,0,ROUND(VLOOKUP($V$14,$B$12:$I$15,5,FALSE)*SQRT($P34)/(PI()*VLOOKUP($DR$14,$MM$6:$MO$11,3,FALSE)^2/4*Q$18),2)),666) -> 666 | R34: 127.54 | S34: 63.77 | T34: 42.51 | U34: 31.89 | V34: 25.51 | W34: 21.26 | X34: 18.22 | Y34: 15.94 | Z34: 14.17 | AA34: 12.75 | AB34: 11.59 | AC34: 10.63 | AD34: 9.81 | AE34: 9.11 | AF34: 8.5 | AG34: 7.97 | AH34: 7.5 | AI34: 7.09 | AJ34: 6.71 | AK34: 6.38 | AL34: 6.07 | AM34: 5.8 | AN34: 5.55 | AO34: 5.31 | AP34: 5.1 | AQ34: 4.91 | AR34: 4.72 | AS34: 4.56 | AT34: 4.4 | AU34: 4.25 | AV34: 4.11 | AW34: 3.99 | AX34: 3.86 | AY34: 3.75 | AZ34: 3.64 | BA34: 3.54 | BB34: 3.45 | BC34: 3.36 | BD34: 3.27 | BE34: 3.19 | BF34: 3.11 | BG34: 3.04 | BH34: 2.97 | BI34: 2.9 | BJ34: 2.83 | BK34: 2.77 | BL34: 2.71 | BM34: 2.66 | BN34: 2.6 | BO34: 2.55 | BP34: 2.5 | BQ34: 2.45 | BR34: 2.41 | BS34: 2.36 | BT34: 2.32 | BU34: 2.28 | BV34: 2.24 | BW34: 2.2 | BX34: 2.16 | BY34: 2.13 | BZ34: 2.09 | CA34: 2.06 | CB34: 2.02 | CC34: =IFERROR(IF(CB34<1,0,ROUND(VLOOKUP($V$14,$B$12:$I$15,5,FALSE)*SQRT($P34)/(PI()*VLOOKUP($DR$14,$MM$6:$MO$11,3,FALSE)^2/4*CC$18),2)),666) -> 1.99 | CD34: 1.96 | CE34: 1.93 | CF34: 1.9 | CG34: 1.88 | CH34: 1.85 | CI34: 1.82 | CJ34: 1.8 | CK34: 1.77 | CL34: 1.75 | CM34: 1.72 | CN34: 1.7 | CO34: 1.68 | CP34: 1.66 | CQ34: 1.64 | CR34: 1.61 | CS34: 1.59 | CT34: 1.57 | CU34: 1.56 | CV34: 1.54 | CW34: 1.52 | CX34: 1.5 | CY34: 1.48 | CZ34: =IFERROR(IF(CY34<1,0,ROUND(VLOOKUP($V$14,$B$12:$I$15,5,FALSE)*SQRT($P34)/(PI()*VLOOKUP($DR$14,$MM$6:$MO$11,3,FALSE)^2/4*CZ$18),2)),666) -> 1.47 | DA34: 1.45 | DB34: 1.43 | DC34: 1.42 | DD34: 1.4 | DE34: 1.39 | DF34: 1.37 | DG34: 1.36 | DH34: 1.34 | DI34: 1.33 | DJ34: 1.31 | DK34: 1.3 | DL34: 1.29 | DM34: 1.28 | DN34: 1.26 | DO34: 1.25 | DP34: 1.24 | DQ34: 1.23 | DR34: 1.21 | DS34: 1.2 | DT34: 1.19 | DU34: 1.18 | DV34: 1.17 | DW34: 1.16 | DX34: 1.15 | DY34: 1.14 | DZ34: 1.13 | EA34: 1.12 | EB34: 1.11 | EC34: 1.1 | ED34: 1.09 | EE34: 1.08 | EF34: 1.07 | EG34: 1.06 | EH34: 1.05 | EI34: 1.05 | EJ34: 1.04 | EK34: 1.03 | EL34: 1.02 | EM34: 1.01 | EN34: 1 | EO34: =IFERROR(IF(EN34<1,0,ROUND(VLOOKUP($V$14,$B$12:$I$15,5,FALSE)*SQRT($P34)/(PI()*VLOOKUP($DR$14,$MM$6:$MO$11,3,FALSE)^2/4*EO$18),2)),666) -> 1 | EP34: 0.99 | EQ34: 0 | ER34: 0 | ES34: 0 | ET34: 0 | EU34: 0 | EV34: 0 | EW34: 0 | EX34: 0 | EY34: 0 | EZ34: 0 | FA34: 0 | FB34: 0 | FC34: 0 | FD34: 0 | FE34: 0 | FF34: 0 | FG34: 0 | FH34: 0 | FI34: 0 | FJ34: 0 | FK34: 0 | FL34: 0 | FM34: 0 | FN34: 0 | FO34: 0 | FP34: 0 | FQ34: 0 | FR34: 0 | FS34: 0 | FT34: 0 | FU34: 0 | FV34: 0 | FW34: 0 | FX34: 0 | FY34: 0 | FZ34: 0 | GA34: 0 | GB34: 0 | GC34: 0 | GD34: 0 | GE34: 0 | GF34: 0 | GG34: 0 | GH34: 0 | GI34: 0 | GJ34: 0 | GK34: 0 | GL34: 0 | GM34: 0 | GN34: 0 | GO34: 0 | GP34: 0 | GQ34: 0 | GR34: 0 | GS34: 0 | GT34: 0 | GU34: 0 | GV34: 0 | GW34: 0 | GX34: 0 | GY34: 0 | GZ34: 0 | HA34: =IFERROR(IF(GZ34<1,0,ROUND(VLOOKUP($V$14,$B$12:$I$15,5,FALSE)*SQRT($P34)/(PI()*VLOOKUP($DR$14,$MM$6:$MO$11,3,FALSE)^2/4*HA$18),2)),666) -> 0 | HB34: 0 | HC34: 0 | HD34: 0 | HE34: 0 | HF34: 0 | HG34: 0 | HH34: 0 | HI34: 0 | HJ34: 0 | HK34: 0 | HL34: 0 | HM34: 0 | HN34: 0 | HO34: 0 | HP34: 0 | HQ34: 0 | HR34: 0 | HS34: 0 | HT34: 0 | HU34: 0 | HV34: 0 | HW34: 0 | HX34: 0 | HY34: 0 | HZ34: 0 | IA34: 0 | IB34: 0 | IC34: 0 | ID34: 0 | IE34: 0 | IF34: 0 | IG34: 0 | IH34: 0 | II34: 0 | IJ34: 0 | IK34: 0 | IL34: 0 | IM34: 0 | IN34: 0 | IO34: 0 | IP34: 0 | IQ34: 0 | IR34: 0 | IS34: 0 | IT34: 0 | IU34: 0 | IV34: 0 | IW34: 0 | IX34: 0 | IY34: 0 | IZ34: 0 | JA34: 0 | JB34: 0 | JC34: 0 | JD34: 0 | JE34: 0 | JF34: 0 | JG34: 0 | JH34: 0 | JI34: 0 | JJ34: 0 | JK34: 0 | JL34: 0 | JM34: =IFERROR(IF(JL34<1,0,ROUND(VLOOKUP($V$14,$B$12:$I$15,5,FALSE)*SQRT($P34)/(PI()*VLOOKUP($DR$14,$MM$6:$MO$11,3,FALSE)^2/4*JM$18),2)),666) -> 0 | JN34: 0 | JO34: 0 | JP34: 0 | JQ34: 0 | JR34: 0 | JS34: 0 | JT34: 0 | JU34: 0 | JV34: 0 | JW34: 0 | JX34: 0 | JY34: 0 | JZ34: 0 | KA34: 0 | KB34: 0 | KC34: 0 | KD34: 0 | KE34: 0 | KF34: 0 | KG34: 0 | KH34: 0 | KI34: 0 | KJ34: 0 | KK34: 0 | KL34: 0 | KM34: 0 | KN34: 0 | KO34: 0 | KP34: 0 | KQ34: 0 | KR34: 0 | KS34: 0 | KT34: 0 | KU34: 0 | KV34: 0 | KW34: 0 | KX34: 0 | KY34: 0 | KZ34: 0 | LA34: 0 | LB34: 0 | LC34: 0 | LD34: 0 | LE34: 0 | LF34: 0 | LG34: 0 | LH34: 0 | LI34: 0 | LJ34: 0 | LK34: 0 | LL34: 0 | LM34: 0 | LN34: 0 | LO34: 0 | LP34: 0 | LQ34: 0 | LR34: 0 | LS34: 0 | LT34: 0 | LU34: 0 | LV34: 0 | LW34: 0 | LX34: 0 | LY34: 0 | MH34: 31.8 | MI34: 461.2200256 | MJ34: 3.18
P35: 32.9 | Q35: =IFERROR(IF(P35<1,0,ROUND(VLOOKUP($V$14,$B$12:$I$15,5,FALSE)*SQRT($P35)/(PI()*VLOOKUP($DR$14,$MM$6:$MO$11,3,FALSE)^2/4*Q$18),2)),666) -> 666 | R35: 127.35 | S35: 63.67 | T35: 42.45 | U35: 31.84 | V35: 25.47 | W35: 21.22 | X35: 18.19 | Y35: 15.92 | Z35: 14.15 | AA35: 12.73 | AB35: 11.58 | AC35: 10.61 | AD35: 9.8 | AE35: 9.1 | AF35: 8.49 | AG35: 7.96 | AH35: 7.49 | AI35: 7.07 | AJ35: 6.7 | AK35: 6.37 | AL35: 6.06 | AM35: 5.79 | AN35: 5.54 | AO35: 5.31 | AP35: 5.09 | AQ35: 4.9 | AR35: 4.72 | AS35: 4.55 | AT35: 4.39 | AU35: 4.24 | AV35: 4.11 | AW35: 3.98 | AX35: 3.86 | AY35: 3.75 | AZ35: 3.64 | BA35: 3.54 | BB35: 3.44 | BC35: 3.35 | BD35: 3.27 | BE35: 3.18 | BF35: 3.11 | BG35: 3.03 | BH35: 2.96 | BI35: 2.89 | BJ35: 2.83 | BK35: 2.77 | BL35: 2.71 | BM35: 2.65 | BN35: 2.6 | BO35: 2.55 | BP35: 2.5 | BQ35: 2.45 | BR35: 2.4 | BS35: 2.36 | BT35: 2.32 | BU35: 2.27 | BV35: 2.23 | BW35: 2.2 | BX35: 2.16 | BY35: 2.12 | BZ35: 2.09 | CA35: 2.05 | CB35: 2.02 | CC35: =IFERROR(IF(CB35<1,0,ROUND(VLOOKUP($V$14,$B$12:$I$15,5,FALSE)*SQRT($P35)/(PI()*VLOOKUP($DR$14,$MM$6:$MO$11,3,FALSE)^2/4*CC$18),2)),666) -> 1.99 | CD35: 1.96 | CE35: 1.93 | CF35: 1.9 | CG35: 1.87 | CH35: 1.85 | CI35: 1.82 | CJ35: 1.79 | CK35: 1.77 | CL35: 1.74 | CM35: 1.72 | CN35: 1.7 | CO35: 1.68 | CP35: 1.65 | CQ35: 1.63 | CR35: 1.61 | CS35: 1.59 | CT35: 1.57 | CU35: 1.55 | CV35: 1.53 | CW35: 1.52 | CX35: 1.5 | CY35: 1.48 | CZ35: 1.46 | DA35: 1.45 | DB35: 1.43 | DC35: 1.41 | DD35: 1.4 | DE35: 1.38 | DF35: 1.37 | DG35: 1.35 | DH35: 1.34 | DI35: 1.33 | DJ35: 1.31 | DK35: 1.3 | DL35: 1.29 | DM35: 1.27 | DN35: 1.26 | DO35: 1.25 | DP35: 1.24 | DQ35: 1.22 | DR35: 1.21 | DS35: 1.2 | DT35: 1.19 | DU35: 1.18 | DV35: 1.17 | DW35: 1.16 | DX35: 1.15 | DY35: 1.14 | DZ35: 1.13 | EA35: 1.12 | EB35: 1.11 | EC35: 1.1 | ED35: 1.09 | EE35: 1.08 | EF35: 1.07 | EG35: 1.06 | EH35: 1.05 | EI35: 1.04 | EJ35: 1.04 | EK35: 1.03 | EL35: 1.02 | EM35: 1.01 | EN35: 1 | EO35: =IFERROR(IF(EN35<1,0,ROUND(VLOOKUP($V$14,$B$12:$I$15,5,FALSE)*SQRT($P35)/(PI()*VLOOKUP($DR$14,$MM$6:$MO$11,3,FALSE)^2/4*EO$18),2)),666) -> 0.99 | EP35: 0 | EQ35: 0 | ER35: 0 | ES35: 0 | ET35: 0 | EU35: 0 | EV35: 0 | EW35: 0 | EX35: 0 | EY35: 0 | EZ35: 0 | FA35: 0 | FB35: 0 | FC35: 0 | FD35: 0 | FE35: 0 | FF35: 0 | FG35: 0 | FH35: 0 | FI35: 0 | FJ35: 0 | FK35: 0 | FL35: 0 | FM35: 0 | FN35: 0 | FO35: 0 | FP35: 0 | FQ35: 0 | FR35: 0 | FS35: 0 | FT35: 0 | FU35: 0 | FV35: 0 | FW35: 0 | FX35: 0 | FY35: 0 | FZ35: 0 | GA35: 0 | GB35: 0 | GC35: 0 | GD35: 0 | GE35: 0 | GF35: 0 | GG35: 0 | GH35: 0 | GI35: 0 | GJ35: 0 | GK35: 0 | GL35: 0 | GM35: 0 | GN35: 0 | GO35: 0 | GP35: 0 | GQ35: 0 | GR35: 0 | GS35: 0 | GT35: 0 | GU35: 0 | GV35: 0 | GW35: 0 | GX35: 0 | GY35: 0 | GZ35: 0 | HA35: =IFERROR(IF(GZ35<1,0,ROUND(VLOOKUP($V$14,$B$12:$I$15,5,FALSE)*SQRT($P35)/(PI()*VLOOKUP($DR$14,$MM$6:$MO$11,3,FALSE)^2/4*HA$18),2)),666) -> 0 | HB35: 0 | HC35: 0 | HD35: 0 | HE35: 0 | HF35: 0 | HG35: 0 | HH35: 0 | HI35: 0 | HJ35: 0 | HK35: 0 | HL35: 0 | HM35: 0 | HN35: 0 | HO35: 0 | HP35: 0 | HQ35: 0 | HR35: 0 | HS35: 0 | HT35: 0 | HU35: 0 | HV35: 0 | HW35: 0 | HX35: 0 | HY35: 0 | HZ35: 0 | IA35: 0 | IB35: 0 | IC35: 0 | ID35: 0 | IE35: 0 | IF35: 0 | IG35: 0 | IH35: 0 | II35: 0 | IJ35: 0 | IK35: 0 | IL35: 0 | IM35: 0 | IN35: 0 | IO35: 0 | IP35: 0 | IQ35: 0 | IR35: 0 | IS35: 0 | IT35: 0 | IU35: 0 | IV35: 0 | IW35: 0 | IX35: 0 | IY35: 0 | IZ35: 0 | JA35: 0 | JB35: 0 | JC35: 0 | JD35: 0 | JE35: 0 | JF35: 0 | JG35: 0 | JH35: 0 | JI35: 0 | JJ35: 0 | JK35: 0 | JL35: 0 | JM35: =IFERROR(IF(JL35<1,0,ROUND(VLOOKUP($V$14,$B$12:$I$15,5,FALSE)*SQRT($P35)/(PI()*VLOOKUP($DR$14,$MM$6:$MO$11,3,FALSE)^2/4*JM$18),2)),666) -> 0 | JN35: 0 | JO35: 0 | JP35: 0 | JQ35: 0 | JR35: 0 | JS35: 0 | JT35: 0 | JU35: 0 | JV35: 0 | JW35: 0 | JX35: 0 | JY35: 0 | JZ35: 0 | KA35: 0 | KB35: 0 | KC35: 0 | KD35: 0 | KE35: 0 | KF35: 0 | KG35: 0 | KH35: 0 | KI35: 0 | KJ35: 0 | KK35: 0 | KL35: 0 | KM35: 0 | KN35: 0 | KO35: 0 | KP35: 0 | KQ35: 0 | KR35: 0 | KS35: 0 | KT35: 0 | KU35: 0 | KV35: 0 | KW35: 0 | KX35: 0 | KY35: 0 | KZ35: 0 | LA35: 0 | LB35: 0 | LC35: 0 | LD35: 0 | LE35: 0 | LF35: 0 | LG35: 0 | LH35: 0 | LI35: 0 | LJ35: 0 | LK35: 0 | LL35: 0 | LM35: 0 | LN35: 0 | LO35: 0 | LP35: 0 | LQ35: 0 | LR35: 0 | LS35: 0 | LT35: 0 | LU35: 0 | LV35: 0 | LW35: 0 | LX35: 0 | LY35: 0 | MH35: 31.7 | MI35: 459.7696482 | MJ35: 3.17
P36: 32.8 | Q36: =IFERROR(IF(P36<1,0,ROUND(VLOOKUP($V$14,$B$12:$I$15,5,FALSE)*SQRT($P36)/(PI()*VLOOKUP($DR$14,$MM$6:$MO$11,3,FALSE)^2/4*Q$18),2)),666) -> 666 | R36: 127.15 | S36: 63.58 | T36: 42.38 | U36: 31.79 | V36: 25.43 | W36: 21.19 | X36: 18.16 | Y36: 15.89 | Z36: 14.13 | AA36: 12.72 | AB36: 11.56 | AC36: 10.6 | AD36: 9.78 | AE36: 9.08 | AF36: 8.48 | AG36: 7.95 | AH36: 7.48 | AI36: 7.06 | AJ36: 6.69 | AK36: 6.36 | AL36: 6.05 | AM36: 5.78 | AN36: 5.53 | AO36: 5.3 | AP36: 5.09 | AQ36: 4.89 | AR36: 4.71 | AS36: 4.54 | AT36: 4.38 | AU36: 4.24 | AV36: 4.1 | AW36: 3.97 | AX36: 3.85 | AY36: 3.74 | AZ36: 3.63 | BA36: 3.53 | BB36: 3.44 | BC36: 3.35 | BD36: 3.26 | BE36: 3.18 | BF36: 3.1 | BG36: 3.03 | BH36: 2.96 | BI36: 2.89 | BJ36: 2.83 | BK36: 2.76 | BL36: 2.71 | BM36: 2.65 | BN36: 2.59 | BO36: 2.54 | BP36: 2.49 | BQ36: 2.45 | BR36: 2.4 | BS36: 2.35 | BT36: 2.31 | BU36: 2.27 | BV36: 2.23 | BW36: 2.19 | BX36: 2.16 | BY36: 2.12 | BZ36: 2.08 | CA36: 2.05 | CB36: 2.02 | CC36: =IFERROR(IF(CB36<1,0,ROUND(VLOOKUP($V$14,$B$12:$I$15,5,FALSE)*SQRT($P36)/(PI()*VLOOKUP($DR$14,$MM$6:$MO$11,3,FALSE)^2/4*CC$18),2)),666) -> 1.99 | CD36: 1.96 | CE36: 1.93 | CF36: 1.9 | CG36: 1.87 | CH36: 1.84 | CI36: 1.82 | CJ36: 1.79 | CK36: 1.77 | CL36: 1.74 | CM36: 1.72 | CN36: 1.7 | CO36: 1.67 | CP36: 1.65 | CQ36: 1.63 | CR36: 1.61 | CS36: 1.59 | CT36: 1.57 | CU36: 1.55 | CV36: 1.53 | CW36: 1.51 | CX36: 1.5 | CY36: 1.48 | CZ36: 1.46 | DA36: 1.44 | DB36: 1.43 | DC36: 1.41 | DD36: 1.4 | DE36: 1.38 | DF36: 1.37 | DG36: 1.35 | DH36: 1.34 | DI36: 1.32 | DJ36: 1.31 | DK36: 1.3 | DL36: 1.28 | DM36: 1.27 | DN36: 1.26 | DO36: 1.25 | DP36: 1.23 | DQ36: 1.22 | DR36: 1.21 | DS36: 1.2 | DT36: 1.19 | DU36: 1.18 | DV36: 1.17 | DW36: 1.16 | DX36: 1.15 | DY36: 1.14 | DZ36: 1.13 | EA36: 1.12 | EB36: 1.11 | EC36: 1.1 | ED36: 1.09 | EE36: 1.08 | EF36: 1.07 | EG36: 1.06 | EH36: 1.05 | EI36: 1.04 | EJ36: 1.03 | EK36: 1.03 | EL36: 1.02 | EM36: 1.01 | EN36: 1 | EO36: =IFERROR(IF(EN36<1,0,ROUND(VLOOKUP($V$14,$B$12:$I$15,5,FALSE)*SQRT($P36)/(PI()*VLOOKUP($DR$14,$MM$6:$MO$11,3,FALSE)^2/4*EO$18),2)),666) -> 0.99 | EP36: 0 | EQ36: 0 | ER36: 0 | ES36: 0 | ET36: 0 | EU36: 0 | EV36: 0 | EW36: 0 | EX36: 0 | EY36: 0 | EZ36: 0 | FA36: 0 | FB36: 0 | FC36: 0 | FD36: 0 | FE36: 0 | FF36: 0 | FG36: 0 | FH36: 0 | FI36: 0 | FJ36: 0 | FK36: 0 | FL36: 0 | FM36: 0 | FN36: 0 | FO36: 0 | FP36: 0 | FQ36: 0 | FR36: 0 | FS36: 0 | FT36: 0 | FU36: 0 | FV36: 0 | FW36: 0 | FX36: 0 | FY36: 0 | FZ36: 0 | GA36: 0 | GB36: 0 | GC36: 0 | GD36: 0 | GE36: 0 | GF36: 0 | GG36: 0 | GH36: 0 | GI36: 0 | GJ36: 0 | GK36: 0 | GL36: 0 | GM36: 0 | GN36: 0 | GO36: 0 | GP36: 0 | GQ36: 0 | GR36: 0 | GS36: 0 | GT36: 0 | GU36: 0 | GV36: 0 | GW36: 0 | GX36: 0 | GY36: 0 | GZ36: 0 | HA36: =IFERROR(IF(GZ36<1,0,ROUND(VLOOKUP($V$14,$B$12:$I$15,5,FALSE)*SQRT($P36)/(PI()*VLOOKUP($DR$14,$MM$6:$MO$11,3,FALSE)^2/4*HA$18),2)),666) -> 0 | HB36: 0 | HC36: 0 | HD36: 0 | HE36: 0 | HF36: 0 | HG36: 0 | HH36: 0 | HI36: 0 | HJ36: 0 | HK36: 0 | HL36: 0 | HM36: 0 | HN36: 0 | HO36: 0 | HP36: 0 | HQ36: 0 | HR36: 0 | HS36: 0 | HT36: 0 | HU36: 0 | HV36: 0 | HW36: 0 | HX36: 0 | HY36: 0 | HZ36: 0 | IA36: 0 | IB36: 0 | IC36: 0 | ID36: 0 | IE36: 0 | IF36: 0 | IG36: 0 | IH36: 0 | II36: 0 | IJ36: 0 | IK36: 0 | IL36: 0 | IM36: 0 | IN36: 0 | IO36: 0 | IP36: 0 | IQ36: 0 | IR36: 0 | IS36: 0 | IT36: 0 | IU36: 0 | IV36: 0 | IW36: 0 | IX36: 0 | IY36: 0 | IZ36: 0 | JA36: 0 | JB36: 0 | JC36: 0 | JD36: 0 | JE36: 0 | JF36: 0 | JG36: 0 | JH36: 0 | JI36: 0 | JJ36: 0 | JK36: 0 | JL36: 0 | JM36: =IFERROR(IF(JL36<1,0,ROUND(VLOOKUP($V$14,$B$12:$I$15,5,FALSE)*SQRT($P36)/(PI()*VLOOKUP($DR$14,$MM$6:$MO$11,3,FALSE)^2/4*JM$18),2)),666) -> 0 | JN36: 0 | JO36: 0 | JP36: 0 | JQ36: 0 | JR36: 0 | JS36: 0 | JT36: 0 | JU36: 0 | JV36: 0 | JW36: 0 | JX36: 0 | JY36: 0 | JZ36: 0 | KA36: 0 | KB36: 0 | KC36: 0 | KD36: 0 | KE36: 0 | KF36: 0 | KG36: 0 | KH36: 0 | KI36: 0 | KJ36: 0 | KK36: 0 | KL36: 0 | KM36: 0 | KN36: 0 | KO36: 0 | KP36: 0 | KQ36: 0 | KR36: 0 | KS36: 0 | KT36: 0 | KU36: 0 | KV36: 0 | KW36: 0 | KX36: 0 | KY36: 0 | KZ36: 0 | LA36: 0 | LB36: 0 | LC36: 0 | LD36: 0 | LE36: 0 | LF36: 0 | LG36: 0 | LH36: 0 | LI36: 0 | LJ36: 0 | LK36: 0 | LL36: 0 | LM36: 0 | LN36: 0 | LO36: 0 | LP36: 0 | LQ36: 0 | LR36: 0 | LS36: 0 | LT36: 0 | LU36: 0 | LV36: 0 | LW36: 0 | LX36: 0 | LY36: 0 | MH36: 31.6 | MI36: 458.3192707 | MJ36: 3.16
P37: 32.7 | Q37: =IFERROR(IF(P37<1,0,ROUND(VLOOKUP($V$14,$B$12:$I$15,5,FALSE)*SQRT($P37)/(PI()*VLOOKUP($DR$14,$MM$6:$MO$11,3,FALSE)^2/4*Q$18),2)),666) -> 666 | R37: 126.96 | S37: 63.48 | T37: 42.32 | U37: 31.74 | V37: 25.39 | W37: 21.16 | X37: 18.14 | Y37: 15.87 | Z37: 14.11 | AA37: 12.7 | AB37: 11.54 | AC37: 10.58 | AD37: 9.77 | AE37: 9.07 | AF37: 8.46 | AG37: 7.94 | AH37: 7.47 | AI37: 7.05 | AJ37: 6.68 | AK37: 6.35 | AL37: 6.05 | AM37: 5.77 | AN37: 5.52 | AO37: 5.29 | AP37: 5.08 | AQ37: 4.88 | AR37: 4.7 | AS37: 4.53 | AT37: 4.38 | AU37: 4.23 | AV37: 4.1 | AW37: 3.97 | AX37: 3.85 | AY37: 3.73 | AZ37: 3.63 | BA37: 3.53 | BB37: 3.43 | BC37: 3.34 | BD37: 3.26 | BE37: 3.17 | BF37: 3.1 | BG37: 3.02 | BH37: 2.95 | BI37: 2.89 | BJ37: 2.82 | BK37: 2.76 | BL37: 2.7 | BM37: 2.65 | BN37: 2.59 | BO37: 2.54 | BP37: 2.49 | BQ37: 2.44 | BR37: 2.4 | BS37: 2.35 | BT37: 2.31 | BU37: 2.27 | BV37: 2.23 | BW37: 2.19 | BX37: 2.15 | BY37: 2.12 | BZ37: 2.08 | CA37: 2.05 | CB37: 2.02 | CC37: =IFERROR(IF(CB37<1,0,ROUND(VLOOKUP($V$14,$B$12:$I$15,5,FALSE)*SQRT($P37)/(PI()*VLOOKUP($DR$14,$MM$6:$MO$11,3,FALSE)^2/4*CC$18),2)),666) -> 1.98 | CD37: 1.95 | CE37: 1.92 | CF37: 1.89 | CG37: 1.87 | CH37: 1.84 | CI37: 1.81 | CJ37: 1.79 | CK37: 1.76 | CL37: 1.74 | CM37: 1.72 | CN37: 1.69 | CO37: 1.67 | CP37: 1.65 | CQ37: 1.63 | CR37: 1.61 | CS37: 1.59 | CT37: 1.57 | CU37: 1.55 | CV37: 1.53 | CW37: 1.51 | CX37: 1.49 | CY37: 1.48 | CZ37: 1.46 | DA37: 1.44 | DB37: 1.43 | DC37: 1.41 | DD37: 1.4 | DE37: 1.38 | DF37: 1.37 | DG37: 1.35 | DH37: 1.34 | DI37: 1.32 | DJ37: 1.31 | DK37: 1.3 | DL37: 1.28 | DM37: 1.27 | DN37: 1.26 | DO37: 1.24 | DP37: 1.23 | DQ37: 1.22 | DR37: 1.21 | DS37: 1.2 | DT37: 1.19 | DU37: 1.18 | DV37: 1.16 | DW37: 1.15 | DX37: 1.14 | DY37: 1.13 | DZ37: 1.12 | EA37: 1.11 | EB37: 1.1 | EC37: 1.09 | ED37: 1.09 | EE37: 1.08 | EF37: 1.07 | EG37: 1.06 | EH37: 1.05 | EI37: 1.04 | EJ37: 1.03 | EK37: 1.02 | EL37: 1.02 | EM37: 1.01 | EN37: 1 | EO37: =IFERROR(IF(EN37<1,0,ROUND(VLOOKUP($V$14,$B$12:$I$15,5,FALSE)*SQRT($P37)/(PI()*VLOOKUP($DR$14,$MM$6:$MO$11,3,FALSE)^2/4*EO$18),2)),666) -> 0.99 | EP37: 0 | EQ37: 0 | ER37: 0 | ES37: 0 | ET37: 0 | EU37: 0 | EV37: 0 | EW37: 0 | EX37: 0 | EY37: 0 | EZ37: 0 | FA37: 0 | FB37: 0 | FC37: 0 | FD37: 0 | FE37: 0 | FF37: 0 | FG37: 0 | FH37: 0 | FI37: 0 | FJ37: 0 | FK37: 0 | FL37: 0 | FM37: 0 | FN37: 0 | FO37: 0 | FP37: 0 | FQ37: 0 | FR37: 0 | FS37: 0 | FT37: 0 | FU37: 0 | FV37: 0 | FW37: 0 | FX37: 0 | FY37: 0 | FZ37: 0 | GA37: 0 | GB37: 0 | GC37: 0 | GD37: 0 | GE37: 0 | GF37: 0 | GG37: 0 | GH37: 0 | GI37: 0 | GJ37: 0 | GK37: 0 | GL37: 0 | GM37: 0 | GN37: 0 | GO37: 0 | GP37: 0 | GQ37: 0 | GR37: 0 | GS37: 0 | GT37: 0 | GU37: 0 | GV37: 0 | GW37: 0 | GX37: 0 | GY37: 0 | GZ37: 0 | HA37: =IFERROR(IF(GZ37<1,0,ROUND(VLOOKUP($V$14,$B$12:$I$15,5,FALSE)*SQRT($P37)/(PI()*VLOOKUP($DR$14,$MM$6:$MO$11,3,FALSE)^2/4*HA$18),2)),666) -> 0 | HB37: 0 | HC37: 0 | HD37: 0 | HE37: 0 | HF37: 0 | HG37: 0 | HH37: 0 | HI37: 0 | HJ37: 0 | HK37: 0 | HL37: 0 | HM37: 0 | HN37: 0 | HO37: 0 | HP37: 0 | HQ37: 0 | HR37: 0 | HS37: 0 | HT37: 0 | HU37: 0 | HV37: 0 | HW37: 0 | HX37: 0 | HY37: 0 | HZ37: 0 | IA37: 0 | IB37: 0 | IC37: 0 | ID37: 0 | IE37: 0 | IF37: 0 | IG37: 0 | IH37: 0 | II37: 0 | IJ37: 0 | IK37: 0 | IL37: 0 | IM37: 0 | IN37: 0 | IO37: 0 | IP37: 0 | IQ37: 0 | IR37: 0 | IS37: 0 | IT37: 0 | IU37: 0 | IV37: 0 | IW37: 0 | IX37: 0 | IY37: 0 | IZ37: 0 | JA37: 0 | JB37: 0 | JC37: 0 | JD37: 0 | JE37: 0 | JF37: 0 | JG37: 0 | JH37: 0 | JI37: 0 | JJ37: 0 | JK37: 0 | JL37: 0 | JM37: =IFERROR(IF(JL37<1,0,ROUND(VLOOKUP($V$14,$B$12:$I$15,5,FALSE)*SQRT($P37)/(PI()*VLOOKUP($DR$14,$MM$6:$MO$11,3,FALSE)^2/4*JM$18),2)),666) -> 0 | JN37: 0 | JO37: 0 | JP37: 0 | JQ37: 0 | JR37: 0 | JS37: 0 | JT37: 0 | JU37: 0 | JV37: 0 | JW37: 0 | JX37: 0 | JY37: 0 | JZ37: 0 | KA37: 0 | KB37: 0 | KC37: 0 | KD37: 0 | KE37: 0 | KF37: 0 | KG37: 0 | KH37: 0 | KI37: 0 | KJ37: 0 | KK37: 0 | KL37: 0 | KM37: 0 | KN37: 0 | KO37: 0 | KP37: 0 | KQ37: 0 | KR37: 0 | KS37: 0 | KT37: 0 | KU37: 0 | KV37: 0 | KW37: 0 | KX37: 0 | KY37: 0 | KZ37: 0 | LA37: 0 | LB37: 0 | LC37: 0 | LD37: 0 | LE37: 0 | LF37: 0 | LG37: 0 | LH37: 0 | LI37: 0 | LJ37: 0 | LK37: 0 | LL37: 0 | LM37: 0 | LN37: 0 | LO37: 0 | LP37: 0 | LQ37: 0 | LR37: 0 | LS37: 0 | LT37: 0 | LU37: 0 | LV37: 0 | LW37: 0 | LX37: 0 | LY37: 0 | MH37: 31.5 | MI37: 456.8688933 | MJ37: 3.15
P38: 32.6 | Q38: =IFERROR(IF(P38<1,0,ROUND(VLOOKUP($V$14,$B$12:$I$15,5,FALSE)*SQRT($P38)/(PI()*VLOOKUP($DR$14,$MM$6:$MO$11,3,FALSE)^2/4*Q$18),2)),666) -> 666 | R38: 126.77 | S38: 63.38 | T38: 42.26 | U38: 31.69 | V38: 25.35 | W38: 21.13 | X38: 18.11 | Y38: 15.85 | Z38: 14.09 | AA38: 12.68 | AB38: 11.52 | AC38: 10.56 | AD38: 9.75 | AE38: 9.05 | AF38: 8.45 | AG38: 7.92 | AH38: 7.46 | AI38: 7.04 | AJ38: 6.67 | AK38: 6.34 | AL38: 6.04 | AM38: 5.76 | AN38: 5.51 | AO38: 5.28 | AP38: 5.07 | AQ38: 4.88 | AR38: 4.7 | AS38: 4.53 | AT38: 4.37 | AU38: 4.23 | AV38: 4.09 | AW38: 3.96 | AX38: 3.84 | AY38: 3.73 | AZ38: 3.62 | BA38: 3.52 | BB38: 3.43 | BC38: 3.34 | BD38: 3.25 | BE38: 3.17 | BF38: 3.09 | BG38: 3.02 | BH38: 2.95 | BI38: 2.88 | BJ38: 2.82 | BK38: 2.76 | BL38: 2.7 | BM38: 2.64 | BN38: 2.59 | BO38: 2.54 | BP38: 2.49 | BQ38: 2.44 | BR38: 2.39 | BS38: 2.35 | BT38: 2.3 | BU38: 2.26 | BV38: 2.22 | BW38: 2.19 | BX38: 2.15 | BY38: 2.11 | BZ38: 2.08 | CA38: 2.04 | CB38: 2.01 | CC38: =IFERROR(IF(CB38<1,0,ROUND(VLOOKUP($V$14,$B$12:$I$15,5,FALSE)*SQRT($P38)/(PI()*VLOOKUP($DR$14,$MM$6:$MO$11,3,FALSE)^2/4*CC$18),2)),666) -> 1.98 | CD38: 1.95 | CE38: 1.92 | CF38: 1.89 | CG38: 1.86 | CH38: 1.84 | CI38: 1.81 | CJ38: 1.79 | CK38: 1.76 | CL38: 1.74 | CM38: 1.71 | CN38: 1.69 | CO38: 1.67 | CP38: 1.65 | CQ38: 1.63 | CR38: 1.6 | CS38: 1.58 | CT38: 1.57 | CU38: 1.55 | CV38: 1.53 | CW38: 1.51 | CX38: 1.49 | CY38: 1.47 | CZ38: 1.46 | DA38: 1.44 | DB38: 1.42 | DC38: 1.41 | DD38: 1.39 | DE38: 1.38 | DF38: 1.36 | DG38: 1.35 | DH38: 1.33 | DI38: 1.32 | DJ38: 1.31 | DK38: 1.29 | DL38: 1.28 | DM38: 1.27 | DN38: 1.26 | DO38: 1.24 | DP38: 1.23 | DQ38: 1.22 | DR38: 1.21 | DS38: 1.2 | DT38: 1.18 | DU38: 1.17 | DV38: 1.16 | DW38: 1.15 | DX38: 1.14 | DY38: 1.13 | DZ38: 1.12 | EA38: 1.11 | EB38: 1.1 | EC38: 1.09 | ED38: 1.08 | EE38: 1.07 | EF38: 1.07 | EG38: 1.06 | EH38: 1.05 | EI38: 1.04 | EJ38: 1.03 | EK38: 1.02 | EL38: 1.01 | EM38: 1.01 | EN38: 1 | EO38: =IFERROR(IF(EN38<1,0,ROUND(VLOOKUP($V$14,$B$12:$I$15,5,FALSE)*SQRT($P38)/(PI()*VLOOKUP($DR$14,$MM$6:$MO$11,3,FALSE)^2/4*EO$18),2)),666) -> 0.99 | EP38: 0 | EQ38: 0 | ER38: 0 | ES38: 0 | ET38: 0 | EU38: 0 | EV38: 0 | EW38: 0 | EX38: 0 | EY38: 0 | EZ38: 0 | FA38: 0 | FB38: 0 | FC38: 0 | FD38: 0 | FE38: 0 | FF38: 0 | FG38: 0 | FH38: 0 | FI38: 0 | FJ38: 0 | FK38: 0 | FL38: 0 | FM38: 0 | FN38: 0 | FO38: 0 | FP38: 0 | FQ38: 0 | FR38: 0 | FS38: 0 | FT38: 0 | FU38: 0 | FV38: 0 | FW38: 0 | FX38: 0 | FY38: 0 | FZ38: 0 | GA38: 0 | GB38: 0 | GC38: 0 | GD38: 0 | GE38: 0 | GF38: 0 | GG38: 0 | GH38: 0 | GI38: 0 | GJ38: 0 | GK38: 0 | GL38: 0 | GM38: 0 | GN38: 0 | GO38: 0 | GP38: 0 | GQ38: 0 | GR38: 0 | GS38: 0 | GT38: 0 | GU38: 0 | GV38: 0 | GW38: 0 | GX38: 0 | GY38: 0 | GZ38: 0 | HA38: =IFERROR(IF(GZ38<1,0,ROUND(VLOOKUP($V$14,$B$12:$I$15,5,FALSE)*SQRT($P38)/(PI()*VLOOKUP($DR$14,$MM$6:$MO$11,3,FALSE)^2/4*HA$18),2)),666) -> 0 | HB38: 0 | HC38: 0 | HD38: 0 | HE38: 0 | HF38: 0 | HG38: 0 | HH38: 0 | HI38: 0 | HJ38: 0 | HK38: 0 | HL38: 0 | HM38: 0 | HN38: 0 | HO38: 0 | HP38: 0 | HQ38: 0 | HR38: 0 | HS38: 0 | HT38: 0 | HU38: 0 | HV38: 0 | HW38: 0 | HX38: 0 | HY38: 0 | HZ38: 0 | IA38: 0 | IB38: 0 | IC38: 0 | ID38: 0 | IE38: 0 | IF38: 0 | IG38: 0 | IH38: 0 | II38: 0 | IJ38: 0 | IK38: 0 | IL38: 0 | IM38: 0 | IN38: 0 | IO38: 0 | IP38: 0 | IQ38: 0 | IR38: 0 | IS38: 0 | IT38: 0 | IU38: 0 | IV38: 0 | IW38: 0 | IX38: 0 | IY38: 0 | IZ38: 0 | JA38: 0 | JB38: 0 | JC38: 0 | JD38: 0 | JE38: 0 | JF38: 0 | JG38: 0 | JH38: 0 | JI38: 0 | JJ38: 0 | JK38: 0 | JL38: 0 | JM38: =IFERROR(IF(JL38<1,0,ROUND(VLOOKUP($V$14,$B$12:$I$15,5,FALSE)*SQRT($P38)/(PI()*VLOOKUP($DR$14,$MM$6:$MO$11,3,FALSE)^2/4*JM$18),2)),666) -> 0 | JN38: 0 | JO38: 0 | JP38: 0 | JQ38: 0 | JR38: 0 | JS38: 0 | JT38: 0 | JU38: 0 | JV38: 0 | JW38: 0 | JX38: 0 | JY38: 0 | JZ38: 0 | KA38: 0 | KB38: 0 | KC38: 0 | KD38: 0 | KE38: 0 | KF38: 0 | KG38: 0 | KH38: 0 | KI38: 0 | KJ38: 0 | KK38: 0 | KL38: 0 | KM38: 0 | KN38: 0 | KO38: 0 | KP38: 0 | KQ38: 0 | KR38: 0 | KS38: 0 | KT38: 0 | KU38: 0 | KV38: 0 | KW38: 0 | KX38: 0 | KY38: 0 | KZ38: 0 | LA38: 0 | LB38: 0 | LC38: 0 | LD38: 0 | LE38: 0 | LF38: 0 | LG38: 0 | LH38: 0 | LI38: 0 | LJ38: 0 | LK38: 0 | LL38: 0 | LM38: 0 | LN38: 0 | LO38: 0 | LP38: 0 | LQ38: 0 | LR38: 0 | LS38: 0 | LT38: 0 | LU38: 0 | LV38: 0 | LW38: 0 | LX38: 0 | LY38: 0 | MH38: 31.4 | MI38: 455.4185158 | MJ38: 3.14
P39: 32.5 | Q39: =IFERROR(IF(P39<1,0,ROUND(VLOOKUP($V$14,$B$12:$I$15,5,FALSE)*SQRT($P39)/(PI()*VLOOKUP($DR$14,$MM$6:$MO$11,3,FALSE)^2/4*Q$18),2)),666) -> 666 | R39: 126.57 | S39: 63.29 | T39: 42.19 | U39: 31.64 | V39: 25.31 | W39: 21.1 | X39: 18.08 | Y39: 15.82 | Z39: 14.06 | AA39: 12.66 | AB39: 11.51 | AC39: 10.55 | AD39: 9.74 | AE39: 9.04 | AF39: 8.44 | AG39: 7.91 | AH39: 7.45 | AI39: 7.03 | AJ39: 6.66 | AK39: 6.33 | AL39: 6.03 | AM39: 5.75 | AN39: 5.5 | AO39: 5.27 | AP39: 5.06 | AQ39: 4.87 | AR39: 4.69 | AS39: 4.52 | AT39: 4.36 | AU39: 4.22 | AV39: 4.08 | AW39: 3.96 | AX39: 3.84 | AY39: 3.72 | AZ39: 3.62 | BA39: 3.52 | BB39: 3.42 | BC39: 3.33 | BD39: 3.25 | BE39: 3.16 | BF39: 3.09 | BG39: 3.01 | BH39: 2.94 | BI39: 2.88 | BJ39: 2.81 | BK39: 2.75 | BL39: 2.69 | BM39: 2.64 | BN39: 2.58 | BO39: 2.53 | BP39: 2.48 | BQ39: 2.43 | BR39: 2.39 | BS39: 2.34 | BT39: 2.3 | BU39: 2.26 | BV39: 2.22 | BW39: 2.18 | BX39: 2.15 | BY39: 2.11 | BZ39: 2.07 | CA39: 2.04 | CB39: 2.01 | CC39: =IFERROR(IF(CB39<1,0,ROUND(VLOOKUP($V$14,$B$12:$I$15,5,FALSE)*SQRT($P39)/(PI()*VLOOKUP($DR$14,$MM$6:$MO$11,3,FALSE)^2/4*CC$18),2)),666) -> 1.98 | CD39: 1.95 | CE39: 1.92 | CF39: 1.89 | CG39: 1.86 | CH39: 1.83 | CI39: 1.81 | CJ39: 1.78 | CK39: 1.76 | CL39: 1.73 | CM39: 1.71 | CN39: 1.69 | CO39: 1.67 | CP39: 1.64 | CQ39: 1.62 | CR39: 1.6 | CS39: 1.58 | CT39: 1.56 | CU39: 1.54 | CV39: 1.52 | CW39: 1.51 | CX39: 1.49 | CY39: 1.47 | CZ39: 1.45 | DA39: 1.44 | DB39: 1.42 | DC39: 1.41 | DD39: 1.39 | DE39: 1.38 | DF39: 1.36 | DG39: 1.35 | DH39: 1.33 | DI39: 1.32 | DJ39: 1.3 | DK39: 1.29 | DL39: 1.28 | DM39: 1.27 | DN39: 1.25 | DO39: 1.24 | DP39: 1.23 | DQ39: 1.22 | DR39: 1.21 | DS39: 1.19 | DT39: 1.18 | DU39: 1.17 | DV39: 1.16 | DW39: 1.15 | DX39: 1.14 | DY39: 1.13 | DZ39: 1.12 | EA39: 1.11 | EB39: 1.1 | EC39: 1.09 | ED39: 1.08 | EE39: 1.07 | EF39: 1.06 | EG39: 1.05 | EH39: 1.05 | EI39: 1.04 | EJ39: 1.03 | EK39: 1.02 | EL39: 1.01 | EM39: 1 | EN39: 1 | EO39: =IFERROR(IF(EN39<1,0,ROUND(VLOOKUP($V$14,$B$12:$I$15,5,FALSE)*SQRT($P39)/(PI()*VLOOKUP($DR$14,$MM$6:$MO$11,3,FALSE)^2/4*EO$18),2)),666) -> 0.99 | EP39: 0 | EQ39: 0 | ER39: 0 | ES39: 0 | ET39: 0 | EU39: 0 | EV39: 0 | EW39: 0 | EX39: 0 | EY39: 0 | EZ39: 0 | FA39: 0 | FB39: 0 | FC39: 0 | FD39: 0 | FE39: 0 | FF39: 0 | FG39: 0 | FH39: 0 | FI39: 0 | FJ39: 0 | FK39: 0 | FL39: 0 | FM39: 0 | FN39: 0 | FO39: 0 | FP39: 0 | FQ39: 0 | FR39: 0 | FS39: 0 | FT39: 0 | FU39: 0 | FV39: 0 | FW39: 0 | FX39: 0 | FY39: 0 | FZ39: 0 | GA39: 0 | GB39: 0 | GC39: 0 | GD39: 0 | GE39: 0 | GF39: 0 | GG39: 0 | GH39: 0 | GI39: 0 | GJ39: 0 | GK39: 0 | GL39: 0 | GM39: 0 | GN39: 0 | GO39: 0 | GP39: 0 | GQ39: 0 | GR39: 0 | GS39: 0 | GT39: 0 | GU39: 0 | GV39: 0 | GW39: 0 | GX39: 0 | GY39: 0 | GZ39: 0 | HA39: =IFERROR(IF(GZ39<1,0,ROUND(VLOOKUP($V$14,$B$12:$I$15,5,FALSE)*SQRT($P39)/(PI()*VLOOKUP($DR$14,$MM$6:$MO$11,3,FALSE)^2/4*HA$18),2)),666) -> 0 | HB39: 0 | HC39: 0 | HD39: 0 | HE39: 0 | HF39: 0 | HG39: 0 | HH39: 0 | HI39: 0 | HJ39: 0 | HK39: 0 | HL39: 0 | HM39: 0 | HN39: 0 | HO39: 0 | HP39: 0 | HQ39: 0 | HR39: 0 | HS39: 0 | HT39: 0 | HU39: 0 | HV39: 0 | HW39: 0 | HX39: 0 | HY39: 0 | HZ39: 0 | IA39: 0 | IB39: 0 | IC39: 0 | ID39: 0 | IE39: 0 | IF39: 0 | IG39: 0 | IH39: 0 | II39: 0 | IJ39: 0 | IK39: 0 | IL39: 0 | IM39: 0 | IN39: 0 | IO39: 0 | IP39: 0 | IQ39: 0 | IR39: 0 | IS39: 0 | IT39: 0 | IU39: 0 | IV39: 0 | IW39: 0 | IX39: 0 | IY39: 0 | IZ39: 0 | JA39: 0 | JB39: 0 | JC39: 0 | JD39: 0 | JE39: 0 | JF39: 0 | JG39: 0 | JH39: 0 | JI39: 0 | JJ39: 0 | JK39: 0 | JL39: 0 | JM39: =IFERROR(IF(JL39<1,0,ROUND(VLOOKUP($V$14,$B$12:$I$15,5,FALSE)*SQRT($P39)/(PI()*VLOOKUP($DR$14,$MM$6:$MO$11,3,FALSE)^2/4*JM$18),2)),666) -> 0 | JN39: 0 | JO39: 0 | JP39: 0 | JQ39: 0 | JR39: 0 | JS39: 0 | JT39: 0 | JU39: 0 | JV39: 0 | JW39: 0 | JX39: 0 | JY39: 0 | JZ39: 0 | KA39: 0 | KB39: 0 | KC39: 0 | KD39: 0 | KE39: 0 | KF39: 0 | KG39: 0 | KH39: 0 | KI39: 0 | KJ39: 0 | KK39: 0 | KL39: 0 | KM39: 0 | KN39: 0 | KO39: 0 | KP39: 0 | KQ39: 0 | KR39: 0 | KS39: 0 | KT39: 0 | KU39: 0 | KV39: 0 | KW39: 0 | KX39: 0 | KY39: 0 | KZ39: 0 | LA39: 0 | LB39: 0 | LC39: 0 | LD39: 0 | LE39: 0 | LF39: 0 | LG39: 0 | LH39: 0 | LI39: 0 | LJ39: 0 | LK39: 0 | LL39: 0 | LM39: 0 | LN39: 0 | LO39: 0 | LP39: 0 | LQ39: 0 | LR39: 0 | LS39: 0 | LT39: 0 | LU39: 0 | LV39: 0 | LW39: 0 | LX39: 0 | LY39: 0 | MH39: 31.3 | MI39: 453.9681384 | MJ39: 3.13
P40: 32.4 | Q40: =IFERROR(IF(P40<1,0,ROUND(VLOOKUP($V$14,$B$12:$I$15,5,FALSE)*SQRT($P40)/(PI()*VLOOKUP($DR$14,$MM$6:$MO$11,3,FALSE)^2/4*Q$18),2)),666) -> 666 | R40: 126.38 | S40: 63.19 | T40: 42.13 | U40: 31.59 | V40: 25.28 | W40: 21.06 | X40: 18.05 | Y40: 15.8 | Z40: 14.04 | AA40: 12.64 | AB40: 11.49 | AC40: 10.53 | AD40: 9.72 | AE40: 9.03 | AF40: 8.43 | AG40: 7.9 | AH40: 7.43 | AI40: 7.02 | AJ40: 6.65 | AK40: 6.32 | AL40: 6.02 | AM40: 5.74 | AN40: 5.49 | AO40: 5.27 | AP40: 5.06 | AQ40: 4.86 | AR40: 4.68 | AS40: 4.51 | AT40: 4.36 | AU40: 4.21 | AV40: 4.08 | AW40: 3.95 | AX40: 3.83 | AY40: 3.72 | AZ40: 3.61 | BA40: 3.51 | BB40: 3.42 | BC40: 3.33 | BD40: 3.24 | BE40: 3.16 | BF40: 3.08 | BG40: 3.01 | BH40: 2.94 | BI40: 2.87 | BJ40: 2.81 | BK40: 2.75 | BL40: 2.69 | BM40: 2.63 | BN40: 2.58 | BO40: 2.53 | BP40: 2.48 | BQ40: 2.43 | BR40: 2.38 | BS40: 2.34 | BT40: 2.3 | BU40: 2.26 | BV40: 2.22 | BW40: 2.18 | BX40: 2.14 | BY40: 2.11 | BZ40: 2.07 | CA40: 2.04 | CB40: 2.01 | CC40: =IFERROR(IF(CB40<1,0,ROUND(VLOOKUP($V$14,$B$12:$I$15,5,FALSE)*SQRT($P40)/(PI()*VLOOKUP($DR$14,$MM$6:$MO$11,3,FALSE)^2/4*CC$18),2)),666) -> 1.97 | CD40: 1.94 | CE40: 1.91 | CF40: 1.89 | CG40: 1.86 | CH40: 1.83 | CI40: 1.81 | CJ40: 1.78 | CK40: 1.76 | CL40: 1.73 | CM40: 1.71 | CN40: 1.69 | CO40: 1.66 | CP40: 1.64 | CQ40: 1.62 | CR40: 1.6 | CS40: 1.58 | CT40: 1.56 | CU40: 1.54 | CV40: 1.52 | CW40: 1.5 | CX40: 1.49 | CY40: 1.47 | CZ40: 1.45 | DA40: 1.44 | DB40: 1.42 | DC40: 1.4 | DD40: 1.39 | DE40: 1.37 | DF40: 1.36 | DG40: 1.34 | DH40: 1.33 | DI40: 1.32 | DJ40: 1.3 | DK40: 1.29 | DL40: 1.28 | DM40: 1.26 | DN40: 1.25 | DO40: 1.24 | DP40: 1.23 | DQ40: 1.22 | DR40: 1.2 | DS40: 1.19 | DT40: 1.18 | DU40: 1.17 | DV40: 1.16 | DW40: 1.15 | DX40: 1.14 | DY40: 1.13 | DZ40: 1.12 | EA40: 1.11 | EB40: 1.1 | EC40: 1.09 | ED40: 1.08 | EE40: 1.07 | EF40: 1.06 | EG40: 1.05 | EH40: 1.04 | EI40: 1.04 | EJ40: 1.03 | EK40: 1.02 | EL40: 1.01 | EM40: 1 | EN40: 1 | EO40: =IFERROR(IF(EN40<1,0,ROUND(VLOOKUP($V$14,$B$12:$I$15,5,FALSE)*SQRT($P40)/(PI()*VLOOKUP($DR$14,$MM$6:$MO$11,3,FALSE)^2/4*EO$18),2)),666) -> 0.99 | EP40: 0 | EQ40: 0 | ER40: 0 | ES40: 0 | ET40: 0 | EU40: 0 | EV40: 0 | EW40: 0 | EX40: 0 | EY40: 0 | EZ40: 0 | FA40: 0 | FB40: 0 | FC40: 0 | FD40: 0 | FE40: 0 | FF40: 0 | FG40: 0 | FH40: 0 | FI40: 0 | FJ40: 0 | FK40: 0 | FL40: 0 | FM40: 0 | FN40: 0 | FO40: 0 | FP40: 0 | FQ40: 0 | FR40: 0 | FS40: 0 | FT40: 0 | FU40: 0 | FV40: 0 | FW40: 0 | FX40: 0 | FY40: 0 | FZ40: 0 | GA40: 0 | GB40: 0 | GC40: 0 | GD40: 0 | GE40: 0 | GF40: 0 | GG40: 0 | GH40: 0 | GI40: 0 | GJ40: 0 | GK40: 0 | GL40: 0 | GM40: 0 | GN40: 0 | GO40: 0 | GP40: 0 | GQ40: 0 | GR40: 0 | GS40: 0 | GT40: 0 | GU40: 0 | GV40: 0 | GW40: 0 | GX40: 0 | GY40: 0 | GZ40: 0 | HA40: =IFERROR(IF(GZ40<1,0,ROUND(VLOOKUP($V$14,$B$12:$I$15,5,FALSE)*SQRT($P40)/(PI()*VLOOKUP($DR$14,$MM$6:$MO$11,3,FALSE)^2/4*HA$18),2)),666) -> 0 | HB40: 0 | HC40: 0 | HD40: 0 | HE40: 0 | HF40: 0 | HG40: 0 | HH40: 0 | HI40: 0 | HJ40: 0 | HK40: 0 | HL40: 0 | HM40: 0 | HN40: 0 | HO40: 0 | HP40: 0 | HQ40: 0 | HR40: 0 | HS40: 0 | HT40: 0 | HU40: 0 | HV40: 0 | HW40: 0 | HX40: 0 | HY40: 0 | HZ40: 0 | IA40: 0 | IB40: 0 | IC40: 0 | ID40: 0 | IE40: 0 | IF40: 0 | IG40: 0 | IH40: 0 | II40: 0 | IJ40: 0 | IK40: 0 | IL40: 0 | IM40: 0 | IN40: 0 | IO40: 0 | IP40: 0 | IQ40: 0 | IR40: 0 | IS40: 0 | IT40: 0 | IU40: 0 | IV40: 0 | IW40: 0 | IX40: 0 | IY40: 0 | IZ40: 0 | JA40: 0 | JB40: 0 | JC40: 0 | JD40: 0 | JE40: 0 | JF40: 0 | JG40: 0 | JH40: 0 | JI40: 0 | JJ40: 0 | JK40: 0 | JL40: 0 | JM40: =IFERROR(IF(JL40<1,0,ROUND(VLOOKUP($V$14,$B$12:$I$15,5,FALSE)*SQRT($P40)/(PI()*VLOOKUP($DR$14,$MM$6:$MO$11,3,FALSE)^2/4*JM$18),2)),666) -> 0 | JN40: 0 | JO40: 0 | JP40: 0 | JQ40: 0 | JR40: 0 | JS40: 0 | JT40: 0 | JU40: 0 | JV40: 0 | JW40: 0 | JX40: 0 | JY40: 0 | JZ40: 0 | KA40: 0 | KB40: 0 | KC40: 0 | KD40: 0 | KE40: 0 | KF40: 0 | KG40: 0 | KH40: 0 | KI40: 0 | KJ40: 0 | KK40: 0 | KL40: 0 | KM40: 0 | KN40: 0 | KO40: 0 | KP40: 0 | KQ40: 0 | KR40: 0 | KS40: 0 | KT40: 0 | KU40: 0 | KV40: 0 | KW40: 0 | KX40: 0 | KY40: 0 | KZ40: 0 | LA40: 0 | LB40: 0 | LC40: 0 | LD40: 0 | LE40: 0 | LF40: 0 | LG40: 0 | LH40: 0 | LI40: 0 | LJ40: 0 | LK40: 0 | LL40: 0 | LM40: 0 | LN40: 0 | LO40: 0 | LP40: 0 | LQ40: 0 | LR40: 0 | LS40: 0 | LT40: 0 | LU40: 0 | LV40: 0 | LW40: 0 | LX40: 0 | LY40: 0 | MH40: 31.2 | MI40: 452.517761 | MJ40: 3.12
P41: 32.3 | Q41: =IFERROR(IF(P41<1,0,ROUND(VLOOKUP($V$14,$B$12:$I$15,5,FALSE)*SQRT($P41)/(PI()*VLOOKUP($DR$14,$MM$6:$MO$11,3,FALSE)^2/4*Q$18),2)),666) -> 666 | R41: 126.18 | S41: 63.09 | T41: 42.06 | U41: 31.55 | V41: 25.24 | W41: 21.03 | X41: 18.03 | Y41: 15.77 | Z41: 14.02 | AA41: 12.62 | AB41: 11.47 | AC41: 10.52 | AD41: 9.71 | AE41: 9.01 | AF41: 8.41 | AG41: 7.89 | AH41: 7.42 | AI41: 7.01 | AJ41: 6.64 | AK41: 6.31 | AL41: 6.01 | AM41: 5.74 | AN41: 5.49 | AO41: 5.26 | AP41: 5.05 | AQ41: 4.85 | AR41: 4.67 | AS41: 4.51 | AT41: 4.35 | AU41: 4.21 | AV41: 4.07 | AW41: 3.94 | AX41: 3.82 | AY41: 3.71 | AZ41: 3.61 | BA41: 3.51 | BB41: 3.41 | BC41: 3.32 | BD41: 3.24 | BE41: 3.15 | BF41: 3.08 | BG41: 3 | BH41: 2.93 | BI41: 2.87 | BJ41: 2.8 | BK41: 2.74 | BL41: 2.68 | BM41: 2.63 | BN41: 2.58 | BO41: 2.52 | BP41: 2.47 | BQ41: 2.43 | BR41: 2.38 | BS41: 2.34 | BT41: 2.29 | BU41: 2.25 | BV41: 2.21 | BW41: 2.18 | BX41: 2.14 | BY41: 2.1 | BZ41: 2.07 | CA41: 2.04 | CB41: 2 | CC41: =IFERROR(IF(CB41<1,0,ROUND(VLOOKUP($V$14,$B$12:$I$15,5,FALSE)*SQRT($P41)/(PI()*VLOOKUP($DR$14,$MM$6:$MO$11,3,FALSE)^2/4*CC$18),2)),666) -> 1.97 | CD41: 1.94 | CE41: 1.91 | CF41: 1.88 | CG41: 1.86 | CH41: 1.83 | CI41: 1.8 | CJ41: 1.78 | CK41: 1.75 | CL41: 1.73 | CM41: 1.71 | CN41: 1.68 | CO41: 1.66 | CP41: 1.64 | CQ41: 1.62 | CR41: 1.6 | CS41: 1.58 | CT41: 1.56 | CU41: 1.54 | CV41: 1.52 | CW41: 1.5 | CX41: 1.48 | CY41: 1.47 | CZ41: 1.45 | DA41: 1.43 | DB41: 1.42 | DC41: 1.4 | DD41: 1.39 | DE41: 1.37 | DF41: 1.36 | DG41: 1.34 | DH41: 1.33 | DI41: 1.31 | DJ41: 1.3 | DK41: 1.29 | DL41: 1.27 | DM41: 1.26 | DN41: 1.25 | DO41: 1.24 | DP41: 1.23 | DQ41: 1.21 | DR41: 1.2 | DS41: 1.19 | DT41: 1.18 | DU41: 1.17 | DV41: 1.16 | DW41: 1.15 | DX41: 1.14 | DY41: 1.13 | DZ41: 1.12 | EA41: 1.11 | EB41: 1.1 | EC41: 1.09 | ED41: 1.08 | EE41: 1.07 | EF41: 1.06 | EG41: 1.05 | EH41: 1.04 | EI41: 1.03 | EJ41: 1.03 | EK41: 1.02 | EL41: 1.01 | EM41: 1 | EN41: 0.99 | EO41: =IFERROR(IF(EN41<1,0,ROUND(VLOOKUP($V$14,$B$12:$I$15,5,FALSE)*SQRT($P41)/(PI()*VLOOKUP($DR$14,$MM$6:$MO$11,3,FALSE)^2/4*EO$18),2)),666) -> 0 | EP41: 0 | EQ41: 0 | ER41: 0 | ES41: 0 | ET41: 0 | EU41: 0 | EV41: 0 | EW41: 0 | EX41: 0 | EY41: 0 | EZ41: 0 | FA41: 0 | FB41: 0 | FC41: 0 | FD41: 0 | FE41: 0 | FF41: 0 | FG41: 0 | FH41: 0 | FI41: 0 | FJ41: 0 | FK41: 0 | FL41: 0 | FM41: 0 | FN41: 0 | FO41: 0 | FP41: 0 | FQ41: 0 | FR41: 0 | FS41: 0 | FT41: 0 | FU41: 0 | FV41: 0 | FW41: 0 | FX41: 0 | FY41: 0 | FZ41: 0 | GA41: 0 | GB41: 0 | GC41: 0 | GD41: 0 | GE41: 0 | GF41: 0 | GG41: 0 | GH41: 0 | GI41: 0 | GJ41: 0 | GK41: 0 | GL41: 0 | GM41: 0 | GN41: 0 | GO41: 0 | GP41: 0 | GQ41: 0 | GR41: 0 | GS41: 0 | GT41: 0 | GU41: 0 | GV41: 0 | GW41: 0 | GX41: 0 | GY41: 0 | GZ41: 0 | HA41: =IFERROR(IF(GZ41<1,0,ROUND(VLOOKUP($V$14,$B$12:$I$15,5,FALSE)*SQRT($P41)/(PI()*VLOOKUP($DR$14,$MM$6:$MO$11,3,FALSE)^2/4*HA$18),2)),666) -> 0 | HB41: 0 | HC41: 0 | HD41: 0 | HE41: 0 | HF41: 0 | HG41: 0 | HH41: 0 | HI41: 0 | HJ41: 0 | HK41: 0 | HL41: 0 | HM41: 0 | HN41: 0 | HO41: 0 | HP41: 0 | HQ41: 0 | HR41: 0 | HS41: 0 | HT41: 0 | HU41: 0 | HV41: 0 | HW41: 0 | HX41: 0 | HY41: 0 | HZ41: 0 | IA41: 0 | IB41: 0 | IC41: 0 | ID41: 0 | IE41: 0 | IF41: 0 | IG41: 0 | IH41: 0 | II41: 0 | IJ41: 0 | IK41: 0 | IL41: 0 | IM41: 0 | IN41: 0 | IO41: 0 | IP41: 0 | IQ41: 0 | IR41: 0 | IS41: 0 | IT41: 0 | IU41: 0 | IV41: 0 | IW41: 0 | IX41: 0 | IY41: 0 | IZ41: 0 | JA41: 0 | JB41: 0 | JC41: 0 | JD41: 0 | JE41: 0 | JF41: 0 | JG41: 0 | JH41: 0 | JI41: 0 | JJ41: 0 | JK41: 0 | JL41: 0 | JM41: =IFERROR(IF(JL41<1,0,ROUND(VLOOKUP($V$14,$B$12:$I$15,5,FALSE)*SQRT($P41)/(PI()*VLOOKUP($DR$14,$MM$6:$MO$11,3,FALSE)^2/4*JM$18),2)),666) -> 0 | JN41: 0 | JO41: 0 | JP41: 0 | JQ41: 0 | JR41: 0 | JS41: 0 | JT41: 0 | JU41: 0 | JV41: 0 | JW41: 0 | JX41: 0 | JY41: 0 | JZ41: 0 | KA41: 0 | KB41: 0 | KC41: 0 | KD41: 0 | KE41: 0 | KF41: 0 | KG41: 0 | KH41: 0 | KI41: 0 | KJ41: 0 | KK41: 0 | KL41: 0 | KM41: 0 | KN41: 0 | KO41: 0 | KP41: 0 | KQ41: 0 | KR41: 0 | KS41: 0 | KT41: 0 | KU41: 0 | KV41: 0 | KW41: 0 | KX41: 0 | KY41: 0 | KZ41: 0 | LA41: 0 | LB41: 0 | LC41: 0 | LD41: 0 | LE41: 0 | LF41: 0 | LG41: 0 | LH41: 0 | LI41: 0 | LJ41: 0 | LK41: 0 | LL41: 0 | LM41: 0 | LN41: 0 | LO41: 0 | LP41: 0 | LQ41: 0 | LR41: 0 | LS41: 0 | LT41: 0 | LU41: 0 | LV41: 0 | LW41: 0 | LX41: 0 | LY41: 0 | MH41: 31.1 | MI41: 451.0673835 | MJ41: 3.11
P42: 32.2 | Q42: =IFERROR(IF(P42<1,0,ROUND(VLOOKUP($V$14,$B$12:$I$15,5,FALSE)*SQRT($P42)/(PI()*VLOOKUP($DR$14,$MM$6:$MO$11,3,FALSE)^2/4*Q$18),2)),666) -> 666 | R42: 125.99 | S42: 62.99 | T42: 42 | U42: 31.5 | V42: 25.2 | W42: 21 | X42: 18 | Y42: 15.75 | Z42: 14 | AA42: 12.6 | AB42: 11.45 | AC42: 10.5 | AD42: 9.69 | AE42: 9 | AF42: 8.4 | AG42: 7.87 | AH42: 7.41 | AI42: 7 | AJ42: 6.63 | AK42: 6.3 | AL42: 6 | AM42: 5.73 | AN42: 5.48 | AO42: 5.25 | AP42: 5.04 | AQ42: 4.85 | AR42: 4.67 | AS42: 4.5 | AT42: 4.34 | AU42: 4.2 | AV42: 4.06 | AW42: 3.94 | AX42: 3.82 | AY42: 3.71 | AZ42: 3.6 | BA42: 3.5 | BB42: 3.41 | BC42: 3.32 | BD42: 3.23 | BE42: 3.15 | BF42: 3.07 | BG42: 3 | BH42: 2.93 | BI42: 2.86 | BJ42: 2.8 | BK42: 2.74 | BL42: 2.68 | BM42: 2.62 | BN42: 2.57 | BO42: 2.52 | BP42: 2.47 | BQ42: 2.42 | BR42: 2.38 | BS42: 2.33 | BT42: 2.29 | BU42: 2.25 | BV42: 2.21 | BW42: 2.17 | BX42: 2.14 | BY42: 2.1 | BZ42: 2.07 | CA42: 2.03 | CB42: 2 | CC42: =IFERROR(IF(CB42<1,0,ROUND(VLOOKUP($V$14,$B$12:$I$15,5,FALSE)*SQRT($P42)/(PI()*VLOOKUP($DR$14,$MM$6:$MO$11,3,FALSE)^2/4*CC$18),2)),666) -> 1.97 | CD42: 1.94 | CE42: 1.91 | CF42: 1.88 | CG42: 1.85 | CH42: 1.83 | CI42: 1.8 | CJ42: 1.77 | CK42: 1.75 | CL42: 1.73 | CM42: 1.7 | CN42: 1.68 | CO42: 1.66 | CP42: 1.64 | CQ42: 1.62 | CR42: 1.59 | CS42: 1.57 | CT42: 1.56 | CU42: 1.54 | CV42: 1.52 | CW42: 1.5 | CX42: 1.48 | CY42: 1.46 | CZ42: 1.45 | DA42: 1.43 | DB42: 1.42 | DC42: 1.4 | DD42: 1.38 | DE42: 1.37 | DF42: 1.35 | DG42: 1.34 | DH42: 1.33 | DI42: 1.31 | DJ42: 1.3 | DK42: 1.29 | DL42: 1.27 | DM42: 1.26 | DN42: 1.25 | DO42: 1.24 | DP42: 1.22 | DQ42: 1.21 | DR42: 1.2 | DS42: 1.19 | DT42: 1.18 | DU42: 1.17 | DV42: 1.16 | DW42: 1.15 | DX42: 1.14 | DY42: 1.12 | DZ42: 1.11 | EA42: 1.11 | EB42: 1.1 | EC42: 1.09 | ED42: 1.08 | EE42: 1.07 | EF42: 1.06 | EG42: 1.05 | EH42: 1.04 | EI42: 1.03 | EJ42: 1.02 | EK42: 1.02 | EL42: 1.01 | EM42: 1 | EN42: 0.99 | EO42: =IFERROR(IF(EN42<1,0,ROUND(VLOOKUP($V$14,$B$12:$I$15,5,FALSE)*SQRT($P42)/(PI()*VLOOKUP($DR$14,$MM$6:$MO$11,3,FALSE)^2/4*EO$18),2)),666) -> 0 | EP42: 0 | EQ42: 0 | ER42: 0 | ES42: 0 | ET42: 0 | EU42: 0 | EV42: 0 | EW42: 0 | EX42: 0 | EY42: 0 | EZ42: 0 | FA42: 0 | FB42: 0 | FC42: 0 | FD42: 0 | FE42: 0 | FF42: 0 | FG42: 0 | FH42: 0 | FI42: 0 | FJ42: 0 | FK42: 0 | FL42: 0 | FM42: 0 | FN42: 0 | FO42: 0 | FP42: 0 | FQ42: 0 | FR42: 0 | FS42: 0 | FT42: 0 | FU42: 0 | FV42: 0 | FW42: 0 | FX42: 0 | FY42: 0 | FZ42: 0 | GA42: 0 | GB42: 0 | GC42: 0 | GD42: 0 | GE42: 0 | GF42: 0 | GG42: 0 | GH42: 0 | GI42: 0 | GJ42: 0 | GK42: 0 | GL42: 0 | GM42: 0 | GN42: 0 | GO42: 0 | GP42: 0 | GQ42: 0 | GR42: 0 | GS42: 0 | GT42: 0 | GU42: 0 | GV42: 0 | GW42: 0 | GX42: 0 | GY42: 0 | GZ42: 0 | HA42: =IFERROR(IF(GZ42<1,0,ROUND(VLOOKUP($V$14,$B$12:$I$15,5,FALSE)*SQRT($P42)/(PI()*VLOOKUP($DR$14,$MM$6:$MO$11,3,FALSE)^2/4*HA$18),2)),666) -> 0 | HB42: 0 | HC42: 0 | HD42: 0 | HE42: 0 | HF42: 0 | HG42: 0 | HH42: 0 | HI42: 0 | HJ42: 0 | HK42: 0 | HL42: 0 | HM42: 0 | HN42: 0 | HO42: 0 | HP42: 0 | HQ42: 0 | HR42: 0 | HS42: 0 | HT42: 0 | HU42: 0 | HV42: 0 | HW42: 0 | HX42: 0 | HY42: 0 | HZ42: 0 | IA42: 0 | IB42: 0 | IC42: 0 | ID42: 0 | IE42: 0 | IF42: 0 | IG42: 0 | IH42: 0 | II42: 0 | IJ42: 0 | IK42: 0 | IL42: 0 | IM42: 0 | IN42: 0 | IO42: 0 | IP42: 0 | IQ42: 0 | IR42: 0 | IS42: 0 | IT42: 0 | IU42: 0 | IV42: 0 | IW42: 0 | IX42: 0 | IY42: 0 | IZ42: 0 | JA42: 0 | JB42: 0 | JC42: 0 | JD42: 0 | JE42: 0 | JF42: 0 | JG42: 0 | JH42: 0 | JI42: 0 | JJ42: 0 | JK42: 0 | JL42: 0 | JM42: =IFERROR(IF(JL42<1,0,ROUND(VLOOKUP($V$14,$B$12:$I$15,5,FALSE)*SQRT($P42)/(PI()*VLOOKUP($DR$14,$MM$6:$MO$11,3,FALSE)^2/4*JM$18),2)),666) -> 0 | JN42: 0 | JO42: 0 | JP42: 0 | JQ42: 0 | JR42: 0 | JS42: 0 | JT42: 0 | JU42: 0 | JV42: 0 | JW42: 0 | JX42: 0 | JY42: 0 | JZ42: 0 | KA42: 0 | KB42: 0 | KC42: 0 | KD42: 0 | KE42: 0 | KF42: 0 | KG42: 0 | KH42: 0 | KI42: 0 | KJ42: 0 | KK42: 0 | KL42: 0 | KM42: 0 | KN42: 0 | KO42: 0 | KP42: 0 | KQ42: 0 | KR42: 0 | KS42: 0 | KT42: 0 | KU42: 0 | KV42: 0 | KW42: 0 | KX42: 0 | KY42: 0 | KZ42: 0 | LA42: 0 | LB42: 0 | LC42: 0 | LD42: 0 | LE42: 0 | LF42: 0 | LG42: 0 | LH42: 0 | LI42: 0 | LJ42: 0 | LK42: 0 | LL42: 0 | LM42: 0 | LN42: 0 | LO42: 0 | LP42: 0 | LQ42: 0 | LR42: 0 | LS42: 0 | LT42: 0 | LU42: 0 | LV42: 0 | LW42: 0 | LX42: 0 | LY42: 0 | MH42: 31 | MI42: 449.6170061 | MJ42: 3.1
P43: 32.1 | Q43: =IFERROR(IF(P43<1,0,ROUND(VLOOKUP($V$14,$B$12:$I$15,5,FALSE)*SQRT($P43)/(PI()*VLOOKUP($DR$14,$MM$6:$MO$11,3,FALSE)^2/4*Q$18),2)),666) -> 666 | R43: 125.79 | S43: 62.9 | T43: 41.93 | U43: 31.45 | V43: 25.16 | W43: 20.97 | X43: 17.97 | Y43: 15.72 | Z43: 13.98 | AA43: 12.58 | AB43: 11.44 | AC43: 10.48 | AD43: 9.68 | AE43: 8.99 | AF43: 8.39 | AG43: 7.86 | AH43: 7.4 | AI43: 6.99 | AJ43: 6.62 | AK43: 6.29 | AL43: 5.99 | AM43: 5.72 | AN43: 5.47 | AO43: 5.24 | AP43: 5.03 | AQ43: 4.84 | AR43: 4.66 | AS43: 4.49 | AT43: 4.34 | AU43: 4.19 | AV43: 4.06 | AW43: 3.93 | AX43: 3.81 | AY43: 3.7 | AZ43: 3.59 | BA43: 3.49 | BB43: 3.4 | BC43: 3.31 | BD43: 3.23 | BE43: 3.14 | BF43: 3.07 | BG43: 3 | BH43: 2.93 | BI43: 2.86 | BJ43: 2.8 | BK43: 2.73 | BL43: 2.68 | BM43: 2.62 | BN43: 2.57 | BO43: 2.52 | BP43: 2.47 | BQ43: 2.42 | BR43: 2.37 | BS43: 2.33 | BT43: 2.29 | BU43: 2.25 | BV43: 2.21 | BW43: 2.17 | BX43: 2.13 | BY43: 2.1 | BZ43: 2.06 | CA43: 2.03 | CB43: 2 | CC43: =IFERROR(IF(CB43<1,0,ROUND(VLOOKUP($V$14,$B$12:$I$15,5,FALSE)*SQRT($P43)/(PI()*VLOOKUP($DR$14,$MM$6:$MO$11,3,FALSE)^2/4*CC$18),2)),666) -> 1.97 | CD43: 1.94 | CE43: 1.91 | CF43: 1.88 | CG43: 1.85 | CH43: 1.82 | CI43: 1.8 | CJ43: 1.77 | CK43: 1.75 | CL43: 1.72 | CM43: 1.7 | CN43: 1.68 | CO43: 1.66 | CP43: 1.63 | CQ43: 1.61 | CR43: 1.59 | CS43: 1.57 | CT43: 1.55 | CU43: 1.53 | CV43: 1.52 | CW43: 1.5 | CX43: 1.48 | CY43: 1.46 | CZ43: 1.45 | DA43: 1.43 | DB43: 1.41 | DC43: 1.4 | DD43: 1.38 | DE43: 1.37 | DF43: 1.35 | DG43: 1.34 | DH43: 1.32 | DI43: 1.31 | DJ43: 1.3 | DK43: 1.28 | DL43: 1.27 | DM43: 1.26 | DN43: 1.25 | DO43: 1.23 | DP43: 1.22 | DQ43: 1.21 | DR43: 1.2 | DS43: 1.19 | DT43: 1.18 | DU43: 1.16 | DV43: 1.15 | DW43: 1.14 | DX43: 1.13 | DY43: 1.12 | DZ43: 1.11 | EA43: 1.1 | EB43: 1.09 | EC43: 1.08 | ED43: 1.08 | EE43: 1.07 | EF43: 1.06 | EG43: 1.05 | EH43: 1.04 | EI43: 1.03 | EJ43: 1.02 | EK43: 1.01 | EL43: 1.01 | EM43: 1 | EN43: 0.99 | EO43: =IFERROR(IF(EN43<1,0,ROUND(VLOOKUP($V$14,$B$12:$I$15,5,FALSE)*SQRT($P43)/(PI()*VLOOKUP($DR$14,$MM$6:$MO$11,3,FALSE)^2/4*EO$18),2)),666) -> 0 | EP43: 0 | EQ43: 0 | ER43: 0 | ES43: 0 | ET43: 0 | EU43: 0 | EV43: 0 | EW43: 0 | EX43: 0 | EY43: 0 | EZ43: 0 | FA43: 0 | FB43: 0 | FC43: 0 | FD43: 0 | FE43: 0 | FF43: 0 | FG43: 0 | FH43: 0 | FI43: 0 | FJ43: 0 | FK43: 0 | FL43: 0 | FM43: 0 | FN43: 0 | FO43: 0 | FP43: 0 | FQ43: 0 | FR43: 0 | FS43: 0 | FT43: 0 | FU43: 0 | FV43: 0 | FW43: 0 | FX43: 0 | FY43: 0 | FZ43: 0 | GA43: 0 | GB43: 0 | GC43: 0 | GD43: 0 | GE43: 0 | GF43: 0 | GG43: 0 | GH43: 0 | GI43: 0 | GJ43: 0 | GK43: 0 | GL43: 0 | GM43: 0 | GN43: 0 | GO43: 0 | GP43: 0 | GQ43: 0 | GR43: 0 | GS43: 0 | GT43: 0 | GU43: 0 | GV43: 0 | GW43: 0 | GX43: 0 | GY43: 0 | GZ43: 0 | HA43: =IFERROR(IF(GZ43<1,0,ROUND(VLOOKUP($V$14,$B$12:$I$15,5,FALSE)*SQRT($P43)/(PI()*VLOOKUP($DR$14,$MM$6:$MO$11,3,FALSE)^2/4*HA$18),2)),666) -> 0 | HB43: 0 | HC43: 0 | HD43: 0 | HE43: 0 | HF43: 0 | HG43: 0 | HH43: 0 | HI43: 0 | HJ43: 0 | HK43: 0 | HL43: 0 | HM43: 0 | HN43: 0 | HO43: 0 | HP43: 0 | HQ43: 0 | HR43: 0 | HS43: 0 | HT43: 0 | HU43: 0 | HV43: 0 | HW43: 0 | HX43: 0 | HY43: 0 | HZ43: 0 | IA43: 0 | IB43: 0 | IC43: 0 | ID43: 0 | IE43: 0 | IF43: 0 | IG43: 0 | IH43: 0 | II43: 0 | IJ43: 0 | IK43: 0 | IL43: 0 | IM43: 0 | IN43: 0 | IO43: 0 | IP43: 0 | IQ43: 0 | IR43: 0 | IS43: 0 | IT43: 0 | IU43: 0 | IV43: 0 | IW43: 0 | IX43: 0 | IY43: 0 | IZ43: 0 | JA43: 0 | JB43: 0 | JC43: 0 | JD43: 0 | JE43: 0 | JF43: 0 | JG43: 0 | JH43: 0 | JI43: 0 | JJ43: 0 | JK43: 0 | JL43: 0 | JM43: =IFERROR(IF(JL43<1,0,ROUND(VLOOKUP($V$14,$B$12:$I$15,5,FALSE)*SQRT($P43)/(PI()*VLOOKUP($DR$14,$MM$6:$MO$11,3,FALSE)^2/4*JM$18),2)),666) -> 0 | JN43: 0 | JO43: 0 | JP43: 0 | JQ43: 0 | JR43: 0 | JS43: 0 | JT43: 0 | JU43: 0 | JV43: 0 | JW43: 0 | JX43: 0 | JY43: 0 | JZ43: 0 | KA43: 0 | KB43: 0 | KC43: 0 | KD43: 0 | KE43: 0 | KF43: 0 | KG43: 0 | KH43: 0 | KI43: 0 | KJ43: 0 | KK43: 0 | KL43: 0 | KM43: 0 | KN43: 0 | KO43: 0 | KP43: 0 | KQ43: 0 | KR43: 0 | KS43: 0 | KT43: 0 | KU43: 0 | KV43: 0 | KW43: 0 | KX43: 0 | KY43: 0 | KZ43: 0 | LA43: 0 | LB43: 0 | LC43: 0 | LD43: 0 | LE43: 0 | LF43: 0 | LG43: 0 | LH43: 0 | LI43: 0 | LJ43: 0 | LK43: 0 | LL43: 0 | LM43: 0 | LN43: 0 | LO43: 0 | LP43: 0 | LQ43: 0 | LR43: 0 | LS43: 0 | LT43: 0 | LU43: 0 | LV43: 0 | LW43: 0 | LX43: 0 | LY43: 0 | MH43: 30.9 | MI43: 448.1666286 | MJ43: 3.09
K44: =IF($HN$16=$MP$6,MH37,IF($HN$16=$MP$7,MI37,MJ37)) -> 31.5 | P44: 32 | Q44: =IFERROR(IF(P44<1,0,ROUND(VLOOKUP($V$14,$B$12:$I$15,5,FALSE)*SQRT($P44)/(PI()*VLOOKUP($DR$14,$MM$6:$MO$11,3,FALSE)^2/4*Q$18),2)),666) -> 666 | R44: 125.59 | S44: 62.8 | T44: 41.86 | U44: 31.4 | V44: 25.12 | W44: 20.93 | X44: 17.94 | Y44: 15.7 | Z44: 13.95 | AA44: 12.56 | AB44: 11.42 | AC44: 10.47 | AD44: 9.66 | AE44: 8.97 | AF44: 8.37 | AG44: 7.85 | AH44: 7.39 | AI44: 6.98 | AJ44: 6.61 | AK44: 6.28 | AL44: 5.98 | AM44: 5.71 | AN44: 5.46 | AO44: 5.23 | AP44: 5.02 | AQ44: 4.83 | AR44: 4.65 | AS44: 4.49 | AT44: 4.33 | AU44: 4.19 | AV44: 4.05 | AW44: 3.92 | AX44: 3.81 | AY44: 3.69 | AZ44: 3.59 | BA44: 3.49 | BB44: 3.39 | BC44: 3.31 | BD44: 3.22 | BE44: 3.14 | BF44: 3.06 | BG44: 2.99 | BH44: 2.92 | BI44: 2.85 | BJ44: 2.79 | BK44: 2.73 | BL44: 2.67 | BM44: 2.62 | BN44: 2.56 | BO44: 2.51 | BP44: 2.46 | BQ44: 2.42 | BR44: 2.37 | BS44: 2.33 | BT44: 2.28 | BU44: 2.24 | BV44: 2.2 | BW44: 2.17 | BX44: 2.13 | BY44: 2.09 | BZ44: 2.06 | CA44: 2.03 | CB44: 1.99 | CC44: =IFERROR(IF(CB44<1,0,ROUND(VLOOKUP($V$14,$B$12:$I$15,5,FALSE)*SQRT($P44)/(PI()*VLOOKUP($DR$14,$MM$6:$MO$11,3,FALSE)^2/4*CC$18),2)),666) -> 1.96 | CD44: 1.93 | CE44: 1.9 | CF44: 1.87 | CG44: 1.85 | CH44: 1.82 | CI44: 1.79 | CJ44: 1.77 | CK44: 1.74 | CL44: 1.72 | CM44: 1.7 | CN44: 1.67 | CO44: 1.65 | CP44: 1.63 | CQ44: 1.61 | CR44: 1.59 | CS44: 1.57 | CT44: 1.55 | CU44: 1.53 | CV44: 1.51 | CW44: 1.5 | CX44: 1.48 | CY44: 1.46 | CZ44: 1.44 | DA44: 1.43 | DB44: 1.41 | DC44: 1.4 | DD44: 1.38 | DE44: 1.37 | DF44: 1.35 | DG44: 1.34 | DH44: 1.32 | DI44: 1.31 | DJ44: 1.29 | DK44: 1.28 | DL44: 1.27 | DM44: 1.26 | DN44: 1.24 | DO44: 1.23 | DP44: 1.22 | DQ44: 1.21 | DR44: 1.2 | DS44: 1.18 | DT44: 1.17 | DU44: 1.16 | DV44: 1.15 | DW44: 1.14 | DX44: 1.13 | DY44: 1.12 | DZ44: 1.11 | EA44: 1.1 | EB44: 1.09 | EC44: 1.08 | ED44: 1.07 | EE44: 1.06 | EF44: 1.06 | EG44: 1.05 | EH44: 1.04 | EI44: 1.03 | EJ44: 1.02 | EK44: 1.01 | EL44: 1 | EM44: 1 | EN44: 0.99 | EO44: =IFERROR(IF(EN44<1,0,ROUND(VLOOKUP($V$14,$B$12:$I$15,5,FALSE)*SQRT($P44)/(PI()*VLOOKUP($DR$14,$MM$6:$MO$11,3,FALSE)^2/4*EO$18),2)),666) -> 0 | EP44: 0 | EQ44: 0 | ER44: 0 | ES44: 0 | ET44: 0 | EU44: 0 | EV44: 0 | EW44: 0 | EX44: 0 | EY44: 0 | EZ44: 0 | FA44: 0 | FB44: 0 | FC44: 0 | FD44: 0 | FE44: 0 | FF44: 0 | FG44: 0 | FH44: 0 | FI44: 0 | FJ44: 0 | FK44: 0 | FL44: 0 | FM44: 0 | FN44: 0 | FO44: 0 | FP44: 0 | FQ44: 0 | FR44: 0 | FS44: 0 | FT44: 0 | FU44: 0 | FV44: 0 | FW44: 0 | FX44: 0 | FY44: 0 | FZ44: 0 | GA44: 0 | GB44: 0 | GC44: 0 | GD44: 0 | GE44: 0 | GF44: 0 | GG44: 0 | GH44: 0 | GI44: 0 | GJ44: 0 | GK44: 0 | GL44: 0 | GM44: 0 | GN44: 0 | GO44: 0 | GP44: 0 | GQ44: 0 | GR44: 0 | GS44: 0 | GT44: 0 | GU44: 0 | GV44: 0 | GW44: 0 | GX44: 0 | GY44: 0 | GZ44: 0 | HA44: =IFERROR(IF(GZ44<1,0,ROUND(VLOOKUP($V$14,$B$12:$I$15,5,FALSE)*SQRT($P44)/(PI()*VLOOKUP($DR$14,$MM$6:$MO$11,3,FALSE)^2/4*HA$18),2)),666) -> 0 | HB44: 0 | HC44: 0 | HD44: 0 | HE44: 0 | HF44: 0 | HG44: 0 | HH44: 0 | HI44: 0 | HJ44: 0 | HK44: 0 | HL44: 0 | HM44: 0 | HN44: 0 | HO44: 0 | HP44: 0 | HQ44: 0 | HR44: 0 | HS44: 0 | HT44: 0 | HU44: 0 | HV44: 0 | HW44: 0 | HX44: 0 | HY44: 0 | HZ44: 0 | IA44: 0 | IB44: 0 | IC44: 0 | ID44: 0 | IE44: 0 | IF44: 0 | IG44: 0 | IH44: 0 | II44: 0 | IJ44: 0 | IK44: 0 | IL44: 0 | IM44: 0 | IN44: 0 | IO44: 0 | IP44: 0 | IQ44: 0 | IR44: 0 | IS44: 0 | IT44: 0 | IU44: 0 | IV44: 0 | IW44: 0 | IX44: 0 | IY44: 0 | IZ44: 0 | JA44: 0 | JB44: 0 | JC44: 0 | JD44: 0 | JE44: 0 | JF44: 0 | JG44: 0 | JH44: 0 | JI44: 0 | JJ44: 0 | JK44: 0 | JL44: 0 | JM44: =IFERROR(IF(JL44<1,0,ROUND(VLOOKUP($V$14,$B$12:$I$15,5,FALSE)*SQRT($P44)/(PI()*VLOOKUP($DR$14,$MM$6:$MO$11,3,FALSE)^2/4*JM$18),2)),666) -> 0 | JN44: 0 | JO44: 0 | JP44: 0 | JQ44: 0 | JR44: 0 | JS44: 0 | JT44: 0 | JU44: 0 | JV44: 0 | JW44: 0 | JX44: 0 | JY44: 0 | JZ44: 0 | KA44: 0 | KB44: 0 | KC44: 0 | KD44: 0 | KE44: 0 | KF44: 0 | KG44: 0 | KH44: 0 | KI44: 0 | KJ44: 0 | KK44: 0 | KL44: 0 | KM44: 0 | KN44: 0 | KO44: 0 | KP44: 0 | KQ44: 0 | KR44: 0 | KS44: 0 | KT44: 0 | KU44: 0 | KV44: 0 | KW44: 0 | KX44: 0 | KY44: 0 | KZ44: 0 | LA44: 0 | LB44: 0 | LC44: 0 | LD44: 0 | LE44: 0 | LF44: 0 | LG44: 0 | LH44: 0 | LI44: 0 | LJ44: 0 | LK44: 0 | LL44: 0 | LM44: 0 | LN44: 0 | LO44: 0 | LP44: 0 | LQ44: 0 | LR44: 0 | LS44: 0 | LT44: 0 | LU44: 0 | LV44: 0 | LW44: 0 | LX44: 0 | LY44: 0 | MH44: 30.8 | MI44: 446.7162512 | MJ44: 3.08
P45: 31.9 | Q45: =IFERROR(IF(P45<1,0,ROUND(VLOOKUP($V$14,$B$12:$I$15,5,FALSE)*SQRT($P45)/(PI()*VLOOKUP($DR$14,$MM$6:$MO$11,3,FALSE)^2/4*Q$18),2)),666) -> 666 | R45: 125.4 | S45: 62.7 | T45: 41.8 | U45: 31.35 | V45: 25.08 | W45: 20.9 | X45: 17.91 | Y45: 15.67 | Z45: 13.93 | AA45: 12.54 | AB45: 11.4 | AC45: 10.45 | AD45: 9.65 | AE45: 8.96 | AF45: 8.36 | AG45: 7.84 | AH45: 7.38 | AI45: 6.97 | AJ45: 6.6 | AK45: 6.27 | AL45: 5.97 | AM45: 5.7 | AN45: 5.45 | AO45: 5.22 | AP45: 5.02 | AQ45: 4.82 | AR45: 4.64 | AS45: 4.48 | AT45: 4.32 | AU45: 4.18 | AV45: 4.05 | AW45: 3.92 | AX45: 3.8 | AY45: 3.69 | AZ45: 3.58 | BA45: 3.48 | BB45: 3.39 | BC45: 3.3 | BD45: 3.22 | BE45: 3.13 | BF45: 3.06 | BG45: 2.99 | BH45: 2.92 | BI45: 2.85 | BJ45: 2.79 | BK45: 2.73 | BL45: 2.67 | BM45: 2.61 | BN45: 2.56 | BO45: 2.51 | BP45: 2.46 | BQ45: 2.41 | BR45: 2.37 | BS45: 2.32 | BT45: 2.28 | BU45: 2.24 | BV45: 2.2 | BW45: 2.16 | BX45: 2.13 | BY45: 2.09 | BZ45: 2.06 | CA45: 2.02 | CB45: 1.99 | CC45: =IFERROR(IF(CB45<1,0,ROUND(VLOOKUP($V$14,$B$12:$I$15,5,FALSE)*SQRT($P45)/(PI()*VLOOKUP($DR$14,$MM$6:$MO$11,3,FALSE)^2/4*CC$18),2)),666) -> 1.96 | CD45: 1.93 | CE45: 1.9 | CF45: 1.87 | CG45: 1.84 | CH45: 1.82 | CI45: 1.79 | CJ45: 1.77 | CK45: 1.74 | CL45: 1.72 | CM45: 1.69 | CN45: 1.67 | CO45: 1.65 | CP45: 1.63 | CQ45: 1.61 | CR45: 1.59 | CS45: 1.57 | CT45: 1.55 | CU45: 1.53 | CV45: 1.51 | CW45: 1.49 | CX45: 1.48 | CY45: 1.46 | CZ45: 1.44 | DA45: 1.42 | DB45: 1.41 | DC45: 1.39 | DD45: 1.38 | DE45: 1.36 | DF45: 1.35 | DG45: 1.33 | DH45: 1.32 | DI45: 1.31 | DJ45: 1.29 | DK45: 1.28 | DL45: 1.27 | DM45: 1.25 | DN45: 1.24 | DO45: 1.23 | DP45: 1.22 | DQ45: 1.21 | DR45: 1.19 | DS45: 1.18 | DT45: 1.17 | DU45: 1.16 | DV45: 1.15 | DW45: 1.14 | DX45: 1.13 | DY45: 1.12 | DZ45: 1.11 | EA45: 1.1 | EB45: 1.09 | EC45: 1.08 | ED45: 1.07 | EE45: 1.06 | EF45: 1.05 | EG45: 1.04 | EH45: 1.04 | EI45: 1.03 | EJ45: 1.02 | EK45: 1.01 | EL45: 1 | EM45: 1 | EN45: 0.99 | EO45: =IFERROR(IF(EN45<1,0,ROUND(VLOOKUP($V$14,$B$12:$I$15,5,FALSE)*SQRT($P45)/(PI()*VLOOKUP($DR$14,$MM$6:$MO$11,3,FALSE)^2/4*EO$18),2)),666) -> 0 | EP45: 0 | EQ45: 0 | ER45: 0 | ES45: 0 | ET45: 0 | EU45: 0 | EV45: 0 | EW45: 0 | EX45: 0 | EY45: 0 | EZ45: 0 | FA45: 0 | FB45: 0 | FC45: 0 | FD45: 0 | FE45: 0 | FF45: 0 | FG45: 0 | FH45: 0 | FI45: 0 | FJ45: 0 | FK45: 0 | FL45: 0 | FM45: 0 | FN45: 0 | FO45: 0 | FP45: 0 | FQ45: 0 | FR45: 0 | FS45: 0 | FT45: 0 | FU45: 0 | FV45: 0 | FW45: 0 | FX45: 0 | FY45: 0 | FZ45: 0 | GA45: 0 | GB45: 0 | GC45: 0 | GD45: 0 | GE45: 0 | GF45: 0 | GG45: 0 | GH45: 0 | GI45: 0 | GJ45: 0 | GK45: 0 | GL45: 0 | GM45: 0 | GN45: 0 | GO45: 0 | GP45: 0 | GQ45: 0 | GR45: 0 | GS45: 0 | GT45: 0 | GU45: 0 | GV45: 0 | GW45: 0 | GX45: 0 | GY45: 0 | GZ45: 0 | HA45: =IFERROR(IF(GZ45<1,0,ROUND(VLOOKUP($V$14,$B$12:$I$15,5,FALSE)*SQRT($P45)/(PI()*VLOOKUP($DR$14,$MM$6:$MO$11,3,FALSE)^2/4*HA$18),2)),666) -> 0 | HB45: 0 | HC45: 0 | HD45: 0 | HE45: 0 | HF45: 0 | HG45: 0 | HH45: 0 | HI45: 0 | HJ45: 0 | HK45: 0 | HL45: 0 | HM45: 0 | HN45: 0 | HO45: 0 | HP45: 0 | HQ45: 0 | HR45: 0 | HS45: 0 | HT45: 0 | HU45: 0 | HV45: 0 | HW45: 0 | HX45: 0 | HY45: 0 | HZ45: 0 | IA45: 0 | IB45: 0 | IC45: 0 | ID45: 0 | IE45: 0 | IF45: 0 | IG45: 0 | IH45: 0 | II45: 0 | IJ45: 0 | IK45: 0 | IL45: 0 | IM45: 0 | IN45: 0 | IO45: 0 | IP45: 0 | IQ45: 0 | IR45: 0 | IS45: 0 | IT45: 0 | IU45: 0 | IV45: 0 | IW45: 0 | IX45: 0 | IY45: 0 | IZ45: 0 | JA45: 0 | JB45: 0 | JC45: 0 | JD45: 0 | JE45: 0 | JF45: 0 | JG45: 0 | JH45: 0 | JI45: 0 | JJ45: 0 | JK45: 0 | JL45: 0 | JM45: =IFERROR(IF(JL45<1,0,ROUND(VLOOKUP($V$14,$B$12:$I$15,5,FALSE)*SQRT($P45)/(PI()*VLOOKUP($DR$14,$MM$6:$MO$11,3,FALSE)^2/4*JM$18),2)),666) -> 0 | JN45: 0 | JO45: 0 | JP45: 0 | JQ45: 0 | JR45: 0 | JS45: 0 | JT45: 0 | JU45: 0 | JV45: 0 | JW45: 0 | JX45: 0 | JY45: 0 | JZ45: 0 | KA45: 0 | KB45: 0 | KC45: 0 | KD45: 0 | KE45: 0 | KF45: 0 | KG45: 0 | KH45: 0 | KI45: 0 | KJ45: 0 | KK45: 0 | KL45: 0 | KM45: 0 | KN45: 0 | KO45: 0 | KP45: 0 | KQ45: 0 | KR45: 0 | KS45: 0 | KT45: 0 | KU45: 0 | KV45: 0 | KW45: 0 | KX45: 0 | KY45: 0 | KZ45: 0 | LA45: 0 | LB45: 0 | LC45: 0 | LD45: 0 | LE45: 0 | LF45: 0 | LG45: 0 | LH45: 0 | LI45: 0 | LJ45: 0 | LK45: 0 | LL45: 0 | LM45: 0 | LN45: 0 | LO45: 0 | LP45: 0 | LQ45: 0 | LR45: 0 | LS45: 0 | LT45: 0 | LU45: 0 | LV45: 0 | LW45: 0 | LX45: 0 | LY45: 0 | MH45: 30.7 | MI45: 445.2658738 | MJ45: 3.07
P46: 31.8 | Q46: =IFERROR(IF(P46<1,0,ROUND(VLOOKUP($V$14,$B$12:$I$15,5,FALSE)*SQRT($P46)/(PI()*VLOOKUP($DR$14,$MM$6:$MO$11,3,FALSE)^2/4*Q$18),2)),666) -> 666 | R46: 125.2 | S46: 62.6 | T46: 41.73 | U46: 31.3 | V46: 25.04 | W46: 20.87 | X46: 17.89 | Y46: 15.65 | Z46: 13.91 | AA46: 12.52 | AB46: 11.38 | AC46: 10.43 | AD46: 9.63 | AE46: 8.94 | AF46: 8.35 | AG46: 7.83 | AH46: 7.36 | AI46: 6.96 | AJ46: 6.59 | AK46: 6.26 | AL46: 5.96 | AM46: 5.69 | AN46: 5.44 | AO46: 5.22 | AP46: 5.01 | AQ46: 4.82 | AR46: 4.64 | AS46: 4.47 | AT46: 4.32 | AU46: 4.17 | AV46: 4.04 | AW46: 3.91 | AX46: 3.79 | AY46: 3.68 | AZ46: 3.58 | BA46: 3.48 | BB46: 3.38 | BC46: 3.29 | BD46: 3.21 | BE46: 3.13 | BF46: 3.05 | BG46: 2.98 | BH46: 2.91 | BI46: 2.85 | BJ46: 2.78 | BK46: 2.72 | BL46: 2.66 | BM46: 2.61 | BN46: 2.56 | BO46: 2.5 | BP46: 2.45 | BQ46: 2.41 | BR46: 2.36 | BS46: 2.32 | BT46: 2.28 | BU46: 2.24 | BV46: 2.2 | BW46: 2.16 | BX46: 2.12 | BY46: 2.09 | BZ46: 2.05 | CA46: 2.02 | CB46: 1.99 | CC46: =IFERROR(IF(CB46<1,0,ROUND(VLOOKUP($V$14,$B$12:$I$15,5,FALSE)*SQRT($P46)/(PI()*VLOOKUP($DR$14,$MM$6:$MO$11,3,FALSE)^2/4*CC$18),2)),666) -> 1.96 | CD46: 1.93 | CE46: 1.9 | CF46: 1.87 | CG46: 1.84 | CH46: 1.81 | CI46: 1.79 | CJ46: 1.76 | CK46: 1.74 | CL46: 1.72 | CM46: 1.69 | CN46: 1.67 | CO46: 1.65 | CP46: 1.63 | CQ46: 1.61 | CR46: 1.58 | CS46: 1.57 | CT46: 1.55 | CU46: 1.53 | CV46: 1.51 | CW46: 1.49 | CX46: 1.47 | CY46: 1.46 | CZ46: 1.44 | DA46: 1.42 | DB46: 1.41 | DC46: 1.39 | DD46: 1.38 | DE46: 1.36 | DF46: 1.35 | DG46: 1.33 | DH46: 1.32 | DI46: 1.3 | DJ46: 1.29 | DK46: 1.28 | DL46: 1.26 | DM46: 1.25 | DN46: 1.24 | DO46: 1.23 | DP46: 1.22 | DQ46: 1.2 | DR46: 1.19 | DS46: 1.18 | DT46: 1.17 | DU46: 1.16 | DV46: 1.15 | DW46: 1.14 | DX46: 1.13 | DY46: 1.12 | DZ46: 1.11 | EA46: 1.1 | EB46: 1.09 | EC46: 1.08 | ED46: 1.07 | EE46: 1.06 | EF46: 1.05 | EG46: 1.04 | EH46: 1.03 | EI46: 1.03 | EJ46: 1.02 | EK46: 1.01 | EL46: 1 | EM46: 0.99 | EN46: 0 | EO46: =IFERROR(IF(EN46<1,0,ROUND(VLOOKUP($V$14,$B$12:$I$15,5,FALSE)*SQRT($P46)/(PI()*VLOOKUP($DR$14,$MM$6:$MO$11,3,FALSE)^2/4*EO$18),2)),666) -> 0 | EP46: 0 | EQ46: 0 | ER46: 0 | ES46: 0 | ET46: 0 | EU46: 0 | EV46: 0 | EW46: 0 | EX46: 0 | EY46: 0 | EZ46: 0 | FA46: 0 | FB46: 0 | FC46: 0 | FD46: 0 | FE46: 0 | FF46: 0 | FG46: 0 | FH46: 0 | FI46: 0 | FJ46: 0 | FK46: 0 | FL46: 0 | FM46: 0 | FN46: 0 | FO46: 0 | FP46: 0 | FQ46: 0 | FR46: 0 | FS46: 0 | FT46: 0 | FU46: 0 | FV46: 0 | FW46: 0 | FX46: 0 | FY46: 0 | FZ46: 0 | GA46: 0 | GB46: 0 | GC46: 0 | GD46: 0 | GE46: 0 | GF46: 0 | GG46: 0 | GH46: 0 | GI46: 0 | GJ46: 0 | GK46: 0 | GL46: 0 | GM46: 0 | GN46: 0 | GO46: 0 | GP46: 0 | GQ46: 0 | GR46: 0 | GS46: 0 | GT46: 0 | GU46: 0 | GV46: 0 | GW46: 0 | GX46: 0 | GY46: 0 | GZ46: 0 | HA46: =IFERROR(IF(GZ46<1,0,ROUND(VLOOKUP($V$14,$B$12:$I$15,5,FALSE)*SQRT($P46)/(PI()*VLOOKUP($DR$14,$MM$6:$MO$11,3,FALSE)^2/4*HA$18),2)),666) -> 0 | HB46: 0 | HC46: 0 | HD46: 0 | HE46: 0 | HF46: 0 | HG46: 0 | HH46: 0 | HI46: 0 | HJ46: 0 | HK46: 0 | HL46: 0 | HM46: 0 | HN46: 0 | HO46: 0 | HP46: 0 | HQ46: 0 | HR46: 0 | HS46: 0 | HT46: 0 | HU46: 0 | HV46: 0 | HW46: 0 | HX46: 0 | HY46: 0 | HZ46: 0 | IA46: 0 | IB46: 0 | IC46: 0 | ID46: 0 | IE46: 0 | IF46: 0 | IG46: 0 | IH46: 0 | II46: 0 | IJ46: 0 | IK46: 0 | IL46: 0 | IM46: 0 | IN46: 0 | IO46: 0 | IP46: 0 | IQ46: 0 | IR46: 0 | IS46: 0 | IT46: 0 | IU46: 0 | IV46: 0 | IW46: 0 | IX46: 0 | IY46: 0 | IZ46: 0 | JA46: 0 | JB46: 0 | JC46: 0 | JD46: 0 | JE46: 0 | JF46: 0 | JG46: 0 | JH46: 0 | JI46: 0 | JJ46: 0 | JK46: 0 | JL46: 0 | JM46: =IFERROR(IF(JL46<1,0,ROUND(VLOOKUP($V$14,$B$12:$I$15,5,FALSE)*SQRT($P46)/(PI()*VLOOKUP($DR$14,$MM$6:$MO$11,3,FALSE)^2/4*JM$18),2)),666) -> 0 | JN46: 0 | JO46: 0 | JP46: 0 | JQ46: 0 | JR46: 0 | JS46: 0 | JT46: 0 | JU46: 0 | JV46: 0 | JW46: 0 | JX46: 0 | JY46: 0 | JZ46: 0 | KA46: 0 | KB46: 0 | KC46: 0 | KD46: 0 | KE46: 0 | KF46: 0 | KG46: 0 | KH46: 0 | KI46: 0 | KJ46: 0 | KK46: 0 | KL46: 0 | KM46: 0 | KN46: 0 | KO46: 0 | KP46: 0 | KQ46: 0 | KR46: 0 | KS46: 0 | KT46: 0 | KU46: 0 | KV46: 0 | KW46: 0 | KX46: 0 | KY46: 0 | KZ46: 0 | LA46: 0 | LB46: 0 | LC46: 0 | LD46: 0 | LE46: 0 | LF46: 0 | LG46: 0 | LH46: 0 | LI46: 0 | LJ46: 0 | LK46: 0 | LL46: 0 | LM46: 0 | LN46: 0 | LO46: 0 | LP46: 0 | LQ46: 0 | LR46: 0 | LS46: 0 | LT46: 0 | LU46: 0 | LV46: 0 | LW46: 0 | LX46: 0 | LY46: 0 | MH46: 30.6 | MI46: 443.8154963 | MJ46: 3.06
P47: 31.7 | Q47: =IFERROR(IF(P47<1,0,ROUND(VLOOKUP($V$14,$B$12:$I$15,5,FALSE)*SQRT($P47)/(PI()*VLOOKUP($DR$14,$MM$6:$MO$11,3,FALSE)^2/4*Q$18),2)),666) -> 666 | R47: 125 | S47: 62.5 | T47: 41.67 | U47: 31.25 | V47: 25 | W47: 20.83 | X47: 17.86 | Y47: 15.63 | Z47: 13.89 | AA47: 12.5 | AB47: 11.36 | AC47: 10.42 | AD47: 9.62 | AE47: 8.93 | AF47: 8.33 | AG47: 7.81 | AH47: 7.35 | AI47: 6.94 | AJ47: 6.58 | AK47: 6.25 | AL47: 5.95 | AM47: 5.68 | AN47: 5.43 | AO47: 5.21 | AP47: 5 | AQ47: 4.81 | AR47: 4.63 | AS47: 4.46 | AT47: 4.31 | AU47: 4.17 | AV47: 4.03 | AW47: 3.91 | AX47: 3.79 | AY47: 3.68 | AZ47: 3.57 | BA47: 3.47 | BB47: 3.38 | BC47: 3.29 | BD47: 3.21 | BE47: 3.13 | BF47: 3.05 | BG47: 2.98 | BH47: 2.91 | BI47: 2.84 | BJ47: 2.78 | BK47: 2.72 | BL47: 2.66 | BM47: 2.6 | BN47: 2.55 | BO47: 2.5 | BP47: 2.45 | BQ47: 2.4 | BR47: 2.36 | BS47: 2.31 | BT47: 2.27 | BU47: 2.23 | BV47: 2.19 | BW47: 2.16 | BX47: 2.12 | BY47: 2.08 | BZ47: 2.05 | CA47: 2.02 | CB47: 1.98 | CC47: =IFERROR(IF(CB47<1,0,ROUND(VLOOKUP($V$14,$B$12:$I$15,5,FALSE)*SQRT($P47)/(PI()*VLOOKUP($DR$14,$MM$6:$MO$11,3,FALSE)^2/4*CC$18),2)),666) -> 1.95 | CD47: 1.92 | CE47: 1.89 | CF47: 1.87 | CG47: 1.84 | CH47: 1.81 | CI47: 1.79 | CJ47: 1.76 | CK47: 1.74 | CL47: 1.71 | CM47: 1.69 | CN47: 1.67 | CO47: 1.64 | CP47: 1.62 | CQ47: 1.6 | CR47: 1.58 | CS47: 1.56 | CT47: 1.54 | CU47: 1.52 | CV47: 1.51 | CW47: 1.49 | CX47: 1.47 | CY47: 1.45 | CZ47: 1.44 | DA47: 1.42 | DB47: 1.4 | DC47: 1.39 | DD47: 1.37 | DE47: 1.36 | DF47: 1.34 | DG47: 1.33 | DH47: 1.32 | DI47: 1.3 | DJ47: 1.29 | DK47: 1.28 | DL47: 1.26 | DM47: 1.25 | DN47: 1.24 | DO47: 1.23 | DP47: 1.21 | DQ47: 1.2 | DR47: 1.19 | DS47: 1.18 | DT47: 1.17 | DU47: 1.16 | DV47: 1.15 | DW47: 1.14 | DX47: 1.13 | DY47: 1.12 | DZ47: 1.11 | EA47: 1.1 | EB47: 1.09 | EC47: 1.08 | ED47: 1.07 | EE47: 1.06 | EF47: 1.05 | EG47: 1.04 | EH47: 1.03 | EI47: 1.02 | EJ47: 1.02 | EK47: 1.01 | EL47: 1 | EM47: 0.99 | EN47: 0 | EO47: =IFERROR(IF(EN47<1,0,ROUND(VLOOKUP($V$14,$B$12:$I$15,5,FALSE)*SQRT($P47)/(PI()*VLOOKUP($DR$14,$MM$6:$MO$11,3,FALSE)^2/4*EO$18),2)),666) -> 0 | EP47: 0 | EQ47: 0 | ER47: 0 | ES47: 0 | ET47: 0 | EU47: 0 | EV47: 0 | EW47: 0 | EX47: 0 | EY47: 0 | EZ47: 0 | FA47: 0 | FB47: 0 | FC47: 0 | FD47: 0 | FE47: 0 | FF47: 0 | FG47: 0 | FH47: 0 | FI47: 0 | FJ47: 0 | FK47: 0 | FL47: 0 | FM47: 0 | FN47: 0 | FO47: 0 | FP47: 0 | FQ47: 0 | FR47: 0 | FS47: 0 | FT47: 0 | FU47: 0 | FV47: 0 | FW47: 0 | FX47: 0 | FY47: 0 | FZ47: 0 | GA47: 0 | GB47: 0 | GC47: 0 | GD47: 0 | GE47: 0 | GF47: 0 | GG47: 0 | GH47: 0 | GI47: 0 | GJ47: 0 | GK47: 0 | GL47: 0 | GM47: 0 | GN47: 0 | GO47: 0 | GP47: 0 | GQ47: 0 | GR47: 0 | GS47: 0 | GT47: 0 | GU47: 0 | GV47: 0 | GW47: 0 | GX47: 0 | GY47: 0 | GZ47: 0 | HA47: =IFERROR(IF(GZ47<1,0,ROUND(VLOOKUP($V$14,$B$12:$I$15,5,FALSE)*SQRT($P47)/(PI()*VLOOKUP($DR$14,$MM$6:$MO$11,3,FALSE)^2/4*HA$18),2)),666) -> 0 | HB47: 0 | HC47: 0 | HD47: 0 | HE47: 0 | HF47: 0 | HG47: 0 | HH47: 0 | HI47: 0 | HJ47: 0 | HK47: 0 | HL47: 0 | HM47: 0 | HN47: 0 | HO47: 0 | HP47: 0 | HQ47: 0 | HR47: 0 | HS47: 0 | HT47: 0 | HU47: 0 | HV47: 0 | HW47: 0 | HX47: 0 | HY47: 0 | HZ47: 0 | IA47: 0 | IB47: 0 | IC47: 0 | ID47: 0 | IE47: 0 | IF47: 0 | IG47: 0 | IH47: 0 | II47: 0 | IJ47: 0 | IK47: 0 | IL47: 0 | IM47: 0 | IN47: 0 | IO47: 0 | IP47: 0 | IQ47: 0 | IR47: 0 | IS47: 0 | IT47: 0 | IU47: 0 | IV47: 0 | IW47: 0 | IX47: 0 | IY47: 0 | IZ47: 0 | JA47: 0 | JB47: 0 | JC47: 0 | JD47: 0 | JE47: 0 | JF47: 0 | JG47: 0 | JH47: 0 | JI47: 0 | JJ47: 0 | JK47: 0 | JL47: 0 | JM47: =IFERROR(IF(JL47<1,0,ROUND(VLOOKUP($V$14,$B$12:$I$15,5,FALSE)*SQRT($P47)/(PI()*VLOOKUP($DR$14,$MM$6:$MO$11,3,FALSE)^2/4*JM$18),2)),666) -> 0 | JN47: 0 | JO47: 0 | JP47: 0 | JQ47: 0 | JR47: 0 | JS47: 0 | JT47: 0 | JU47: 0 | JV47: 0 | JW47: 0 | JX47: 0 | JY47: 0 | JZ47: 0 | KA47: 0 | KB47: 0 | KC47: 0 | KD47: 0 | KE47: 0 | KF47: 0 | KG47: 0 | KH47: 0 | KI47: 0 | KJ47: 0 | KK47: 0 | KL47: 0 | KM47: 0 | KN47: 0 | KO47: 0 | KP47: 0 | KQ47: 0 | KR47: 0 | KS47: 0 | KT47: 0 | KU47: 0 | KV47: 0 | KW47: 0 | KX47: 0 | KY47: 0 | KZ47: 0 | LA47: 0 | LB47: 0 | LC47: 0 | LD47: 0 | LE47: 0 | LF47: 0 | LG47: 0 | LH47: 0 | LI47: 0 | LJ47: 0 | LK47: 0 | LL47: 0 | LM47: 0 | LN47: 0 | LO47: 0 | LP47: 0 | LQ47: 0 | LR47: 0 | LS47: 0 | LT47: 0 | LU47: 0 | LV47: 0 | LW47: 0 | LX47: 0 | LY47: 0 | MH47: 30.5 | MI47: 442.3651189 | MJ47: 3.05
P48: 31.6 | Q48: =IFERROR(IF(P48<1,0,ROUND(VLOOKUP($V$14,$B$12:$I$15,5,FALSE)*SQRT($P48)/(PI()*VLOOKUP($DR$14,$MM$6:$MO$11,3,FALSE)^2/4*Q$18),2)),666) -> 666 | R48: 124.81 | S48: 62.4 | T48: 41.6 | U48: 31.2 | V48: 24.96 | W48: 20.8 | X48: 17.83 | Y48: 15.6 | Z48: 13.87 | AA48: 12.48 | AB48: 11.35 | AC48: 10.4 | AD48: 9.6 | AE48: 8.91 | AF48: 8.32 | AG48: 7.8 | AH48: 7.34 | AI48: 6.93 | AJ48: 6.57 | AK48: 6.24 | AL48: 5.94 | AM48: 5.67 | AN48: 5.43 | AO48: 5.2 | AP48: 4.99 | AQ48: 4.8 | AR48: 4.62 | AS48: 4.46 | AT48: 4.3 | AU48: 4.16 | AV48: 4.03 | AW48: 3.9 | AX48: 3.78 | AY48: 3.67 | AZ48: 3.57 | BA48: 3.47 | BB48: 3.37 | BC48: 3.28 | BD48: 3.2 | BE48: 3.12 | BF48: 3.04 | BG48: 2.97 | BH48: 2.9 | BI48: 2.84 | BJ48: 2.77 | BK48: 2.71 | BL48: 2.66 | BM48: 2.6 | BN48: 2.55 | BO48: 2.5 | BP48: 2.45 | BQ48: 2.4 | BR48: 2.35 | BS48: 2.31 | BT48: 2.27 | BU48: 2.23 | BV48: 2.19 | BW48: 2.15 | BX48: 2.12 | BY48: 2.08 | BZ48: 2.05 | CA48: 2.01 | CB48: 1.98 | CC48: =IFERROR(IF(CB48<1,0,ROUND(VLOOKUP($V$14,$B$12:$I$15,5,FALSE)*SQRT($P48)/(PI()*VLOOKUP($DR$14,$MM$6:$MO$11,3,FALSE)^2/4*CC$18),2)),666) -> 1.95 | CD48: 1.92 | CE48: 1.89 | CF48: 1.86 | CG48: 1.84 | CH48: 1.81 | CI48: 1.78 | CJ48: 1.76 | CK48: 1.73 | CL48: 1.71 | CM48: 1.69 | CN48: 1.66 | CO48: 1.64 | CP48: 1.62 | CQ48: 1.6 | CR48: 1.58 | CS48: 1.56 | CT48: 1.54 | CU48: 1.52 | CV48: 1.5 | CW48: 1.49 | CX48: 1.47 | CY48: 1.45 | CZ48: 1.43 | DA48: 1.42 | DB48: 1.4 | DC48: 1.39 | DD48: 1.37 | DE48: 1.36 | DF48: 1.34 | DG48: 1.33 | DH48: 1.31 | DI48: 1.3 | DJ48: 1.29 | DK48: 1.27 | DL48: 1.26 | DM48: 1.25 | DN48: 1.24 | DO48: 1.22 | DP48: 1.21 | DQ48: 1.2 | DR48: 1.19 | DS48: 1.18 | DT48: 1.17 | DU48: 1.16 | DV48: 1.15 | DW48: 1.13 | DX48: 1.12 | DY48: 1.11 | DZ48: 1.1 | EA48: 1.09 | EB48: 1.09 | EC48: 1.08 | ED48: 1.07 | EE48: 1.06 | EF48: 1.05 | EG48: 1.04 | EH48: 1.03 | EI48: 1.02 | EJ48: 1.01 | EK48: 1.01 | EL48: 1 | EM48: 0.99 | EN48: 0 | EO48: =IFERROR(IF(EN48<1,0,ROUND(VLOOKUP($V$14,$B$12:$I$15,5,FALSE)*SQRT($P48)/(PI()*VLOOKUP($DR$14,$MM$6:$MO$11,3,FALSE)^2/4*EO$18),2)),666) -> 0 | EP48: 0 | EQ48: 0 | ER48: 0 | ES48: 0 | ET48: 0 | EU48: 0 | EV48: 0 | EW48: 0 | EX48: 0 | EY48: 0 | EZ48: 0 | FA48: 0 | FB48: 0 | FC48: 0 | FD48: 0 | FE48: 0 | FF48: 0 | FG48: 0 | FH48: 0 | FI48: 0 | FJ48: 0 | FK48: 0 | FL48: 0 | FM48: 0 | FN48: 0 | FO48: 0 | FP48: 0 | FQ48: 0 | FR48: 0 | FS48: 0 | FT48: 0 | FU48: 0 | FV48: 0 | FW48: 0 | FX48: 0 | FY48: 0 | FZ48: 0 | GA48: 0 | GB48: 0 | GC48: 0 | GD48: 0 | GE48: 0 | GF48: 0 | GG48: 0 | GH48: 0 | GI48: 0 | GJ48: 0 | GK48: 0 | GL48: 0 | GM48: 0 | GN48: 0 | GO48: 0 | GP48: 0 | GQ48: 0 | GR48: 0 | GS48: 0 | GT48: 0 | GU48: 0 | GV48: 0 | GW48: 0 | GX48: 0 | GY48: 0 | GZ48: 0 | HA48: =IFERROR(IF(GZ48<1,0,ROUND(VLOOKUP($V$14,$B$12:$I$15,5,FALSE)*SQRT($P48)/(PI()*VLOOKUP($DR$14,$MM$6:$MO$11,3,FALSE)^2/4*HA$18),2)),666) -> 0 | HB48: 0 | HC48: 0 | HD48: 0 | HE48: 0 | HF48: 0 | HG48: 0 | HH48: 0 | HI48: 0 | HJ48: 0 | HK48: 0 | HL48: 0 | HM48: 0 | HN48: 0 | HO48: 0 | HP48: 0 | HQ48: 0 | HR48: 0 | HS48: 0 | HT48: 0 | HU48: 0 | HV48: 0 | HW48: 0 | HX48: 0 | HY48: 0 | HZ48: 0 | IA48: 0 | IB48: 0 | IC48: 0 | ID48: 0 | IE48: 0 | IF48: 0 | IG48: 0 | IH48: 0 | II48: 0 | IJ48: 0 | IK48: 0 | IL48: 0 | IM48: 0 | IN48: 0 | IO48: 0 | IP48: 0 | IQ48: 0 | IR48: 0 | IS48: 0 | IT48: 0 | IU48: 0 | IV48: 0 | IW48: 0 | IX48: 0 | IY48: 0 | IZ48: 0 | JA48: 0 | JB48: 0 | JC48: 0 | JD48: 0 | JE48: 0 | JF48: 0 | JG48: 0 | JH48: 0 | JI48: 0 | JJ48: 0 | JK48: 0 | JL48: 0 | JM48: =IFERROR(IF(JL48<1,0,ROUND(VLOOKUP($V$14,$B$12:$I$15,5,FALSE)*SQRT($P48)/(PI()*VLOOKUP($DR$14,$MM$6:$MO$11,3,FALSE)^2/4*JM$18),2)),666) -> 0 | JN48: 0 | JO48: 0 | JP48: 0 | JQ48: 0 | JR48: 0 | JS48: 0 | JT48: 0 | JU48: 0 | JV48: 0 | JW48: 0 | JX48: 0 | JY48: 0 | JZ48: 0 | KA48: 0 | KB48: 0 | KC48: 0 | KD48: 0 | KE48: 0 | KF48: 0 | KG48: 0 | KH48: 0 | KI48: 0 | KJ48: 0 | KK48: 0 | KL48: 0 | KM48: 0 | KN48: 0 | KO48: 0 | KP48: 0 | KQ48: 0 | KR48: 0 | KS48: 0 | KT48: 0 | KU48: 0 | KV48: 0 | KW48: 0 | KX48: 0 | KY48: 0 | KZ48: 0 | LA48: 0 | LB48: 0 | LC48: 0 | LD48: 0 | LE48: 0 | LF48: 0 | LG48: 0 | LH48: 0 | LI48: 0 | LJ48: 0 | LK48: 0 | LL48: 0 | LM48: 0 | LN48: 0 | LO48: 0 | LP48: 0 | LQ48: 0 | LR48: 0 | LS48: 0 | LT48: 0 | LU48: 0 | LV48: 0 | LW48: 0 | LX48: 0 | LY48: 0 | MH48: 30.4 | MI48: 440.9147414 | MJ48: 3.04
P49: 31.5 | Q49: =IFERROR(IF(P49<1,0,ROUND(VLOOKUP($V$14,$B$12:$I$15,5,FALSE)*SQRT($P49)/(PI()*VLOOKUP($DR$14,$MM$6:$MO$11,3,FALSE)^2/4*Q$18),2)),666) -> 666 | R49: 124.61 | S49: 62.3 | T49: 41.54 | U49: 31.15 | V49: 24.92 | W49: 20.77 | X49: 17.8 | Y49: 15.58 | Z49: 13.85 | AA49: 12.46 | AB49: 11.33 | AC49: 10.38 | AD49: 9.59 | AE49: 8.9 | AF49: 8.31 | AG49: 7.79 | AH49: 7.33 | AI49: 6.92 | AJ49: 6.56 | AK49: 6.23 | AL49: 5.93 | AM49: 5.66 | AN49: 5.42 | AO49: 5.19 | AP49: 4.98 | AQ49: 4.79 | AR49: 4.62 | AS49: 4.45 | AT49: 4.3 | AU49: 4.15 | AV49: 4.02 | AW49: 3.89 | AX49: 3.78 | AY49: 3.66 | AZ49: 3.56 | BA49: 3.46 | BB49: 3.37 | BC49: 3.28 | BD49: 3.2 | BE49: 3.12 | BF49: 3.04 | BG49: 2.97 | BH49: 2.9 | BI49: 2.83 | BJ49: 2.77 | BK49: 2.71 | BL49: 2.65 | BM49: 2.6 | BN49: 2.54 | BO49: 2.49 | BP49: 2.44 | BQ49: 2.4 | BR49: 2.35 | BS49: 2.31 | BT49: 2.27 | BU49: 2.23 | BV49: 2.19 | BW49: 2.15 | BX49: 2.11 | BY49: 2.08 | BZ49: 2.04 | CA49: 2.01 | CB49: 1.98 | CC49: =IFERROR(IF(CB49<1,0,ROUND(VLOOKUP($V$14,$B$12:$I$15,5,FALSE)*SQRT($P49)/(PI()*VLOOKUP($DR$14,$MM$6:$MO$11,3,FALSE)^2/4*CC$18),2)),666) -> 1.95 | CD49: 1.92 | CE49: 1.89 | CF49: 1.86 | CG49: 1.83 | CH49: 1.81 | CI49: 1.78 | CJ49: 1.76 | CK49: 1.73 | CL49: 1.71 | CM49: 1.68 | CN49: 1.66 | CO49: 1.64 | CP49: 1.62 | CQ49: 1.6 | CR49: 1.58 | CS49: 1.56 | CT49: 1.54 | CU49: 1.52 | CV49: 1.5 | CW49: 1.48 | CX49: 1.47 | CY49: 1.45 | CZ49: 1.43 | DA49: 1.42 | DB49: 1.4 | DC49: 1.38 | DD49: 1.37 | DE49: 1.35 | DF49: 1.34 | DG49: 1.33 | DH49: 1.31 | DI49: 1.3 | DJ49: 1.28 | DK49: 1.27 | DL49: 1.26 | DM49: 1.25 | DN49: 1.23 | DO49: 1.22 | DP49: 1.21 | DQ49: 1.2 | DR49: 1.19 | DS49: 1.18 | DT49: 1.16 | DU49: 1.15 | DV49: 1.14 | DW49: 1.13 | DX49: 1.12 | DY49: 1.11 | DZ49: 1.1 | EA49: 1.09 | EB49: 1.08 | EC49: 1.07 | ED49: 1.07 | EE49: 1.06 | EF49: 1.05 | EG49: 1.04 | EH49: 1.03 | EI49: 1.02 | EJ49: 1.01 | EK49: 1 | EL49: 1 | EM49: 0.99 | EN49: 0 | EO49: =IFERROR(IF(EN49<1,0,ROUND(VLOOKUP($V$14,$B$12:$I$15,5,FALSE)*SQRT($P49)/(PI()*VLOOKUP($DR$14,$MM$6:$MO$11,3,FALSE)^2/4*EO$18),2)),666) -> 0 | EP49: 0 | EQ49: 0 | ER49: 0 | ES49: 0 | ET49: 0 | EU49: 0 | EV49: 0 | EW49: 0 | EX49: 0 | EY49: 0 | EZ49: 0 | FA49: 0 | FB49: 0 | FC49: 0 | FD49: 0 | FE49: 0 | FF49: 0 | FG49: 0 | FH49: 0 | FI49: 0 | FJ49: 0 | FK49: 0 | FL49: 0 | FM49: 0 | FN49: 0 | FO49: 0 | FP49: 0 | FQ49: 0 | FR49: 0 | FS49: 0 | FT49: 0 | FU49: 0 | FV49: 0 | FW49: 0 | FX49: 0 | FY49: 0 | FZ49: 0 | GA49: 0 | GB49: 0 | GC49: 0 | GD49: 0 | GE49: 0 | GF49: 0 | GG49: 0 | GH49: 0 | GI49: 0 | GJ49: 0 | GK49: 0 | GL49: 0 | GM49: 0 | GN49: 0 | GO49: 0 | GP49: 0 | GQ49: 0 | GR49: 0 | GS49: 0 | GT49: 0 | GU49: 0 | GV49: 0 | GW49: 0 | GX49: 0 | GY49: 0 | GZ49: 0 | HA49: =IFERROR(IF(GZ49<1,0,ROUND(VLOOKUP($V$14,$B$12:$I$15,5,FALSE)*SQRT($P49)/(PI()*VLOOKUP($DR$14,$MM$6:$MO$11,3,FALSE)^2/4*HA$18),2)),666) -> 0 | HB49: 0 | HC49: 0 | HD49: 0 | HE49: 0 | HF49: 0 | HG49: 0 | HH49: 0 | HI49: 0 | HJ49: 0 | HK49: 0 | HL49: 0 | HM49: 0 | HN49: 0 | HO49: 0 | HP49: 0 | HQ49: 0 | HR49: 0 | HS49: 0 | HT49: 0 | HU49: 0 | HV49: 0 | HW49: 0 | HX49: 0 | HY49: 0 | HZ49: 0 | IA49: 0 | IB49: 0 | IC49: 0 | ID49: 0 | IE49: 0 | IF49: 0 | IG49: 0 | IH49: 0 | II49: 0 | IJ49: 0 | IK49: 0 | IL49: 0 | IM49: 0 | IN49: 0 | IO49: 0 | IP49: 0 | IQ49: 0 | IR49: 0 | IS49: 0 | IT49: 0 | IU49: 0 | IV49: 0 | IW49: 0 | IX49: 0 | IY49: 0 | IZ49: 0 | JA49: 0 | JB49: 0 | JC49: 0 | JD49: 0 | JE49: 0 | JF49: 0 | JG49: 0 | JH49: 0 | JI49: 0 | JJ49: 0 | JK49: 0 | JL49: 0 | JM49: =IFERROR(IF(JL49<1,0,ROUND(VLOOKUP($V$14,$B$12:$I$15,5,FALSE)*SQRT($P49)/(PI()*VLOOKUP($DR$14,$MM$6:$MO$11,3,FALSE)^2/4*JM$18),2)),666) -> 0 | JN49: 0 | JO49: 0 | JP49: 0 | JQ49: 0 | JR49: 0 | JS49: 0 | JT49: 0 | JU49: 0 | JV49: 0 | JW49: 0 | JX49: 0 | JY49: 0 | JZ49: 0 | KA49: 0 | KB49: 0 | KC49: 0 | KD49: 0 | KE49: 0 | KF49: 0 | KG49: 0 | KH49: 0 | KI49: 0 | KJ49: 0 | KK49: 0 | KL49: 0 | KM49: 0 | KN49: 0 | KO49: 0 | KP49: 0 | KQ49: 0 | KR49: 0 | KS49: 0 | KT49: 0 | KU49: 0 | KV49: 0 | KW49: 0 | KX49: 0 | KY49: 0 | KZ49: 0 | LA49: 0 | LB49: 0 | LC49: 0 | LD49: 0 | LE49: 0 | LF49: 0 | LG49: 0 | LH49: 0 | LI49: 0 | LJ49: 0 | LK49: 0 | LL49: 0 | LM49: 0 | LN49: 0 | LO49: 0 | LP49: 0 | LQ49: 0 | LR49: 0 | LS49: 0 | LT49: 0 | LU49: 0 | LV49: 0 | LW49: 0 | LX49: 0 | LY49: 0 | MH49: 30.3 | MI49: 439.464364 | MJ49: 3.03
P50: 31.4 | Q50: =IFERROR(IF(P50<1,0,ROUND(VLOOKUP($V$14,$B$12:$I$15,5,FALSE)*SQRT($P50)/(PI()*VLOOKUP($DR$14,$MM$6:$MO$11,3,FALSE)^2/4*Q$18),2)),666) -> 666 | R50: 124.41 | S50: 62.21 | T50: 41.47 | U50: 31.1 | V50: 24.88 | W50: 20.74 | X50: 17.77 | Y50: 15.55 | Z50: 13.82 | AA50: 12.44 | AB50: 11.31 | AC50: 10.37 | AD50: 9.57 | AE50: 8.89 | AF50: 8.29 | AG50: 7.78 | AH50: 7.32 | AI50: 6.91 | AJ50: 6.55 | AK50: 6.22 | AL50: 5.92 | AM50: 5.66 | AN50: 5.41 | AO50: 5.18 | AP50: 4.98 | AQ50: 4.79 | AR50: 4.61 | AS50: 4.44 | AT50: 4.29 | AU50: 4.15 | AV50: 4.01 | AW50: 3.89 | AX50: 3.77 | AY50: 3.66 | AZ50: 3.55 | BA50: 3.46 | BB50: 3.36 | BC50: 3.27 | BD50: 3.19 | BE50: 3.11 | BF50: 3.03 | BG50: 2.96 | BH50: 2.89 | BI50: 2.83 | BJ50: 2.76 | BK50: 2.7 | BL50: 2.65 | BM50: 2.59 | BN50: 2.54 | BO50: 2.49 | BP50: 2.44 | BQ50: 2.39 | BR50: 2.35 | BS50: 2.3 | BT50: 2.26 | BU50: 2.22 | BV50: 2.18 | BW50: 2.15 | BX50: 2.11 | BY50: 2.07 | BZ50: 2.04 | CA50: 2.01 | CB50: 1.97 | CC50: =IFERROR(IF(CB50<1,0,ROUND(VLOOKUP($V$14,$B$12:$I$15,5,FALSE)*SQRT($P50)/(PI()*VLOOKUP($DR$14,$MM$6:$MO$11,3,FALSE)^2/4*CC$18),2)),666) -> 1.94 | CD50: 1.91 | CE50: 1.89 | CF50: 1.86 | CG50: 1.83 | CH50: 1.8 | CI50: 1.78 | CJ50: 1.75 | CK50: 1.73 | CL50: 1.7 | CM50: 1.68 | CN50: 1.66 | CO50: 1.64 | CP50: 1.62 | CQ50: 1.6 | CR50: 1.57 | CS50: 1.56 | CT50: 1.54 | CU50: 1.52 | CV50: 1.5 | CW50: 1.48 | CX50: 1.46 | CY50: 1.45 | CZ50: 1.43 | DA50: 1.41 | DB50: 1.4 | DC50: 1.38 | DD50: 1.37 | DE50: 1.35 | DF50: 1.34 | DG50: 1.32 | DH50: 1.31 | DI50: 1.3 | DJ50: 1.28 | DK50: 1.27 | DL50: 1.26 | DM50: 1.24 | DN50: 1.23 | DO50: 1.22 | DP50: 1.21 | DQ50: 1.2 | DR50: 1.18 | DS50: 1.17 | DT50: 1.16 | DU50: 1.15 | DV50: 1.14 | DW50: 1.13 | DX50: 1.12 | DY50: 1.11 | DZ50: 1.1 | EA50: 1.09 | EB50: 1.08 | EC50: 1.07 | ED50: 1.06 | EE50: 1.05 | EF50: 1.05 | EG50: 1.04 | EH50: 1.03 | EI50: 1.02 | EJ50: 1.01 | EK50: 1 | EL50: 1 | EM50: 0.99 | EN50: 0 | EO50: =IFERROR(IF(EN50<1,0,ROUND(VLOOKUP($V$14,$B$12:$I$15,5,FALSE)*SQRT($P50)/(PI()*VLOOKUP($DR$14,$MM$6:$MO$11,3,FALSE)^2/4*EO$18),2)),666) -> 0 | EP50: 0 | EQ50: 0 | ER50: 0 | ES50: 0 | ET50: 0 | EU50: 0 | EV50: 0 | EW50: 0 | EX50: 0 | EY50: 0 | EZ50: 0 | FA50: 0 | FB50: 0 | FC50: 0 | FD50: 0 | FE50: 0 | FF50: 0 | FG50: 0 | FH50: 0 | FI50: 0 | FJ50: 0 | FK50: 0 | FL50: 0 | FM50: 0 | FN50: 0 | FO50: 0 | FP50: 0 | FQ50: 0 | FR50: 0 | FS50: 0 | FT50: 0 | FU50: 0 | FV50: 0 | FW50: 0 | FX50: 0 | FY50: 0 | FZ50: 0 | GA50: 0 | GB50: 0 | GC50: 0 | GD50: 0 | GE50: 0 | GF50: 0 | GG50: 0 | GH50: 0 | GI50: 0 | GJ50: 0 | GK50: 0 | GL50: 0 | GM50: 0 | GN50: 0 | GO50: 0 | GP50: 0 | GQ50: 0 | GR50: 0 | GS50: 0 | GT50: 0 | GU50: 0 | GV50: 0 | GW50: 0 | GX50: 0 | GY50: 0 | GZ50: 0 | HA50: =IFERROR(IF(GZ50<1,0,ROUND(VLOOKUP($V$14,$B$12:$I$15,5,FALSE)*SQRT($P50)/(PI()*VLOOKUP($DR$14,$MM$6:$MO$11,3,FALSE)^2/4*HA$18),2)),666) -> 0 | HB50: 0 | HC50: 0 | HD50: 0 | HE50: 0 | HF50: 0 | HG50: 0 | HH50: 0 | HI50: 0 | HJ50: 0 | HK50: 0 | HL50: 0 | HM50: 0 | HN50: 0 | HO50: 0 | HP50: 0 | HQ50: 0 | HR50: 0 | HS50: 0 | HT50: 0 | HU50: 0 | HV50: 0 | HW50: 0 | HX50: 0 | HY50: 0 | HZ50: 0 | IA50: 0 | IB50: 0 | IC50: 0 | ID50: 0 | IE50: 0 | IF50: 0 | IG50: 0 | IH50: 0 | II50: 0 | IJ50: 0 | IK50: 0 | IL50: 0 | IM50: 0 | IN50: 0 | IO50: 0 | IP50: 0 | IQ50: 0 | IR50: 0 | IS50: 0 | IT50: 0 | IU50: 0 | IV50: 0 | IW50: 0 | IX50: 0 | IY50: 0 | IZ50: 0 | JA50: 0 | JB50: 0 | JC50: 0 | JD50: 0 | JE50: 0 | JF50: 0 | JG50: 0 | JH50: 0 | JI50: 0 | JJ50: 0 | JK50: 0 | JL50: 0 | JM50: =IFERROR(IF(JL50<1,0,ROUND(VLOOKUP($V$14,$B$12:$I$15,5,FALSE)*SQRT($P50)/(PI()*VLOOKUP($DR$14,$MM$6:$MO$11,3,FALSE)^2/4*JM$18),2)),666) -> 0 | JN50: 0 | JO50: 0 | JP50: 0 | JQ50: 0 | JR50: 0 | JS50: 0 | JT50: 0 | JU50: 0 | JV50: 0 | JW50: 0 | JX50: 0 | JY50: 0 | JZ50: 0 | KA50: 0 | KB50: 0 | KC50: 0 | KD50: 0 | KE50: 0 | KF50: 0 | KG50: 0 | KH50: 0 | KI50: 0 | KJ50: 0 | KK50: 0 | KL50: 0 | KM50: 0 | KN50: 0 | KO50: 0 | KP50: 0 | KQ50: 0 | KR50: 0 | KS50: 0 | KT50: 0 | KU50: 0 | KV50: 0 | KW50: 0 | KX50: 0 | KY50: 0 | KZ50: 0 | LA50: 0 | LB50: 0 | LC50: 0 | LD50: 0 | LE50: 0 | LF50: 0 | LG50: 0 | LH50: 0 | LI50: 0 | LJ50: 0 | LK50: 0 | LL50: 0 | LM50: 0 | LN50: 0 | LO50: 0 | LP50: 0 | LQ50: 0 | LR50: 0 | LS50: 0 | LT50: 0 | LU50: 0 | LV50: 0 | LW50: 0 | LX50: 0 | LY50: 0 | MH50: 30.2 | MI50: 438.0139866 | MJ50: 3.02
P51: 31.3 | Q51: =IFERROR(IF(P51<1,0,ROUND(VLOOKUP($V$14,$B$12:$I$15,5,FALSE)*SQRT($P51)/(PI()*VLOOKUP($DR$14,$MM$6:$MO$11,3,FALSE)^2/4*Q$18),2)),666) -> 666 | R51: 124.21 | S51: 62.11 | T51: 41.4 | U51: 31.05 | V51: 24.84 | W51: 20.7 | X51: 17.74 | Y51: 15.53 | Z51: 13.8 | AA51: 12.42 | AB51: 11.29 | AC51: 10.35 | AD51: 9.55 | AE51: 8.87 | AF51: 8.28 | AG51: 7.76 | AH51: 7.31 | AI51: 6.9 | AJ51: 6.54 | AK51: 6.21 | AL51: 5.91 | AM51: 5.65 | AN51: 5.4 | AO51: 5.18 | AP51: 4.97 | AQ51: 4.78 | AR51: 4.6 | AS51: 4.44 | AT51: 4.28 | AU51: 4.14 | AV51: 4.01 | AW51: 3.88 | AX51: 3.76 | AY51: 3.65 | AZ51: 3.55 | BA51: 3.45 | BB51: 3.36 | BC51: 3.27 | BD51: 3.18 | BE51: 3.11 | BF51: 3.03 | BG51: 2.96 | BH51: 2.89 | BI51: 2.82 | BJ51: 2.76 | BK51: 2.7 | BL51: 2.64 | BM51: 2.59 | BN51: 2.53 | BO51: 2.48 | BP51: 2.44 | BQ51: 2.39 | BR51: 2.34 | BS51: 2.3 | BT51: 2.26 | BU51: 2.22 | BV51: 2.18 | BW51: 2.14 | BX51: 2.11 | BY51: 2.07 | BZ51: 2.04 | CA51: 2 | CB51: 1.97 | CC51: =IFERROR(IF(CB51<1,0,ROUND(VLOOKUP($V$14,$B$12:$I$15,5,FALSE)*SQRT($P51)/(PI()*VLOOKUP($DR$14,$MM$6:$MO$11,3,FALSE)^2/4*CC$18),2)),666) -> 1.94 | CD51: 1.91 | CE51: 1.88 | CF51: 1.85 | CG51: 1.83 | CH51: 1.8 | CI51: 1.77 | CJ51: 1.75 | CK51: 1.73 | CL51: 1.7 | CM51: 1.68 | CN51: 1.66 | CO51: 1.63 | CP51: 1.61 | CQ51: 1.59 | CR51: 1.57 | CS51: 1.55 | CT51: 1.53 | CU51: 1.51 | CV51: 1.5 | CW51: 1.48 | CX51: 1.46 | CY51: 1.44 | CZ51: 1.43 | DA51: 1.41 | DB51: 1.4 | DC51: 1.38 | DD51: 1.36 | DE51: 1.35 | DF51: 1.34 | DG51: 1.32 | DH51: 1.31 | DI51: 1.29 | DJ51: 1.28 | DK51: 1.27 | DL51: 1.25 | DM51: 1.24 | DN51: 1.23 | DO51: 1.22 | DP51: 1.21 | DQ51: 1.19 | DR51: 1.18 | DS51: 1.17 | DT51: 1.16 | DU51: 1.15 | DV51: 1.14 | DW51: 1.13 | DX51: 1.12 | DY51: 1.11 | DZ51: 1.1 | EA51: 1.09 | EB51: 1.08 | EC51: 1.07 | ED51: 1.06 | EE51: 1.05 | EF51: 1.04 | EG51: 1.04 | EH51: 1.03 | EI51: 1.02 | EJ51: 1.01 | EK51: 1 | EL51: 0.99 | EM51: 0 | EN51: 0 | EO51: =IFERROR(IF(EN51<1,0,ROUND(VLOOKUP($V$14,$B$12:$I$15,5,FALSE)*SQRT($P51)/(PI()*VLOOKUP($DR$14,$MM$6:$MO$11,3,FALSE)^2/4*EO$18),2)),666) -> 0 | EP51: 0 | EQ51: 0 | ER51: 0 | ES51: 0 | ET51: 0 | EU51: 0 | EV51: 0 | EW51: 0 | EX51: 0 | EY51: 0 | EZ51: 0 | FA51: 0 | FB51: 0 | FC51: 0 | FD51: 0 | FE51: 0 | FF51: 0 | FG51: 0 | FH51: 0 | FI51: 0 | FJ51: 0 | FK51: 0 | FL51: 0 | FM51: 0 | FN51: 0 | FO51: 0 | FP51: 0 | FQ51: 0 | FR51: 0 | FS51: 0 | FT51: 0 | FU51: 0 | FV51: 0 | FW51: 0 | FX51: 0 | FY51: 0 | FZ51: 0 | GA51: 0 | GB51: 0 | GC51: 0 | GD51: 0 | GE51: 0 | GF51: 0 | GG51: 0 | GH51: 0 | GI51: 0 | GJ51: 0 | GK51: 0 | GL51: 0 | GM51: 0 | GN51: 0 | GO51: 0 | GP51: 0 | GQ51: 0 | GR51: 0 | GS51: 0 | GT51: 0 | GU51: 0 | GV51: 0 | GW51: 0 | GX51: 0 | GY51: 0 | GZ51: 0 | HA51: =IFERROR(IF(GZ51<1,0,ROUND(VLOOKUP($V$14,$B$12:$I$15,5,FALSE)*SQRT($P51)/(PI()*VLOOKUP($DR$14,$MM$6:$MO$11,3,FALSE)^2/4*HA$18),2)),666) -> 0 | HB51: 0 | HC51: 0 | HD51: 0 | HE51: 0 | HF51: 0 | HG51: 0 | HH51: 0 | HI51: 0 | HJ51: 0 | HK51: 0 | HL51: 0 | HM51: 0 | HN51: 0 | HO51: 0 | HP51: 0 | HQ51: 0 | HR51: 0 | HS51: 0 | HT51: 0 | HU51: 0 | HV51: 0 | HW51: 0 | HX51: 0 | HY51: 0 | HZ51: 0 | IA51: 0 | IB51: 0 | IC51: 0 | ID51: 0 | IE51: 0 | IF51: 0 | IG51: 0 | IH51: 0 | II51: 0 | IJ51: 0 | IK51: 0 | IL51: 0 | IM51: 0 | IN51: 0 | IO51: 0 | IP51: 0 | IQ51: 0 | IR51: 0 | IS51: 0 | IT51: 0 | IU51: 0 | IV51: 0 | IW51: 0 | IX51: 0 | IY51: 0 | IZ51: 0 | JA51: 0 | JB51: 0 | JC51: 0 | JD51: 0 | JE51: 0 | JF51: 0 | JG51: 0 | JH51: 0 | JI51: 0 | JJ51: 0 | JK51: 0 | JL51: 0 | JM51: =IFERROR(IF(JL51<1,0,ROUND(VLOOKUP($V$14,$B$12:$I$15,5,FALSE)*SQRT($P51)/(PI()*VLOOKUP($DR$14,$MM$6:$MO$11,3,FALSE)^2/4*JM$18),2)),666) -> 0 | JN51: 0 | JO51: 0 | JP51: 0 | JQ51: 0 | JR51: 0 | JS51: 0 | JT51: 0 | JU51: 0 | JV51: 0 | JW51: 0 | JX51: 0 | JY51: 0 | JZ51: 0 | KA51: 0 | KB51: 0 | KC51: 0 | KD51: 0 | KE51: 0 | KF51: 0 | KG51: 0 | KH51: 0 | KI51: 0 | KJ51: 0 | KK51: 0 | KL51: 0 | KM51: 0 | KN51: 0 | KO51: 0 | KP51: 0 | KQ51: 0 | KR51: 0 | KS51: 0 | KT51: 0 | KU51: 0 | KV51: 0 | KW51: 0 | KX51: 0 | KY51: 0 | KZ51: 0 | LA51: 0 | LB51: 0 | LC51: 0 | LD51: 0 | LE51: 0 | LF51: 0 | LG51: 0 | LH51: 0 | LI51: 0 | LJ51: 0 | LK51: 0 | LL51: 0 | LM51: 0 | LN51: 0 | LO51: 0 | LP51: 0 | LQ51: 0 | LR51: 0 | LS51: 0 | LT51: 0 | LU51: 0 | LV51: 0 | LW51: 0 | LX51: 0 | LY51: 0 | MH51: 30.1 | MI51: 436.5636091 | MJ51: 3.01
P52: 31.2 | Q52: =IFERROR(IF(P52<1,0,ROUND(VLOOKUP($V$14,$B$12:$I$15,5,FALSE)*SQRT($P52)/(PI()*VLOOKUP($DR$14,$MM$6:$MO$11,3,FALSE)^2/4*Q$18),2)),666) -> 666 | R52: 124.01 | S52: 62.01 | T52: 41.34 | U52: 31 | V52: 24.8 | W52: 20.67 | X52: 17.72 | Y52: 15.5 | Z52: 13.78 | AA52: 12.4 | AB52: 11.27 | AC52: 10.33 | AD52: 9.54 | AE52: 8.86 | AF52: 8.27 | AG52: 7.75 | AH52: 7.29 | AI52: 6.89 | AJ52: 6.53 | AK52: 6.2 | AL52: 5.91 | AM52: 5.64 | AN52: 5.39 | AO52: 5.17 | AP52: 4.96 | AQ52: 4.77 | AR52: 4.59 | AS52: 4.43 | AT52: 4.28 | AU52: 4.13 | AV52: 4 | AW52: 3.88 | AX52: 3.76 | AY52: 3.65 | AZ52: 3.54 | BA52: 3.44 | BB52: 3.35 | BC52: 3.26 | BD52: 3.18 | BE52: 3.1 | BF52: 3.02 | BG52: 2.95 | BH52: 2.88 | BI52: 2.82 | BJ52: 2.76 | BK52: 2.7 | BL52: 2.64 | BM52: 2.58 | BN52: 2.53 | BO52: 2.48 | BP52: 2.43 | BQ52: 2.38 | BR52: 2.34 | BS52: 2.3 | BT52: 2.25 | BU52: 2.21 | BV52: 2.18 | BW52: 2.14 | BX52: 2.1 | BY52: 2.07 | BZ52: 2.03 | CA52: 2 | CB52: 1.97 | CC52: =IFERROR(IF(CB52<1,0,ROUND(VLOOKUP($V$14,$B$12:$I$15,5,FALSE)*SQRT($P52)/(PI()*VLOOKUP($DR$14,$MM$6:$MO$11,3,FALSE)^2/4*CC$18),2)),666) -> 1.94 | CD52: 1.91 | CE52: 1.88 | CF52: 1.85 | CG52: 1.82 | CH52: 1.8 | CI52: 1.77 | CJ52: 1.75 | CK52: 1.72 | CL52: 1.7 | CM52: 1.68 | CN52: 1.65 | CO52: 1.63 | CP52: 1.61 | CQ52: 1.59 | CR52: 1.57 | CS52: 1.55 | CT52: 1.53 | CU52: 1.51 | CV52: 1.49 | CW52: 1.48 | CX52: 1.46 | CY52: 1.44 | CZ52: 1.43 | DA52: 1.41 | DB52: 1.39 | DC52: 1.38 | DD52: 1.36 | DE52: 1.35 | DF52: 1.33 | DG52: 1.32 | DH52: 1.31 | DI52: 1.29 | DJ52: 1.28 | DK52: 1.27 | DL52: 1.25 | DM52: 1.24 | DN52: 1.23 | DO52: 1.22 | DP52: 1.2 | DQ52: 1.19 | DR52: 1.18 | DS52: 1.17 | DT52: 1.16 | DU52: 1.15 | DV52: 1.14 | DW52: 1.13 | DX52: 1.12 | DY52: 1.11 | DZ52: 1.1 | EA52: 1.09 | EB52: 1.08 | EC52: 1.07 | ED52: 1.06 | EE52: 1.05 | EF52: 1.04 | EG52: 1.03 | EH52: 1.02 | EI52: 1.02 | EJ52: 1.01 | EK52: 1 | EL52: 0.99 | EM52: 0 | EN52: 0 | EO52: =IFERROR(IF(EN52<1,0,ROUND(VLOOKUP($V$14,$B$12:$I$15,5,FALSE)*SQRT($P52)/(PI()*VLOOKUP($DR$14,$MM$6:$MO$11,3,FALSE)^2/4*EO$18),2)),666) -> 0 | EP52: 0 | EQ52: 0 | ER52: 0 | ES52: 0 | ET52: 0 | EU52: 0 | EV52: 0 | EW52: 0 | EX52: 0 | EY52: 0 | EZ52: 0 | FA52: 0 | FB52: 0 | FC52: 0 | FD52: 0 | FE52: 0 | FF52: 0 | FG52: 0 | FH52: 0 | FI52: 0 | FJ52: 0 | FK52: 0 | FL52: 0 | FM52: 0 | FN52: 0 | FO52: 0 | FP52: 0 | FQ52: 0 | FR52: 0 | FS52: 0 | FT52: 0 | FU52: 0 | FV52: 0 | FW52: 0 | FX52: 0 | FY52: 0 | FZ52: 0 | GA52: 0 | GB52: 0 | GC52: 0 | GD52: 0 | GE52: 0 | GF52: 0 | GG52: 0 | GH52: 0 | GI52: 0 | GJ52: 0 | GK52: 0 | GL52: 0 | GM52: 0 | GN52: 0 | GO52: 0 | GP52: 0 | GQ52: 0 | GR52: 0 | GS52: 0 | GT52: 0 | GU52: 0 | GV52: 0 | GW52: 0 | GX52: 0 | GY52: 0 | GZ52: 0 | HA52: =IFERROR(IF(GZ52<1,0,ROUND(VLOOKUP($V$14,$B$12:$I$15,5,FALSE)*SQRT($P52)/(PI()*VLOOKUP($DR$14,$MM$6:$MO$11,3,FALSE)^2/4*HA$18),2)),666) -> 0 | HB52: 0 | HC52: 0 | HD52: 0 | HE52: 0 | HF52: 0 | HG52: 0 | HH52: 0 | HI52: 0 | HJ52: 0 | HK52: 0 | HL52: 0 | HM52: 0 | HN52: 0 | HO52: 0 | HP52: 0 | HQ52: 0 | HR52: 0 | HS52: 0 | HT52: 0 | HU52: 0 | HV52: 0 | HW52: 0 | HX52: 0 | HY52: 0 | HZ52: 0 | IA52: 0 | IB52: 0 | IC52: 0 | ID52: 0 | IE52: 0 | IF52: 0 | IG52: 0 | IH52: 0 | II52: 0 | IJ52: 0 | IK52: 0 | IL52: 0 | IM52: 0 | IN52: 0 | IO52: 0 | IP52: 0 | IQ52: 0 | IR52: 0 | IS52: 0 | IT52: 0 | IU52: 0 | IV52: 0 | IW52: 0 | IX52: 0 | IY52: 0 | IZ52: 0 | JA52: 0 | JB52: 0 | JC52: 0 | JD52: 0 | JE52: 0 | JF52: 0 | JG52: 0 | JH52: 0 | JI52: 0 | JJ52: 0 | JK52: 0 | JL52: 0 | JM52: =IFERROR(IF(JL52<1,0,ROUND(VLOOKUP($V$14,$B$12:$I$15,5,FALSE)*SQRT($P52)/(PI()*VLOOKUP($DR$14,$MM$6:$MO$11,3,FALSE)^2/4*JM$18),2)),666) -> 0 | JN52: 0 | JO52: 0 | JP52: 0 | JQ52: 0 | JR52: 0 | JS52: 0 | JT52: 0 | JU52: 0 | JV52: 0 | JW52: 0 | JX52: 0 | JY52: 0 | JZ52: 0 | KA52: 0 | KB52: 0 | KC52: 0 | KD52: 0 | KE52: 0 | KF52: 0 | KG52: 0 | KH52: 0 | KI52: 0 | KJ52: 0 | KK52: 0 | KL52: 0 | KM52: 0 | KN52: 0 | KO52: 0 | KP52: 0 | KQ52: 0 | KR52: 0 | KS52: 0 | KT52: 0 | KU52: 0 | KV52: 0 | KW52: 0 | KX52: 0 | KY52: 0 | KZ52: 0 | LA52: 0 | LB52: 0 | LC52: 0 | LD52: 0 | LE52: 0 | LF52: 0 | LG52: 0 | LH52: 0 | LI52: 0 | LJ52: 0 | LK52: 0 | LL52: 0 | LM52: 0 | LN52: 0 | LO52: 0 | LP52: 0 | LQ52: 0 | LR52: 0 | LS52: 0 | LT52: 0 | LU52: 0 | LV52: 0 | LW52: 0 | LX52: 0 | LY52: 0 | MH52: 30 | MI52: 435.1132317 | MJ52: 3
P53: 31.1 | Q53: =IFERROR(IF(P53<1,0,ROUND(VLOOKUP($V$14,$B$12:$I$15,5,FALSE)*SQRT($P53)/(PI()*VLOOKUP($DR$14,$MM$6:$MO$11,3,FALSE)^2/4*Q$18),2)),666) -> 666 | R53: 123.82 | S53: 61.91 | T53: 41.27 | U53: 30.95 | V53: 24.76 | W53: 20.64 | X53: 17.69 | Y53: 15.48 | Z53: 13.76 | AA53: 12.38 | AB53: 11.26 | AC53: 10.32 | AD53: 9.52 | AE53: 8.84 | AF53: 8.25 | AG53: 7.74 | AH53: 7.28 | AI53: 6.88 | AJ53: 6.52 | AK53: 6.19 | AL53: 5.9 | AM53: 5.63 | AN53: 5.38 | AO53: 5.16 | AP53: 4.95 | AQ53: 4.76 | AR53: 4.59 | AS53: 4.42 | AT53: 4.27 | AU53: 4.13 | AV53: 3.99 | AW53: 3.87 | AX53: 3.75 | AY53: 3.64 | AZ53: 3.54 | BA53: 3.44 | BB53: 3.35 | BC53: 3.26 | BD53: 3.17 | BE53: 3.1 | BF53: 3.02 | BG53: 2.95 | BH53: 2.88 | BI53: 2.81 | BJ53: 2.75 | BK53: 2.69 | BL53: 2.63 | BM53: 2.58 | BN53: 2.53 | BO53: 2.48 | BP53: 2.43 | BQ53: 2.38 | BR53: 2.34 | BS53: 2.29 | BT53: 2.25 | BU53: 2.21 | BV53: 2.17 | BW53: 2.13 | BX53: 2.1 | BY53: 2.06 | BZ53: 2.03 | CA53: 2 | CB53: 1.97 | CC53: =IFERROR(IF(CB53<1,0,ROUND(VLOOKUP($V$14,$B$12:$I$15,5,FALSE)*SQRT($P53)/(PI()*VLOOKUP($DR$14,$MM$6:$MO$11,3,FALSE)^2/4*CC$18),2)),666) -> 1.93 | CD53: 1.9 | CE53: 1.88 | CF53: 1.85 | CG53: 1.82 | CH53: 1.79 | CI53: 1.77 | CJ53: 1.74 | CK53: 1.72 | CL53: 1.7 | CM53: 1.67 | CN53: 1.65 | CO53: 1.63 | CP53: 1.61 | CQ53: 1.59 | CR53: 1.57 | CS53: 1.55 | CT53: 1.53 | CU53: 1.51 | CV53: 1.49 | CW53: 1.47 | CX53: 1.46 | CY53: 1.44 | CZ53: 1.42 | DA53: 1.41 | DB53: 1.39 | DC53: 1.38 | DD53: 1.36 | DE53: 1.35 | DF53: 1.33 | DG53: 1.32 | DH53: 1.3 | DI53: 1.29 | DJ53: 1.28 | DK53: 1.26 | DL53: 1.25 | DM53: 1.24 | DN53: 1.23 | DO53: 1.21 | DP53: 1.2 | DQ53: 1.19 | DR53: 1.18 | DS53: 1.17 | DT53: 1.16 | DU53: 1.15 | DV53: 1.14 | DW53: 1.13 | DX53: 1.12 | DY53: 1.11 | DZ53: 1.1 | EA53: 1.09 | EB53: 1.08 | EC53: 1.07 | ED53: 1.06 | EE53: 1.05 | EF53: 1.04 | EG53: 1.03 | EH53: 1.02 | EI53: 1.01 | EJ53: 1.01 | EK53: 1 | EL53: 0.99 | EM53: 0 | EN53: 0 | EO53: =IFERROR(IF(EN53<1,0,ROUND(VLOOKUP($V$14,$B$12:$I$15,5,FALSE)*SQRT($P53)/(PI()*VLOOKUP($DR$14,$MM$6:$MO$11,3,FALSE)^2/4*EO$18),2)),666) -> 0 | EP53: 0 | EQ53: 0 | ER53: 0 | ES53: 0 | ET53: 0 | EU53: 0 | EV53: 0 | EW53: 0 | EX53: 0 | EY53: 0 | EZ53: 0 | FA53: 0 | FB53: 0 | FC53: 0 | FD53: 0 | FE53: 0 | FF53: 0 | FG53: 0 | FH53: 0 | FI53: 0 | FJ53: 0 | FK53: 0 | FL53: 0 | FM53: 0 | FN53: 0 | FO53: 0 | FP53: 0 | FQ53: 0 | FR53: 0 | FS53: 0 | FT53: 0 | FU53: 0 | FV53: 0 | FW53: 0 | FX53: 0 | FY53: 0 | FZ53: 0 | GA53: 0 | GB53: 0 | GC53: 0 | GD53: 0 | GE53: 0 | GF53: 0 | GG53: 0 | GH53: 0 | GI53: 0 | GJ53: 0 | GK53: 0 | GL53: 0 | GM53: 0 | GN53: 0 | GO53: 0 | GP53: 0 | GQ53: 0 | GR53: 0 | GS53: 0 | GT53: 0 | GU53: 0 | GV53: 0 | GW53: 0 | GX53: 0 | GY53: 0 | GZ53: 0 | HA53: =IFERROR(IF(GZ53<1,0,ROUND(VLOOKUP($V$14,$B$12:$I$15,5,FALSE)*SQRT($P53)/(PI()*VLOOKUP($DR$14,$MM$6:$MO$11,3,FALSE)^2/4*HA$18),2)),666) -> 0 | HB53: 0 | HC53: 0 | HD53: 0 | HE53: 0 | HF53: 0 | HG53: 0 | HH53: 0 | HI53: 0 | HJ53: 0 | HK53: 0 | HL53: 0 | HM53: 0 | HN53: 0 | HO53: 0 | HP53: 0 | HQ53: 0 | HR53: 0 | HS53: 0 | HT53: 0 | HU53: 0 | HV53: 0 | HW53: 0 | HX53: 0 | HY53: 0 | HZ53: 0 | IA53: 0 | IB53: 0 | IC53: 0 | ID53: 0 | IE53: 0 | IF53: 0 | IG53: 0 | IH53: 0 | II53: 0 | IJ53: 0 | IK53: 0 | IL53: 0 | IM53: 0 | IN53: 0 | IO53: 0 | IP53: 0 | IQ53: 0 | IR53: 0 | IS53: 0 | IT53: 0 | IU53: 0 | IV53: 0 | IW53: 0 | IX53: 0 | IY53: 0 | IZ53: 0 | JA53: 0 | JB53: 0 | JC53: 0 | JD53: 0 | JE53: 0 | JF53: 0 | JG53: 0 | JH53: 0 | JI53: 0 | JJ53: 0 | JK53: 0 | JL53: 0 | JM53: =IFERROR(IF(JL53<1,0,ROUND(VLOOKUP($V$14,$B$12:$I$15,5,FALSE)*SQRT($P53)/(PI()*VLOOKUP($DR$14,$MM$6:$MO$11,3,FALSE)^2/4*JM$18),2)),666) -> 0 | JN53: 0 | JO53: 0 | JP53: 0 | JQ53: 0 | JR53: 0 | JS53: 0 | JT53: 0 | JU53: 0 | JV53: 0 | JW53: 0 | JX53: 0 | JY53: 0 | JZ53: 0 | KA53: 0 | KB53: 0 | KC53: 0 | KD53: 0 | KE53: 0 | KF53: 0 | KG53: 0 | KH53: 0 | KI53: 0 | KJ53: 0 | KK53: 0 | KL53: 0 | KM53: 0 | KN53: 0 | KO53: 0 | KP53: 0 | KQ53: 0 | KR53: 0 | KS53: 0 | KT53: 0 | KU53: 0 | KV53: 0 | KW53: 0 | KX53: 0 | KY53: 0 | KZ53: 0 | LA53: 0 | LB53: 0 | LC53: 0 | LD53: 0 | LE53: 0 | LF53: 0 | LG53: 0 | LH53: 0 | LI53: 0 | LJ53: 0 | LK53: 0 | LL53: 0 | LM53: 0 | LN53: 0 | LO53: 0 | LP53: 0 | LQ53: 0 | LR53: 0 | LS53: 0 | LT53: 0 | LU53: 0 | LV53: 0 | LW53: 0 | LX53: 0 | LY53: 0 | MH53: 29.9 | MI53: 433.6628543 | MJ53: 2.99
K54: =IF($HN$16=$MP$6,MH47,IF($HN$16=$MP$7,MI47,MJ47)) -> 30.5 | P54: 31 | Q54: =IFERROR(IF(P54<1,0,ROUND(VLOOKUP($V$14,$B$12:$I$15,5,FALSE)*SQRT($P54)/(PI()*VLOOKUP($DR$14,$MM$6:$MO$11,3,FALSE)^2/4*Q$18),2)),666) -> 666 | R54: 123.62 | S54: 61.81 | T54: 41.21 | U54: 30.9 | V54: 24.72 | W54: 20.6 | X54: 17.66 | Y54: 15.45 | Z54: 13.74 | AA54: 12.36 | AB54: 11.24 | AC54: 10.3 | AD54: 9.51 | AE54: 8.83 | AF54: 8.24 | AG54: 7.73 | AH54: 7.27 | AI54: 6.87 | AJ54: 6.51 | AK54: 6.18 | AL54: 5.89 | AM54: 5.62 | AN54: 5.37 | AO54: 5.15 | AP54: 4.94 | AQ54: 4.75 | AR54: 4.58 | AS54: 4.41 | AT54: 4.26 | AU54: 4.12 | AV54: 3.99 | AW54: 3.86 | AX54: 3.75 | AY54: 3.64 | AZ54: 3.53 | BA54: 3.43 | BB54: 3.34 | BC54: 3.25 | BD54: 3.17 | BE54: 3.09 | BF54: 3.02 | BG54: 2.94 | BH54: 2.87 | BI54: 2.81 | BJ54: 2.75 | BK54: 2.69 | BL54: 2.63 | BM54: 2.58 | BN54: 2.52 | BO54: 2.47 | BP54: 2.42 | BQ54: 2.38 | BR54: 2.33 | BS54: 2.29 | BT54: 2.25 | BU54: 2.21 | BV54: 2.17 | BW54: 2.13 | BX54: 2.1 | BY54: 2.06 | BZ54: 2.03 | CA54: 1.99 | CB54: 1.96 | CC54: =IFERROR(IF(CB54<1,0,ROUND(VLOOKUP($V$14,$B$12:$I$15,5,FALSE)*SQRT($P54)/(PI()*VLOOKUP($DR$14,$MM$6:$MO$11,3,FALSE)^2/4*CC$18),2)),666) -> 1.93 | CD54: 1.9 | CE54: 1.87 | CF54: 1.85 | CG54: 1.82 | CH54: 1.79 | CI54: 1.77 | CJ54: 1.74 | CK54: 1.72 | CL54: 1.69 | CM54: 1.67 | CN54: 1.65 | CO54: 1.63 | CP54: 1.61 | CQ54: 1.58 | CR54: 1.56 | CS54: 1.55 | CT54: 1.53 | CU54: 1.51 | CV54: 1.49 | CW54: 1.47 | CX54: 1.45 | CY54: 1.44 | CZ54: 1.42 | DA54: 1.4 | DB54: 1.39 | DC54: 1.37 | DD54: 1.36 | DE54: 1.34 | DF54: 1.33 | DG54: 1.32 | DH54: 1.3 | DI54: 1.29 | DJ54: 1.27 | DK54: 1.26 | DL54: 1.25 | DM54: 1.24 | DN54: 1.22 | DO54: 1.21 | DP54: 1.2 | DQ54: 1.19 | DR54: 1.18 | DS54: 1.17 | DT54: 1.16 | DU54: 1.14 | DV54: 1.13 | DW54: 1.12 | DX54: 1.11 | DY54: 1.1 | DZ54: 1.09 | EA54: 1.08 | EB54: 1.07 | EC54: 1.07 | ED54: 1.06 | EE54: 1.05 | EF54: 1.04 | EG54: 1.03 | EH54: 1.02 | EI54: 1.01 | EJ54: 1.01 | EK54: 1 | EL54: 0.99 | EM54: 0 | EN54: 0 | EO54: =IFERROR(IF(EN54<1,0,ROUND(VLOOKUP($V$14,$B$12:$I$15,5,FALSE)*SQRT($P54)/(PI()*VLOOKUP($DR$14,$MM$6:$MO$11,3,FALSE)^2/4*EO$18),2)),666) -> 0 | EP54: 0 | EQ54: 0 | ER54: 0 | ES54: 0 | ET54: 0 | EU54: 0 | EV54: 0 | EW54: 0 | EX54: 0 | EY54: 0 | EZ54: 0 | FA54: 0 | FB54: 0 | FC54: 0 | FD54: 0 | FE54: 0 | FF54: 0 | FG54: 0 | FH54: 0 | FI54: 0 | FJ54: 0 | FK54: 0 | FL54: 0 | FM54: 0 | FN54: 0 | FO54: 0 | FP54: 0 | FQ54: 0 | FR54: 0 | FS54: 0 | FT54: 0 | FU54: 0 | FV54: 0 | FW54: 0 | FX54: 0 | FY54: 0 | FZ54: 0 | GA54: 0 | GB54: 0 | GC54: 0 | GD54: 0 | GE54: 0 | GF54: 0 | GG54: 0 | GH54: 0 | GI54: 0 | GJ54: 0 | GK54: 0 | GL54: 0 | GM54: 0 | GN54: 0 | GO54: 0 | GP54: 0 | GQ54: 0 | GR54: 0 | GS54: 0 | GT54: 0 | GU54: 0 | GV54: 0 | GW54: 0 | GX54: 0 | GY54: 0 | GZ54: 0 | HA54: =IFERROR(IF(GZ54<1,0,ROUND(VLOOKUP($V$14,$B$12:$I$15,5,FALSE)*SQRT($P54)/(PI()*VLOOKUP($DR$14,$MM$6:$MO$11,3,FALSE)^2/4*HA$18),2)),666) -> 0 | HB54: 0 | HC54: 0 | HD54: 0 | HE54: 0 | HF54: 0 | HG54: 0 | HH54: 0 | HI54: 0 | HJ54: 0 | HK54: 0 | HL54: 0 | HM54: 0 | HN54: 0 | HO54: 0 | HP54: 0 | HQ54: 0 | HR54: 0 | HS54: 0 | HT54: 0 | HU54: 0 | HV54: 0 | HW54: 0 | HX54: 0 | HY54: 0 | HZ54: 0 | IA54: 0 | IB54: 0 | IC54: 0 | ID54: 0 | IE54: 0 | IF54: 0 | IG54: 0 | IH54: 0 | II54: 0 | IJ54: 0 | IK54: 0 | IL54: 0 | IM54: 0 | IN54: 0 | IO54: 0 | IP54: 0 | IQ54: 0 | IR54: 0 | IS54: 0 | IT54: 0 | IU54: 0 | IV54: 0 | IW54: 0 | IX54: 0 | IY54: 0 | IZ54: 0 | JA54: 0 | JB54: 0 | JC54: 0 | JD54: 0 | JE54: 0 | JF54: 0 | JG54: 0 | JH54: 0 | JI54: 0 | JJ54: 0 | JK54: 0 | JL54: 0 | JM54: =IFERROR(IF(JL54<1,0,ROUND(VLOOKUP($V$14,$B$12:$I$15,5,FALSE)*SQRT($P54)/(PI()*VLOOKUP($DR$14,$MM$6:$MO$11,3,FALSE)^2/4*JM$18),2)),666) -> 0 | JN54: 0 | JO54: 0 | JP54: 0 | JQ54: 0 | JR54: 0 | JS54: 0 | JT54: 0 | JU54: 0 | JV54: 0 | JW54: 0 | JX54: 0 | JY54: 0 | JZ54: 0 | KA54: 0 | KB54: 0 | KC54: 0 | KD54: 0 | KE54: 0 | KF54: 0 | KG54: 0 | KH54: 0 | KI54: 0 | KJ54: 0 | KK54: 0 | KL54: 0 | KM54: 0 | KN54: 0 | KO54: 0 | KP54: 0 | KQ54: 0 | KR54: 0 | KS54: 0 | KT54: 0 | KU54: 0 | KV54: 0 | KW54: 0 | KX54: 0 | KY54: 0 | KZ54: 0 | LA54: 0 | LB54: 0 | LC54: 0 | LD54: 0 | LE54: 0 | LF54: 0 | LG54: 0 | LH54: 0 | LI54: 0 | LJ54: 0 | LK54: 0 | LL54: 0 | LM54: 0 | LN54: 0 | LO54: 0 | LP54: 0 | LQ54: 0 | LR54: 0 | LS54: 0 | LT54: 0 | LU54: 0 | LV54: 0 | LW54: 0 | LX54: 0 | LY54: 0 | MH54: 29.8 | MI54: 432.2124768 | MJ54: 2.98
P55: 30.9 | Q55: =IFERROR(IF(P55<1,0,ROUND(VLOOKUP($V$14,$B$12:$I$15,5,FALSE)*SQRT($P55)/(PI()*VLOOKUP($DR$14,$MM$6:$MO$11,3,FALSE)^2/4*Q$18),2)),666) -> 666 | R55: 123.42 | S55: 61.71 | T55: 41.14 | U55: 30.85 | V55: 24.68 | W55: 20.57 | X55: 17.63 | Y55: 15.43 | Z55: 13.71 | AA55: 12.34 | AB55: 11.22 | AC55: 10.28 | AD55: 9.49 | AE55: 8.82 | AF55: 8.23 | AG55: 7.71 | AH55: 7.26 | AI55: 6.86 | AJ55: 6.5 | AK55: 6.17 | AL55: 5.88 | AM55: 5.61 | AN55: 5.37 | AO55: 5.14 | AP55: 4.94 | AQ55: 4.75 | AR55: 4.57 | AS55: 4.41 | AT55: 4.26 | AU55: 4.11 | AV55: 3.98 | AW55: 3.86 | AX55: 3.74 | AY55: 3.63 | AZ55: 3.53 | BA55: 3.43 | BB55: 3.34 | BC55: 3.25 | BD55: 3.16 | BE55: 3.09 | BF55: 3.01 | BG55: 2.94 | BH55: 2.87 | BI55: 2.8 | BJ55: 2.74 | BK55: 2.68 | BL55: 2.63 | BM55: 2.57 | BN55: 2.52 | BO55: 2.47 | BP55: 2.42 | BQ55: 2.37 | BR55: 2.33 | BS55: 2.29 | BT55: 2.24 | BU55: 2.2 | BV55: 2.17 | BW55: 2.13 | BX55: 2.09 | BY55: 2.06 | BZ55: 2.02 | CA55: 1.99 | CB55: 1.96 | CC55: =IFERROR(IF(CB55<1,0,ROUND(VLOOKUP($V$14,$B$12:$I$15,5,FALSE)*SQRT($P55)/(PI()*VLOOKUP($DR$14,$MM$6:$MO$11,3,FALSE)^2/4*CC$18),2)),666) -> 1.93 | CD55: 1.9 | CE55: 1.87 | CF55: 1.84 | CG55: 1.81 | CH55: 1.79 | CI55: 1.76 | CJ55: 1.74 | CK55: 1.71 | CL55: 1.69 | CM55: 1.67 | CN55: 1.65 | CO55: 1.62 | CP55: 1.6 | CQ55: 1.58 | CR55: 1.56 | CS55: 1.54 | CT55: 1.52 | CU55: 1.51 | CV55: 1.49 | CW55: 1.47 | CX55: 1.45 | CY55: 1.44 | CZ55: 1.42 | DA55: 1.4 | DB55: 1.39 | DC55: 1.37 | DD55: 1.36 | DE55: 1.34 | DF55: 1.33 | DG55: 1.31 | DH55: 1.3 | DI55: 1.29 | DJ55: 1.27 | DK55: 1.26 | DL55: 1.25 | DM55: 1.23 | DN55: 1.22 | DO55: 1.21 | DP55: 1.2 | DQ55: 1.19 | DR55: 1.18 | DS55: 1.16 | DT55: 1.15 | DU55: 1.14 | DV55: 1.13 | DW55: 1.12 | DX55: 1.11 | DY55: 1.1 | DZ55: 1.09 | EA55: 1.08 | EB55: 1.07 | EC55: 1.06 | ED55: 1.05 | EE55: 1.05 | EF55: 1.04 | EG55: 1.03 | EH55: 1.02 | EI55: 1.01 | EJ55: 1 | EK55: 1 | EL55: 0.99 | EM55: 0 | EN55: 0 | EO55: =IFERROR(IF(EN55<1,0,ROUND(VLOOKUP($V$14,$B$12:$I$15,5,FALSE)*SQRT($P55)/(PI()*VLOOKUP($DR$14,$MM$6:$MO$11,3,FALSE)^2/4*EO$18),2)),666) -> 0 | EP55: 0 | EQ55: 0 | ER55: 0 | ES55: 0 | ET55: 0 | EU55: 0 | EV55: 0 | EW55: 0 | EX55: 0 | EY55: 0 | EZ55: 0 | FA55: 0 | FB55: 0 | FC55: 0 | FD55: 0 | FE55: 0 | FF55: 0 | FG55: 0 | FH55: 0 | FI55: 0 | FJ55: 0 | FK55: 0 | FL55: 0 | FM55: 0 | FN55: 0 | FO55: 0 | FP55: 0 | FQ55: 0 | FR55: 0 | FS55: 0 | FT55: 0 | FU55: 0 | FV55: 0 | FW55: 0 | FX55: 0 | FY55: 0 | FZ55: 0 | GA55: 0 | GB55: 0 | GC55: 0 | GD55: 0 | GE55: 0 | GF55: 0 | GG55: 0 | GH55: 0 | GI55: 0 | GJ55: 0 | GK55: 0 | GL55: 0 | GM55: 0 | GN55: 0 | GO55: 0 | GP55: 0 | GQ55: 0 | GR55: 0 | GS55: 0 | GT55: 0 | GU55: 0 | GV55: 0 | GW55: 0 | GX55: 0 | GY55: 0 | GZ55: 0 | HA55: =IFERROR(IF(GZ55<1,0,ROUND(VLOOKUP($V$14,$B$12:$I$15,5,FALSE)*SQRT($P55)/(PI()*VLOOKUP($DR$14,$MM$6:$MO$11,3,FALSE)^2/4*HA$18),2)),666) -> 0 | HB55: 0 | HC55: 0 | HD55: 0 | HE55: 0 | HF55: 0 | HG55: 0 | HH55: 0 | HI55: 0 | HJ55: 0 | HK55: 0 | HL55: 0 | HM55: 0 | HN55: 0 | HO55: 0 | HP55: 0 | HQ55: 0 | HR55: 0 | HS55: 0 | HT55: 0 | HU55: 0 | HV55: 0 | HW55: 0 | HX55: 0 | HY55: 0 | HZ55: 0 | IA55: 0 | IB55: 0 | IC55: 0 | ID55: 0 | IE55: 0 | IF55: 0 | IG55: 0 | IH55: 0 | II55: 0 | IJ55: 0 | IK55: 0 | IL55: 0 | IM55: 0 | IN55: 0 | IO55: 0 | IP55: 0 | IQ55: 0 | IR55: 0 | IS55: 0 | IT55: 0 | IU55: 0 | IV55: 0 | IW55: 0 | IX55: 0 | IY55: 0 | IZ55: 0 | JA55: 0 | JB55: 0 | JC55: 0 | JD55: 0 | JE55: 0 | JF55: 0 | JG55: 0 | JH55: 0 | JI55: 0 | JJ55: 0 | JK55: 0 | JL55: 0 | JM55: =IFERROR(IF(JL55<1,0,ROUND(VLOOKUP($V$14,$B$12:$I$15,5,FALSE)*SQRT($P55)/(PI()*VLOOKUP($DR$14,$MM$6:$MO$11,3,FALSE)^2/4*JM$18),2)),666) -> 0 | JN55: 0 | JO55: 0 | JP55: 0 | JQ55: 0 | JR55: 0 | JS55: 0 | JT55: 0 | JU55: 0 | JV55: 0 | JW55: 0 | JX55: 0 | JY55: 0 | JZ55: 0 | KA55: 0 | KB55: 0 | KC55: 0 | KD55: 0 | KE55: 0 | KF55: 0 | KG55: 0 | KH55: 0 | KI55: 0 | KJ55: 0 | KK55: 0 | KL55: 0 | KM55: 0 | KN55: 0 | KO55: 0 | KP55: 0 | KQ55: 0 | KR55: 0 | KS55: 0 | KT55: 0 | KU55: 0 | KV55: 0 | KW55: 0 | KX55: 0 | KY55: 0 | KZ55: 0 | LA55: 0 | LB55: 0 | LC55: 0 | LD55: 0 | LE55: 0 | LF55: 0 | LG55: 0 | LH55: 0 | LI55: 0 | LJ55: 0 | LK55: 0 | LL55: 0 | LM55: 0 | LN55: 0 | LO55: 0 | LP55: 0 | LQ55: 0 | LR55: 0 | LS55: 0 | LT55: 0 | LU55: 0 | LV55: 0 | LW55: 0 | LX55: 0 | LY55: 0 | MH55: 29.7 | MI55: 430.7620994 | MJ55: 2.97
P56: 30.8 | Q56: =IFERROR(IF(P56<1,0,ROUND(VLOOKUP($V$14,$B$12:$I$15,5,FALSE)*SQRT($P56)/(PI()*VLOOKUP($DR$14,$MM$6:$MO$11,3,FALSE)^2/4*Q$18),2)),666) -> 666 | R56: 123.22 | S56: 61.61 | T56: 41.07 | U56: 30.8 | V56: 24.64 | W56: 20.54 | X56: 17.6 | Y56: 15.4 | Z56: 13.69 | AA56: 12.32 | AB56: 11.2 | AC56: 10.27 | AD56: 9.48 | AE56: 8.8 | AF56: 8.21 | AG56: 7.7 | AH56: 7.25 | AI56: 6.85 | AJ56: 6.49 | AK56: 6.16 | AL56: 5.87 | AM56: 5.6 | AN56: 5.36 | AO56: 5.13 | AP56: 4.93 | AQ56: 4.74 | AR56: 4.56 | AS56: 4.4 | AT56: 4.25 | AU56: 4.11 | AV56: 3.97 | AW56: 3.85 | AX56: 3.73 | AY56: 3.62 | AZ56: 3.52 | BA56: 3.42 | BB56: 3.33 | BC56: 3.24 | BD56: 3.16 | BE56: 3.08 | BF56: 3.01 | BG56: 2.93 | BH56: 2.87 | BI56: 2.8 | BJ56: 2.74 | BK56: 2.68 | BL56: 2.62 | BM56: 2.57 | BN56: 2.51 | BO56: 2.46 | BP56: 2.42 | BQ56: 2.37 | BR56: 2.32 | BS56: 2.28 | BT56: 2.24 | BU56: 2.2 | BV56: 2.16 | BW56: 2.12 | BX56: 2.09 | BY56: 2.05 | BZ56: 2.02 | CA56: 1.99 | CB56: 1.96 | CC56: =IFERROR(IF(CB56<1,0,ROUND(VLOOKUP($V$14,$B$12:$I$15,5,FALSE)*SQRT($P56)/(PI()*VLOOKUP($DR$14,$MM$6:$MO$11,3,FALSE)^2/4*CC$18),2)),666) -> 1.93 | CD56: 1.9 | CE56: 1.87 | CF56: 1.84 | CG56: 1.81 | CH56: 1.79 | CI56: 1.76 | CJ56: 1.74 | CK56: 1.71 | CL56: 1.69 | CM56: 1.67 | CN56: 1.64 | CO56: 1.62 | CP56: 1.6 | CQ56: 1.58 | CR56: 1.56 | CS56: 1.54 | CT56: 1.52 | CU56: 1.5 | CV56: 1.48 | CW56: 1.47 | CX56: 1.45 | CY56: 1.43 | CZ56: 1.42 | DA56: 1.4 | DB56: 1.38 | DC56: 1.37 | DD56: 1.35 | DE56: 1.34 | DF56: 1.32 | DG56: 1.31 | DH56: 1.3 | DI56: 1.28 | DJ56: 1.27 | DK56: 1.26 | DL56: 1.24 | DM56: 1.23 | DN56: 1.22 | DO56: 1.21 | DP56: 1.2 | DQ56: 1.18 | DR56: 1.17 | DS56: 1.16 | DT56: 1.15 | DU56: 1.14 | DV56: 1.13 | DW56: 1.12 | DX56: 1.11 | DY56: 1.1 | DZ56: 1.09 | EA56: 1.08 | EB56: 1.07 | EC56: 1.06 | ED56: 1.05 | EE56: 1.04 | EF56: 1.04 | EG56: 1.03 | EH56: 1.02 | EI56: 1.01 | EJ56: 1 | EK56: 0.99 | EL56: 0 | EM56: 0 | EN56: 0 | EO56: =IFERROR(IF(EN56<1,0,ROUND(VLOOKUP($V$14,$B$12:$I$15,5,FALSE)*SQRT($P56)/(PI()*VLOOKUP($DR$14,$MM$6:$MO$11,3,FALSE)^2/4*EO$18),2)),666) -> 0 | EP56: 0 | EQ56: 0 | ER56: 0 | ES56: 0 | ET56: 0 | EU56: 0 | EV56: 0 | EW56: 0 | EX56: 0 | EY56: 0 | EZ56: 0 | FA56: 0 | FB56: 0 | FC56: 0 | FD56: 0 | FE56: 0 | FF56: 0 | FG56: 0 | FH56: 0 | FI56: 0 | FJ56: 0 | FK56: 0 | FL56: 0 | FM56: 0 | FN56: 0 | FO56: 0 | FP56: 0 | FQ56: 0 | FR56: 0 | FS56: 0 | FT56: 0 | FU56: 0 | FV56: 0 | FW56: 0 | FX56: 0 | FY56: 0 | FZ56: 0 | GA56: 0 | GB56: 0 | GC56: 0 | GD56: 0 | GE56: 0 | GF56: 0 | GG56: 0 | GH56: 0 | GI56: 0 | GJ56: 0 | GK56: 0 | GL56: 0 | GM56: 0 | GN56: 0 | GO56: 0 | GP56: 0 | GQ56: 0 | GR56: 0 | GS56: 0 | GT56: 0 | GU56: 0 | GV56: 0 | GW56: 0 | GX56: 0 | GY56: 0 | GZ56: 0 | HA56: =IFERROR(IF(GZ56<1,0,ROUND(VLOOKUP($V$14,$B$12:$I$15,5,FALSE)*SQRT($P56)/(PI()*VLOOKUP($DR$14,$MM$6:$MO$11,3,FALSE)^2/4*HA$18),2)),666) -> 0 | HB56: 0 | HC56: 0 | HD56: 0 | HE56: 0 | HF56: 0 | HG56: 0 | HH56: 0 | HI56: 0 | HJ56: 0 | HK56: 0 | HL56: 0 | HM56: 0 | HN56: 0 | HO56: 0 | HP56: 0 | HQ56: 0 | HR56: 0 | HS56: 0 | HT56: 0 | HU56: 0 | HV56: 0 | HW56: 0 | HX56: 0 | HY56: 0 | HZ56: 0 | IA56: 0 | IB56: 0 | IC56: 0 | ID56: 0 | IE56: 0 | IF56: 0 | IG56: 0 | IH56: 0 | II56: 0 | IJ56: 0 | IK56: 0 | IL56: 0 | IM56: 0 | IN56: 0 | IO56: 0 | IP56: 0 | IQ56: 0 | IR56: 0 | IS56: 0 | IT56: 0 | IU56: 0 | IV56: 0 | IW56: 0 | IX56: 0 | IY56: 0 | IZ56: 0 | JA56: 0 | JB56: 0 | JC56: 0 | JD56: 0 | JE56: 0 | JF56: 0 | JG56: 0 | JH56: 0 | JI56: 0 | JJ56: 0 | JK56: 0 | JL56: 0 | JM56: =IFERROR(IF(JL56<1,0,ROUND(VLOOKUP($V$14,$B$12:$I$15,5,FALSE)*SQRT($P56)/(PI()*VLOOKUP($DR$14,$MM$6:$MO$11,3,FALSE)^2/4*JM$18),2)),666) -> 0 | JN56: 0 | JO56: 0 | JP56: 0 | JQ56: 0 | JR56: 0 | JS56: 0 | JT56: 0 | JU56: 0 | JV56: 0 | JW56: 0 | JX56: 0 | JY56: 0 | JZ56: 0 | KA56: 0 | KB56: 0 | KC56: 0 | KD56: 0 | KE56: 0 | KF56: 0 | KG56: 0 | KH56: 0 | KI56: 0 | KJ56: 0 | KK56: 0 | KL56: 0 | KM56: 0 | KN56: 0 | KO56: 0 | KP56: 0 | KQ56: 0 | KR56: 0 | KS56: 0 | KT56: 0 | KU56: 0 | KV56: 0 | KW56: 0 | KX56: 0 | KY56: 0 | KZ56: 0 | LA56: 0 | LB56: 0 | LC56: 0 | LD56: 0 | LE56: 0 | LF56: 0 | LG56: 0 | LH56: 0 | LI56: 0 | LJ56: 0 | LK56: 0 | LL56: 0 | LM56: 0 | LN56: 0 | LO56: 0 | LP56: 0 | LQ56: 0 | LR56: 0 | LS56: 0 | LT56: 0 | LU56: 0 | LV56: 0 | LW56: 0 | LX56: 0 | LY56: 0 | MH56: 29.6 | MI56: 429.3117219 | MJ56: 2.96
P57: 30.7 | Q57: =IFERROR(IF(P57<1,0,ROUND(VLOOKUP($V$14,$B$12:$I$15,5,FALSE)*SQRT($P57)/(PI()*VLOOKUP($DR$14,$MM$6:$MO$11,3,FALSE)^2/4*Q$18),2)),666) -> 666 | R57: 123.02 | S57: 61.51 | T57: 41.01 | U57: 30.75 | V57: 24.6 | W57: 20.5 | X57: 17.57 | Y57: 15.38 | Z57: 13.67 | AA57: 12.3 | AB57: 11.18 | AC57: 10.25 | AD57: 9.46 | AE57: 8.79 | AF57: 8.2 | AG57: 7.69 | AH57: 7.24 | AI57: 6.83 | AJ57: 6.47 | AK57: 6.15 | AL57: 5.86 | AM57: 5.59 | AN57: 5.35 | AO57: 5.13 | AP57: 4.92 | AQ57: 4.73 | AR57: 4.56 | AS57: 4.39 | AT57: 4.24 | AU57: 4.1 | AV57: 3.97 | AW57: 3.84 | AX57: 3.73 | AY57: 3.62 | AZ57: 3.51 | BA57: 3.42 | BB57: 3.32 | BC57: 3.24 | BD57: 3.15 | BE57: 3.08 | BF57: 3 | BG57: 2.93 | BH57: 2.86 | BI57: 2.8 | BJ57: 2.73 | BK57: 2.67 | BL57: 2.62 | BM57: 2.56 | BN57: 2.51 | BO57: 2.46 | BP57: 2.41 | BQ57: 2.37 | BR57: 2.32 | BS57: 2.28 | BT57: 2.24 | BU57: 2.2 | BV57: 2.16 | BW57: 2.12 | BX57: 2.09 | BY57: 2.05 | BZ57: 2.02 | CA57: 1.98 | CB57: 1.95 | CC57: =IFERROR(IF(CB57<1,0,ROUND(VLOOKUP($V$14,$B$12:$I$15,5,FALSE)*SQRT($P57)/(PI()*VLOOKUP($DR$14,$MM$6:$MO$11,3,FALSE)^2/4*CC$18),2)),666) -> 1.92 | CD57: 1.89 | CE57: 1.86 | CF57: 1.84 | CG57: 1.81 | CH57: 1.78 | CI57: 1.76 | CJ57: 1.73 | CK57: 1.71 | CL57: 1.69 | CM57: 1.66 | CN57: 1.64 | CO57: 1.62 | CP57: 1.6 | CQ57: 1.58 | CR57: 1.56 | CS57: 1.54 | CT57: 1.52 | CU57: 1.5 | CV57: 1.48 | CW57: 1.46 | CX57: 1.45 | CY57: 1.43 | CZ57: 1.41 | DA57: 1.4 | DB57: 1.38 | DC57: 1.37 | DD57: 1.35 | DE57: 1.34 | DF57: 1.32 | DG57: 1.31 | DH57: 1.29 | DI57: 1.28 | DJ57: 1.27 | DK57: 1.26 | DL57: 1.24 | DM57: 1.23 | DN57: 1.22 | DO57: 1.21 | DP57: 1.19 | DQ57: 1.18 | DR57: 1.17 | DS57: 1.16 | DT57: 1.15 | DU57: 1.14 | DV57: 1.13 | DW57: 1.12 | DX57: 1.11 | DY57: 1.1 | DZ57: 1.09 | EA57: 1.08 | EB57: 1.07 | EC57: 1.06 | ED57: 1.05 | EE57: 1.04 | EF57: 1.03 | EG57: 1.03 | EH57: 1.02 | EI57: 1.01 | EJ57: 1 | EK57: 0.99 | EL57: 0 | EM57: 0 | EN57: 0 | EO57: =IFERROR(IF(EN57<1,0,ROUND(VLOOKUP($V$14,$B$12:$I$15,5,FALSE)*SQRT($P57)/(PI()*VLOOKUP($DR$14,$MM$6:$MO$11,3,FALSE)^2/4*EO$18),2)),666) -> 0 | EP57: 0 | EQ57: 0 | ER57: 0 | ES57: 0 | ET57: 0 | EU57: 0 | EV57: 0 | EW57: 0 | EX57: 0 | EY57: 0 | EZ57: 0 | FA57: 0 | FB57: 0 | FC57: 0 | FD57: 0 | FE57: 0 | FF57: 0 | FG57: 0 | FH57: 0 | FI57: 0 | FJ57: 0 | FK57: 0 | FL57: 0 | FM57: 0 | FN57: 0 | FO57: 0 | FP57: 0 | FQ57: 0 | FR57: 0 | FS57: 0 | FT57: 0 | FU57: 0 | FV57: 0 | FW57: 0 | FX57: 0 | FY57: 0 | FZ57: 0 | GA57: 0 | GB57: 0 | GC57: 0 | GD57: 0 | GE57: 0 | GF57: 0 | GG57: 0 | GH57: 0 | GI57: 0 | GJ57: 0 | GK57: 0 | GL57: 0 | GM57: 0 | GN57: 0 | GO57: 0 | GP57: 0 | GQ57: 0 | GR57: 0 | GS57: 0 | GT57: 0 | GU57: 0 | GV57: 0 | GW57: 0 | GX57: 0 | GY57: 0 | GZ57: 0 | HA57: =IFERROR(IF(GZ57<1,0,ROUND(VLOOKUP($V$14,$B$12:$I$15,5,FALSE)*SQRT($P57)/(PI()*VLOOKUP($DR$14,$MM$6:$MO$11,3,FALSE)^2/4*HA$18),2)),666) -> 0 | HB57: 0 | HC57: 0 | HD57: 0 | HE57: 0 | HF57: 0 | HG57: 0 | HH57: 0 | HI57: 0 | HJ57: 0 | HK57: 0 | HL57: 0 | HM57: 0 | HN57: 0 | HO57: 0 | HP57: 0 | HQ57: 0 | HR57: 0 | HS57: 0 | HT57: 0 | HU57: 0 | HV57: 0 | HW57: 0 | HX57: 0 | HY57: 0 | HZ57: 0 | IA57: 0 | IB57: 0 | IC57: 0 | ID57: 0 | IE57: 0 | IF57: 0 | IG57: 0 | IH57: 0 | II57: 0 | IJ57: 0 | IK57: 0 | IL57: 0 | IM57: 0 | IN57: 0 | IO57: 0 | IP57: 0 | IQ57: 0 | IR57: 0 | IS57: 0 | IT57: 0 | IU57: 0 | IV57: 0 | IW57: 0 | IX57: 0 | IY57: 0 | IZ57: 0 | JA57: 0 | JB57: 0 | JC57: 0 | JD57: 0 | JE57: 0 | JF57: 0 | JG57: 0 | JH57: 0 | JI57: 0 | JJ57: 0 | JK57: 0 | JL57: 0 | JM57: =IFERROR(IF(JL57<1,0,ROUND(VLOOKUP($V$14,$B$12:$I$15,5,FALSE)*SQRT($P57)/(PI()*VLOOKUP($DR$14,$MM$6:$MO$11,3,FALSE)^2/4*JM$18),2)),666) -> 0 | JN57: 0 | JO57: 0 | JP57: 0 | JQ57: 0 | JR57: 0 | JS57: 0 | JT57: 0 | JU57: 0 | JV57: 0 | JW57: 0 | JX57: 0 | JY57: 0 | JZ57: 0 | KA57: 0 | KB57: 0 | KC57: 0 | KD57: 0 | KE57: 0 | KF57: 0 | KG57: 0 | KH57: 0 | KI57: 0 | KJ57: 0 | KK57: 0 | KL57: 0 | KM57: 0 | KN57: 0 | KO57: 0 | KP57: 0 | KQ57: 0 | KR57: 0 | KS57: 0 | KT57: 0 | KU57: 0 | KV57: 0 | KW57: 0 | KX57: 0 | KY57: 0 | KZ57: 0 | LA57: 0 | LB57: 0 | LC57: 0 | LD57: 0 | LE57: 0 | LF57: 0 | LG57: 0 | LH57: 0 | LI57: 0 | LJ57: 0 | LK57: 0 | LL57: 0 | LM57: 0 | LN57: 0 | LO57: 0 | LP57: 0 | LQ57: 0 | LR57: 0 | LS57: 0 | LT57: 0 | LU57: 0 | LV57: 0 | LW57: 0 | LX57: 0 | LY57: 0 | MH57: 29.5 | MI57: 427.8613445 | MJ57: 2.95
P58: 30.6 | Q58: =IFERROR(IF(P58<1,0,ROUND(VLOOKUP($V$14,$B$12:$I$15,5,FALSE)*SQRT($P58)/(PI()*VLOOKUP($DR$14,$MM$6:$MO$11,3,FALSE)^2/4*Q$18),2)),666) -> 666 | R58: 122.82 | S58: 61.41 | T58: 40.94 | U58: 30.7 | V58: 24.56 | W58: 20.47 | X58: 17.55 | Y58: 15.35 | Z58: 13.65 | AA58: 12.28 | AB58: 11.17 | AC58: 10.23 | AD58: 9.45 | AE58: 8.77 | AF58: 8.19 | AG58: 7.68 | AH58: 7.22 | AI58: 6.82 | AJ58: 6.46 | AK58: 6.14 | AL58: 5.85 | AM58: 5.58 | AN58: 5.34 | AO58: 5.12 | AP58: 4.91 | AQ58: 4.72 | AR58: 4.55 | AS58: 4.39 | AT58: 4.24 | AU58: 4.09 | AV58: 3.96 | AW58: 3.84 | AX58: 3.72 | AY58: 3.61 | AZ58: 3.51 | BA58: 3.41 | BB58: 3.32 | BC58: 3.23 | BD58: 3.15 | BE58: 3.07 | BF58: 3 | BG58: 2.92 | BH58: 2.86 | BI58: 2.79 | BJ58: 2.73 | BK58: 2.67 | BL58: 2.61 | BM58: 2.56 | BN58: 2.51 | BO58: 2.46 | BP58: 2.41 | BQ58: 2.36 | BR58: 2.32 | BS58: 2.27 | BT58: 2.23 | BU58: 2.19 | BV58: 2.15 | BW58: 2.12 | BX58: 2.08 | BY58: 2.05 | BZ58: 2.01 | CA58: 1.98 | CB58: 1.95 | CC58: =IFERROR(IF(CB58<1,0,ROUND(VLOOKUP($V$14,$B$12:$I$15,5,FALSE)*SQRT($P58)/(PI()*VLOOKUP($DR$14,$MM$6:$MO$11,3,FALSE)^2/4*CC$18),2)),666) -> 1.92 | CD58: 1.89 | CE58: 1.86 | CF58: 1.83 | CG58: 1.81 | CH58: 1.78 | CI58: 1.75 | CJ58: 1.73 | CK58: 1.71 | CL58: 1.68 | CM58: 1.66 | CN58: 1.64 | CO58: 1.62 | CP58: 1.6 | CQ58: 1.57 | CR58: 1.55 | CS58: 1.54 | CT58: 1.52 | CU58: 1.5 | CV58: 1.48 | CW58: 1.46 | CX58: 1.44 | CY58: 1.43 | CZ58: 1.41 | DA58: 1.4 | DB58: 1.38 | DC58: 1.36 | DD58: 1.35 | DE58: 1.33 | DF58: 1.32 | DG58: 1.31 | DH58: 1.29 | DI58: 1.28 | DJ58: 1.27 | DK58: 1.25 | DL58: 1.24 | DM58: 1.23 | DN58: 1.22 | DO58: 1.2 | DP58: 1.19 | DQ58: 1.18 | DR58: 1.17 | DS58: 1.16 | DT58: 1.15 | DU58: 1.14 | DV58: 1.13 | DW58: 1.12 | DX58: 1.11 | DY58: 1.1 | DZ58: 1.09 | EA58: 1.08 | EB58: 1.07 | EC58: 1.06 | ED58: 1.05 | EE58: 1.04 | EF58: 1.03 | EG58: 1.02 | EH58: 1.02 | EI58: 1.01 | EJ58: 1 | EK58: 0.99 | EL58: 0 | EM58: 0 | EN58: 0 | EO58: =IFERROR(IF(EN58<1,0,ROUND(VLOOKUP($V$14,$B$12:$I$15,5,FALSE)*SQRT($P58)/(PI()*VLOOKUP($DR$14,$MM$6:$MO$11,3,FALSE)^2/4*EO$18),2)),666) -> 0 | EP58: 0 | EQ58: 0 | ER58: 0 | ES58: 0 | ET58: 0 | EU58: 0 | EV58: 0 | EW58: 0 | EX58: 0 | EY58: 0 | EZ58: 0 | FA58: 0 | FB58: 0 | FC58: 0 | FD58: 0 | FE58: 0 | FF58: 0 | FG58: 0 | FH58: 0 | FI58: 0 | FJ58: 0 | FK58: 0 | FL58: 0 | FM58: 0 | FN58: 0 | FO58: 0 | FP58: 0 | FQ58: 0 | FR58: 0 | FS58: 0 | FT58: 0 | FU58: 0 | FV58: 0 | FW58: 0 | FX58: 0 | FY58: 0 | FZ58: 0 | GA58: 0 | GB58: 0 | GC58: 0 | GD58: 0 | GE58: 0 | GF58: 0 | GG58: 0 | GH58: 0 | GI58: 0 | GJ58: 0 | GK58: 0 | GL58: 0 | GM58: 0 | GN58: 0 | GO58: 0 | GP58: 0 | GQ58: 0 | GR58: 0 | GS58: 0 | GT58: 0 | GU58: 0 | GV58: 0 | GW58: 0 | GX58: 0 | GY58: 0 | GZ58: 0 | HA58: =IFERROR(IF(GZ58<1,0,ROUND(VLOOKUP($V$14,$B$12:$I$15,5,FALSE)*SQRT($P58)/(PI()*VLOOKUP($DR$14,$MM$6:$MO$11,3,FALSE)^2/4*HA$18),2)),666) -> 0 | HB58: 0 | HC58: 0 | HD58: 0 | HE58: 0 | HF58: 0 | HG58: 0 | HH58: 0 | HI58: 0 | HJ58: 0 | HK58: 0 | HL58: 0 | HM58: 0 | HN58: 0 | HO58: 0 | HP58: 0 | HQ58: 0 | HR58: 0 | HS58: 0 | HT58: 0 | HU58: 0 | HV58: 0 | HW58: 0 | HX58: 0 | HY58: 0 | HZ58: 0 | IA58: 0 | IB58: 0 | IC58: 0 | ID58: 0 | IE58: 0 | IF58: 0 | IG58: 0 | IH58: 0 | II58: 0 | IJ58: 0 | IK58: 0 | IL58: 0 | IM58: 0 | IN58: 0 | IO58: 0 | IP58: 0 | IQ58: 0 | IR58: 0 | IS58: 0 | IT58: 0 | IU58: 0 | IV58: 0 | IW58: 0 | IX58: 0 | IY58: 0 | IZ58: 0 | JA58: 0 | JB58: 0 | JC58: 0 | JD58: 0 | JE58: 0 | JF58: 0 | JG58: 0 | JH58: 0 | JI58: 0 | JJ58: 0 | JK58: 0 | JL58: 0 | JM58: =IFERROR(IF(JL58<1,0,ROUND(VLOOKUP($V$14,$B$12:$I$15,5,FALSE)*SQRT($P58)/(PI()*VLOOKUP($DR$14,$MM$6:$MO$11,3,FALSE)^2/4*JM$18),2)),666) -> 0 | JN58: 0 | JO58: 0 | JP58: 0 | JQ58: 0 | JR58: 0 | JS58: 0 | JT58: 0 | JU58: 0 | JV58: 0 | JW58: 0 | JX58: 0 | JY58: 0 | JZ58: 0 | KA58: 0 | KB58: 0 | KC58: 0 | KD58: 0 | KE58: 0 | KF58: 0 | KG58: 0 | KH58: 0 | KI58: 0 | KJ58: 0 | KK58: 0 | KL58: 0 | KM58: 0 | KN58: 0 | KO58: 0 | KP58: 0 | KQ58: 0 | KR58: 0 | KS58: 0 | KT58: 0 | KU58: 0 | KV58: 0 | KW58: 0 | KX58: 0 | KY58: 0 | KZ58: 0 | LA58: 0 | LB58: 0 | LC58: 0 | LD58: 0 | LE58: 0 | LF58: 0 | LG58: 0 | LH58: 0 | LI58: 0 | LJ58: 0 | LK58: 0 | LL58: 0 | LM58: 0 | LN58: 0 | LO58: 0 | LP58: 0 | LQ58: 0 | LR58: 0 | LS58: 0 | LT58: 0 | LU58: 0 | LV58: 0 | LW58: 0 | LX58: 0 | LY58: 0 | MH58: 29.4 | MI58: 426.4109671 | MJ58: 2.94
P59: 30.5 | Q59: =IFERROR(IF(P59<1,0,ROUND(VLOOKUP($V$14,$B$12:$I$15,5,FALSE)*SQRT($P59)/(PI()*VLOOKUP($DR$14,$MM$6:$MO$11,3,FALSE)^2/4*Q$18),2)),666) -> 666 | R59: 122.62 | S59: 61.31 | T59: 40.87 | U59: 30.65 | V59: 24.52 | W59: 20.44 | X59: 17.52 | Y59: 15.33 | Z59: 13.62 | AA59: 12.26 | AB59: 11.15 | AC59: 10.22 | AD59: 9.43 | AE59: 8.76 | AF59: 8.17 | AG59: 7.66 | AH59: 7.21 | AI59: 6.81 | AJ59: 6.45 | AK59: 6.13 | AL59: 5.84 | AM59: 5.57 | AN59: 5.33 | AO59: 5.11 | AP59: 4.9 | AQ59: 4.72 | AR59: 4.54 | AS59: 4.38 | AT59: 4.23 | AU59: 4.09 | AV59: 3.96 | AW59: 3.83 | AX59: 3.72 | AY59: 3.61 | AZ59: 3.5 | BA59: 3.41 | BB59: 3.31 | BC59: 3.23 | BD59: 3.14 | BE59: 3.07 | BF59: 2.99 | BG59: 2.92 | BH59: 2.85 | BI59: 2.79 | BJ59: 2.72 | BK59: 2.67 | BL59: 2.61 | BM59: 2.55 | BN59: 2.5 | BO59: 2.45 | BP59: 2.4 | BQ59: 2.36 | BR59: 2.31 | BS59: 2.27 | BT59: 2.23 | BU59: 2.19 | BV59: 2.15 | BW59: 2.11 | BX59: 2.08 | BY59: 2.04 | BZ59: 2.01 | CA59: 1.98 | CB59: 1.95 | CC59: =IFERROR(IF(CB59<1,0,ROUND(VLOOKUP($V$14,$B$12:$I$15,5,FALSE)*SQRT($P59)/(PI()*VLOOKUP($DR$14,$MM$6:$MO$11,3,FALSE)^2/4*CC$18),2)),666) -> 1.92 | CD59: 1.89 | CE59: 1.86 | CF59: 1.83 | CG59: 1.8 | CH59: 1.78 | CI59: 1.75 | CJ59: 1.73 | CK59: 1.7 | CL59: 1.68 | CM59: 1.66 | CN59: 1.63 | CO59: 1.61 | CP59: 1.59 | CQ59: 1.57 | CR59: 1.55 | CS59: 1.53 | CT59: 1.51 | CU59: 1.5 | CV59: 1.48 | CW59: 1.46 | CX59: 1.44 | CY59: 1.43 | CZ59: 1.41 | DA59: 1.39 | DB59: 1.38 | DC59: 1.36 | DD59: 1.35 | DE59: 1.33 | DF59: 1.32 | DG59: 1.3 | DH59: 1.29 | DI59: 1.28 | DJ59: 1.26 | DK59: 1.25 | DL59: 1.24 | DM59: 1.23 | DN59: 1.21 | DO59: 1.2 | DP59: 1.19 | DQ59: 1.18 | DR59: 1.17 | DS59: 1.16 | DT59: 1.15 | DU59: 1.14 | DV59: 1.12 | DW59: 1.11 | DX59: 1.1 | DY59: 1.09 | DZ59: 1.09 | EA59: 1.08 | EB59: 1.07 | EC59: 1.06 | ED59: 1.05 | EE59: 1.04 | EF59: 1.03 | EG59: 1.02 | EH59: 1.01 | EI59: 1.01 | EJ59: 1 | EK59: 0.99 | EL59: 0 | EM59: 0 | EN59: 0 | EO59: =IFERROR(IF(EN59<1,0,ROUND(VLOOKUP($V$14,$B$12:$I$15,5,FALSE)*SQRT($P59)/(PI()*VLOOKUP($DR$14,$MM$6:$MO$11,3,FALSE)^2/4*EO$18),2)),666) -> 0 | EP59: 0 | EQ59: 0 | ER59: 0 | ES59: 0 | ET59: 0 | EU59: 0 | EV59: 0 | EW59: 0 | EX59: 0 | EY59: 0 | EZ59: 0 | FA59: 0 | FB59: 0 | FC59: 0 | FD59: 0 | FE59: 0 | FF59: 0 | FG59: 0 | FH59: 0 | FI59: 0 | FJ59: 0 | FK59: 0 | FL59: 0 | FM59: 0 | FN59: 0 | FO59: 0 | FP59: 0 | FQ59: 0 | FR59: 0 | FS59: 0 | FT59: 0 | FU59: 0 | FV59: 0 | FW59: 0 | FX59: 0 | FY59: 0 | FZ59: 0 | GA59: 0 | GB59: 0 | GC59: 0 | GD59: 0 | GE59: 0 | GF59: 0 | GG59: 0 | GH59: 0 | GI59: 0 | GJ59: 0 | GK59: 0 | GL59: 0 | GM59: 0 | GN59: 0 | GO59: 0 | GP59: 0 | GQ59: 0 | GR59: 0 | GS59: 0 | GT59: 0 | GU59: 0 | GV59: 0 | GW59: 0 | GX59: 0 | GY59: 0 | GZ59: 0 | HA59: =IFERROR(IF(GZ59<1,0,ROUND(VLOOKUP($V$14,$B$12:$I$15,5,FALSE)*SQRT($P59)/(PI()*VLOOKUP($DR$14,$MM$6:$MO$11,3,FALSE)^2/4*HA$18),2)),666) -> 0 | HB59: 0 | HC59: 0 | HD59: 0 | HE59: 0 | HF59: 0 | HG59: 0 | HH59: 0 | HI59: 0 | HJ59: 0 | HK59: 0 | HL59: 0 | HM59: 0 | HN59: 0 | HO59: 0 | HP59: 0 | HQ59: 0 | HR59: 0 | HS59: 0 | HT59: 0 | HU59: 0 | HV59: 0 | HW59: 0 | HX59: 0 | HY59: 0 | HZ59: 0 | IA59: 0 | IB59: 0 | IC59: 0 | ID59: 0 | IE59: 0 | IF59: 0 | IG59: 0 | IH59: 0 | II59: 0 | IJ59: 0 | IK59: 0 | IL59: 0 | IM59: 0 | IN59: 0 | IO59: 0 | IP59: 0 | IQ59: 0 | IR59: 0 | IS59: 0 | IT59: 0 | IU59: 0 | IV59: 0 | IW59: 0 | IX59: 0 | IY59: 0 | IZ59: 0 | JA59: 0 | JB59: 0 | JC59: 0 | JD59: 0 | JE59: 0 | JF59: 0 | JG59: 0 | JH59: 0 | JI59: 0 | JJ59: 0 | JK59: 0 | JL59: 0 | JM59: =IFERROR(IF(JL59<1,0,ROUND(VLOOKUP($V$14,$B$12:$I$15,5,FALSE)*SQRT($P59)/(PI()*VLOOKUP($DR$14,$MM$6:$MO$11,3,FALSE)^2/4*JM$18),2)),666) -> 0 | JN59: 0 | JO59: 0 | JP59: 0 | JQ59: 0 | JR59: 0 | JS59: 0 | JT59: 0 | JU59: 0 | JV59: 0 | JW59: 0 | JX59: 0 | JY59: 0 | JZ59: 0 | KA59: 0 | KB59: 0 | KC59: 0 | KD59: 0 | KE59: 0 | KF59: 0 | KG59: 0 | KH59: 0 | KI59: 0 | KJ59: 0 | KK59: 0 | KL59: 0 | KM59: 0 | KN59: 0 | KO59: 0 | KP59: 0 | KQ59: 0 | KR59: 0 | KS59: 0 | KT59: 0 | KU59: 0 | KV59: 0 | KW59: 0 | KX59: 0 | KY59: 0 | KZ59: 0 | LA59: 0 | LB59: 0 | LC59: 0 | LD59: 0 | LE59: 0 | LF59: 0 | LG59: 0 | LH59: 0 | LI59: 0 | LJ59: 0 | LK59: 0 | LL59: 0 | LM59: 0 | LN59: 0 | LO59: 0 | LP59: 0 | LQ59: 0 | LR59: 0 | LS59: 0 | LT59: 0 | LU59: 0 | LV59: 0 | LW59: 0 | LX59: 0 | LY59: 0 | MH59: 29.3 | MI59: 424.9605896 | MJ59: 2.93
P60: 30.4 | Q60: =IFERROR(IF(P60<1,0,ROUND(VLOOKUP($V$14,$B$12:$I$15,5,FALSE)*SQRT($P60)/(PI()*VLOOKUP($DR$14,$MM$6:$MO$11,3,FALSE)^2/4*Q$18),2)),666) -> 666 | R60: 122.41 | S60: 61.21 | T60: 40.8 | U60: 30.6 | V60: 24.48 | W60: 20.4 | X60: 17.49 | Y60: 15.3 | Z60: 13.6 | AA60: 12.24 | AB60: 11.13 | AC60: 10.2 | AD60: 9.42 | AE60: 8.74 | AF60: 8.16 | AG60: 7.65 | AH60: 7.2 | AI60: 6.8 | AJ60: 6.44 | AK60: 6.12 | AL60: 5.83 | AM60: 5.56 | AN60: 5.32 | AO60: 5.1 | AP60: 4.9 | AQ60: 4.71 | AR60: 4.53 | AS60: 4.37 | AT60: 4.22 | AU60: 4.08 | AV60: 3.95 | AW60: 3.83 | AX60: 3.71 | AY60: 3.6 | AZ60: 3.5 | BA60: 3.4 | BB60: 3.31 | BC60: 3.22 | BD60: 3.14 | BE60: 3.06 | BF60: 2.99 | BG60: 2.91 | BH60: 2.85 | BI60: 2.78 | BJ60: 2.72 | BK60: 2.66 | BL60: 2.6 | BM60: 2.55 | BN60: 2.5 | BO60: 2.45 | BP60: 2.4 | BQ60: 2.35 | BR60: 2.31 | BS60: 2.27 | BT60: 2.23 | BU60: 2.19 | BV60: 2.15 | BW60: 2.11 | BX60: 2.07 | BY60: 2.04 | BZ60: 2.01 | CA60: 1.97 | CB60: 1.94 | CC60: =IFERROR(IF(CB60<1,0,ROUND(VLOOKUP($V$14,$B$12:$I$15,5,FALSE)*SQRT($P60)/(PI()*VLOOKUP($DR$14,$MM$6:$MO$11,3,FALSE)^2/4*CC$18),2)),666) -> 1.91 | CD60: 1.88 | CE60: 1.85 | CF60: 1.83 | CG60: 1.8 | CH60: 1.77 | CI60: 1.75 | CJ60: 1.72 | CK60: 1.7 | CL60: 1.68 | CM60: 1.65 | CN60: 1.63 | CO60: 1.61 | CP60: 1.59 | CQ60: 1.57 | CR60: 1.55 | CS60: 1.53 | CT60: 1.51 | CU60: 1.49 | CV60: 1.47 | CW60: 1.46 | CX60: 1.44 | CY60: 1.42 | CZ60: 1.41 | DA60: 1.39 | DB60: 1.38 | DC60: 1.36 | DD60: 1.35 | DE60: 1.33 | DF60: 1.32 | DG60: 1.3 | DH60: 1.29 | DI60: 1.28 | DJ60: 1.26 | DK60: 1.25 | DL60: 1.24 | DM60: 1.22 | DN60: 1.21 | DO60: 1.2 | DP60: 1.19 | DQ60: 1.18 | DR60: 1.17 | DS60: 1.15 | DT60: 1.14 | DU60: 1.13 | DV60: 1.12 | DW60: 1.11 | DX60: 1.1 | DY60: 1.09 | DZ60: 1.08 | EA60: 1.07 | EB60: 1.06 | EC60: 1.06 | ED60: 1.05 | EE60: 1.04 | EF60: 1.03 | EG60: 1.02 | EH60: 1.01 | EI60: 1 | EJ60: 1 | EK60: 0.99 | EL60: 0 | EM60: 0 | EN60: 0 | EO60: =IFERROR(IF(EN60<1,0,ROUND(VLOOKUP($V$14,$B$12:$I$15,5,FALSE)*SQRT($P60)/(PI()*VLOOKUP($DR$14,$MM$6:$MO$11,3,FALSE)^2/4*EO$18),2)),666) -> 0 | EP60: 0 | EQ60: 0 | ER60: 0 | ES60: 0 | ET60: 0 | EU60: 0 | EV60: 0 | EW60: 0 | EX60: 0 | EY60: 0 | EZ60: 0 | FA60: 0 | FB60: 0 | FC60: 0 | FD60: 0 | FE60: 0 | FF60: 0 | FG60: 0 | FH60: 0 | FI60: 0 | FJ60: 0 | FK60: 0 | FL60: 0 | FM60: 0 | FN60: 0 | FO60: 0 | FP60: 0 | FQ60: 0 | FR60: 0 | FS60: 0 | FT60: 0 | FU60: 0 | FV60: 0 | FW60: 0 | FX60: 0 | FY60: 0 | FZ60: 0 | GA60: 0 | GB60: 0 | GC60: 0 | GD60: 0 | GE60: 0 | GF60: 0 | GG60: 0 | GH60: 0 | GI60: 0 | GJ60: 0 | GK60: 0 | GL60: 0 | GM60: 0 | GN60: 0 | GO60: 0 | GP60: 0 | GQ60: 0 | GR60: 0 | GS60: 0 | GT60: 0 | GU60: 0 | GV60: 0 | GW60: 0 | GX60: 0 | GY60: 0 | GZ60: 0 | HA60: =IFERROR(IF(GZ60<1,0,ROUND(VLOOKUP($V$14,$B$12:$I$15,5,FALSE)*SQRT($P60)/(PI()*VLOOKUP($DR$14,$MM$6:$MO$11,3,FALSE)^2/4*HA$18),2)),666) -> 0 | HB60: 0 | HC60: 0 | HD60: 0 | HE60: 0 | HF60: 0 | HG60: 0 | HH60: 0 | HI60: 0 | HJ60: 0 | HK60: 0 | HL60: 0 | HM60: 0 | HN60: 0 | HO60: 0 | HP60: 0 | HQ60: 0 | HR60: 0 | HS60: 0 | HT60: 0 | HU60: 0 | HV60: 0 | HW60: 0 | HX60: 0 | HY60: 0 | HZ60: 0 | IA60: 0 | IB60: 0 | IC60: 0 | ID60: 0 | IE60: 0 | IF60: 0 | IG60: 0 | IH60: 0 | II60: 0 | IJ60: 0 | IK60: 0 | IL60: 0 | IM60: 0 | IN60: 0 | IO60: 0 | IP60: 0 | IQ60: 0 | IR60: 0 | IS60: 0 | IT60: 0 | IU60: 0 | IV60: 0 | IW60: 0 | IX60: 0 | IY60: 0 | IZ60: 0 | JA60: 0 | JB60: 0 | JC60: 0 | JD60: 0 | JE60: 0 | JF60: 0 | JG60: 0 | JH60: 0 | JI60: 0 | JJ60: 0 | JK60: 0 | JL60: 0 | JM60: =IFERROR(IF(JL60<1,0,ROUND(VLOOKUP($V$14,$B$12:$I$15,5,FALSE)*SQRT($P60)/(PI()*VLOOKUP($DR$14,$MM$6:$MO$11,3,FALSE)^2/4*JM$18),2)),666) -> 0 | JN60: 0 | JO60: 0 | JP60: 0 | JQ60: 0 | JR60: 0 | JS60: 0 | JT60: 0 | JU60: 0 | JV60: 0 | JW60: 0 | JX60: 0 | JY60: 0 | JZ60: 0 | KA60: 0 | KB60: 0 | KC60: 0 | KD60: 0 | KE60: 0 | KF60: 0 | KG60: 0 | KH60: 0 | KI60: 0 | KJ60: 0 | KK60: 0 | KL60: 0 | KM60: 0 | KN60: 0 | KO60: 0 | KP60: 0 | KQ60: 0 | KR60: 0 | KS60: 0 | KT60: 0 | KU60: 0 | KV60: 0 | KW60: 0 | KX60: 0 | KY60: 0 | KZ60: 0 | LA60: 0 | LB60: 0 | LC60: 0 | LD60: 0 | LE60: 0 | LF60: 0 | LG60: 0 | LH60: 0 | LI60: 0 | LJ60: 0 | LK60: 0 | LL60: 0 | LM60: 0 | LN60: 0 | LO60: 0 | LP60: 0 | LQ60: 0 | LR60: 0 | LS60: 0 | LT60: 0 | LU60: 0 | LV60: 0 | LW60: 0 | LX60: 0 | LY60: 0 | MH60: 29.2 | MI60: 423.5102122 | MJ60: 2.92
P61: 30.3 | Q61: =IFERROR(IF(P61<1,0,ROUND(VLOOKUP($V$14,$B$12:$I$15,5,FALSE)*SQRT($P61)/(PI()*VLOOKUP($DR$14,$MM$6:$MO$11,3,FALSE)^2/4*Q$18),2)),666) -> 666 | R61: 122.21 | S61: 61.11 | T61: 40.74 | U61: 30.55 | V61: 24.44 | W61: 20.37 | X61: 17.46 | Y61: 15.28 | Z61: 13.58 | AA61: 12.22 | AB61: 11.11 | AC61: 10.18 | AD61: 9.4 | AE61: 8.73 | AF61: 8.15 | AG61: 7.64 | AH61: 7.19 | AI61: 6.79 | AJ61: 6.43 | AK61: 6.11 | AL61: 5.82 | AM61: 5.56 | AN61: 5.31 | AO61: 5.09 | AP61: 4.89 | AQ61: 4.7 | AR61: 4.53 | AS61: 4.36 | AT61: 4.21 | AU61: 4.07 | AV61: 3.94 | AW61: 3.82 | AX61: 3.7 | AY61: 3.59 | AZ61: 3.49 | BA61: 3.39 | BB61: 3.3 | BC61: 3.22 | BD61: 3.13 | BE61: 3.06 | BF61: 2.98 | BG61: 2.91 | BH61: 2.84 | BI61: 2.78 | BJ61: 2.72 | BK61: 2.66 | BL61: 2.6 | BM61: 2.55 | BN61: 2.49 | BO61: 2.44 | BP61: 2.4 | BQ61: 2.35 | BR61: 2.31 | BS61: 2.26 | BT61: 2.22 | BU61: 2.18 | BV61: 2.14 | BW61: 2.11 | BX61: 2.07 | BY61: 2.04 | BZ61: 2 | CA61: 1.97 | CB61: 1.94 | CC61: =IFERROR(IF(CB61<1,0,ROUND(VLOOKUP($V$14,$B$12:$I$15,5,FALSE)*SQRT($P61)/(PI()*VLOOKUP($DR$14,$MM$6:$MO$11,3,FALSE)^2/4*CC$18),2)),666) -> 1.91 | CD61: 1.88 | CE61: 1.85 | CF61: 1.82 | CG61: 1.8 | CH61: 1.77 | CI61: 1.75 | CJ61: 1.72 | CK61: 1.7 | CL61: 1.67 | CM61: 1.65 | CN61: 1.63 | CO61: 1.61 | CP61: 1.59 | CQ61: 1.57 | CR61: 1.55 | CS61: 1.53 | CT61: 1.51 | CU61: 1.49 | CV61: 1.47 | CW61: 1.45 | CX61: 1.44 | CY61: 1.42 | CZ61: 1.4 | DA61: 1.39 | DB61: 1.37 | DC61: 1.36 | DD61: 1.34 | DE61: 1.33 | DF61: 1.31 | DG61: 1.3 | DH61: 1.29 | DI61: 1.27 | DJ61: 1.26 | DK61: 1.25 | DL61: 1.23 | DM61: 1.22 | DN61: 1.21 | DO61: 1.2 | DP61: 1.19 | DQ61: 1.18 | DR61: 1.16 | DS61: 1.15 | DT61: 1.14 | DU61: 1.13 | DV61: 1.12 | DW61: 1.11 | DX61: 1.1 | DY61: 1.09 | DZ61: 1.08 | EA61: 1.07 | EB61: 1.06 | EC61: 1.05 | ED61: 1.04 | EE61: 1.04 | EF61: 1.03 | EG61: 1.02 | EH61: 1.01 | EI61: 1 | EJ61: 0.99 | EK61: 0 | EL61: 0 | EM61: 0 | EN61: 0 | EO61: =IFERROR(IF(EN61<1,0,ROUND(VLOOKUP($V$14,$B$12:$I$15,5,FALSE)*SQRT($P61)/(PI()*VLOOKUP($DR$14,$MM$6:$MO$11,3,FALSE)^2/4*EO$18),2)),666) -> 0 | EP61: 0 | EQ61: 0 | ER61: 0 | ES61: 0 | ET61: 0 | EU61: 0 | EV61: 0 | EW61: 0 | EX61: 0 | EY61: 0 | EZ61: 0 | FA61: 0 | FB61: 0 | FC61: 0 | FD61: 0 | FE61: 0 | FF61: 0 | FG61: 0 | FH61: 0 | FI61: 0 | FJ61: 0 | FK61: 0 | FL61: 0 | FM61: 0 | FN61: 0 | FO61: 0 | FP61: 0 | FQ61: 0 | FR61: 0 | FS61: 0 | FT61: 0 | FU61: 0 | FV61: 0 | FW61: 0 | FX61: 0 | FY61: 0 | FZ61: 0 | GA61: 0 | GB61: 0 | GC61: 0 | GD61: 0 | GE61: 0 | GF61: 0 | GG61: 0 | GH61: 0 | GI61: 0 | GJ61: 0 | GK61: 0 | GL61: 0 | GM61: 0 | GN61: 0 | GO61: 0 | GP61: 0 | GQ61: 0 | GR61: 0 | GS61: 0 | GT61: 0 | GU61: 0 | GV61: 0 | GW61: 0 | GX61: 0 | GY61: 0 | GZ61: 0 | HA61: =IFERROR(IF(GZ61<1,0,ROUND(VLOOKUP($V$14,$B$12:$I$15,5,FALSE)*SQRT($P61)/(PI()*VLOOKUP($DR$14,$MM$6:$MO$11,3,FALSE)^2/4*HA$18),2)),666) -> 0 | HB61: 0 | HC61: 0 | HD61: 0 | HE61: 0 | HF61: 0 | HG61: 0 | HH61: 0 | HI61: 0 | HJ61: 0 | HK61: 0 | HL61: 0 | HM61: 0 | HN61: 0 | HO61: 0 | HP61: 0 | HQ61: 0 | HR61: 0 | HS61: 0 | HT61: 0 | HU61: 0 | HV61: 0 | HW61: 0 | HX61: 0 | HY61: 0 | HZ61: 0 | IA61: 0 | IB61: 0 | IC61: 0 | ID61: 0 | IE61: 0 | IF61: 0 | IG61: 0 | IH61: 0 | II61: 0 | IJ61: 0 | IK61: 0 | IL61: 0 | IM61: 0 | IN61: 0 | IO61: 0 | IP61: 0 | IQ61: 0 | IR61: 0 | IS61: 0 | IT61: 0 | IU61: 0 | IV61: 0 | IW61: 0 | IX61: 0 | IY61: 0 | IZ61: 0 | JA61: 0 | JB61: 0 | JC61: 0 | JD61: 0 | JE61: 0 | JF61: 0 | JG61: 0 | JH61: 0 | JI61: 0 | JJ61: 0 | JK61: 0 | JL61: 0 | JM61: =IFERROR(IF(JL61<1,0,ROUND(VLOOKUP($V$14,$B$12:$I$15,5,FALSE)*SQRT($P61)/(PI()*VLOOKUP($DR$14,$MM$6:$MO$11,3,FALSE)^2/4*JM$18),2)),666) -> 0 | JN61: 0 | JO61: 0 | JP61: 0 | JQ61: 0 | JR61: 0 | JS61: 0 | JT61: 0 | JU61: 0 | JV61: 0 | JW61: 0 | JX61: 0 | JY61: 0 | JZ61: 0 | KA61: 0 | KB61: 0 | KC61: 0 | KD61: 0 | KE61: 0 | KF61: 0 | KG61: 0 | KH61: 0 | KI61: 0 | KJ61: 0 | KK61: 0 | KL61: 0 | KM61: 0 | KN61: 0 | KO61: 0 | KP61: 0 | KQ61: 0 | KR61: 0 | KS61: 0 | KT61: 0 | KU61: 0 | KV61: 0 | KW61: 0 | KX61: 0 | KY61: 0 | KZ61: 0 | LA61: 0 | LB61: 0 | LC61: 0 | LD61: 0 | LE61: 0 | LF61: 0 | LG61: 0 | LH61: 0 | LI61: 0 | LJ61: 0 | LK61: 0 | LL61: 0 | LM61: 0 | LN61: 0 | LO61: 0 | LP61: 0 | LQ61: 0 | LR61: 0 | LS61: 0 | LT61: 0 | LU61: 0 | LV61: 0 | LW61: 0 | LX61: 0 | LY61: 0 | MH61: 29.1 | MI61: 422.0598347 | MJ61: 2.91
P62: 30.2 | Q62: =IFERROR(IF(P62<1,0,ROUND(VLOOKUP($V$14,$B$12:$I$15,5,FALSE)*SQRT($P62)/(PI()*VLOOKUP($DR$14,$MM$6:$MO$11,3,FALSE)^2/4*Q$18),2)),666) -> 666 | R62: 122.01 | S62: 61.01 | T62: 40.67 | U62: 30.5 | V62: 24.4 | W62: 20.34 | X62: 17.43 | Y62: 15.25 | Z62: 13.56 | AA62: 12.2 | AB62: 11.09 | AC62: 10.17 | AD62: 9.39 | AE62: 8.72 | AF62: 8.13 | AG62: 7.63 | AH62: 7.18 | AI62: 6.78 | AJ62: 6.42 | AK62: 6.1 | AL62: 5.81 | AM62: 5.55 | AN62: 5.3 | AO62: 5.08 | AP62: 4.88 | AQ62: 4.69 | AR62: 4.52 | AS62: 4.36 | AT62: 4.21 | AU62: 4.07 | AV62: 3.94 | AW62: 3.81 | AX62: 3.7 | AY62: 3.59 | AZ62: 3.49 | BA62: 3.39 | BB62: 3.3 | BC62: 3.21 | BD62: 3.13 | BE62: 3.05 | BF62: 2.98 | BG62: 2.91 | BH62: 2.84 | BI62: 2.77 | BJ62: 2.71 | BK62: 2.65 | BL62: 2.6 | BM62: 2.54 | BN62: 2.49 | BO62: 2.44 | BP62: 2.39 | BQ62: 2.35 | BR62: 2.3 | BS62: 2.26 | BT62: 2.22 | BU62: 2.18 | BV62: 2.14 | BW62: 2.1 | BX62: 2.07 | BY62: 2.03 | BZ62: 2 | CA62: 1.97 | CB62: 1.94 | CC62: =IFERROR(IF(CB62<1,0,ROUND(VLOOKUP($V$14,$B$12:$I$15,5,FALSE)*SQRT($P62)/(PI()*VLOOKUP($DR$14,$MM$6:$MO$11,3,FALSE)^2/4*CC$18),2)),666) -> 1.91 | CD62: 1.88 | CE62: 1.85 | CF62: 1.82 | CG62: 1.79 | CH62: 1.77 | CI62: 1.74 | CJ62: 1.72 | CK62: 1.69 | CL62: 1.67 | CM62: 1.65 | CN62: 1.63 | CO62: 1.61 | CP62: 1.58 | CQ62: 1.56 | CR62: 1.54 | CS62: 1.53 | CT62: 1.51 | CU62: 1.49 | CV62: 1.47 | CW62: 1.45 | CX62: 1.44 | CY62: 1.42 | CZ62: 1.4 | DA62: 1.39 | DB62: 1.37 | DC62: 1.36 | DD62: 1.34 | DE62: 1.33 | DF62: 1.31 | DG62: 1.3 | DH62: 1.28 | DI62: 1.27 | DJ62: 1.26 | DK62: 1.25 | DL62: 1.23 | DM62: 1.22 | DN62: 1.21 | DO62: 1.2 | DP62: 1.18 | DQ62: 1.17 | DR62: 1.16 | DS62: 1.15 | DT62: 1.14 | DU62: 1.13 | DV62: 1.12 | DW62: 1.11 | DX62: 1.1 | DY62: 1.09 | DZ62: 1.08 | EA62: 1.07 | EB62: 1.06 | EC62: 1.05 | ED62: 1.04 | EE62: 1.03 | EF62: 1.03 | EG62: 1.02 | EH62: 1.01 | EI62: 1 | EJ62: 0.99 | EK62: 0 | EL62: 0 | EM62: 0 | EN62: 0 | EO62: =IFERROR(IF(EN62<1,0,ROUND(VLOOKUP($V$14,$B$12:$I$15,5,FALSE)*SQRT($P62)/(PI()*VLOOKUP($DR$14,$MM$6:$MO$11,3,FALSE)^2/4*EO$18),2)),666) -> 0 | EP62: 0 | EQ62: 0 | ER62: 0 | ES62: 0 | ET62: 0 | EU62: 0 | EV62: 0 | EW62: 0 | EX62: 0 | EY62: 0 | EZ62: 0 | FA62: 0 | FB62: 0 | FC62: 0 | FD62: 0 | FE62: 0 | FF62: 0 | FG62: 0 | FH62: 0 | FI62: 0 | FJ62: 0 | FK62: 0 | FL62: 0 | FM62: 0 | FN62: 0 | FO62: 0 | FP62: 0 | FQ62: 0 | FR62: 0 | FS62: 0 | FT62: 0 | FU62: 0 | FV62: 0 | FW62: 0 | FX62: 0 | FY62: 0 | FZ62: 0 | GA62: 0 | GB62: 0 | GC62: 0 | GD62: 0 | GE62: 0 | GF62: 0 | GG62: 0 | GH62: 0 | GI62: 0 | GJ62: 0 | GK62: 0 | GL62: 0 | GM62: 0 | GN62: 0 | GO62: 0 | GP62: 0 | GQ62: 0 | GR62: 0 | GS62: 0 | GT62: 0 | GU62: 0 | GV62: 0 | GW62: 0 | GX62: 0 | GY62: 0 | GZ62: 0 | HA62: =IFERROR(IF(GZ62<1,0,ROUND(VLOOKUP($V$14,$B$12:$I$15,5,FALSE)*SQRT($P62)/(PI()*VLOOKUP($DR$14,$MM$6:$MO$11,3,FALSE)^2/4*HA$18),2)),666) -> 0 | HB62: 0 | HC62: 0 | HD62: 0 | HE62: 0 | HF62: 0 | HG62: 0 | HH62: 0 | HI62: 0 | HJ62: 0 | HK62: 0 | HL62: 0 | HM62: 0 | HN62: 0 | HO62: 0 | HP62: 0 | HQ62: 0 | HR62: 0 | HS62: 0 | HT62: 0 | HU62: 0 | HV62: 0 | HW62: 0 | HX62: 0 | HY62: 0 | HZ62: 0 | IA62: 0 | IB62: 0 | IC62: 0 | ID62: 0 | IE62: 0 | IF62: 0 | IG62: 0 | IH62: 0 | II62: 0 | IJ62: 0 | IK62: 0 | IL62: 0 | IM62: 0 | IN62: 0 | IO62: 0 | IP62: 0 | IQ62: 0 | IR62: 0 | IS62: 0 | IT62: 0 | IU62: 0 | IV62: 0 | IW62: 0 | IX62: 0 | IY62: 0 | IZ62: 0 | JA62: 0 | JB62: 0 | JC62: 0 | JD62: 0 | JE62: 0 | JF62: 0 | JG62: 0 | JH62: 0 | JI62: 0 | JJ62: 0 | JK62: 0 | JL62: 0 | JM62: =IFERROR(IF(JL62<1,0,ROUND(VLOOKUP($V$14,$B$12:$I$15,5,FALSE)*SQRT($P62)/(PI()*VLOOKUP($DR$14,$MM$6:$MO$11,3,FALSE)^2/4*JM$18),2)),666) -> 0 | JN62: 0 | JO62: 0 | JP62: 0 | JQ62: 0 | JR62: 0 | JS62: 0 | JT62: 0 | JU62: 0 | JV62: 0 | JW62: 0 | JX62: 0 | JY62: 0 | JZ62: 0 | KA62: 0 | KB62: 0 | KC62: 0 | KD62: 0 | KE62: 0 | KF62: 0 | KG62: 0 | KH62: 0 | KI62: 0 | KJ62: 0 | KK62: 0 | KL62: 0 | KM62: 0 | KN62: 0 | KO62: 0 | KP62: 0 | KQ62: 0 | KR62: 0 | KS62: 0 | KT62: 0 | KU62: 0 | KV62: 0 | KW62: 0 | KX62: 0 | KY62: 0 | KZ62: 0 | LA62: 0 | LB62: 0 | LC62: 0 | LD62: 0 | LE62: 0 | LF62: 0 | LG62: 0 | LH62: 0 | LI62: 0 | LJ62: 0 | LK62: 0 | LL62: 0 | LM62: 0 | LN62: 0 | LO62: 0 | LP62: 0 | LQ62: 0 | LR62: 0 | LS62: 0 | LT62: 0 | LU62: 0 | LV62: 0 | LW62: 0 | LX62: 0 | LY62: 0 | MH62: 29 | MI62: 420.6094573 | MJ62: 2.9
P63: 30.1 | Q63: =IFERROR(IF(P63<1,0,ROUND(VLOOKUP($V$14,$B$12:$I$15,5,FALSE)*SQRT($P63)/(PI()*VLOOKUP($DR$14,$MM$6:$MO$11,3,FALSE)^2/4*Q$18),2)),666) -> 666 | R63: 121.81 | S63: 60.9 | T63: 40.6 | U63: 30.45 | V63: 24.36 | W63: 20.3 | X63: 17.4 | Y63: 15.23 | Z63: 13.53 | AA63: 12.18 | AB63: 11.07 | AC63: 10.15 | AD63: 9.37 | AE63: 8.7 | AF63: 8.12 | AG63: 7.61 | AH63: 7.17 | AI63: 6.77 | AJ63: 6.41 | AK63: 6.09 | AL63: 5.8 | AM63: 5.54 | AN63: 5.3 | AO63: 5.08 | AP63: 4.87 | AQ63: 4.68 | AR63: 4.51 | AS63: 4.35 | AT63: 4.2 | AU63: 4.06 | AV63: 3.93 | AW63: 3.81 | AX63: 3.69 | AY63: 3.58 | AZ63: 3.48 | BA63: 3.38 | BB63: 3.29 | BC63: 3.21 | BD63: 3.12 | BE63: 3.05 | BF63: 2.97 | BG63: 2.9 | BH63: 2.83 | BI63: 2.77 | BJ63: 2.71 | BK63: 2.65 | BL63: 2.59 | BM63: 2.54 | BN63: 2.49 | BO63: 2.44 | BP63: 2.39 | BQ63: 2.34 | BR63: 2.3 | BS63: 2.26 | BT63: 2.21 | BU63: 2.18 | BV63: 2.14 | BW63: 2.1 | BX63: 2.06 | BY63: 2.03 | BZ63: 2 | CA63: 1.96 | CB63: 1.93 | CC63: =IFERROR(IF(CB63<1,0,ROUND(VLOOKUP($V$14,$B$12:$I$15,5,FALSE)*SQRT($P63)/(PI()*VLOOKUP($DR$14,$MM$6:$MO$11,3,FALSE)^2/4*CC$18),2)),666) -> 1.9 | CD63: 1.87 | CE63: 1.85 | CF63: 1.82 | CG63: 1.79 | CH63: 1.77 | CI63: 1.74 | CJ63: 1.72 | CK63: 1.69 | CL63: 1.67 | CM63: 1.65 | CN63: 1.62 | CO63: 1.6 | CP63: 1.58 | CQ63: 1.56 | CR63: 1.54 | CS63: 1.52 | CT63: 1.5 | CU63: 1.49 | CV63: 1.47 | CW63: 1.45 | CX63: 1.43 | CY63: 1.42 | CZ63: 1.4 | DA63: 1.38 | DB63: 1.37 | DC63: 1.35 | DD63: 1.34 | DE63: 1.32 | DF63: 1.31 | DG63: 1.3 | DH63: 1.28 | DI63: 1.27 | DJ63: 1.26 | DK63: 1.24 | DL63: 1.23 | DM63: 1.22 | DN63: 1.21 | DO63: 1.19 | DP63: 1.18 | DQ63: 1.17 | DR63: 1.16 | DS63: 1.15 | DT63: 1.14 | DU63: 1.13 | DV63: 1.12 | DW63: 1.11 | DX63: 1.1 | DY63: 1.09 | DZ63: 1.08 | EA63: 1.07 | EB63: 1.06 | EC63: 1.05 | ED63: 1.04 | EE63: 1.03 | EF63: 1.02 | EG63: 1.02 | EH63: 1.01 | EI63: 1 | EJ63: 0.99 | EK63: 0 | EL63: 0 | EM63: 0 | EN63: 0 | EO63: =IFERROR(IF(EN63<1,0,ROUND(VLOOKUP($V$14,$B$12:$I$15,5,FALSE)*SQRT($P63)/(PI()*VLOOKUP($DR$14,$MM$6:$MO$11,3,FALSE)^2/4*EO$18),2)),666) -> 0 | EP63: 0 | EQ63: 0 | ER63: 0 | ES63: 0 | ET63: 0 | EU63: 0 | EV63: 0 | EW63: 0 | EX63: 0 | EY63: 0 | EZ63: 0 | FA63: 0 | FB63: 0 | FC63: 0 | FD63: 0 | FE63: 0 | FF63: 0 | FG63: 0 | FH63: 0 | FI63: 0 | FJ63: 0 | FK63: 0 | FL63: 0 | FM63: 0 | FN63: 0 | FO63: 0 | FP63: 0 | FQ63: 0 | FR63: 0 | FS63: 0 | FT63: 0 | FU63: 0 | FV63: 0 | FW63: 0 | FX63: 0 | FY63: 0 | FZ63: 0 | GA63: 0 | GB63: 0 | GC63: 0 | GD63: 0 | GE63: 0 | GF63: 0 | GG63: 0 | GH63: 0 | GI63: 0 | GJ63: 0 | GK63: 0 | GL63: 0 | GM63: 0 | GN63: 0 | GO63: 0 | GP63: 0 | GQ63: 0 | GR63: 0 | GS63: 0 | GT63: 0 | GU63: 0 | GV63: 0 | GW63: 0 | GX63: 0 | GY63: 0 | GZ63: 0 | HA63: =IFERROR(IF(GZ63<1,0,ROUND(VLOOKUP($V$14,$B$12:$I$15,5,FALSE)*SQRT($P63)/(PI()*VLOOKUP($DR$14,$MM$6:$MO$11,3,FALSE)^2/4*HA$18),2)),666) -> 0 | HB63: 0 | HC63: 0 | HD63: 0 | HE63: 0 | HF63: 0 | HG63: 0 | HH63: 0 | HI63: 0 | HJ63: 0 | HK63: 0 | HL63: 0 | HM63: 0 | HN63: 0 | HO63: 0 | HP63: 0 | HQ63: 0 | HR63: 0 | HS63: 0 | HT63: 0 | HU63: 0 | HV63: 0 | HW63: 0 | HX63: 0 | HY63: 0 | HZ63: 0 | IA63: 0 | IB63: 0 | IC63: 0 | ID63: 0 | IE63: 0 | IF63: 0 | IG63: 0 | IH63: 0 | II63: 0 | IJ63: 0 | IK63: 0 | IL63: 0 | IM63: 0 | IN63: 0 | IO63: 0 | IP63: 0 | IQ63: 0 | IR63: 0 | IS63: 0 | IT63: 0 | IU63: 0 | IV63: 0 | IW63: 0 | IX63: 0 | IY63: 0 | IZ63: 0 | JA63: 0 | JB63: 0 | JC63: 0 | JD63: 0 | JE63: 0 | JF63: 0 | JG63: 0 | JH63: 0 | JI63: 0 | JJ63: 0 | JK63: 0 | JL63: 0 | JM63: =IFERROR(IF(JL63<1,0,ROUND(VLOOKUP($V$14,$B$12:$I$15,5,FALSE)*SQRT($P63)/(PI()*VLOOKUP($DR$14,$MM$6:$MO$11,3,FALSE)^2/4*JM$18),2)),666) -> 0 | JN63: 0 | JO63: 0 | JP63: 0 | JQ63: 0 | JR63: 0 | JS63: 0 | JT63: 0 | JU63: 0 | JV63: 0 | JW63: 0 | JX63: 0 | JY63: 0 | JZ63: 0 | KA63: 0 | KB63: 0 | KC63: 0 | KD63: 0 | KE63: 0 | KF63: 0 | KG63: 0 | KH63: 0 | KI63: 0 | KJ63: 0 | KK63: 0 | KL63: 0 | KM63: 0 | KN63: 0 | KO63: 0 | KP63: 0 | KQ63: 0 | KR63: 0 | KS63: 0 | KT63: 0 | KU63: 0 | KV63: 0 | KW63: 0 | KX63: 0 | KY63: 0 | KZ63: 0 | LA63: 0 | LB63: 0 | LC63: 0 | LD63: 0 | LE63: 0 | LF63: 0 | LG63: 0 | LH63: 0 | LI63: 0 | LJ63: 0 | LK63: 0 | LL63: 0 | LM63: 0 | LN63: 0 | LO63: 0 | LP63: 0 | LQ63: 0 | LR63: 0 | LS63: 0 | LT63: 0 | LU63: 0 | LV63: 0 | LW63: 0 | LX63: 0 | LY63: 0 | MH63: 28.9 | MI63: 419.1590799 | MJ63: 2.89
K64: =IF($HN$16=$MP$6,MH57,IF($HN$16=$MP$7,MI57,MJ57)) -> 29.5 | P64: 30 | Q64: =IFERROR(IF(P64<1,0,ROUND(VLOOKUP($V$14,$B$12:$I$15,5,FALSE)*SQRT($P64)/(PI()*VLOOKUP($DR$14,$MM$6:$MO$11,3,FALSE)^2/4*Q$18),2)),666) -> 666 | R64: 121.61 | S64: 60.8 | T64: 40.54 | U64: 30.4 | V64: 24.32 | W64: 20.27 | X64: 17.37 | Y64: 15.2 | Z64: 13.51 | AA64: 12.16 | AB64: 11.06 | AC64: 10.13 | AD64: 9.35 | AE64: 8.69 | AF64: 8.11 | AG64: 7.6 | AH64: 7.15 | AI64: 6.76 | AJ64: 6.4 | AK64: 6.08 | AL64: 5.79 | AM64: 5.53 | AN64: 5.29 | AO64: 5.07 | AP64: 4.86 | AQ64: 4.68 | AR64: 4.5 | AS64: 4.34 | AT64: 4.19 | AU64: 4.05 | AV64: 3.92 | AW64: 3.8 | AX64: 3.69 | AY64: 3.58 | AZ64: 3.47 | BA64: 3.38 | BB64: 3.29 | BC64: 3.2 | BD64: 3.12 | BE64: 3.04 | BF64: 2.97 | BG64: 2.9 | BH64: 2.83 | BI64: 2.76 | BJ64: 2.7 | BK64: 2.64 | BL64: 2.59 | BM64: 2.53 | BN64: 2.48 | BO64: 2.43 | BP64: 2.38 | BQ64: 2.34 | BR64: 2.29 | BS64: 2.25 | BT64: 2.21 | BU64: 2.17 | BV64: 2.13 | BW64: 2.1 | BX64: 2.06 | BY64: 2.03 | BZ64: 1.99 | CA64: 1.96 | CB64: 1.93 | CC64: =IFERROR(IF(CB64<1,0,ROUND(VLOOKUP($V$14,$B$12:$I$15,5,FALSE)*SQRT($P64)/(PI()*VLOOKUP($DR$14,$MM$6:$MO$11,3,FALSE)^2/4*CC$18),2)),666) -> 1.9 | CD64: 1.87 | CE64: 1.84 | CF64: 1.82 | CG64: 1.79 | CH64: 1.76 | CI64: 1.74 | CJ64: 1.71 | CK64: 1.69 | CL64: 1.67 | CM64: 1.64 | CN64: 1.62 | CO64: 1.6 | CP64: 1.58 | CQ64: 1.56 | CR64: 1.54 | CS64: 1.52 | CT64: 1.5 | CU64: 1.48 | CV64: 1.47 | CW64: 1.45 | CX64: 1.43 | CY64: 1.41 | CZ64: 1.4 | DA64: 1.38 | DB64: 1.37 | DC64: 1.35 | DD64: 1.34 | DE64: 1.32 | DF64: 1.31 | DG64: 1.29 | DH64: 1.28 | DI64: 1.27 | DJ64: 1.25 | DK64: 1.24 | DL64: 1.23 | DM64: 1.22 | DN64: 1.2 | DO64: 1.19 | DP64: 1.18 | DQ64: 1.17 | DR64: 1.16 | DS64: 1.15 | DT64: 1.14 | DU64: 1.13 | DV64: 1.12 | DW64: 1.11 | DX64: 1.1 | DY64: 1.09 | DZ64: 1.08 | EA64: 1.07 | EB64: 1.06 | EC64: 1.05 | ED64: 1.04 | EE64: 1.03 | EF64: 1.02 | EG64: 1.01 | EH64: 1.01 | EI64: 1 | EJ64: 0.99 | EK64: 0 | EL64: 0 | EM64: 0 | EN64: 0 | EO64: =IFERROR(IF(EN64<1,0,ROUND(VLOOKUP($V$14,$B$12:$I$15,5,FALSE)*SQRT($P64)/(PI()*VLOOKUP($DR$14,$MM$6:$MO$11,3,FALSE)^2/4*EO$18),2)),666) -> 0 | EP64: 0 | EQ64: 0 | ER64: 0 | ES64: 0 | ET64: 0 | EU64: 0 | EV64: 0 | EW64: 0 | EX64: 0 | EY64: 0 | EZ64: 0 | FA64: 0 | FB64: 0 | FC64: 0 | FD64: 0 | FE64: 0 | FF64: 0 | FG64: 0 | FH64: 0 | FI64: 0 | FJ64: 0 | FK64: 0 | FL64: 0 | FM64: 0 | FN64: 0 | FO64: 0 | FP64: 0 | FQ64: 0 | FR64: 0 | FS64: 0 | FT64: 0 | FU64: 0 | FV64: 0 | FW64: 0 | FX64: 0 | FY64: 0 | FZ64: 0 | GA64: 0 | GB64: 0 | GC64: 0 | GD64: 0 | GE64: 0 | GF64: 0 | GG64: 0 | GH64: 0 | GI64: 0 | GJ64: 0 | GK64: 0 | GL64: 0 | GM64: 0 | GN64: 0 | GO64: 0 | GP64: 0 | GQ64: 0 | GR64: 0 | GS64: 0 | GT64: 0 | GU64: 0 | GV64: 0 | GW64: 0 | GX64: 0 | GY64: 0 | GZ64: 0 | HA64: =IFERROR(IF(GZ64<1,0,ROUND(VLOOKUP($V$14,$B$12:$I$15,5,FALSE)*SQRT($P64)/(PI()*VLOOKUP($DR$14,$MM$6:$MO$11,3,FALSE)^2/4*HA$18),2)),666) -> 0 | HB64: 0 | HC64: 0 | HD64: 0 | HE64: 0 | HF64: 0 | HG64: 0 | HH64: 0 | HI64: 0 | HJ64: 0 | HK64: 0 | HL64: 0 | HM64: 0 | HN64: 0 | HO64: 0 | HP64: 0 | HQ64: 0 | HR64: 0 | HS64: 0 | HT64: 0 | HU64: 0 | HV64: 0 | HW64: 0 | HX64: 0 | HY64: 0 | HZ64: 0 | IA64: 0 | IB64: 0 | IC64: 0 | ID64: 0 | IE64: 0 | IF64: 0 | IG64: 0 | IH64: 0 | II64: 0 | IJ64: 0 | IK64: 0 | IL64: 0 | IM64: 0 | IN64: 0 | IO64: 0 | IP64: 0 | IQ64: 0 | IR64: 0 | IS64: 0 | IT64: 0 | IU64: 0 | IV64: 0 | IW64: 0 | IX64: 0 | IY64: 0 | IZ64: 0 | JA64: 0 | JB64: 0 | JC64: 0 | JD64: 0 | JE64: 0 | JF64: 0 | JG64: 0 | JH64: 0 | JI64: 0 | JJ64: 0 | JK64: 0 | JL64: 0 | JM64: =IFERROR(IF(JL64<1,0,ROUND(VLOOKUP($V$14,$B$12:$I$15,5,FALSE)*SQRT($P64)/(PI()*VLOOKUP($DR$14,$MM$6:$MO$11,3,FALSE)^2/4*JM$18),2)),666) -> 0 | JN64: 0 | JO64: 0 | JP64: 0 | JQ64: 0 | JR64: 0 | JS64: 0 | JT64: 0 | JU64: 0 | JV64: 0 | JW64: 0 | JX64: 0 | JY64: 0 | JZ64: 0 | KA64: 0 | KB64: 0 | KC64: 0 | KD64: 0 | KE64: 0 | KF64: 0 | KG64: 0 | KH64: 0 | KI64: 0 | KJ64: 0 | KK64: 0 | KL64: 0 | KM64: 0 | KN64: 0 | KO64: 0 | KP64: 0 | KQ64: 0 | KR64: 0 | KS64: 0 | KT64: 0 | KU64: 0 | KV64: 0 | KW64: 0 | KX64: 0 | KY64: 0 | KZ64: 0 | LA64: 0 | LB64: 0 | LC64: 0 | LD64: 0 | LE64: 0 | LF64: 0 | LG64: 0 | LH64: 0 | LI64: 0 | LJ64: 0 | LK64: 0 | LL64: 0 | LM64: 0 | LN64: 0 | LO64: 0 | LP64: 0 | LQ64: 0 | LR64: 0 | LS64: 0 | LT64: 0 | LU64: 0 | LV64: 0 | LW64: 0 | LX64: 0 | LY64: 0 | MH64: 28.8 | MI64: 417.7087024 | MJ64: 2.88
P65: 29.9 | Q65: =IFERROR(IF(P65<1,0,ROUND(VLOOKUP($V$14,$B$12:$I$15,5,FALSE)*SQRT($P65)/(PI()*VLOOKUP($DR$14,$MM$6:$MO$11,3,FALSE)^2/4*Q$18),2)),666) -> 666 | R65: 121.4 | S65: 60.7 | T65: 40.47 | U65: 30.35 | V65: 24.28 | W65: 20.23 | X65: 17.34 | Y65: 15.18 | Z65: 13.49 | AA65: 12.14 | AB65: 11.04 | AC65: 10.12 | AD65: 9.34 | AE65: 8.67 | AF65: 8.09 | AG65: 7.59 | AH65: 7.14 | AI65: 6.74 | AJ65: 6.39 | AK65: 6.07 | AL65: 5.78 | AM65: 5.52 | AN65: 5.28 | AO65: 5.06 | AP65: 4.86 | AQ65: 4.67 | AR65: 4.5 | AS65: 4.34 | AT65: 4.19 | AU65: 4.05 | AV65: 3.92 | AW65: 3.79 | AX65: 3.68 | AY65: 3.57 | AZ65: 3.47 | BA65: 3.37 | BB65: 3.28 | BC65: 3.19 | BD65: 3.11 | BE65: 3.04 | BF65: 2.96 | BG65: 2.89 | BH65: 2.82 | BI65: 2.76 | BJ65: 2.7 | BK65: 2.64 | BL65: 2.58 | BM65: 2.53 | BN65: 2.48 | BO65: 2.43 | BP65: 2.38 | BQ65: 2.33 | BR65: 2.29 | BS65: 2.25 | BT65: 2.21 | BU65: 2.17 | BV65: 2.13 | BW65: 2.09 | BX65: 2.06 | BY65: 2.02 | BZ65: 1.99 | CA65: 1.96 | CB65: 1.93 | CC65: =IFERROR(IF(CB65<1,0,ROUND(VLOOKUP($V$14,$B$12:$I$15,5,FALSE)*SQRT($P65)/(PI()*VLOOKUP($DR$14,$MM$6:$MO$11,3,FALSE)^2/4*CC$18),2)),666) -> 1.9 | CD65: 1.87 | CE65: 1.84 | CF65: 1.81 | CG65: 1.79 | CH65: 1.76 | CI65: 1.73 | CJ65: 1.71 | CK65: 1.69 | CL65: 1.66 | CM65: 1.64 | CN65: 1.62 | CO65: 1.6 | CP65: 1.58 | CQ65: 1.56 | CR65: 1.54 | CS65: 1.52 | CT65: 1.5 | CU65: 1.48 | CV65: 1.46 | CW65: 1.45 | CX65: 1.43 | CY65: 1.41 | CZ65: 1.4 | DA65: 1.38 | DB65: 1.36 | DC65: 1.35 | DD65: 1.33 | DE65: 1.32 | DF65: 1.31 | DG65: 1.29 | DH65: 1.28 | DI65: 1.26 | DJ65: 1.25 | DK65: 1.24 | DL65: 1.23 | DM65: 1.21 | DN65: 1.2 | DO65: 1.19 | DP65: 1.18 | DQ65: 1.17 | DR65: 1.16 | DS65: 1.15 | DT65: 1.13 | DU65: 1.12 | DV65: 1.11 | DW65: 1.1 | DX65: 1.09 | DY65: 1.08 | DZ65: 1.07 | EA65: 1.06 | EB65: 1.06 | EC65: 1.05 | ED65: 1.04 | EE65: 1.03 | EF65: 1.02 | EG65: 1.01 | EH65: 1 | EI65: 1 | EJ65: 0.99 | EK65: 0 | EL65: 0 | EM65: 0 | EN65: 0 | EO65: =IFERROR(IF(EN65<1,0,ROUND(VLOOKUP($V$14,$B$12:$I$15,5,FALSE)*SQRT($P65)/(PI()*VLOOKUP($DR$14,$MM$6:$MO$11,3,FALSE)^2/4*EO$18),2)),666) -> 0 | EP65: 0 | EQ65: 0 | ER65: 0 | ES65: 0 | ET65: 0 | EU65: 0 | EV65: 0 | EW65: 0 | EX65: 0 | EY65: 0 | EZ65: 0 | FA65: 0 | FB65: 0 | FC65: 0 | FD65: 0 | FE65: 0 | FF65: 0 | FG65: 0 | FH65: 0 | FI65: 0 | FJ65: 0 | FK65: 0 | FL65: 0 | FM65: 0 | FN65: 0 | FO65: 0 | FP65: 0 | FQ65: 0 | FR65: 0 | FS65: 0 | FT65: 0 | FU65: 0 | FV65: 0 | FW65: 0 | FX65: 0 | FY65: 0 | FZ65: 0 | GA65: 0 | GB65: 0 | GC65: 0 | GD65: 0 | GE65: 0 | GF65: 0 | GG65: 0 | GH65: 0 | GI65: 0 | GJ65: 0 | GK65: 0 | GL65: 0 | GM65: 0 | GN65: 0 | GO65: 0 | GP65: 0 | GQ65: 0 | GR65: 0 | GS65: 0 | GT65: 0 | GU65: 0 | GV65: 0 | GW65: 0 | GX65: 0 | GY65: 0 | GZ65: 0 | HA65: =IFERROR(IF(GZ65<1,0,ROUND(VLOOKUP($V$14,$B$12:$I$15,5,FALSE)*SQRT($P65)/(PI()*VLOOKUP($DR$14,$MM$6:$MO$11,3,FALSE)^2/4*HA$18),2)),666) -> 0 | HB65: 0 | HC65: 0 | HD65: 0 | HE65: 0 | HF65: 0 | HG65: 0 | HH65: 0 | HI65: 0 | HJ65: 0 | HK65: 0 | HL65: 0 | HM65: 0 | HN65: 0 | HO65: 0 | HP65: 0 | HQ65: 0 | HR65: 0 | HS65: 0 | HT65: 0 | HU65: 0 | HV65: 0 | HW65: 0 | HX65: 0 | HY65: 0 | HZ65: 0 | IA65: 0 | IB65: 0 | IC65: 0 | ID65: 0 | IE65: 0 | IF65: 0 | IG65: 0 | IH65: 0 | II65: 0 | IJ65: 0 | IK65: 0 | IL65: 0 | IM65: 0 | IN65: 0 | IO65: 0 | IP65: 0 | IQ65: 0 | IR65: 0 | IS65: 0 | IT65: 0 | IU65: 0 | IV65: 0 | IW65: 0 | IX65: 0 | IY65: 0 | IZ65: 0 | JA65: 0 | JB65: 0 | JC65: 0 | JD65: 0 | JE65: 0 | JF65: 0 | JG65: 0 | JH65: 0 | JI65: 0 | JJ65: 0 | JK65: 0 | JL65: 0 | JM65: =IFERROR(IF(JL65<1,0,ROUND(VLOOKUP($V$14,$B$12:$I$15,5,FALSE)*SQRT($P65)/(PI()*VLOOKUP($DR$14,$MM$6:$MO$11,3,FALSE)^2/4*JM$18),2)),666) -> 0 | JN65: 0 | JO65: 0 | JP65: 0 | JQ65: 0 | JR65: 0 | JS65: 0 | JT65: 0 | JU65: 0 | JV65: 0 | JW65: 0 | JX65: 0 | JY65: 0 | JZ65: 0 | KA65: 0 | KB65: 0 | KC65: 0 | KD65: 0 | KE65: 0 | KF65: 0 | KG65: 0 | KH65: 0 | KI65: 0 | KJ65: 0 | KK65: 0 | KL65: 0 | KM65: 0 | KN65: 0 | KO65: 0 | KP65: 0 | KQ65: 0 | KR65: 0 | KS65: 0 | KT65: 0 | KU65: 0 | KV65: 0 | KW65: 0 | KX65: 0 | KY65: 0 | KZ65: 0 | LA65: 0 | LB65: 0 | LC65: 0 | LD65: 0 | LE65: 0 | LF65: 0 | LG65: 0 | LH65: 0 | LI65: 0 | LJ65: 0 | LK65: 0 | LL65: 0 | LM65: 0 | LN65: 0 | LO65: 0 | LP65: 0 | LQ65: 0 | LR65: 0 | LS65: 0 | LT65: 0 | LU65: 0 | LV65: 0 | LW65: 0 | LX65: 0 | LY65: 0 | MH65: 28.7 | MI65: 416.258325 | MJ65: 2.87
P66: 29.8 | Q66: =IFERROR(IF(P66<1,0,ROUND(VLOOKUP($V$14,$B$12:$I$15,5,FALSE)*SQRT($P66)/(PI()*VLOOKUP($DR$14,$MM$6:$MO$11,3,FALSE)^2/4*Q$18),2)),666) -> 666 | R66: 121.2 | S66: 60.6 | T66: 40.4 | U66: 30.3 | V66: 24.24 | W66: 20.2 | X66: 17.31 | Y66: 15.15 | Z66: 13.47 | AA66: 12.12 | AB66: 11.02 | AC66: 10.1 | AD66: 9.32 | AE66: 8.66 | AF66: 8.08 | AG66: 7.58 | AH66: 7.13 | AI66: 6.73 | AJ66: 6.38 | AK66: 6.06 | AL66: 5.77 | AM66: 5.51 | AN66: 5.27 | AO66: 5.05 | AP66: 4.85 | AQ66: 4.66 | AR66: 4.49 | AS66: 4.33 | AT66: 4.18 | AU66: 4.04 | AV66: 3.91 | AW66: 3.79 | AX66: 3.67 | AY66: 3.56 | AZ66: 3.46 | BA66: 3.37 | BB66: 3.28 | BC66: 3.19 | BD66: 3.11 | BE66: 3.03 | BF66: 2.96 | BG66: 2.89 | BH66: 2.82 | BI66: 2.75 | BJ66: 2.69 | BK66: 2.63 | BL66: 2.58 | BM66: 2.53 | BN66: 2.47 | BO66: 2.42 | BP66: 2.38 | BQ66: 2.33 | BR66: 2.29 | BS66: 2.24 | BT66: 2.2 | BU66: 2.16 | BV66: 2.13 | BW66: 2.09 | BX66: 2.05 | BY66: 2.02 | BZ66: 1.99 | CA66: 1.95 | CB66: 1.92 | CC66: =IFERROR(IF(CB66<1,0,ROUND(VLOOKUP($V$14,$B$12:$I$15,5,FALSE)*SQRT($P66)/(PI()*VLOOKUP($DR$14,$MM$6:$MO$11,3,FALSE)^2/4*CC$18),2)),666) -> 1.89 | CD66: 1.86 | CE66: 1.84 | CF66: 1.81 | CG66: 1.78 | CH66: 1.76 | CI66: 1.73 | CJ66: 1.71 | CK66: 1.68 | CL66: 1.66 | CM66: 1.64 | CN66: 1.62 | CO66: 1.59 | CP66: 1.57 | CQ66: 1.55 | CR66: 1.53 | CS66: 1.52 | CT66: 1.5 | CU66: 1.48 | CV66: 1.46 | CW66: 1.44 | CX66: 1.43 | CY66: 1.41 | CZ66: 1.39 | DA66: 1.38 | DB66: 1.36 | DC66: 1.35 | DD66: 1.33 | DE66: 1.32 | DF66: 1.3 | DG66: 1.29 | DH66: 1.28 | DI66: 1.26 | DJ66: 1.25 | DK66: 1.24 | DL66: 1.22 | DM66: 1.21 | DN66: 1.2 | DO66: 1.19 | DP66: 1.18 | DQ66: 1.17 | DR66: 1.15 | DS66: 1.14 | DT66: 1.13 | DU66: 1.12 | DV66: 1.11 | DW66: 1.1 | DX66: 1.09 | DY66: 1.08 | DZ66: 1.07 | EA66: 1.06 | EB66: 1.05 | EC66: 1.04 | ED66: 1.04 | EE66: 1.03 | EF66: 1.02 | EG66: 1.01 | EH66: 1 | EI66: 0.99 | EJ66: 0 | EK66: 0 | EL66: 0 | EM66: 0 | EN66: 0 | EO66: =IFERROR(IF(EN66<1,0,ROUND(VLOOKUP($V$14,$B$12:$I$15,5,FALSE)*SQRT($P66)/(PI()*VLOOKUP($DR$14,$MM$6:$MO$11,3,FALSE)^2/4*EO$18),2)),666) -> 0 | EP66: 0 | EQ66: 0 | ER66: 0 | ES66: 0 | ET66: 0 | EU66: 0 | EV66: 0 | EW66: 0 | EX66: 0 | EY66: 0 | EZ66: 0 | FA66: 0 | FB66: 0 | FC66: 0 | FD66: 0 | FE66: 0 | FF66: 0 | FG66: 0 | FH66: 0 | FI66: 0 | FJ66: 0 | FK66: 0 | FL66: 0 | FM66: 0 | FN66: 0 | FO66: 0 | FP66: 0 | FQ66: 0 | FR66: 0 | FS66: 0 | FT66: 0 | FU66: 0 | FV66: 0 | FW66: 0 | FX66: 0 | FY66: 0 | FZ66: 0 | GA66: 0 | GB66: 0 | GC66: 0 | GD66: 0 | GE66: 0 | GF66: 0 | GG66: 0 | GH66: 0 | GI66: 0 | GJ66: 0 | GK66: 0 | GL66: 0 | GM66: 0 | GN66: 0 | GO66: 0 | GP66: 0 | GQ66: 0 | GR66: 0 | GS66: 0 | GT66: 0 | GU66: 0 | GV66: 0 | GW66: 0 | GX66: 0 | GY66: 0 | GZ66: 0 | HA66: =IFERROR(IF(GZ66<1,0,ROUND(VLOOKUP($V$14,$B$12:$I$15,5,FALSE)*SQRT($P66)/(PI()*VLOOKUP($DR$14,$MM$6:$MO$11,3,FALSE)^2/4*HA$18),2)),666) -> 0 | HB66: 0 | HC66: 0 | HD66: 0 | HE66: 0 | HF66: 0 | HG66: 0 | HH66: 0 | HI66: 0 | HJ66: 0 | HK66: 0 | HL66: 0 | HM66: 0 | HN66: 0 | HO66: 0 | HP66: 0 | HQ66: 0 | HR66: 0 | HS66: 0 | HT66: 0 | HU66: 0 | HV66: 0 | HW66: 0 | HX66: 0 | HY66: 0 | HZ66: 0 | IA66: 0 | IB66: 0 | IC66: 0 | ID66: 0 | IE66: 0 | IF66: 0 | IG66: 0 | IH66: 0 | II66: 0 | IJ66: 0 | IK66: 0 | IL66: 0 | IM66: 0 | IN66: 0 | IO66: 0 | IP66: 0 | IQ66: 0 | IR66: 0 | IS66: 0 | IT66: 0 | IU66: 0 | IV66: 0 | IW66: 0 | IX66: 0 | IY66: 0 | IZ66: 0 | JA66: 0 | JB66: 0 | JC66: 0 | JD66: 0 | JE66: 0 | JF66: 0 | JG66: 0 | JH66: 0 | JI66: 0 | JJ66: 0 | JK66: 0 | JL66: 0 | JM66: =IFERROR(IF(JL66<1,0,ROUND(VLOOKUP($V$14,$B$12:$I$15,5,FALSE)*SQRT($P66)/(PI()*VLOOKUP($DR$14,$MM$6:$MO$11,3,FALSE)^2/4*JM$18),2)),666) -> 0 | JN66: 0 | JO66: 0 | JP66: 0 | JQ66: 0 | JR66: 0 | JS66: 0 | JT66: 0 | JU66: 0 | JV66: 0 | JW66: 0 | JX66: 0 | JY66: 0 | JZ66: 0 | KA66: 0 | KB66: 0 | KC66: 0 | KD66: 0 | KE66: 0 | KF66: 0 | KG66: 0 | KH66: 0 | KI66: 0 | KJ66: 0 | KK66: 0 | KL66: 0 | KM66: 0 | KN66: 0 | KO66: 0 | KP66: 0 | KQ66: 0 | KR66: 0 | KS66: 0 | KT66: 0 | KU66: 0 | KV66: 0 | KW66: 0 | KX66: 0 | KY66: 0 | KZ66: 0 | LA66: 0 | LB66: 0 | LC66: 0 | LD66: 0 | LE66: 0 | LF66: 0 | LG66: 0 | LH66: 0 | LI66: 0 | LJ66: 0 | LK66: 0 | LL66: 0 | LM66: 0 | LN66: 0 | LO66: 0 | LP66: 0 | LQ66: 0 | LR66: 0 | LS66: 0 | LT66: 0 | LU66: 0 | LV66: 0 | LW66: 0 | LX66: 0 | LY66: 0 | MH66: 28.6 | MI66: 414.8079475 | MJ66: 2.86
